Workbook

Sheet prod_px (hidden)
A1: prod px
B2: x | C2: 15 | D2: 16 | E2: 17 | F2: 18 | G2: 19 | H2: 20 | I2: 21 | J2: 22 | K2: 23 | L2: 24 | M2: 25 | N2: 26 | O2: 27 | P2: 28 | Q2: 29 | R2: 30 | S2: 31 | T2: 32 | U2: 33 | V2: 34 | W2: 35 | X2: 36 | Y2: 37 | Z2: 38 | AA2: 39 | AB2: 40 | AC2: 41 | AD2: 42 | AE2: 43 | AF2: 44 | AG2: 45 | AH2: 46 | AI2: 47 | AJ2: 48 | AK2: 49 | AL2: 50 | AM2: 51 | AN2: 52 | AO2: 53 | AP2: 54 | AQ2: 55 | AR2: 56 | AS2: 57 | AT2: 58 | AU2: 59 | AV2: 60 | AW2: 61 | AX2: 62 | AY2: 63 | AZ2: 64 | BA2: 65 | BB2: 66 | BC2: 67 | BD2: 68 | BE2: 69 | BF2: 70 | BG2: 71 | BH2: 72 | BI2: 73 | BJ2: 74 | BK2: 75 | BL2: 76 | BM2: 77 | BN2: 78 | BO2: 79 | BP2: 80 | BQ2: 81 | BR2: 82 | BS2: 83 | BT2: 84 | BU2: 85 | BV2: 86 | BW2: 87 | BX2: 88 | BY2: 89 | BZ2: 90 | CA2: 91 | CB2: 92 | CC2: 93 | CD2: 94 | CE2: 95 | CF2: 96 | CG2: 97 | CH2: 98 | CI2: 99 | CJ2: 100
B3: i | C3: 0 | D3: 1 | E3: 2 | F3: 3 | G3: 4 | H3: 5 | I3: 6 | J3: 7 | K3: 8 | L3: 9 | M3: 10 | N3: 11 | O3: 12 | P3: 13 | Q3: 14 | R3: 15 | S3: 16 | T3: 17 | U3: 18 | V3: 19 | W3: 20 | X3: 21 | Y3: 22 | Z3: 23 | AA3: 24 | AB3: 25 | AC3: 26 | AD3: 27 | AE3: 28 | AF3: 29 | AG3: 30 | AH3: 31 | AI3: 32 | AJ3: 33 | AK3: 34 | AL3: 35 | AM3: 36 | AN3: 37 | AO3: 38 | AP3: 39 | AQ3: 40 | AR3: 41 | AS3: 42 | AT3: 43 | AU3: 44 | AV3: 45 | AW3: 46 | AX3: 47 | AY3: 48 | AZ3: 49 | BA3: 50 | BB3: 51 | BC3: 52 | BD3: 53 | BE3: 54 | BF3: 55 | BG3: 56 | BH3: 57 | BI3: 58 | BJ3: 59 | BK3: 60 | BL3: 61 | BM3: 62 | BN3: 63 | BO3: 64 | BP3: 65 | BQ3: 66 | BR3: 67 | BS3: 68 | BT3: 69 | BU3: 70 | BV3: 71 | BW3: 72 | BX3: 73 | BY3: 74 | BZ3: 75 | CA3: 76 | CB3: 77 | CC3: 78 | CD3: 79 | CE3: 80 | CF3: 81 | CG3: 82 | CH3: 83 | CI3: 84 | CJ3: 85
A4: x | B4: i
A5: 15 | B5: 0 | C5: 1 | D5: 1 | E5: 1 | F5: 1 | G5: 1 | H5: 1 | I5: 1 | J5: 1 | K5: 1 | L5: 1 | M5: 1 | N5: 1 | O5: 1 | P5: 1 | Q5: 1 | R5: 1 | S5: 1 | T5: 1 | U5: 1 | V5: 1 | W5: 1 | X5: 1 | Y5: 1 | Z5: 1 | AA5: 1 | AB5: 1 | AC5: 1 | AD5: 1 | AE5: 1 | AF5: 1 | AG5: 1 | AH5: 1 | AI5: 1 | AJ5: 1 | AK5: 1 | AL5: 1 | AM5: 1 | AN5: 1 | AO5: 1 | AP5: 1 | AQ5: 1 | AR5: 1 | AS5: 1 | AT5: 1 | AU5: 1 | AV5: 1 | AW5: 1 | AX5: 1 | AY5: 1 | AZ5: 1 | BA5: 1 | BB5: 1 | BC5: 1 | BD5: 1 | BE5: 1 | BF5: 1 | BG5: 1 | BH5: 1 | BI5: 1 | BJ5: 1 | BK5: 1 | BL5: 1 | BM5: 1 | BN5: 1 | BO5: 1 | BP5: 1 | BQ5: 1 | BR5: 1 | BS5: 1 | BT5: 1 | BU5: 1 | BV5: 1 | BW5: 1 | BX5: 1 | BY5: 1 | BZ5: 1 | CA5: 1 | CB5: 1 | CC5: 1 | CD5: 1 | CE5: 1 | CF5: 1 | CG5: 1 | CH5: 1 | CI5: 1 | CJ5: 1
A6: 16 | B6: 1 | C6: 1 | D6: 1 | E6: 1 | F6: 1 | G6: 1 | H6: 1 | I6: 1 | J6: 1 | K6: 1 | L6: 1 | M6: 1 | N6: 1 | O6: 1 | P6: 1 | Q6: 1 | R6: 1 | S6: 1 | T6: 1 | U6: 1 | V6: 1 | W6: 1 | X6: 1 | Y6: 1 | Z6: 1 | AA6: 1 | AB6: 1 | AC6: 1 | AD6: 1 | AE6: 1 | AF6: 1 | AG6: 1 | AH6: 1 | AI6: 1 | AJ6: 1 | AK6: 1 | AL6: 1 | AM6: 1 | AN6: 1 | AO6: 1 | AP6: 1 | AQ6: 1 | AR6: 1 | AS6: 1 | AT6: 1 | AU6: 1 | AV6: 1 | AW6: 1 | AX6: 1 | AY6: 1 | AZ6: 1 | BA6: 1 | BB6: 1 | BC6: 1 | BD6: 1 | BE6: 1 | BF6: 1 | BG6: 1 | BH6: 1 | BI6: 1 | BJ6: 1 | BK6: 1 | BL6: 1 | BM6: 1 | BN6: 1 | BO6: 1 | BP6: 1 | BQ6: 1 | BR6: 1 | BS6: 1 | BT6: 1 | BU6: 1 | BV6: 1 | BW6: 1 | BX6: 1 | BY6: 1 | BZ6: 1 | CA6: 1 | CB6: 1 | CC6: 1 | CD6: 1 | CE6: 1 | CF6: 1 | CG6: 1 | CH6: 1 | CI6: 1 | CJ6: 1
A7: 17 | B7: 2 | C7: =ROUND(IF(C$2+$B7>100,0,C6*INDEX(Sterbtab_mix!$G$4:$G$104,C$2+$B6)),11) -> 0.999767 | D7: =ROUND(IF(D$2+$B7>100,0,D6*INDEX(Sterbtab_mix!$G$4:$G$104,D$2+$B6)),11) -> 0.999691 | E7: =ROUND(IF(E$2+$B7>100,0,E6*INDEX(Sterbtab_mix!$G$4:$G$104,E$2+$B6)),11) -> 0.999605 | F7: =ROUND(IF(F$2+$B7>100,0,F6*INDEX(Sterbtab_mix!$G$4:$G$104,F$2+$B6)),11) -> 0.999518 | G7: =ROUND(IF(G$2+$B7>100,0,G6*INDEX(Sterbtab_mix!$G$4:$G$104,G$2+$B6)),11) -> 0.999443 | H7: =ROUND(IF(H$2+$B7>100,0,H6*INDEX(Sterbtab_mix!$G$4:$G$104,H$2+$B6)),11) -> 0.999391 | I7: =ROUND(IF(I$2+$B7>100,0,I6*INDEX(Sterbtab_mix!$G$4:$G$104,I$2+$B6)),11) -> 0.999367 | J7: =ROUND(IF(J$2+$B7>100,0,J6*INDEX(Sterbtab_mix!$G$4:$G$104,J$2+$B6)),11) -> 0.99937 | K7: =ROUND(IF(K$2+$B7>100,0,K6*INDEX(Sterbtab_mix!$G$4:$G$104,K$2+$B6)),11) -> 0.99939 | L7: =ROUND(IF(L$2+$B7>100,0,L6*INDEX(Sterbtab_mix!$G$4:$G$104,L$2+$B6)),11) -> 0.999412 | M7: =ROUND(IF(M$2+$B7>100,0,M6*INDEX(Sterbtab_mix!$G$4:$G$104,M$2+$B6)),11) -> 0.999426 | N7: =ROUND(IF(N$2+$B7>100,0,N6*INDEX(Sterbtab_mix!$G$4:$G$104,N$2+$B6)),11) -> 0.999436 | O7: =ROUND(IF(O$2+$B7>100,0,O6*INDEX(Sterbtab_mix!$G$4:$G$104,O$2+$B6)),11) -> 0.999444 | P7: =ROUND(IF(P$2+$B7>100,0,P6*INDEX(Sterbtab_mix!$G$4:$G$104,P$2+$B6)),11) -> 0.999447 | Q7: =ROUND(IF(Q$2+$B7>100,0,Q6*INDEX(Sterbtab_mix!$G$4:$G$104,Q$2+$B6)),11) -> 0.999444 | R7: =ROUND(IF(R$2+$B7>100,0,R6*INDEX(Sterbtab_mix!$G$4:$G$104,R$2+$B6)),11) -> 0.999435 | S7: =ROUND(IF(S$2+$B7>100,0,S6*INDEX(Sterbtab_mix!$G$4:$G$104,S$2+$B6)),11) -> 0.999418 | T7: =ROUND(IF(T$2+$B7>100,0,T6*INDEX(Sterbtab_mix!$G$4:$G$104,T$2+$B6)),11) -> 0.999393 | U7: =ROUND(IF(U$2+$B7>100,0,U6*INDEX(Sterbtab_mix!$G$4:$G$104,U$2+$B6)),11) -> 0.999359 | V7: =ROUND(IF(V$2+$B7>100,0,V6*INDEX(Sterbtab_mix!$G$4:$G$104,V$2+$B6)),11) -> 0.999318 | W7: =ROUND(IF(W$2+$B7>100,0,W6*INDEX(Sterbtab_mix!$G$4:$G$104,W$2+$B6)),11) -> 0.999273 | X7: =ROUND(IF(X$2+$B7>100,0,X6*INDEX(Sterbtab_mix!$G$4:$G$104,X$2+$B6)),11) -> 0.999225 | Y7: =ROUND(IF(Y$2+$B7>100,0,Y6*INDEX(Sterbtab_mix!$G$4:$G$104,Y$2+$B6)),11) -> 0.99917 | Z7: =ROUND(IF(Z$2+$B7>100,0,Z6*INDEX(Sterbtab_mix!$G$4:$G$104,Z$2+$B6)),11) -> 0.999106 | AA7: =ROUND(IF(AA$2+$B7>100,0,AA6*INDEX(Sterbtab_mix!$G$4:$G$104,AA$2+$B6)),11) -> 0.999031 | AB7: =ROUND(IF(AB$2+$B7>100,0,AB6*INDEX(Sterbtab_mix!$G$4:$G$104,AB$2+$B6)),11) -> 0.998942 | AC7: =ROUND(IF(AC$2+$B7>100,0,AC6*INDEX(Sterbtab_mix!$G$4:$G$104,AC$2+$B6)),11) -> 0.998833 | AD7: =ROUND(IF(AD$2+$B7>100,0,AD6*INDEX(Sterbtab_mix!$G$4:$G$104,AD$2+$B6)),11) -> 0.998705 | AE7: =ROUND(IF(AE$2+$B7>100,0,AE6*INDEX(Sterbtab_mix!$G$4:$G$104,AE$2+$B6)),11) -> 0.998555 | AF7: =ROUND(IF(AF$2+$B7>100,0,AF6*INDEX(Sterbtab_mix!$G$4:$G$104,AF$2+$B6)),11) -> 0.998383 | AG7: =ROUND(IF(AG$2+$B7>100,0,AG6*INDEX(Sterbtab_mix!$G$4:$G$104,AG$2+$B6)),11) -> 0.998187 | AH7: =ROUND(IF(AH$2+$B7>100,0,AH6*INDEX(Sterbtab_mix!$G$4:$G$104,AH$2+$B6)),11) -> 0.997968 | AI7: =ROUND(IF(AI$2+$B7>100,0,AI6*INDEX(Sterbtab_mix!$G$4:$G$104,AI$2+$B6)),11) -> 0.997726 | AJ7: =ROUND(IF(AJ$2+$B7>100,0,AJ6*INDEX(Sterbtab_mix!$G$4:$G$104,AJ$2+$B6)),11) -> 0.99746 | AK7: =ROUND(IF(AK$2+$B7>100,0,AK6*INDEX(Sterbtab_mix!$G$4:$G$104,AK$2+$B6)),11) -> 0.997166 | AL7: =ROUND(IF(AL$2+$B7>100,0,AL6*INDEX(Sterbtab_mix!$G$4:$G$104,AL$2+$B6)),11) -> 0.996844 | AM7: =ROUND(IF(AM$2+$B7>100,0,AM6*INDEX(Sterbtab_mix!$G$4:$G$104,AM$2+$B6)),11) -> 0.996492 | AN7: =ROUND(IF(AN$2+$B7>100,0,AN6*INDEX(Sterbtab_mix!$G$4:$G$104,AN$2+$B6)),11) -> 0.996107 | AO7: =ROUND(IF(AO$2+$B7>100,0,AO6*INDEX(Sterbtab_mix!$G$4:$G$104,AO$2+$B6)),11) -> 0.995684 | AP7: =ROUND(IF(AP$2+$B7>100,0,AP6*INDEX(Sterbtab_mix!$G$4:$G$104,AP$2+$B6)),11) -> 0.99522 | AQ7: =ROUND(IF(AQ$2+$B7>100,0,AQ6*INDEX(Sterbtab_mix!$G$4:$G$104,AQ$2+$B6)),11) -> 0.994707 | AR7: =ROUND(IF(AR$2+$B7>100,0,AR6*INDEX(Sterbtab_mix!$G$4:$G$104,AR$2+$B6)),11) -> 0.994139 | AS7: =ROUND(IF(AS$2+$B7>100,0,AS6*INDEX(Sterbtab_mix!$G$4:$G$104,AS$2+$B6)),11) -> 0.993516 | AT7: =ROUND(IF(AT$2+$B7>100,0,AT6*INDEX(Sterbtab_mix!$G$4:$G$104,AT$2+$B6)),11) -> 0.992838 | AU7: =ROUND(IF(AU$2+$B7>100,0,AU6*INDEX(Sterbtab_mix!$G$4:$G$104,AU$2+$B6)),11) -> 0.992108 | AV7: =ROUND(IF(AV$2+$B7>100,0,AV6*INDEX(Sterbtab_mix!$G$4:$G$104,AV$2+$B6)),11) -> 0.991334 | AW7: =ROUND(IF(AW$2+$B7>100,0,AW6*INDEX(Sterbtab_mix!$G$4:$G$104,AW$2+$B6)),11) -> 0.990525 | AX7: =ROUND(IF(AX$2+$B7>100,0,AX6*INDEX(Sterbtab_mix!$G$4:$G$104,AX$2+$B6)),11) -> 0.989691 | AY7: =ROUND(IF(AY$2+$B7>100,0,AY6*INDEX(Sterbtab_mix!$G$4:$G$104,AY$2+$B6)),11) -> 0.988835 | AZ7: =ROUND(IF(AZ$2+$B7>100,0,AZ6*INDEX(Sterbtab_mix!$G$4:$G$104,AZ$2+$B6)),11) -> 0.987958 | BA7: =ROUND(IF(BA$2+$B7>100,0,BA6*INDEX(Sterbtab_mix!$G$4:$G$104,BA$2+$B6)),11) -> 0.987052 | BB7: =ROUND(IF(BB$2+$B7>100,0,BB6*INDEX(Sterbtab_mix!$G$4:$G$104,BB$2+$B6)),11) -> 0.986102 | BC7: =ROUND(IF(BC$2+$B7>100,0,BC6*INDEX(Sterbtab_mix!$G$4:$G$104,BC$2+$B6)),11) -> 0.985087 | BD7: =ROUND(IF(BD$2+$B7>100,0,BD6*INDEX(Sterbtab_mix!$G$4:$G$104,BD$2+$B6)),11) -> 0.983974 | BE7: =ROUND(IF(BE$2+$B7>100,0,BE6*INDEX(Sterbtab_mix!$G$4:$G$104,BE$2+$B6)),11) -> 0.982729 | BF7: =ROUND(IF(BF$2+$B7>100,0,BF6*INDEX(Sterbtab_mix!$G$4:$G$104,BF$2+$B6)),11) -> 0.981311 | BG7: =ROUND(IF(BG$2+$B7>100,0,BG6*INDEX(Sterbtab_mix!$G$4:$G$104,BG$2+$B6)),11) -> 0.9797 | BH7: =ROUND(IF(BH$2+$B7>100,0,BH6*INDEX(Sterbtab_mix!$G$4:$G$104,BH$2+$B6)),11) -> 0.977827 | BI7: =ROUND(IF(BI$2+$B7>100,0,BI6*INDEX(Sterbtab_mix!$G$4:$G$104,BI$2+$B6)),11) -> 0.975638 | BJ7: =ROUND(IF(BJ$2+$B7>100,0,BJ6*INDEX(Sterbtab_mix!$G$4:$G$104,BJ$2+$B6)),11) -> 0.973081 | BK7: =ROUND(IF(BK$2+$B7>100,0,BK6*INDEX(Sterbtab_mix!$G$4:$G$104,BK$2+$B6)),11) -> 0.970096 | BL7: =ROUND(IF(BL$2+$B7>100,0,BL6*INDEX(Sterbtab_mix!$G$4:$G$104,BL$2+$B6)),11) -> 0.966623 | BM7: =ROUND(IF(BM$2+$B7>100,0,BM6*INDEX(Sterbtab_mix!$G$4:$G$104,BM$2+$B6)),11) -> 0.962597 | BN7: =ROUND(IF(BN$2+$B7>100,0,BN6*INDEX(Sterbtab_mix!$G$4:$G$104,BN$2+$B6)),11) -> 0.957952 | BO7: =ROUND(IF(BO$2+$B7>100,0,BO6*INDEX(Sterbtab_mix!$G$4:$G$104,BO$2+$B6)),11) -> 0.952619 | BP7: =ROUND(IF(BP$2+$B7>100,0,BP6*INDEX(Sterbtab_mix!$G$4:$G$104,BP$2+$B6)),11) -> 0.94653 | BQ7: =ROUND(IF(BQ$2+$B7>100,0,BQ6*INDEX(Sterbtab_mix!$G$4:$G$104,BQ$2+$B6)),11) -> 0.939618 | BR7: =ROUND(IF(BR$2+$B7>100,0,BR6*INDEX(Sterbtab_mix!$G$4:$G$104,BR$2+$B6)),11) -> 0.931816 | BS7: =ROUND(IF(BS$2+$B7>100,0,BS6*INDEX(Sterbtab_mix!$G$4:$G$104,BS$2+$B6)),11) -> 0.923064 | BT7: =ROUND(IF(BT$2+$B7>100,0,BT6*INDEX(Sterbtab_mix!$G$4:$G$104,BT$2+$B6)),11) -> 0.913302 | BU7: =ROUND(IF(BU$2+$B7>100,0,BU6*INDEX(Sterbtab_mix!$G$4:$G$104,BU$2+$B6)),11) -> 0.902479 | BV7: =ROUND(IF(BV$2+$B7>100,0,BV6*INDEX(Sterbtab_mix!$G$4:$G$104,BV$2+$B6)),11) -> 0.89055 | BW7: =ROUND(IF(BW$2+$B7>100,0,BW6*INDEX(Sterbtab_mix!$G$4:$G$104,BW$2+$B6)),11) -> 0.87748 | BX7: =ROUND(IF(BX$2+$B7>100,0,BX6*INDEX(Sterbtab_mix!$G$4:$G$104,BX$2+$B6)),11) -> 0.863247 | BY7: =ROUND(IF(BY$2+$B7>100,0,BY6*INDEX(Sterbtab_mix!$G$4:$G$104,BY$2+$B6)),11) -> 0.847843 | BZ7: =ROUND(IF(BZ$2+$B7>100,0,BZ6*INDEX(Sterbtab_mix!$G$4:$G$104,BZ$2+$B6)),11) -> 0.831273 | CA7: =ROUND(IF(CA$2+$B7>100,0,CA6*INDEX(Sterbtab_mix!$G$4:$G$104,CA$2+$B6)),11) -> 0.813564 | CB7: =ROUND(IF(CB$2+$B7>100,0,CB6*INDEX(Sterbtab_mix!$G$4:$G$104,CB$2+$B6)),11) -> 0.794758 | CC7: =ROUND(IF(CC$2+$B7>100,0,CC6*INDEX(Sterbtab_mix!$G$4:$G$104,CC$2+$B6)),11) -> 0.774918 | CD7: =ROUND(IF(CD$2+$B7>100,0,CD6*INDEX(Sterbtab_mix!$G$4:$G$104,CD$2+$B6)),11) -> 0.754129 | CE7: =ROUND(IF(CE$2+$B7>100,0,CE6*INDEX(Sterbtab_mix!$G$4:$G$104,CE$2+$B6)),11) -> 0.732493 | CF7: =ROUND(IF(CF$2+$B7>100,0,CF6*INDEX(Sterbtab_mix!$G$4:$G$104,CF$2+$B6)),11) -> 0.710134 | CG7: =ROUND(IF(CG$2+$B7>100,0,CG6*INDEX(Sterbtab_mix!$G$4:$G$104,CG$2+$B6)),11) -> 0.687193 | CH7: =ROUND(IF(CH$2+$B7>100,0,CH6*INDEX(Sterbtab_mix!$G$4:$G$104,CH$2+$B6)),11) -> 0.663827 | CI7: =ROUND(IF(CI$2+$B7>100,0,CI6*INDEX(Sterbtab_mix!$G$4:$G$104,CI$2+$B6)),11) -> 0 | CJ7: =ROUND(IF(CJ$2+$B7>100,0,CJ6*INDEX(Sterbtab_mix!$G$4:$G$104,CJ$2+$B6)),11) -> 0
A8: 18 | B8: 3 | C8: =ROUND(IF(C$2+$B8>100,0,C7*INDEX(Sterbtab_mix!$G$4:$G$104,C$2+$B7)),11) -> 0.999458072 | D8: =ROUND(IF(D$2+$B8>100,0,D7*INDEX(Sterbtab_mix!$G$4:$G$104,D$2+$B7)),11) -> 0.9992961221 | E8: =ROUND(IF(E$2+$B8>100,0,E7*INDEX(Sterbtab_mix!$G$4:$G$104,E$2+$B7)),11) -> 0.9991231904 | F8: =ROUND(IF(F$2+$B8>100,0,F7*INDEX(Sterbtab_mix!$G$4:$G$104,F$2+$B7)),11) -> 0.9989612685 | G8: =ROUND(IF(G$2+$B8>100,0,G7*INDEX(Sterbtab_mix!$G$4:$G$104,G$2+$B7)),11) -> 0.9988343392 | H8: =ROUND(IF(H$2+$B8>100,0,H7*INDEX(Sterbtab_mix!$G$4:$G$104,H$2+$B7)),11) -> 0.9987583855 | I8: =ROUND(IF(I$2+$B8>100,0,I7*INDEX(Sterbtab_mix!$G$4:$G$104,I$2+$B7)),11) -> 0.9987373988 | J8: =ROUND(IF(J$2+$B8>100,0,J7*INDEX(Sterbtab_mix!$G$4:$G$104,J$2+$B7)),11) -> 0.9987603843 | K8: =ROUND(IF(K$2+$B8>100,0,K7*INDEX(Sterbtab_mix!$G$4:$G$104,K$2+$B7)),11) -> 0.9988023587 | L8: =ROUND(IF(L$2+$B8>100,0,L7*INDEX(Sterbtab_mix!$G$4:$G$104,L$2+$B7)),11) -> 0.9988383375 | M8: =ROUND(IF(M$2+$B8>100,0,M7*INDEX(Sterbtab_mix!$G$4:$G$104,M$2+$B7)),11) -> 0.9988623237 | N8: =ROUND(IF(N$2+$B8>100,0,N7*INDEX(Sterbtab_mix!$G$4:$G$104,N$2+$B7)),11) -> 0.9988803136 | O8: =ROUND(IF(O$2+$B8>100,0,O7*INDEX(Sterbtab_mix!$G$4:$G$104,O$2+$B7)),11) -> 0.9988913075 | P8: =ROUND(IF(P$2+$B8>100,0,P7*INDEX(Sterbtab_mix!$G$4:$G$104,P$2+$B7)),11) -> 0.9988913075 | Q8: =ROUND(IF(Q$2+$B8>100,0,Q7*INDEX(Sterbtab_mix!$G$4:$G$104,Q$2+$B7)),11) -> 0.9988793141 | R8: =ROUND(IF(R$2+$B8>100,0,R7*INDEX(Sterbtab_mix!$G$4:$G$104,R$2+$B7)),11) -> 0.9988533288 | S8: =ROUND(IF(S$2+$B8>100,0,S7*INDEX(Sterbtab_mix!$G$4:$G$104,S$2+$B7)),11) -> 0.9988113533 | T8: =ROUND(IF(T$2+$B8>100,0,T7*INDEX(Sterbtab_mix!$G$4:$G$104,T$2+$B7)),11) -> 0.9987523891 | U8: =ROUND(IF(U$2+$B8>100,0,U7*INDEX(Sterbtab_mix!$G$4:$G$104,U$2+$B7)),11) -> 0.9986774372 | V8: =ROUND(IF(V$2+$B8>100,0,V7*INDEX(Sterbtab_mix!$G$4:$G$104,V$2+$B7)),11) -> 0.9985914958 | W8: =ROUND(IF(W$2+$B8>100,0,W7*INDEX(Sterbtab_mix!$G$4:$G$104,W$2+$B7)),11) -> 0.9984985634 | X8: =ROUND(IF(X$2+$B8>100,0,X7*INDEX(Sterbtab_mix!$G$4:$G$104,X$2+$B7)),11) -> 0.9983956432 | Y8: =ROUND(IF(Y$2+$B8>100,0,Y7*INDEX(Sterbtab_mix!$G$4:$G$104,Y$2+$B7)),11) -> 0.998276742 | Z8: =ROUND(IF(Z$2+$B8>100,0,Z7*INDEX(Sterbtab_mix!$G$4:$G$104,Z$2+$B7)),11) -> 0.9981378663 | AA8: =ROUND(IF(AA$2+$B8>100,0,AA7*INDEX(Sterbtab_mix!$G$4:$G$104,AA$2+$B7)),11) -> 0.9979740252 | AB8: =ROUND(IF(AB$2+$B8>100,0,AB7*INDEX(Sterbtab_mix!$G$4:$G$104,AB$2+$B7)),11) -> 0.9977762347 | AC8: =ROUND(IF(AC$2+$B8>100,0,AC7*INDEX(Sterbtab_mix!$G$4:$G$104,AC$2+$B7)),11) -> 0.9975395113 | AD8: =ROUND(IF(AD$2+$B8>100,0,AD7*INDEX(Sterbtab_mix!$G$4:$G$104,AD$2+$B7)),11) -> 0.9972618713 | AE8: =ROUND(IF(AE$2+$B8>100,0,AE7*INDEX(Sterbtab_mix!$G$4:$G$104,AE$2+$B7)),11) -> 0.9969403366 | AF8: =ROUND(IF(AF$2+$B8>100,0,AF7*INDEX(Sterbtab_mix!$G$4:$G$104,AF$2+$B7)),11) -> 0.9965729316 | AG8: =ROUND(IF(AG$2+$B8>100,0,AG7*INDEX(Sterbtab_mix!$G$4:$G$104,AG$2+$B7)),11) -> 0.996158684 | AH8: =ROUND(IF(AH$2+$B8>100,0,AH7*INDEX(Sterbtab_mix!$G$4:$G$104,AH$2+$B7)),11) -> 0.9956986208 | AI8: =ROUND(IF(AI$2+$B8>100,0,AI7*INDEX(Sterbtab_mix!$G$4:$G$104,AI$2+$B7)),11) -> 0.995191776 | AJ8: =ROUND(IF(AJ$2+$B8>100,0,AJ7*INDEX(Sterbtab_mix!$G$4:$G$104,AJ$2+$B7)),11) -> 0.9946331984 | AK8: =ROUND(IF(AK$2+$B8>100,0,AK7*INDEX(Sterbtab_mix!$G$4:$G$104,AK$2+$B7)),11) -> 0.9940189441 | AL8: =ROUND(IF(AL$2+$B8>100,0,AL7*INDEX(Sterbtab_mix!$G$4:$G$104,AL$2+$B7)),11) -> 0.9933470712 | AM8: =ROUND(IF(AM$2+$B8>100,0,AM7*INDEX(Sterbtab_mix!$G$4:$G$104,AM$2+$B7)),11) -> 0.9926126566 | AN8: =ROUND(IF(AN$2+$B8>100,0,AN7*INDEX(Sterbtab_mix!$G$4:$G$104,AN$2+$B7)),11) -> 0.9918078022 | AO8: =ROUND(IF(AO$2+$B8>100,0,AO7*INDEX(Sterbtab_mix!$G$4:$G$104,AO$2+$B7)),11) -> 0.9909246305 | AP8: =ROUND(IF(AP$2+$B8>100,0,AP7*INDEX(Sterbtab_mix!$G$4:$G$104,AP$2+$B7)),11) -> 0.9899523005 | AQ8: =ROUND(IF(AQ$2+$B8>100,0,AQ7*INDEX(Sterbtab_mix!$G$4:$G$104,AQ$2+$B7)),11) -> 0.9888770223 | AR8: =ROUND(IF(AR$2+$B8>100,0,AR7*INDEX(Sterbtab_mix!$G$4:$G$104,AR$2+$B7)),11) -> 0.9876930027 | AS8: =ROUND(IF(AS$2+$B8>100,0,AS7*INDEX(Sterbtab_mix!$G$4:$G$104,AS$2+$B7)),11) -> 0.9864004384 | AT8: =ROUND(IF(AT$2+$B8>100,0,AT7*INDEX(Sterbtab_mix!$G$4:$G$104,AT$2+$B7)),11) -> 0.9850025225 | AU8: =ROUND(IF(AU$2+$B8>100,0,AU7*INDEX(Sterbtab_mix!$G$4:$G$104,AU$2+$B7)),11) -> 0.9835103921 | AV8: =ROUND(IF(AV$2+$B8>100,0,AV7*INDEX(Sterbtab_mix!$G$4:$G$104,AV$2+$B7)),11) -> 0.9819411103 | AW8: =ROUND(IF(AW$2+$B8>100,0,AW7*INDEX(Sterbtab_mix!$G$4:$G$104,AW$2+$B7)),11) -> 0.9803136778 | AX8: =ROUND(IF(AX$2+$B8>100,0,AX7*INDEX(Sterbtab_mix!$G$4:$G$104,AX$2+$B7)),11) -> 0.9786411 | AY8: =ROUND(IF(AY$2+$B8>100,0,AY7*INDEX(Sterbtab_mix!$G$4:$G$104,AY$2+$B7)),11) -> 0.9769274489 | AZ8: =ROUND(IF(AZ$2+$B8>100,0,AZ7*INDEX(Sterbtab_mix!$G$4:$G$104,AZ$2+$B7)),11) -> 0.9751659198 | BA8: =ROUND(IF(BA$2+$B8>100,0,BA7*INDEX(Sterbtab_mix!$G$4:$G$104,BA$2+$B7)),11) -> 0.9733339513 | BB8: =ROUND(IF(BB$2+$B8>100,0,BB7*INDEX(Sterbtab_mix!$G$4:$G$104,BB$2+$B7)),11) -> 0.9713962609 | BC8: =ROUND(IF(BC$2+$B8>100,0,BC7*INDEX(Sterbtab_mix!$G$4:$G$104,BC$2+$B7)),11) -> 0.9692999957 | BD8: =ROUND(IF(BD$2+$B8>100,0,BD7*INDEX(Sterbtab_mix!$G$4:$G$104,BD$2+$B7)),11) -> 0.9669797851 | BE8: =ROUND(IF(BE$2+$B8>100,0,BE7*INDEX(Sterbtab_mix!$G$4:$G$104,BE$2+$B7)),11) -> 0.9643627777 | BF8: =ROUND(IF(BF$2+$B8>100,0,BF7*INDEX(Sterbtab_mix!$G$4:$G$104,BF$2+$B7)),11) -> 0.9613903867 | BG8: =ROUND(IF(BG$2+$B8>100,0,BG7*INDEX(Sterbtab_mix!$G$4:$G$104,BG$2+$B7)),11) -> 0.9579771119 | BH8: =ROUND(IF(BH$2+$B8>100,0,BH7*INDEX(Sterbtab_mix!$G$4:$G$104,BH$2+$B7)),11) -> 0.9540051786 | BI8: =ROUND(IF(BI$2+$B8>100,0,BI7*INDEX(Sterbtab_mix!$G$4:$G$104,BI$2+$B7)),11) -> 0.9493748007 | BJ8: =ROUND(IF(BJ$2+$B8>100,0,BJ7*INDEX(Sterbtab_mix!$G$4:$G$104,BJ$2+$B7)),11) -> 0.9439819858 | BK8: =ROUND(IF(BK$2+$B8>100,0,BK7*INDEX(Sterbtab_mix!$G$4:$G$104,BK$2+$B7)),11) -> 0.9377171058 | BL8: =ROUND(IF(BL$2+$B8>100,0,BL7*INDEX(Sterbtab_mix!$G$4:$G$104,BL$2+$B7)),11) -> 0.9304683999 | BM8: =ROUND(IF(BM$2+$B8>100,0,BM7*INDEX(Sterbtab_mix!$G$4:$G$104,BM$2+$B7)),11) -> 0.9221217213 | BN8: =ROUND(IF(BN$2+$B8>100,0,BN7*INDEX(Sterbtab_mix!$G$4:$G$104,BN$2+$B7)),11) -> 0.9125632763 | BO8: =ROUND(IF(BO$2+$B8>100,0,BO7*INDEX(Sterbtab_mix!$G$4:$G$104,BO$2+$B7)),11) -> 0.9016824621 | BP8: =ROUND(IF(BP$2+$B8>100,0,BP7*INDEX(Sterbtab_mix!$G$4:$G$104,BP$2+$B7)),11) -> 0.8893766255 | BQ8: =ROUND(IF(BQ$2+$B8>100,0,BQ7*INDEX(Sterbtab_mix!$G$4:$G$104,BQ$2+$B7)),11) -> 0.8755510863 | BR8: =ROUND(IF(BR$2+$B8>100,0,BR7*INDEX(Sterbtab_mix!$G$4:$G$104,BR$2+$B7)),11) -> 0.8601258042 | BS8: =ROUND(IF(BS$2+$B8>100,0,BS7*INDEX(Sterbtab_mix!$G$4:$G$104,BS$2+$B7)),11) -> 0.8430361973 | BT8: =ROUND(IF(BT$2+$B8>100,0,BT7*INDEX(Sterbtab_mix!$G$4:$G$104,BT$2+$B7)),11) -> 0.8242358757 | BU8: =ROUND(IF(BU$2+$B8>100,0,BU7*INDEX(Sterbtab_mix!$G$4:$G$104,BU$2+$B7)),11) -> 0.8037026735 | BV8: =ROUND(IF(BV$2+$B8>100,0,BV7*INDEX(Sterbtab_mix!$G$4:$G$104,BV$2+$B7)),11) -> 0.781439814 | BW8: =ROUND(IF(BW$2+$B8>100,0,BW7*INDEX(Sterbtab_mix!$G$4:$G$104,BW$2+$B7)),11) -> 0.7574819776 | BX8: =ROUND(IF(BX$2+$B8>100,0,BX7*INDEX(Sterbtab_mix!$G$4:$G$104,BX$2+$B7)),11) -> 0.7318979262 | BY8: =ROUND(IF(BY$2+$B8>100,0,BY7*INDEX(Sterbtab_mix!$G$4:$G$104,BY$2+$B7)),11) -> 0.7047889941 | BZ8: =ROUND(IF(BZ$2+$B8>100,0,BZ7*INDEX(Sterbtab_mix!$G$4:$G$104,BZ$2+$B7)),11) -> 0.676293787 | CA8: =ROUND(IF(CA$2+$B8>100,0,CA7*INDEX(Sterbtab_mix!$G$4:$G$104,CA$2+$B7)),11) -> 0.6465864975 | CB8: =ROUND(IF(CB$2+$B8>100,0,CB7*INDEX(Sterbtab_mix!$G$4:$G$104,CB$2+$B7)),11) -> 0.6158722798 | CC8: =ROUND(IF(CC$2+$B8>100,0,CC7*INDEX(Sterbtab_mix!$G$4:$G$104,CC$2+$B7)),11) -> 0.5843881364 | CD8: =ROUND(IF(CD$2+$B8>100,0,CD7*INDEX(Sterbtab_mix!$G$4:$G$104,CD$2+$B7)),11) -> 0.5523942136 | CE8: =ROUND(IF(CE$2+$B8>100,0,CE7*INDEX(Sterbtab_mix!$G$4:$G$104,CE$2+$B7)),11) -> 0.5201681841 | CF8: =ROUND(IF(CF$2+$B8>100,0,CF7*INDEX(Sterbtab_mix!$G$4:$G$104,CF$2+$B7)),11) -> 0.4879991139 | CG8: =ROUND(IF(CG$2+$B8>100,0,CG7*INDEX(Sterbtab_mix!$G$4:$G$104,CG$2+$B7)),11) -> 0.4561772676 | CH8: =ROUND(IF(CH$2+$B8>100,0,CH7*INDEX(Sterbtab_mix!$G$4:$G$104,CH$2+$B7)),11) -> 0 | CI8: =ROUND(IF(CI$2+$B8>100,0,CI7*INDEX(Sterbtab_mix!$G$4:$G$104,CI$2+$B7)),11) -> 0 | CJ8: =ROUND(IF(CJ$2+$B8>100,0,CJ7*INDEX(Sterbtab_mix!$G$4:$G$104,CJ$2+$B7)),11) -> 0
A9: 19 | B9: 4 | C9: =ROUND(IF(C$2+$B9>100,0,C8*INDEX(Sterbtab_mix!$G$4:$G$104,C$2+$B8)),11) -> 0.9990632861 | D9: =ROUND(IF(D$2+$B9>100,0,D8*INDEX(Sterbtab_mix!$G$4:$G$104,D$2+$B8)),11) -> 0.9988144613 | E9: =ROUND(IF(E$2+$B9>100,0,E8*INDEX(Sterbtab_mix!$G$4:$G$104,E$2+$B8)),11) -> 0.9985666788 | F9: =ROUND(IF(F$2+$B9>100,0,F8*INDEX(Sterbtab_mix!$G$4:$G$104,F$2+$B8)),11) -> 0.9983529011 | G9: =ROUND(IF(G$2+$B9>100,0,G8*INDEX(Sterbtab_mix!$G$4:$G$104,G$2+$B8)),11) -> 0.9982020771 | H9: =ROUND(IF(H$2+$B9>100,0,H8*INDEX(Sterbtab_mix!$G$4:$G$104,H$2+$B8)),11) -> 0.9981291677 | I9: =ROUND(IF(I$2+$B9>100,0,I8*INDEX(Sterbtab_mix!$G$4:$G$104,I$2+$B8)),11) -> 0.998128169 | J9: =ROUND(IF(J$2+$B9>100,0,J8*INDEX(Sterbtab_mix!$G$4:$G$104,J$2+$B8)),11) -> 0.9981731132 | K9: =ROUND(IF(K$2+$B9>100,0,K8*INDEX(Sterbtab_mix!$G$4:$G$104,K$2+$B8)),11) -> 0.9982290461 | L9: =ROUND(IF(L$2+$B9>100,0,L8*INDEX(Sterbtab_mix!$G$4:$G$104,L$2+$B8)),11) -> 0.9982749927 | M9: =ROUND(IF(M$2+$B9>100,0,M8*INDEX(Sterbtab_mix!$G$4:$G$104,M$2+$B8)),11) -> 0.9983069563 | N9: =ROUND(IF(N$2+$B9>100,0,N8*INDEX(Sterbtab_mix!$G$4:$G$104,N$2+$B8)),11) -> 0.9983279328 | O9: =ROUND(IF(O$2+$B9>100,0,O8*INDEX(Sterbtab_mix!$G$4:$G$104,O$2+$B8)),11) -> 0.9983359239 | P9: =ROUND(IF(P$2+$B9>100,0,P8*INDEX(Sterbtab_mix!$G$4:$G$104,P$2+$B8)),11) -> 0.9983269339 | Q9: =ROUND(IF(Q$2+$B9>100,0,Q8*INDEX(Sterbtab_mix!$G$4:$G$104,Q$2+$B8)),11) -> 0.9982979664 | R9: =ROUND(IF(R$2+$B9>100,0,R8*INDEX(Sterbtab_mix!$G$4:$G$104,R$2+$B8)),11) -> 0.9982470249 | S9: =ROUND(IF(S$2+$B9>100,0,S8*INDEX(Sterbtab_mix!$G$4:$G$104,S$2+$B8)),11) -> 0.9981711152 | T9: =ROUND(IF(T$2+$B9>100,0,T8*INDEX(Sterbtab_mix!$G$4:$G$104,T$2+$B8)),11) -> 0.99807124 | U9: =ROUND(IF(U$2+$B9>100,0,U8*INDEX(Sterbtab_mix!$G$4:$G$104,U$2+$B8)),11) -> 0.9979513987 | V9: =ROUND(IF(V$2+$B9>100,0,V8*INDEX(Sterbtab_mix!$G$4:$G$104,V$2+$B8)),11) -> 0.9978175874 | W9: =ROUND(IF(W$2+$B9>100,0,W8*INDEX(Sterbtab_mix!$G$4:$G$104,W$2+$B8)),11) -> 0.9976698096 | X9: =ROUND(IF(X$2+$B9>100,0,X8*INDEX(Sterbtab_mix!$G$4:$G$104,X$2+$B8)),11) -> 0.9975030775 | Y9: =ROUND(IF(Y$2+$B9>100,0,Y8*INDEX(Sterbtab_mix!$G$4:$G$104,Y$2+$B8)),11) -> 0.9973094119 | Z9: =ROUND(IF(Z$2+$B9>100,0,Z8*INDEX(Sterbtab_mix!$G$4:$G$104,Z$2+$B8)),11) -> 0.9970818364 | AA9: =ROUND(IF(AA$2+$B9>100,0,AA8*INDEX(Sterbtab_mix!$G$4:$G$104,AA$2+$B8)),11) -> 0.9968093895 | AB9: =ROUND(IF(AB$2+$B9>100,0,AB8*INDEX(Sterbtab_mix!$G$4:$G$104,AB$2+$B8)),11) -> 0.9964841145 | AC9: =ROUND(IF(AC$2+$B9>100,0,AC8*INDEX(Sterbtab_mix!$G$4:$G$104,AC$2+$B8)),11) -> 0.9960980667 | AD9: =ROUND(IF(AD$2+$B9>100,0,AD8*INDEX(Sterbtab_mix!$G$4:$G$104,AD$2+$B8)),11) -> 0.9956492988 | AE9: =ROUND(IF(AE$2+$B9>100,0,AE8*INDEX(Sterbtab_mix!$G$4:$G$104,AE$2+$B8)),11) -> 0.9951328837 | AF9: =ROUND(IF(AF$2+$B9>100,0,AF8*INDEX(Sterbtab_mix!$G$4:$G$104,AF$2+$B8)),11) -> 0.9945478954 | AG9: =ROUND(IF(AG$2+$B9>100,0,AG8*INDEX(Sterbtab_mix!$G$4:$G$104,AG$2+$B8)),11) -> 0.9938934192 | AH9: =ROUND(IF(AH$2+$B9>100,0,AH8*INDEX(Sterbtab_mix!$G$4:$G$104,AH$2+$B8)),11) -> 0.9931695463 | AI9: =ROUND(IF(AI$2+$B9>100,0,AI8*INDEX(Sterbtab_mix!$G$4:$G$104,AI$2+$B8)),11) -> 0.9923714025 | AJ9: =ROUND(IF(AJ$2+$B9>100,0,AJ8*INDEX(Sterbtab_mix!$G$4:$G$104,AJ$2+$B8)),11) -> 0.991494136 | AK9: =ROUND(IF(AK$2+$B9>100,0,AK8*INDEX(Sterbtab_mix!$G$4:$G$104,AK$2+$B8)),11) -> 0.9905319256 | AL9: =ROUND(IF(AL$2+$B9>100,0,AL8*INDEX(Sterbtab_mix!$G$4:$G$104,AL$2+$B8)),11) -> 0.9894799711 | AM9: =ROUND(IF(AM$2+$B9>100,0,AM8*INDEX(Sterbtab_mix!$G$4:$G$104,AM$2+$B8)),11) -> 0.9883285404 | AN9: =ROUND(IF(AN$2+$B9>100,0,AN8*INDEX(Sterbtab_mix!$G$4:$G$104,AN$2+$B8)),11) -> 0.9870669609 | AO9: =ROUND(IF(AO$2+$B9>100,0,AO8*INDEX(Sterbtab_mix!$G$4:$G$104,AO$2+$B8)),11) -> 0.9856796664 | AP9: =ROUND(IF(AP$2+$B9>100,0,AP8*INDEX(Sterbtab_mix!$G$4:$G$104,AP$2+$B8)),11) -> 0.9841501901 | AQ9: =ROUND(IF(AQ$2+$B9>100,0,AQ8*INDEX(Sterbtab_mix!$G$4:$G$104,AQ$2+$B8)),11) -> 0.9824651437 | AR9: =ROUND(IF(AR$2+$B9>100,0,AR8*INDEX(Sterbtab_mix!$G$4:$G$104,AR$2+$B8)),11) -> 0.9806191454 | AS9: =ROUND(IF(AS$2+$B9>100,0,AS8*INDEX(Sterbtab_mix!$G$4:$G$104,AS$2+$B8)),11) -> 0.9786157662 | AT9: =ROUND(IF(AT$2+$B9>100,0,AT8*INDEX(Sterbtab_mix!$G$4:$G$104,AT$2+$B8)),11) -> 0.9764664906 | AU9: =ROUND(IF(AU$2+$B9>100,0,AU8*INDEX(Sterbtab_mix!$G$4:$G$104,AU$2+$B8)),11) -> 0.9741916311 | AV9: =ROUND(IF(AV$2+$B9>100,0,AV8*INDEX(Sterbtab_mix!$G$4:$G$104,AV$2+$B8)),11) -> 0.9718182794 | AW9: =ROUND(IF(AW$2+$B9>100,0,AW8*INDEX(Sterbtab_mix!$G$4:$G$104,AW$2+$B8)),11) -> 0.9693684756 | AX9: =ROUND(IF(AX$2+$B9>100,0,AX8*INDEX(Sterbtab_mix!$G$4:$G$104,AX$2+$B8)),11) -> 0.9668563039 | AY9: =ROUND(IF(AY$2+$B9>100,0,AY8*INDEX(Sterbtab_mix!$G$4:$G$104,AY$2+$B8)),11) -> 0.9642781923 | AZ9: =ROUND(IF(AZ$2+$B9>100,0,AZ8*INDEX(Sterbtab_mix!$G$4:$G$104,AZ$2+$B8)),11) -> 0.9616130639 | BA9: =ROUND(IF(BA$2+$B9>100,0,BA8*INDEX(Sterbtab_mix!$G$4:$G$104,BA$2+$B8)),11) -> 0.9588186221 | BB9: =ROUND(IF(BB$2+$B9>100,0,BB8*INDEX(Sterbtab_mix!$G$4:$G$104,BB$2+$B8)),11) -> 0.9558286644 | BC9: =ROUND(IF(BC$2+$B9>100,0,BC8*INDEX(Sterbtab_mix!$G$4:$G$104,BC$2+$B8)),11) -> 0.9525592155 | BD9: =ROUND(IF(BD$2+$B9>100,0,BD8*INDEX(Sterbtab_mix!$G$4:$G$104,BD$2+$B8)),11) -> 0.9489078999 | BE9: =ROUND(IF(BE$2+$B9>100,0,BE8*INDEX(Sterbtab_mix!$G$4:$G$104,BE$2+$B8)),11) -> 0.9447862133 | BF9: =ROUND(IF(BF$2+$B9>100,0,BF8*INDEX(Sterbtab_mix!$G$4:$G$104,BF$2+$B8)),11) -> 0.9400734777 | BG9: =ROUND(IF(BG$2+$B9>100,0,BG8*INDEX(Sterbtab_mix!$G$4:$G$104,BG$2+$B8)),11) -> 0.9346388735 | BH9: =ROUND(IF(BH$2+$B9>100,0,BH8*INDEX(Sterbtab_mix!$G$4:$G$104,BH$2+$B8)),11) -> 0.9283243132 | BI9: =ROUND(IF(BI$2+$B9>100,0,BI8*INDEX(Sterbtab_mix!$G$4:$G$104,BI$2+$B8)),11) -> 0.9209846966 | BJ9: =ROUND(IF(BJ$2+$B9>100,0,BJ8*INDEX(Sterbtab_mix!$G$4:$G$104,BJ$2+$B8)),11) -> 0.912474699 | BK9: =ROUND(IF(BK$2+$B9>100,0,BK8*INDEX(Sterbtab_mix!$G$4:$G$104,BK$2+$B8)),11) -> 0.9026436729 | BL9: =ROUND(IF(BL$2+$B9>100,0,BL8*INDEX(Sterbtab_mix!$G$4:$G$104,BL$2+$B8)),11) -> 0.8913440647 | BM9: =ROUND(IF(BM$2+$B9>100,0,BM8*INDEX(Sterbtab_mix!$G$4:$G$104,BM$2+$B8)),11) -> 0.8784306721 | BN9: =ROUND(IF(BN$2+$B9>100,0,BN8*INDEX(Sterbtab_mix!$G$4:$G$104,BN$2+$B8)),11) -> 0.8637685179 | BO9: =ROUND(IF(BO$2+$B9>100,0,BO8*INDEX(Sterbtab_mix!$G$4:$G$104,BO$2+$B8)),11) -> 0.8472370716 | BP9: =ROUND(IF(BP$2+$B9>100,0,BP8*INDEX(Sterbtab_mix!$G$4:$G$104,BP$2+$B8)),11) -> 0.8287353697 | BQ9: =ROUND(IF(BQ$2+$B9>100,0,BQ8*INDEX(Sterbtab_mix!$G$4:$G$104,BQ$2+$B8)),11) -> 0.8081896879 | BR9: =ROUND(IF(BR$2+$B9>100,0,BR8*INDEX(Sterbtab_mix!$G$4:$G$104,BR$2+$B8)),11) -> 0.7855546172 | BS9: =ROUND(IF(BS$2+$B9>100,0,BS8*INDEX(Sterbtab_mix!$G$4:$G$104,BS$2+$B8)),11) -> 0.7608224643 | BT9: =ROUND(IF(BT$2+$B9>100,0,BT8*INDEX(Sterbtab_mix!$G$4:$G$104,BT$2+$B8)),11) -> 0.7340232591 | BU9: =ROUND(IF(BU$2+$B9>100,0,BU8*INDEX(Sterbtab_mix!$G$4:$G$104,BU$2+$B8)),11) -> 0.7052330219 | BV9: =ROUND(IF(BV$2+$B9>100,0,BV8*INDEX(Sterbtab_mix!$G$4:$G$104,BV$2+$B8)),11) -> 0.6745755751 | BW9: =ROUND(IF(BW$2+$B9>100,0,BW8*INDEX(Sterbtab_mix!$G$4:$G$104,BW$2+$B8)),11) -> 0.6422257923 | BX9: =ROUND(IF(BX$2+$B9>100,0,BX8*INDEX(Sterbtab_mix!$G$4:$G$104,BX$2+$B8)),11) -> 0.6084069848 | BY9: =ROUND(IF(BY$2+$B9>100,0,BY8*INDEX(Sterbtab_mix!$G$4:$G$104,BY$2+$B8)),11) -> 0.5733909532 | BZ9: =ROUND(IF(BZ$2+$B9>100,0,BZ8*INDEX(Sterbtab_mix!$G$4:$G$104,BZ$2+$B8)),11) -> 0.5374898975 | CA9: =ROUND(IF(CA$2+$B9>100,0,CA8*INDEX(Sterbtab_mix!$G$4:$G$104,CA$2+$B8)),11) -> 0.5010515155 | CB9: =ROUND(IF(CB$2+$B9>100,0,CB8*INDEX(Sterbtab_mix!$G$4:$G$104,CB$2+$B8)),11) -> 0.4644471465 | CC9: =ROUND(IF(CC$2+$B9>100,0,CC8*INDEX(Sterbtab_mix!$G$4:$G$104,CC$2+$B8)),11) -> 0.4280602192 | CD9: =ROUND(IF(CD$2+$B9>100,0,CD8*INDEX(Sterbtab_mix!$G$4:$G$104,CD$2+$B8)),11) -> 0.3922739125 | CE9: =ROUND(IF(CE$2+$B9>100,0,CE8*INDEX(Sterbtab_mix!$G$4:$G$104,CE$2+$B8)),11) -> 0.3574559349 | CF9: =ROUND(IF(CF$2+$B9>100,0,CF8*INDEX(Sterbtab_mix!$G$4:$G$104,CF$2+$B8)),11) -> 0.3239469878 | CG9: =ROUND(IF(CG$2+$B9>100,0,CG8*INDEX(Sterbtab_mix!$G$4:$G$104,CG$2+$B8)),11) -> 0 | CH9: =ROUND(IF(CH$2+$B9>100,0,CH8*INDEX(Sterbtab_mix!$G$4:$G$104,CH$2+$B8)),11) -> 0 | CI9: =ROUND(IF(CI$2+$B9>100,0,CI8*INDEX(Sterbtab_mix!$G$4:$G$104,CI$2+$B8)),11) -> 0 | CJ9: =ROUND(IF(CJ$2+$B9>100,0,CJ8*INDEX(Sterbtab_mix!$G$4:$G$104,CJ$2+$B8)),11) -> 0
A10: 20 | B10: 5 | C10: =ROUND(IF(C$2+$B10>100,0,C9*INDEX(Sterbtab_mix!$G$4:$G$104,C$2+$B9)),11) -> 0.9985817376 | D10: =ROUND(IF(D$2+$B10>100,0,D9*INDEX(Sterbtab_mix!$G$4:$G$104,D$2+$B9)),11) -> 0.9982581217 | E10: =ROUND(IF(E$2+$B10>100,0,E9*INDEX(Sterbtab_mix!$G$4:$G$104,E$2+$B9)),11) -> 0.9979585517 | F10: =ROUND(IF(F$2+$B10>100,0,F9*INDEX(Sterbtab_mix!$G$4:$G$104,F$2+$B9)),11) -> 0.9977209437 | G10: =ROUND(IF(G$2+$B10>100,0,G9*INDEX(Sterbtab_mix!$G$4:$G$104,G$2+$B9)),11) -> 0.9975732098 | H10: =ROUND(IF(H$2+$B10>100,0,H9*INDEX(Sterbtab_mix!$G$4:$G$104,H$2+$B9)),11) -> 0.9975203089 | I10: =ROUND(IF(I$2+$B10>100,0,I9*INDEX(Sterbtab_mix!$G$4:$G$104,I$2+$B9)),11) -> 0.9975412696 | J10: =ROUND(IF(J$2+$B10>100,0,J9*INDEX(Sterbtab_mix!$G$4:$G$104,J$2+$B9)),11) -> 0.9976001618 | K10: =ROUND(IF(K$2+$B10>100,0,K9*INDEX(Sterbtab_mix!$G$4:$G$104,K$2+$B9)),11) -> 0.9976660449 | L10: =ROUND(IF(L$2+$B10>100,0,L9*INDEX(Sterbtab_mix!$G$4:$G$104,L$2+$B9)),11) -> 0.9977199518 | M10: =ROUND(IF(M$2+$B10>100,0,M9*INDEX(Sterbtab_mix!$G$4:$G$104,M$2+$B9)),11) -> 0.9977548925 | N10: =ROUND(IF(N$2+$B10>100,0,N9*INDEX(Sterbtab_mix!$G$4:$G$104,N$2+$B9)),11) -> 0.9977728624 | O10: =ROUND(IF(O$2+$B10>100,0,O9*INDEX(Sterbtab_mix!$G$4:$G$104,O$2+$B9)),11) -> 0.9977718641 | P10: =ROUND(IF(P$2+$B10>100,0,P9*INDEX(Sterbtab_mix!$G$4:$G$104,P$2+$B9)),11) -> 0.9977459076 | Q10: =ROUND(IF(Q$2+$B10>100,0,Q9*INDEX(Sterbtab_mix!$G$4:$G$104,Q$2+$B9)),11) -> 0.9976919995 | R10: =ROUND(IF(R$2+$B10>100,0,R9*INDEX(Sterbtab_mix!$G$4:$G$104,R$2+$B9)),11) -> 0.9976071485 | S10: =ROUND(IF(S$2+$B10>100,0,S9*INDEX(Sterbtab_mix!$G$4:$G$104,S$2+$B9)),11) -> 0.9974903625 | T10: =ROUND(IF(T$2+$B10>100,0,T9*INDEX(Sterbtab_mix!$G$4:$G$104,T$2+$B9)),11) -> 0.9973456422 | U10: =ROUND(IF(U$2+$B10>100,0,U9*INDEX(Sterbtab_mix!$G$4:$G$104,U$2+$B9)),11) -> 0.9971779863 | V10: =ROUND(IF(V$2+$B10>100,0,V9*INDEX(Sterbtab_mix!$G$4:$G$104,V$2+$B9)),11) -> 0.9969893988 | W10: =ROUND(IF(W$2+$B10>100,0,W9*INDEX(Sterbtab_mix!$G$4:$G$104,W$2+$B9)),11) -> 0.9967778928 | X10: =ROUND(IF(X$2+$B10>100,0,X9*INDEX(Sterbtab_mix!$G$4:$G$104,X$2+$B9)),11) -> 0.9965364971 | Y10: =ROUND(IF(Y$2+$B10>100,0,Y9*INDEX(Sterbtab_mix!$G$4:$G$104,Y$2+$B9)),11) -> 0.9962542585 | Z10: =ROUND(IF(Z$2+$B10>100,0,Z9*INDEX(Sterbtab_mix!$G$4:$G$104,Z$2+$B9)),11) -> 0.9959182419 | AA10: =ROUND(IF(AA$2+$B10>100,0,AA9*INDEX(Sterbtab_mix!$G$4:$G$104,AA$2+$B9)),11) -> 0.9955185213 | AB10: =ROUND(IF(AB$2+$B10>100,0,AB9*INDEX(Sterbtab_mix!$G$4:$G$104,AB$2+$B9)),11) -> 0.9950441949 | AC10: =ROUND(IF(AC$2+$B10>100,0,AC9*INDEX(Sterbtab_mix!$G$4:$G$104,AC$2+$B9)),11) -> 0.9944873761 | AD10: =ROUND(IF(AD$2+$B10>100,0,AD9*INDEX(Sterbtab_mix!$G$4:$G$104,AD$2+$B9)),11) -> 0.9938441866 | AE10: =ROUND(IF(AE$2+$B10>100,0,AE9*INDEX(Sterbtab_mix!$G$4:$G$104,AE$2+$B9)),11) -> 0.9931107737 | AF10: =ROUND(IF(AF$2+$B10>100,0,AF9*INDEX(Sterbtab_mix!$G$4:$G$104,AF$2+$B9)),11) -> 0.9922862935 | AG10: =ROUND(IF(AG$2+$B10>100,0,AG9*INDEX(Sterbtab_mix!$G$4:$G$104,AG$2+$B9)),11) -> 0.9913689299 | AH10: =ROUND(IF(AH$2+$B10>100,0,AH9*INDEX(Sterbtab_mix!$G$4:$G$104,AH$2+$B9)),11) -> 0.9903549038 | AI10: =ROUND(IF(AI$2+$B10>100,0,AI9*INDEX(Sterbtab_mix!$G$4:$G$104,AI$2+$B9)),11) -> 0.9892394783 | AJ10: =ROUND(IF(AJ$2+$B10>100,0,AJ9*INDEX(Sterbtab_mix!$G$4:$G$104,AJ$2+$B9)),11) -> 0.9880159746 | AK10: =ROUND(IF(AK$2+$B10>100,0,AK9*INDEX(Sterbtab_mix!$G$4:$G$104,AK$2+$B9)),11) -> 0.9866757848 | AL10: =ROUND(IF(AL$2+$B10>100,0,AL9*INDEX(Sterbtab_mix!$G$4:$G$104,AL$2+$B9)),11) -> 0.9852093755 | AM10: =ROUND(IF(AM$2+$B10>100,0,AM9*INDEX(Sterbtab_mix!$G$4:$G$104,AM$2+$B9)),11) -> 0.98360433 | AN10: =ROUND(IF(AN$2+$B10>100,0,AN9*INDEX(Sterbtab_mix!$G$4:$G$104,AN$2+$B9)),11) -> 0.9818424155 | AO10: =ROUND(IF(AO$2+$B10>100,0,AO9*INDEX(Sterbtab_mix!$G$4:$G$104,AO$2+$B9)),11) -> 0.9799025979 | AP10: =ROUND(IF(AP$2+$B10>100,0,AP9*INDEX(Sterbtab_mix!$G$4:$G$104,AP$2+$B9)),11) -> 0.9777689603 | AQ10: =ROUND(IF(AQ$2+$B10>100,0,AQ9*INDEX(Sterbtab_mix!$G$4:$G$104,AQ$2+$B9)),11) -> 0.9754287283 | AR10: =ROUND(IF(AR$2+$B10>100,0,AR9*INDEX(Sterbtab_mix!$G$4:$G$104,AR$2+$B9)),11) -> 0.9728800991 | AS10: =ROUND(IF(AS$2+$B10>100,0,AS9*INDEX(Sterbtab_mix!$G$4:$G$104,AS$2+$B9)),11) -> 0.9701350819 | AT10: =ROUND(IF(AT$2+$B10>100,0,AT9*INDEX(Sterbtab_mix!$G$4:$G$104,AT$2+$B9)),11) -> 0.9672144706 | AU10: =ROUND(IF(AU$2+$B10>100,0,AU9*INDEX(Sterbtab_mix!$G$4:$G$104,AU$2+$B9)),11) -> 0.9641486896 | AV10: =ROUND(IF(AV$2+$B10>100,0,AV9*INDEX(Sterbtab_mix!$G$4:$G$104,AV$2+$B9)),11) -> 0.9609679284 | AW10: =ROUND(IF(AW$2+$B10>100,0,AW9*INDEX(Sterbtab_mix!$G$4:$G$104,AW$2+$B9)),11) -> 0.9576953404 | AX10: =ROUND(IF(AX$2+$B10>100,0,AX9*INDEX(Sterbtab_mix!$G$4:$G$104,AX$2+$B9)),11) -> 0.9543374484 | AY10: =ROUND(IF(AY$2+$B10>100,0,AY9*INDEX(Sterbtab_mix!$G$4:$G$104,AY$2+$B9)),11) -> 0.950876654 | AZ10: =ROUND(IF(AZ$2+$B10>100,0,AZ9*INDEX(Sterbtab_mix!$G$4:$G$104,AZ$2+$B9)),11) -> 0.9472725282 | BA10: =ROUND(IF(BA$2+$B10>100,0,BA9*INDEX(Sterbtab_mix!$G$4:$G$104,BA$2+$B9)),11) -> 0.9434525948 | BB10: =ROUND(IF(BB$2+$B10>100,0,BB9*INDEX(Sterbtab_mix!$G$4:$G$104,BB$2+$B9)),11) -> 0.9393205475 | BC10: =ROUND(IF(BC$2+$B10>100,0,BC9*INDEX(Sterbtab_mix!$G$4:$G$104,BC$2+$B9)),11) -> 0.9347568363 | BD10: =ROUND(IF(BD$2+$B10>100,0,BD9*INDEX(Sterbtab_mix!$G$4:$G$104,BD$2+$B9)),11) -> 0.9296450695 | BE10: =ROUND(IF(BE$2+$B10>100,0,BE9*INDEX(Sterbtab_mix!$G$4:$G$104,BE$2+$B9)),11) -> 0.9238374686 | BF10: =ROUND(IF(BF$2+$B10>100,0,BF9*INDEX(Sterbtab_mix!$G$4:$G$104,BF$2+$B9)),11) -> 0.9171714076 | BG10: =ROUND(IF(BG$2+$B10>100,0,BG9*INDEX(Sterbtab_mix!$G$4:$G$104,BG$2+$B9)),11) -> 0.9094793297 | BH10: =ROUND(IF(BH$2+$B10>100,0,BH9*INDEX(Sterbtab_mix!$G$4:$G$104,BH$2+$B9)),11) -> 0.900563703 | BI10: =ROUND(IF(BI$2+$B10>100,0,BI9*INDEX(Sterbtab_mix!$G$4:$G$104,BI$2+$B9)),11) -> 0.8902449904 | BJ10: =ROUND(IF(BJ$2+$B10>100,0,BJ9*INDEX(Sterbtab_mix!$G$4:$G$104,BJ$2+$B9)),11) -> 0.8783454079 | BK10: =ROUND(IF(BK$2+$B10>100,0,BK9*INDEX(Sterbtab_mix!$G$4:$G$104,BK$2+$B9)),11) -> 0.8646893117 | BL10: =ROUND(IF(BL$2+$B10>100,0,BL9*INDEX(Sterbtab_mix!$G$4:$G$104,BL$2+$B9)),11) -> 0.8491112915 | BM10: =ROUND(IF(BM$2+$B10>100,0,BM9*INDEX(Sterbtab_mix!$G$4:$G$104,BM$2+$B9)),11) -> 0.831460984 | BN10: =ROUND(IF(BN$2+$B10>100,0,BN9*INDEX(Sterbtab_mix!$G$4:$G$104,BN$2+$B9)),11) -> 0.8116124473 | BO10: =ROUND(IF(BO$2+$B10>100,0,BO9*INDEX(Sterbtab_mix!$G$4:$G$104,BO$2+$B9)),11) -> 0.7894690592 | BP10: =ROUND(IF(BP$2+$B10>100,0,BP9*INDEX(Sterbtab_mix!$G$4:$G$104,BP$2+$B9)),11) -> 0.7649757853 | BQ10: =ROUND(IF(BQ$2+$B10>100,0,BQ9*INDEX(Sterbtab_mix!$G$4:$G$104,BQ$2+$B9)),11) -> 0.7381212584 | BR10: =ROUND(IF(BR$2+$B10>100,0,BR9*INDEX(Sterbtab_mix!$G$4:$G$104,BR$2+$B9)),11) -> 0.7089465454 | BS10: =ROUND(IF(BS$2+$B10>100,0,BS9*INDEX(Sterbtab_mix!$G$4:$G$104,BS$2+$B9)),11) -> 0.6775504456 | BT10: =ROUND(IF(BT$2+$B10>100,0,BT9*INDEX(Sterbtab_mix!$G$4:$G$104,BT$2+$B9)),11) -> 0.6440907294 | BU10: =ROUND(IF(BU$2+$B10>100,0,BU9*INDEX(Sterbtab_mix!$G$4:$G$104,BU$2+$B9)),11) -> 0.6087902905 | BV10: =ROUND(IF(BV$2+$B10>100,0,BV9*INDEX(Sterbtab_mix!$G$4:$G$104,BV$2+$B9)),11) -> 0.5719341793 | BW10: =ROUND(IF(BW$2+$B10>100,0,BW9*INDEX(Sterbtab_mix!$G$4:$G$104,BW$2+$B9)),11) -> 0.533864961 | BX10: =ROUND(IF(BX$2+$B10>100,0,BX9*INDEX(Sterbtab_mix!$G$4:$G$104,BX$2+$B9)),11) -> 0.4949780202 | BY10: =ROUND(IF(BY$2+$B10>100,0,BY9*INDEX(Sterbtab_mix!$G$4:$G$104,BY$2+$B9)),11) -> 0.4557070472 | BZ10: =ROUND(IF(BZ$2+$B10>100,0,BZ9*INDEX(Sterbtab_mix!$G$4:$G$104,BZ$2+$B9)),11) -> 0.4165105964 | CA10: =ROUND(IF(CA$2+$B10>100,0,CA9*INDEX(Sterbtab_mix!$G$4:$G$104,CA$2+$B9)),11) -> 0.3778574783 | CB10: =ROUND(IF(CB$2+$B10>100,0,CB9*INDEX(Sterbtab_mix!$G$4:$G$104,CB$2+$B9)),11) -> 0.3402042837 | CC10: =ROUND(IF(CC$2+$B10>100,0,CC9*INDEX(Sterbtab_mix!$G$4:$G$104,CC$2+$B9)),11) -> 0.3039801157 | CD10: =ROUND(IF(CD$2+$B10>100,0,CD9*INDEX(Sterbtab_mix!$G$4:$G$104,CD$2+$B9)),11) -> 0.2695678867 | CE10: =ROUND(IF(CE$2+$B10>100,0,CE9*INDEX(Sterbtab_mix!$G$4:$G$104,CE$2+$B9)),11) -> 0.2372889009 | CF10: =ROUND(IF(CF$2+$B10>100,0,CF9*INDEX(Sterbtab_mix!$G$4:$G$104,CF$2+$B9)),11) -> 0 | CG10: =ROUND(IF(CG$2+$B10>100,0,CG9*INDEX(Sterbtab_mix!$G$4:$G$104,CG$2+$B9)),11) -> 0 | CH10: =ROUND(IF(CH$2+$B10>100,0,CH9*INDEX(Sterbtab_mix!$G$4:$G$104,CH$2+$B9)),11) -> 0 | CI10: =ROUND(IF(CI$2+$B10>100,0,CI9*INDEX(Sterbtab_mix!$G$4:$G$104,CI$2+$B9)),11) -> 0 | CJ10: =ROUND(IF(CJ$2+$B10>100,0,CJ9*INDEX(Sterbtab_mix!$G$4:$G$104,CJ$2+$B9)),11) -> 0
A11: 21 | B11: 6 | C11: =ROUND(IF(C$2+$B11>100,0,C10*INDEX(Sterbtab_mix!$G$4:$G$104,C$2+$B10)),11) -> 0.9980255275 | D11: =ROUND(IF(D$2+$B11>100,0,D10*INDEX(Sterbtab_mix!$G$4:$G$104,D$2+$B10)),11) -> 0.9976501825 | E11: =ROUND(IF(E$2+$B11>100,0,E10*INDEX(Sterbtab_mix!$G$4:$G$104,E$2+$B10)),11) -> 0.9973268439 | F11: =ROUND(IF(F$2+$B11>100,0,F10*INDEX(Sterbtab_mix!$G$4:$G$104,F$2+$B10)),11) -> 0.9970923795 | G11: =ROUND(IF(G$2+$B11>100,0,G10*INDEX(Sterbtab_mix!$G$4:$G$104,G$2+$B10)),11) -> 0.9969646901 | H11: =ROUND(IF(H$2+$B11>100,0,H10*INDEX(Sterbtab_mix!$G$4:$G$104,H$2+$B10)),11) -> 0.996933767 | I11: =ROUND(IF(I$2+$B11>100,0,I10*INDEX(Sterbtab_mix!$G$4:$G$104,I$2+$B10)),11) -> 0.9969686809 | J11: =ROUND(IF(J$2+$B11>100,0,J10*INDEX(Sterbtab_mix!$G$4:$G$104,J$2+$B10)),11) -> 0.9970375153 | K11: =ROUND(IF(K$2+$B11>100,0,K10*INDEX(Sterbtab_mix!$G$4:$G$104,K$2+$B10)),11) -> 0.9971113426 | L11: =ROUND(IF(L$2+$B11>100,0,L10*INDEX(Sterbtab_mix!$G$4:$G$104,L$2+$B10)),11) -> 0.9971682127 | M11: =ROUND(IF(M$2+$B11>100,0,M10*INDEX(Sterbtab_mix!$G$4:$G$104,M$2+$B10)),11) -> 0.9972001408 | N11: =ROUND(IF(N$2+$B11>100,0,N10*INDEX(Sterbtab_mix!$G$4:$G$104,N$2+$B10)),11) -> 0.9972091208 | O11: =ROUND(IF(O$2+$B11>100,0,O10*INDEX(Sterbtab_mix!$G$4:$G$104,O$2+$B10)),11) -> 0.9971911609 | P11: =ROUND(IF(P$2+$B11>100,0,P10*INDEX(Sterbtab_mix!$G$4:$G$104,P$2+$B10)),11) -> 0.9971402758 | Q11: =ROUND(IF(Q$2+$B11>100,0,Q10*INDEX(Sterbtab_mix!$G$4:$G$104,Q$2+$B10)),11) -> 0.9970524789 | R11: =ROUND(IF(R$2+$B11>100,0,R10*INDEX(Sterbtab_mix!$G$4:$G$104,R$2+$B10)),11) -> 0.9969267804 | S11: =ROUND(IF(S$2+$B11>100,0,S10*INDEX(Sterbtab_mix!$G$4:$G$104,S$2+$B10)),11) -> 0.996765187 | T11: =ROUND(IF(T$2+$B11>100,0,T10*INDEX(Sterbtab_mix!$G$4:$G$104,T$2+$B10)),11) -> 0.9965726993 | U11: =ROUND(IF(U$2+$B11>100,0,U10*INDEX(Sterbtab_mix!$G$4:$G$104,U$2+$B10)),11) -> 0.9963503286 | V11: =ROUND(IF(V$2+$B11>100,0,V10*INDEX(Sterbtab_mix!$G$4:$G$104,V$2+$B10)),11) -> 0.9960980903 | W11: =ROUND(IF(W$2+$B11>100,0,W10*INDEX(Sterbtab_mix!$G$4:$G$104,W$2+$B10)),11) -> 0.995812015 | X11: =ROUND(IF(X$2+$B11>100,0,X10*INDEX(Sterbtab_mix!$G$4:$G$104,X$2+$B10)),11) -> 0.9954821615 | Y11: =ROUND(IF(Y$2+$B11>100,0,Y10*INDEX(Sterbtab_mix!$G$4:$G$104,Y$2+$B10)),11) -> 0.9950916298 | Z11: =ROUND(IF(Z$2+$B11>100,0,Z10*INDEX(Sterbtab_mix!$G$4:$G$104,Z$2+$B10)),11) -> 0.9946285278 | AA11: =ROUND(IF(AA$2+$B11>100,0,AA10*INDEX(Sterbtab_mix!$G$4:$G$104,AA$2+$B10)),11) -> 0.9940799971 | AB11: =ROUND(IF(AB$2+$B11>100,0,AB10*INDEX(Sterbtab_mix!$G$4:$G$104,AB$2+$B10)),11) -> 0.9934352085 | AC11: =ROUND(IF(AC$2+$B11>100,0,AC10*INDEX(Sterbtab_mix!$G$4:$G$104,AC$2+$B10)),11) -> 0.9926843705 | AD11: =ROUND(IF(AD$2+$B11>100,0,AD10*INDEX(Sterbtab_mix!$G$4:$G$104,AD$2+$B10)),11) -> 0.9918246953 | AE11: =ROUND(IF(AE$2+$B11>100,0,AE10*INDEX(Sterbtab_mix!$G$4:$G$104,AE$2+$B10)),11) -> 0.9908524398 | AF11: =ROUND(IF(AF$2+$B11>100,0,AF10*INDEX(Sterbtab_mix!$G$4:$G$104,AF$2+$B10)),11) -> 0.9897658863 | AG11: =ROUND(IF(AG$2+$B11>100,0,AG10*INDEX(Sterbtab_mix!$G$4:$G$104,AG$2+$B10)),11) -> 0.9885593903 | AH11: =ROUND(IF(AH$2+$B11>100,0,AH10*INDEX(Sterbtab_mix!$G$4:$G$104,AH$2+$B10)),11) -> 0.9872293437 | AI11: =ROUND(IF(AI$2+$B11>100,0,AI10*INDEX(Sterbtab_mix!$G$4:$G$104,AI$2+$B10)),11) -> 0.9857692262 | AJ11: =ROUND(IF(AJ$2+$B11>100,0,AJ10*INDEX(Sterbtab_mix!$G$4:$G$104,AJ$2+$B10)),11) -> 0.9841696284 | AK11: =ROUND(IF(AK$2+$B11>100,0,AK10*INDEX(Sterbtab_mix!$G$4:$G$104,AK$2+$B10)),11) -> 0.9824172922 | AL11: =ROUND(IF(AL$2+$B11>100,0,AL10*INDEX(Sterbtab_mix!$G$4:$G$104,AL$2+$B10)),11) -> 0.9805000747 | AM11: =ROUND(IF(AM$2+$B11>100,0,AM10*INDEX(Sterbtab_mix!$G$4:$G$104,AM$2+$B10)),11) -> 0.9783981123 | AN11: =ROUND(IF(AN$2+$B11>100,0,AN10*INDEX(Sterbtab_mix!$G$4:$G$104,AN$2+$B10)),11) -> 0.9760878371 | AO11: =ROUND(IF(AO$2+$B11>100,0,AO10*INDEX(Sterbtab_mix!$G$4:$G$104,AO$2+$B10)),11) -> 0.9735489095 | AP11: =ROUND(IF(AP$2+$B11>100,0,AP10*INDEX(Sterbtab_mix!$G$4:$G$104,AP$2+$B10)),11) -> 0.970766179 | AQ11: =ROUND(IF(AQ$2+$B11>100,0,AQ10*INDEX(Sterbtab_mix!$G$4:$G$104,AQ$2+$B10)),11) -> 0.9677306448 | AR11: =ROUND(IF(AR$2+$B11>100,0,AR10*INDEX(Sterbtab_mix!$G$4:$G$104,AR$2+$B10)),11) -> 0.9644491202 | AS11: =ROUND(IF(AS$2+$B11>100,0,AS10*INDEX(Sterbtab_mix!$G$4:$G$104,AS$2+$B10)),11) -> 0.960943052 | AT11: =ROUND(IF(AT$2+$B11>100,0,AT10*INDEX(Sterbtab_mix!$G$4:$G$104,AT$2+$B10)),11) -> 0.9572434567 | AU11: =ROUND(IF(AU$2+$B11>100,0,AU10*INDEX(Sterbtab_mix!$G$4:$G$104,AU$2+$B10)),11) -> 0.9533839695 | AV11: =ROUND(IF(AV$2+$B11>100,0,AV10*INDEX(Sterbtab_mix!$G$4:$G$104,AV$2+$B10)),11) -> 0.9493959526 | AW11: =ROUND(IF(AW$2+$B11>100,0,AW10*INDEX(Sterbtab_mix!$G$4:$G$104,AW$2+$B10)),11) -> 0.9452951011 | AX11: =ROUND(IF(AX$2+$B11>100,0,AX10*INDEX(Sterbtab_mix!$G$4:$G$104,AX$2+$B10)),11) -> 0.9410740666 | AY11: =ROUND(IF(AY$2+$B11>100,0,AY10*INDEX(Sterbtab_mix!$G$4:$G$104,AY$2+$B10)),11) -> 0.9366962305 | AZ11: =ROUND(IF(AZ$2+$B11>100,0,AZ10*INDEX(Sterbtab_mix!$G$4:$G$104,AZ$2+$B10)),11) -> 0.9320915387 | BA11: =ROUND(IF(BA$2+$B11>100,0,BA10*INDEX(Sterbtab_mix!$G$4:$G$104,BA$2+$B10)),11) -> 0.9271582251 | BB11: =ROUND(IF(BB$2+$B11>100,0,BB10*INDEX(Sterbtab_mix!$G$4:$G$104,BB$2+$B10)),11) -> 0.9217655858 | BC11: =ROUND(IF(BC$2+$B11>100,0,BC10*INDEX(Sterbtab_mix!$G$4:$G$104,BC$2+$B10)),11) -> 0.9157812725 | BD11: =ROUND(IF(BD$2+$B11>100,0,BD10*INDEX(Sterbtab_mix!$G$4:$G$104,BD$2+$B10)),11) -> 0.9090320494 | BE11: =ROUND(IF(BE$2+$B11>100,0,BE10*INDEX(Sterbtab_mix!$G$4:$G$104,BE$2+$B10)),11) -> 0.9013309402 | BF11: =ROUND(IF(BF$2+$B11>100,0,BF10*INDEX(Sterbtab_mix!$G$4:$G$104,BF$2+$B10)),11) -> 0.8924820705 | BG11: =ROUND(IF(BG$2+$B11>100,0,BG10*INDEX(Sterbtab_mix!$G$4:$G$104,BG$2+$B10)),11) -> 0.8822822598 | BH11: =ROUND(IF(BH$2+$B11>100,0,BH10*INDEX(Sterbtab_mix!$G$4:$G$104,BH$2+$B10)),11) -> 0.8705055883 | BI11: =ROUND(IF(BI$2+$B11>100,0,BI10*INDEX(Sterbtab_mix!$G$4:$G$104,BI$2+$B10)),11) -> 0.856947157 | BJ11: =ROUND(IF(BJ$2+$B11>100,0,BJ10*INDEX(Sterbtab_mix!$G$4:$G$104,BJ$2+$B10)),11) -> 0.8414127402 | BK11: =ROUND(IF(BK$2+$B11>100,0,BK10*INDEX(Sterbtab_mix!$G$4:$G$104,BK$2+$B10)),11) -> 0.8237194675 | BL11: =ROUND(IF(BL$2+$B11>100,0,BL10*INDEX(Sterbtab_mix!$G$4:$G$104,BL$2+$B10)),11) -> 0.8037093108 | BM11: =ROUND(IF(BM$2+$B11>100,0,BM10*INDEX(Sterbtab_mix!$G$4:$G$104,BM$2+$B10)),11) -> 0.7812557069 | BN11: =ROUND(IF(BN$2+$B11>100,0,BN10*INDEX(Sterbtab_mix!$G$4:$G$104,BN$2+$B10)),11) -> 0.7562734642 | BO11: =ROUND(IF(BO$2+$B11>100,0,BO10*INDEX(Sterbtab_mix!$G$4:$G$104,BO$2+$B10)),11) -> 0.7287304676 | BP11: =ROUND(IF(BP$2+$B11>100,0,BP10*INDEX(Sterbtab_mix!$G$4:$G$104,BP$2+$B10)),11) -> 0.6986539147 | BQ11: =ROUND(IF(BQ$2+$B11>100,0,BQ10*INDEX(Sterbtab_mix!$G$4:$G$104,BQ$2+$B10)),11) -> 0.6661389351 | BR11: =ROUND(IF(BR$2+$B11>100,0,BR10*INDEX(Sterbtab_mix!$G$4:$G$104,BR$2+$B10)),11) -> 0.631352346 | BS11: =ROUND(IF(BS$2+$B11>100,0,BS10*INDEX(Sterbtab_mix!$G$4:$G$104,BS$2+$B10)),11) -> 0.594536965 | BT11: =ROUND(IF(BT$2+$B11>100,0,BT10*INDEX(Sterbtab_mix!$G$4:$G$104,BT$2+$B10)),11) -> 0.5560093899 | BU11: =ROUND(IF(BU$2+$B11>100,0,BU10*INDEX(Sterbtab_mix!$G$4:$G$104,BU$2+$B10)),11) -> 0.5161585862 | BV11: =ROUND(IF(BV$2+$B11>100,0,BV10*INDEX(Sterbtab_mix!$G$4:$G$104,BV$2+$B10)),11) -> 0.4754334411 | BW11: =ROUND(IF(BW$2+$B11>100,0,BW10*INDEX(Sterbtab_mix!$G$4:$G$104,BW$2+$B10)),11) -> 0.4343333132 | BX11: =ROUND(IF(BX$2+$B11>100,0,BX10*INDEX(Sterbtab_mix!$G$4:$G$104,BX$2+$B10)),11) -> 0.3933877414 | BY11: =ROUND(IF(BY$2+$B11>100,0,BY10*INDEX(Sterbtab_mix!$G$4:$G$104,BY$2+$B10)),11) -> 0.3531355936 | BZ11: =ROUND(IF(BZ$2+$B11>100,0,BZ10*INDEX(Sterbtab_mix!$G$4:$G$104,BZ$2+$B10)),11) -> 0.3141027196 | CA11: =ROUND(IF(CA$2+$B11>100,0,CA10*INDEX(Sterbtab_mix!$G$4:$G$104,CA$2+$B10)),11) -> 0.2767779579 | CB11: =ROUND(IF(CB$2+$B11>100,0,CB10*INDEX(Sterbtab_mix!$G$4:$G$104,CB$2+$B10)),11) -> 0.2415906288 | CC11: =ROUND(IF(CC$2+$B11>100,0,CC10*INDEX(Sterbtab_mix!$G$4:$G$104,CC$2+$B10)),11) -> 0.2088930077 | CD11: =ROUND(IF(CD$2+$B11>100,0,CD10*INDEX(Sterbtab_mix!$G$4:$G$104,CD$2+$B10)),11) -> 0.1789464416 | CE11: =ROUND(IF(CE$2+$B11>100,0,CE10*INDEX(Sterbtab_mix!$G$4:$G$104,CE$2+$B10)),11) -> 0 | CF11: =ROUND(IF(CF$2+$B11>100,0,CF10*INDEX(Sterbtab_mix!$G$4:$G$104,CF$2+$B10)),11) -> 0 | CG11: =ROUND(IF(CG$2+$B11>100,0,CG10*INDEX(Sterbtab_mix!$G$4:$G$104,CG$2+$B10)),11) -> 0 | CH11: =ROUND(IF(CH$2+$B11>100,0,CH10*INDEX(Sterbtab_mix!$G$4:$G$104,CH$2+$B10)),11) -> 0 | CI11: =ROUND(IF(CI$2+$B11>100,0,CI10*INDEX(Sterbtab_mix!$G$4:$G$104,CI$2+$B10)),11) -> 0 | CJ11: =ROUND(IF(CJ$2+$B11>100,0,CJ10*INDEX(Sterbtab_mix!$G$4:$G$104,CJ$2+$B10)),11) -> 0
A12: 22 | B12: 7 | C12: =ROUND(IF(C$2+$B12>100,0,C11*INDEX(Sterbtab_mix!$G$4:$G$104,C$2+$B11)),11) -> 0.99741773 | D12: =ROUND(IF(D$2+$B12>100,0,D11*INDEX(Sterbtab_mix!$G$4:$G$104,D$2+$B11)),11) -> 0.9970186699 | E12: =ROUND(IF(E$2+$B12>100,0,E11*INDEX(Sterbtab_mix!$G$4:$G$104,E$2+$B11)),11) -> 0.996698528 | F12: =ROUND(IF(F$2+$B12>100,0,F11*INDEX(Sterbtab_mix!$G$4:$G$104,F$2+$B11)),11) -> 0.9964841531 | G12: =ROUND(IF(G$2+$B12>100,0,G11*INDEX(Sterbtab_mix!$G$4:$G$104,G$2+$B11)),11) -> 0.9963784749 | H12: =ROUND(IF(H$2+$B12>100,0,H11*INDEX(Sterbtab_mix!$G$4:$G$104,H$2+$B11)),11) -> 0.996361527 | I12: =ROUND(IF(I$2+$B12>100,0,I11*INDEX(Sterbtab_mix!$G$4:$G$104,I$2+$B11)),11) -> 0.9964063906 | J12: =ROUND(IF(J$2+$B12>100,0,J11*INDEX(Sterbtab_mix!$G$4:$G$104,J$2+$B11)),11) -> 0.9964831625 | K12: =ROUND(IF(K$2+$B12>100,0,K11*INDEX(Sterbtab_mix!$G$4:$G$104,K$2+$B11)),11) -> 0.9965599401 | L12: =ROUND(IF(L$2+$B12>100,0,L11*INDEX(Sterbtab_mix!$G$4:$G$104,L$2+$B11)),11) -> 0.9966137871 | M12: =ROUND(IF(M$2+$B12>100,0,M11*INDEX(Sterbtab_mix!$G$4:$G$104,M$2+$B11)),11) -> 0.9966367227 | N12: =ROUND(IF(N$2+$B12>100,0,N11*INDEX(Sterbtab_mix!$G$4:$G$104,N$2+$B11)),11) -> 0.9966287451 | O12: =ROUND(IF(O$2+$B12>100,0,O11*INDEX(Sterbtab_mix!$G$4:$G$104,O$2+$B11)),11) -> 0.9965858658 | P12: =ROUND(IF(P$2+$B12>100,0,P11*INDEX(Sterbtab_mix!$G$4:$G$104,P$2+$B11)),11) -> 0.9965011089 | Q12: =ROUND(IF(Q$2+$B12>100,0,Q11*INDEX(Sterbtab_mix!$G$4:$G$104,Q$2+$B11)),11) -> 0.9963724891 | R12: =ROUND(IF(R$2+$B12>100,0,R11*INDEX(Sterbtab_mix!$G$4:$G$104,R$2+$B11)),11) -> 0.9962020147 | S12: =ROUND(IF(S$2+$B12>100,0,S11*INDEX(Sterbtab_mix!$G$4:$G$104,S$2+$B11)),11) -> 0.995992694 | T12: =ROUND(IF(T$2+$B12>100,0,T11*INDEX(Sterbtab_mix!$G$4:$G$104,T$2+$B11)),11) -> 0.995745544 | U12: =ROUND(IF(U$2+$B12>100,0,U11*INDEX(Sterbtab_mix!$G$4:$G$104,U$2+$B11)),11) -> 0.9954595914 | V12: =ROUND(IF(V$2+$B12>100,0,V11*INDEX(Sterbtab_mix!$G$4:$G$104,V$2+$B11)),11) -> 0.9951328712 | W12: =ROUND(IF(W$2+$B12>100,0,W11*INDEX(Sterbtab_mix!$G$4:$G$104,W$2+$B11)),11) -> 0.9947584459 | X12: =ROUND(IF(X$2+$B12>100,0,X11*INDEX(Sterbtab_mix!$G$4:$G$104,X$2+$B11)),11) -> 0.9943204338 | Y12: =ROUND(IF(Y$2+$B12>100,0,Y11*INDEX(Sterbtab_mix!$G$4:$G$104,Y$2+$B11)),11) -> 0.9938029861 | Z12: =ROUND(IF(Z$2+$B12>100,0,Z11*INDEX(Sterbtab_mix!$G$4:$G$104,Z$2+$B11)),11) -> 0.9931912896 | AA12: =ROUND(IF(AA$2+$B12>100,0,AA11*INDEX(Sterbtab_mix!$G$4:$G$104,AA$2+$B11)),11) -> 0.9924725697 | AB12: =ROUND(IF(AB$2+$B12>100,0,AB11*INDEX(Sterbtab_mix!$G$4:$G$104,AB$2+$B11)),11) -> 0.9916341104 | AC12: =ROUND(IF(AC$2+$B12>100,0,AC11*INDEX(Sterbtab_mix!$G$4:$G$104,AC$2+$B11)),11) -> 0.9906672359 | AD12: =ROUND(IF(AD$2+$B12>100,0,AD11*INDEX(Sterbtab_mix!$G$4:$G$104,AD$2+$B11)),11) -> 0.9895692859 | AE12: =ROUND(IF(AE$2+$B12>100,0,AE11*INDEX(Sterbtab_mix!$G$4:$G$104,AE$2+$B11)),11) -> 0.9883356746 | AF12: =ROUND(IF(AF$2+$B12>100,0,AF11*INDEX(Sterbtab_mix!$G$4:$G$104,AF$2+$B11)),11) -> 0.9869608898 | AG12: =ROUND(IF(AG$2+$B12>100,0,AG11*INDEX(Sterbtab_mix!$G$4:$G$104,AG$2+$B11)),11) -> 0.9854394969 | AH12: =ROUND(IF(AH$2+$B12>100,0,AH11*INDEX(Sterbtab_mix!$G$4:$G$104,AH$2+$B11)),11) -> 0.9837661432 | AI12: =ROUND(IF(AI$2+$B12>100,0,AI11*INDEX(Sterbtab_mix!$G$4:$G$104,AI$2+$B11)),11) -> 0.9819316266 | AJ12: =ROUND(IF(AJ$2+$B12>100,0,AJ11*INDEX(Sterbtab_mix!$G$4:$G$104,AJ$2+$B11)),11) -> 0.9799219523 | AK12: =ROUND(IF(AK$2+$B12>100,0,AK11*INDEX(Sterbtab_mix!$G$4:$G$104,AK$2+$B11)),11) -> 0.9777213375 | AL12: =ROUND(IF(AL$2+$B12>100,0,AL11*INDEX(Sterbtab_mix!$G$4:$G$104,AL$2+$B11)),11) -> 0.9753102878 | AM12: =ROUND(IF(AM$2+$B12>100,0,AM11*INDEX(Sterbtab_mix!$G$4:$G$104,AM$2+$B11)),11) -> 0.9726637209 | AN12: =ROUND(IF(AN$2+$B12>100,0,AN11*INDEX(Sterbtab_mix!$G$4:$G$104,AN$2+$B11)),11) -> 0.9697588835 | AO12: =ROUND(IF(AO$2+$B12>100,0,AO11*INDEX(Sterbtab_mix!$G$4:$G$104,AO$2+$B11)),11) -> 0.9665763522 | AP12: =ROUND(IF(AP$2+$B12>100,0,AP11*INDEX(Sterbtab_mix!$G$4:$G$104,AP$2+$B11)),11) -> 0.9631048923 | AQ12: =ROUND(IF(AQ$2+$B12>100,0,AQ11*INDEX(Sterbtab_mix!$G$4:$G$104,AQ$2+$B11)),11) -> 0.959344291 | AR12: =ROUND(IF(AR$2+$B12>100,0,AR11*INDEX(Sterbtab_mix!$G$4:$G$104,AR$2+$B11)),11) -> 0.9553109648 | AS12: =ROUND(IF(AS$2+$B12>100,0,AS11*INDEX(Sterbtab_mix!$G$4:$G$104,AS$2+$B11)),11) -> 0.9510366901 | AT12: =ROUND(IF(AT$2+$B12>100,0,AT11*INDEX(Sterbtab_mix!$G$4:$G$104,AT$2+$B11)),11) -> 0.9465558335 | AU12: =ROUND(IF(AU$2+$B12>100,0,AU11*INDEX(Sterbtab_mix!$G$4:$G$104,AU$2+$B11)),11) -> 0.9419033197 | AV12: =ROUND(IF(AV$2+$B12>100,0,AV11*INDEX(Sterbtab_mix!$G$4:$G$104,AV$2+$B11)),11) -> 0.9371031738 | AW12: =ROUND(IF(AW$2+$B12>100,0,AW11*INDEX(Sterbtab_mix!$G$4:$G$104,AW$2+$B11)),11) -> 0.9321573898 | AX12: =ROUND(IF(AX$2+$B12>100,0,AX11*INDEX(Sterbtab_mix!$G$4:$G$104,AX$2+$B11)),11) -> 0.927039829 | AY12: =ROUND(IF(AY$2+$B12>100,0,AY11*INDEX(Sterbtab_mix!$G$4:$G$104,AY$2+$B11)),11) -> 0.9216847367 | AZ12: =ROUND(IF(AZ$2+$B12>100,0,AZ11*INDEX(Sterbtab_mix!$G$4:$G$104,AZ$2+$B11)),11) -> 0.9159933857 | BA12: =ROUND(IF(BA$2+$B12>100,0,BA11*INDEX(Sterbtab_mix!$G$4:$G$104,BA$2+$B11)),11) -> 0.909830565 | BB12: =ROUND(IF(BB$2+$B12>100,0,BB11*INDEX(Sterbtab_mix!$G$4:$G$104,BB$2+$B11)),11) -> 0.9030537444 | BC12: =ROUND(IF(BC$2+$B12>100,0,BC11*INDEX(Sterbtab_mix!$G$4:$G$104,BC$2+$B11)),11) -> 0.8954756544 | BD12: =ROUND(IF(BD$2+$B12>100,0,BD11*INDEX(Sterbtab_mix!$G$4:$G$104,BD$2+$B11)),11) -> 0.8868862106 | BE12: =ROUND(IF(BE$2+$B12>100,0,BE11*INDEX(Sterbtab_mix!$G$4:$G$104,BE$2+$B11)),11) -> 0.8770680126 | BF12: =ROUND(IF(BF$2+$B12>100,0,BF11*INDEX(Sterbtab_mix!$G$4:$G$104,BF$2+$B11)),11) -> 0.8657932866 | BG12: =ROUND(IF(BG$2+$B12>100,0,BG11*INDEX(Sterbtab_mix!$G$4:$G$104,BG$2+$B11)),11) -> 0.8528343248 | BH12: =ROUND(IF(BH$2+$B12>100,0,BH11*INDEX(Sterbtab_mix!$G$4:$G$104,BH$2+$B11)),11) -> 0.8379460677 | BI12: =ROUND(IF(BI$2+$B12>100,0,BI11*INDEX(Sterbtab_mix!$G$4:$G$104,BI$2+$B11)),11) -> 0.820914243 | BJ12: =ROUND(IF(BJ$2+$B12>100,0,BJ11*INDEX(Sterbtab_mix!$G$4:$G$104,BJ$2+$B11)),11) -> 0.8015457631 | BK12: =ROUND(IF(BK$2+$B12>100,0,BK11*INDEX(Sterbtab_mix!$G$4:$G$104,BK$2+$B11)),11) -> 0.7796751875 | BL12: =ROUND(IF(BL$2+$B12>100,0,BL11*INDEX(Sterbtab_mix!$G$4:$G$104,BL$2+$B11)),11) -> 0.7551797352 | BM12: =ROUND(IF(BM$2+$B12>100,0,BM11*INDEX(Sterbtab_mix!$G$4:$G$104,BM$2+$B11)),11) -> 0.7279865678 | BN12: =ROUND(IF(BN$2+$B12>100,0,BN11*INDEX(Sterbtab_mix!$G$4:$G$104,BN$2+$B11)),11) -> 0.6980888089 | BO12: =ROUND(IF(BO$2+$B12>100,0,BO11*INDEX(Sterbtab_mix!$G$4:$G$104,BO$2+$B11)),11) -> 0.6655509935 | BP12: =ROUND(IF(BP$2+$B12>100,0,BP11*INDEX(Sterbtab_mix!$G$4:$G$104,BP$2+$B11)),11) -> 0.6305204863 | BQ12: =ROUND(IF(BQ$2+$B12>100,0,BQ11*INDEX(Sterbtab_mix!$G$4:$G$104,BQ$2+$B11)),11) -> 0.5932300287 | BR12: =ROUND(IF(BR$2+$B12>100,0,BR11*INDEX(Sterbtab_mix!$G$4:$G$104,BR$2+$B11)),11) -> 0.5539990566 | BS12: =ROUND(IF(BS$2+$B12>100,0,BS11*INDEX(Sterbtab_mix!$G$4:$G$104,BS$2+$B11)),11) -> 0.5132322514 | BT12: =ROUND(IF(BT$2+$B12>100,0,BT11*INDEX(Sterbtab_mix!$G$4:$G$104,BT$2+$B11)),11) -> 0.4714086691 | BU12: =ROUND(IF(BU$2+$B12>100,0,BU11*INDEX(Sterbtab_mix!$G$4:$G$104,BU$2+$B11)),11) -> 0.4290686965 | BV12: =ROUND(IF(BV$2+$B12>100,0,BV11*INDEX(Sterbtab_mix!$G$4:$G$104,BV$2+$B11)),11) -> 0.386795532 | BW12: =ROUND(IF(BW$2+$B12>100,0,BW11*INDEX(Sterbtab_mix!$G$4:$G$104,BW$2+$B11)),11) -> 0.3451898753 | BX12: =ROUND(IF(BX$2+$B12>100,0,BX11*INDEX(Sterbtab_mix!$G$4:$G$104,BX$2+$B11)),11) -> 0.3048432418 | BY12: =ROUND(IF(BY$2+$B12>100,0,BY11*INDEX(Sterbtab_mix!$G$4:$G$104,BY$2+$B11)),11) -> 0.2663097921 | BZ12: =ROUND(IF(BZ$2+$B12>100,0,BZ11*INDEX(Sterbtab_mix!$G$4:$G$104,BZ$2+$B11)),11) -> 0.2300780434 | CA12: =ROUND(IF(CA$2+$B12>100,0,CA11*INDEX(Sterbtab_mix!$G$4:$G$104,CA$2+$B11)),11) -> 0.1965494383 | CB12: =ROUND(IF(CB$2+$B12>100,0,CB11*INDEX(Sterbtab_mix!$G$4:$G$104,CB$2+$B11)),11) -> 0.166019389 | CC12: =ROUND(IF(CC$2+$B12>100,0,CC11*INDEX(Sterbtab_mix!$G$4:$G$104,CC$2+$B11)),11) -> 0.1386688186 | CD12: =ROUND(IF(CD$2+$B12>100,0,CD11*INDEX(Sterbtab_mix!$G$4:$G$104,CD$2+$B11)),11) -> 0 | CE12: =ROUND(IF(CE$2+$B12>100,0,CE11*INDEX(Sterbtab_mix!$G$4:$G$104,CE$2+$B11)),11) -> 0 | CF12: =ROUND(IF(CF$2+$B12>100,0,CF11*INDEX(Sterbtab_mix!$G$4:$G$104,CF$2+$B11)),11) -> 0 | CG12: =ROUND(IF(CG$2+$B12>100,0,CG11*INDEX(Sterbtab_mix!$G$4:$G$104,CG$2+$B11)),11) -> 0 | CH12: =ROUND(IF(CH$2+$B12>100,0,CH11*INDEX(Sterbtab_mix!$G$4:$G$104,CH$2+$B11)),11) -> 0 | CI12: =ROUND(IF(CI$2+$B12>100,0,CI11*INDEX(Sterbtab_mix!$G$4:$G$104,CI$2+$B11)),11) -> 0 | CJ12: =ROUND(IF(CJ$2+$B12>100,0,CJ11*INDEX(Sterbtab_mix!$G$4:$G$104,CJ$2+$B11)),11) -> 0
A13: 23 | B13: 8 | C13: =ROUND(IF(C$2+$B13>100,0,C12*INDEX(Sterbtab_mix!$G$4:$G$104,C$2+$B12)),11) -> 0.9967863646 | D13: =ROUND(IF(D$2+$B13>100,0,D12*INDEX(Sterbtab_mix!$G$4:$G$104,D$2+$B12)),11) -> 0.9963905482 | E13: =ROUND(IF(E$2+$B13>100,0,E12*INDEX(Sterbtab_mix!$G$4:$G$104,E$2+$B12)),11) -> 0.9960905419 | F13: =ROUND(IF(F$2+$B13>100,0,F12*INDEX(Sterbtab_mix!$G$4:$G$104,F$2+$B12)),11) -> 0.9958982204 | G13: =ROUND(IF(G$2+$B13>100,0,G12*INDEX(Sterbtab_mix!$G$4:$G$104,G$2+$B12)),11) -> 0.9958065536 | H13: =ROUND(IF(H$2+$B13>100,0,H12*INDEX(Sterbtab_mix!$G$4:$G$104,H$2+$B12)),11) -> 0.9957995791 | I13: =ROUND(IF(I$2+$B13>100,0,I12*INDEX(Sterbtab_mix!$G$4:$G$104,I$2+$B12)),11) -> 0.9958523886 | J13: =ROUND(IF(J$2+$B13>100,0,J12*INDEX(Sterbtab_mix!$G$4:$G$104,J$2+$B12)),11) -> 0.9959321073 | K13: =ROUND(IF(K$2+$B13>100,0,K12*INDEX(Sterbtab_mix!$G$4:$G$104,K$2+$B12)),11) -> 0.9960058527 | L13: =ROUND(IF(L$2+$B13>100,0,L12*INDEX(Sterbtab_mix!$G$4:$G$104,L$2+$B12)),11) -> 0.9960507003 | M13: =ROUND(IF(M$2+$B13>100,0,M12*INDEX(Sterbtab_mix!$G$4:$G$104,M$2+$B12)),11) -> 0.9960566802 | N13: =ROUND(IF(N$2+$B13>100,0,N12*INDEX(Sterbtab_mix!$G$4:$G$104,N$2+$B12)),11) -> 0.9960237914 | O13: =ROUND(IF(O$2+$B13>100,0,O12*INDEX(Sterbtab_mix!$G$4:$G$104,O$2+$B12)),11) -> 0.9959470543 | P13: =ROUND(IF(P$2+$B13>100,0,P12*INDEX(Sterbtab_mix!$G$4:$G$104,P$2+$B12)),11) -> 0.9958214951 | Q13: =ROUND(IF(Q$2+$B13>100,0,Q12*INDEX(Sterbtab_mix!$G$4:$G$104,Q$2+$B12)),11) -> 0.9956481263 | R13: =ROUND(IF(R$2+$B13>100,0,R12*INDEX(Sterbtab_mix!$G$4:$G$104,R$2+$B12)),11) -> 0.9954299581 | S13: =ROUND(IF(S$2+$B13>100,0,S12*INDEX(Sterbtab_mix!$G$4:$G$104,S$2+$B12)),11) -> 0.99516602 | T13: =ROUND(IF(T$2+$B13>100,0,T12*INDEX(Sterbtab_mix!$G$4:$G$104,T$2+$B12)),11) -> 0.9948553474 | U13: =ROUND(IF(U$2+$B13>100,0,U12*INDEX(Sterbtab_mix!$G$4:$G$104,U$2+$B12)),11) -> 0.9944949911 | V13: =ROUND(IF(V$2+$B13>100,0,V12*INDEX(Sterbtab_mix!$G$4:$G$104,V$2+$B12)),11) -> 0.9940800207 | W13: =ROUND(IF(W$2+$B13>100,0,W12*INDEX(Sterbtab_mix!$G$4:$G$104,W$2+$B12)),11) -> 0.9935975628 | X13: =ROUND(IF(X$2+$B13>100,0,X12*INDEX(Sterbtab_mix!$G$4:$G$104,X$2+$B12)),11) -> 0.9930327888 | Y13: =ROUND(IF(Y$2+$B13>100,0,Y12*INDEX(Sterbtab_mix!$G$4:$G$104,Y$2+$B12)),11) -> 0.9923669408 | Z13: =ROUND(IF(Z$2+$B13>100,0,Z12*INDEX(Sterbtab_mix!$G$4:$G$104,Z$2+$B12)),11) -> 0.9915852993 | AA13: =ROUND(IF(AA$2+$B13>100,0,AA12*INDEX(Sterbtab_mix!$G$4:$G$104,AA$2+$B12)),11) -> 0.990673217 | AB13: =ROUND(IF(AB$2+$B13>100,0,AB12*INDEX(Sterbtab_mix!$G$4:$G$104,AB$2+$B12)),11) -> 0.9896191099 | AC13: =ROUND(IF(AC$2+$B13>100,0,AC12*INDEX(Sterbtab_mix!$G$4:$G$104,AC$2+$B12)),11) -> 0.9884144586 | AD13: =ROUND(IF(AD$2+$B13>100,0,AD12*INDEX(Sterbtab_mix!$G$4:$G$104,AD$2+$B12)),11) -> 0.9870557799 | AE13: =ROUND(IF(AE$2+$B13>100,0,AE12*INDEX(Sterbtab_mix!$G$4:$G$104,AE$2+$B12)),11) -> 0.9855347313 | AF13: =ROUND(IF(AF$2+$B13>100,0,AF12*INDEX(Sterbtab_mix!$G$4:$G$104,AF$2+$B12)),11) -> 0.9838460412 | AG13: =ROUND(IF(AG$2+$B13>100,0,AG12*INDEX(Sterbtab_mix!$G$4:$G$104,AG$2+$B12)),11) -> 0.9819825751 | AH13: =ROUND(IF(AH$2+$B13>100,0,AH12*INDEX(Sterbtab_mix!$G$4:$G$104,AH$2+$B12)),11) -> 0.9799363416 | AI13: =ROUND(IF(AI$2+$B13>100,0,AI12*INDEX(Sterbtab_mix!$G$4:$G$104,AI$2+$B12)),11) -> 0.9776936097 | AJ13: =ROUND(IF(AJ$2+$B13>100,0,AJ12*INDEX(Sterbtab_mix!$G$4:$G$104,AJ$2+$B12)),11) -> 0.9752379253 | AK13: =ROUND(IF(AK$2+$B13>100,0,AK12*INDEX(Sterbtab_mix!$G$4:$G$104,AK$2+$B12)),11) -> 0.9725462585 | AL13: =ROUND(IF(AL$2+$B13>100,0,AL12*INDEX(Sterbtab_mix!$G$4:$G$104,AL$2+$B12)),11) -> 0.9695939942 | AM13: =ROUND(IF(AM$2+$B13>100,0,AM12*INDEX(Sterbtab_mix!$G$4:$G$104,AM$2+$B12)),11) -> 0.9663569694 | AN13: =ROUND(IF(AN$2+$B13>100,0,AN12*INDEX(Sterbtab_mix!$G$4:$G$104,AN$2+$B12)),11) -> 0.9628134704 | AO13: =ROUND(IF(AO$2+$B13>100,0,AO12*INDEX(Sterbtab_mix!$G$4:$G$104,AO$2+$B12)),11) -> 0.9589481316 | AP13: =ROUND(IF(AP$2+$B13>100,0,AP12*INDEX(Sterbtab_mix!$G$4:$G$104,AP$2+$B12)),11) -> 0.9547586253 | AQ13: =ROUND(IF(AQ$2+$B13>100,0,AQ12*INDEX(Sterbtab_mix!$G$4:$G$104,AQ$2+$B12)),11) -> 0.9502545038 | AR13: =ROUND(IF(AR$2+$B13>100,0,AR12*INDEX(Sterbtab_mix!$G$4:$G$104,AR$2+$B12)),11) -> 0.945462664 | AS13: =ROUND(IF(AS$2+$B13>100,0,AS12*INDEX(Sterbtab_mix!$G$4:$G$104,AS$2+$B12)),11) -> 0.9404183655 | AT13: =ROUND(IF(AT$2+$B13>100,0,AT12*INDEX(Sterbtab_mix!$G$4:$G$104,AT$2+$B12)),11) -> 0.9351574081 | AU13: =ROUND(IF(AU$2+$B13>100,0,AU12*INDEX(Sterbtab_mix!$G$4:$G$104,AU$2+$B12)),11) -> 0.9297075555 | AV13: =ROUND(IF(AV$2+$B13>100,0,AV12*INDEX(Sterbtab_mix!$G$4:$G$104,AV$2+$B12)),11) -> 0.9240793139 | AW13: =ROUND(IF(AW$2+$B13>100,0,AW12*INDEX(Sterbtab_mix!$G$4:$G$104,AW$2+$B12)),11) -> 0.9182561267 | AX13: =ROUND(IF(AX$2+$B13>100,0,AX12*INDEX(Sterbtab_mix!$G$4:$G$104,AX$2+$B12)),11) -> 0.9121830887 | AY13: =ROUND(IF(AY$2+$B13>100,0,AY12*INDEX(Sterbtab_mix!$G$4:$G$104,AY$2+$B12)),11) -> 0.9057663196 | AZ13: =ROUND(IF(AZ$2+$B13>100,0,AZ12*INDEX(Sterbtab_mix!$G$4:$G$104,AZ$2+$B12)),11) -> 0.8988743853 | BA13: =ROUND(IF(BA$2+$B13>100,0,BA12*INDEX(Sterbtab_mix!$G$4:$G$104,BA$2+$B12)),11) -> 0.8913610045 | BB13: =ROUND(IF(BB$2+$B13>100,0,BB12*INDEX(Sterbtab_mix!$G$4:$G$104,BB$2+$B12)),11) -> 0.8830303337 | BC13: =ROUND(IF(BC$2+$B13>100,0,BC12*INDEX(Sterbtab_mix!$G$4:$G$104,BC$2+$B12)),11) -> 0.8736600765 | BD13: =ROUND(IF(BD$2+$B13>100,0,BD12*INDEX(Sterbtab_mix!$G$4:$G$104,BD$2+$B12)),11) -> 0.8630121207 | BE13: =ROUND(IF(BE$2+$B13>100,0,BE12*INDEX(Sterbtab_mix!$G$4:$G$104,BE$2+$B12)),11) -> 0.8508401708 | BF13: =ROUND(IF(BF$2+$B13>100,0,BF12*INDEX(Sterbtab_mix!$G$4:$G$104,BF$2+$B12)),11) -> 0.8368957041 | BG13: =ROUND(IF(BG$2+$B13>100,0,BG12*INDEX(Sterbtab_mix!$G$4:$G$104,BG$2+$B12)),11) -> 0.8209357626 | BH13: =ROUND(IF(BH$2+$B13>100,0,BH12*INDEX(Sterbtab_mix!$G$4:$G$104,BH$2+$B12)),11) -> 0.8027121115 | BI13: =ROUND(IF(BI$2+$B13>100,0,BI12*INDEX(Sterbtab_mix!$G$4:$G$104,BI$2+$B12)),11) -> 0.7820185052 | BJ13: =ROUND(IF(BJ$2+$B13>100,0,BJ12*INDEX(Sterbtab_mix!$G$4:$G$104,BJ$2+$B12)),11) -> 0.7586871112 | BK13: =ROUND(IF(BK$2+$B13>100,0,BK12*INDEX(Sterbtab_mix!$G$4:$G$104,BK$2+$B12)),11) -> 0.7325968404 | BL13: =ROUND(IF(BL$2+$B13>100,0,BL12*INDEX(Sterbtab_mix!$G$4:$G$104,BL$2+$B12)),11) -> 0.7036885601 | BM13: =ROUND(IF(BM$2+$B13>100,0,BM12*INDEX(Sterbtab_mix!$G$4:$G$104,BM$2+$B12)),11) -> 0.6719781932 | BN13: =ROUND(IF(BN$2+$B13>100,0,BN12*INDEX(Sterbtab_mix!$G$4:$G$104,BN$2+$B12)),11) -> 0.6375659054 | BO13: =ROUND(IF(BO$2+$B13>100,0,BO12*INDEX(Sterbtab_mix!$G$4:$G$104,BO$2+$B12)),11) -> 0.6006457951 | BP13: =ROUND(IF(BP$2+$B13>100,0,BP12*INDEX(Sterbtab_mix!$G$4:$G$104,BP$2+$B12)),11) -> 0.561510019 | BQ13: =ROUND(IF(BQ$2+$B13>100,0,BQ12*INDEX(Sterbtab_mix!$G$4:$G$104,BQ$2+$B12)),11) -> 0.5205474856 | BR13: =ROUND(IF(BR$2+$B13>100,0,BR12*INDEX(Sterbtab_mix!$G$4:$G$104,BR$2+$B12)),11) -> 0.4782380236 | BS13: =ROUND(IF(BS$2+$B13>100,0,BS12*INDEX(Sterbtab_mix!$G$4:$G$104,BS$2+$B12)),11) -> 0.4351403717 | BT13: =ROUND(IF(BT$2+$B13>100,0,BT12*INDEX(Sterbtab_mix!$G$4:$G$104,BT$2+$B12)),11) -> 0.3918692986 | BU13: =ROUND(IF(BU$2+$B13>100,0,BU12*INDEX(Sterbtab_mix!$G$4:$G$104,BU$2+$B12)),11) -> 0.349074845 | BV13: =ROUND(IF(BV$2+$B13>100,0,BV12*INDEX(Sterbtab_mix!$G$4:$G$104,BV$2+$B12)),11) -> 0.3074088435 | BW13: =ROUND(IF(BW$2+$B13>100,0,BW12*INDEX(Sterbtab_mix!$G$4:$G$104,BW$2+$B12)),11) -> 0.2674938478 | BX13: =ROUND(IF(BX$2+$B13>100,0,BX12*INDEX(Sterbtab_mix!$G$4:$G$104,BX$2+$B12)),11) -> 0.2298911291 | BY13: =ROUND(IF(BY$2+$B13>100,0,BY12*INDEX(Sterbtab_mix!$G$4:$G$104,BY$2+$B12)),11) -> 0.1950700585 | BZ13: =ROUND(IF(BZ$2+$B13>100,0,BZ12*INDEX(Sterbtab_mix!$G$4:$G$104,BZ$2+$B12)),11) -> 0.1633862413 | CA13: =ROUND(IF(CA$2+$B13>100,0,CA12*INDEX(Sterbtab_mix!$G$4:$G$104,CA$2+$B12)),11) -> 0.1350673982 | CB13: =ROUND(IF(CB$2+$B13>100,0,CB12*INDEX(Sterbtab_mix!$G$4:$G$104,CB$2+$B12)),11) -> 0.1102081529 | CC13: =ROUND(IF(CC$2+$B13>100,0,CC12*INDEX(Sterbtab_mix!$G$4:$G$104,CC$2+$B12)),11) -> 0 | CD13: =ROUND(IF(CD$2+$B13>100,0,CD12*INDEX(Sterbtab_mix!$G$4:$G$104,CD$2+$B12)),11) -> 0 | CE13: =ROUND(IF(CE$2+$B13>100,0,CE12*INDEX(Sterbtab_mix!$G$4:$G$104,CE$2+$B12)),11) -> 0 | CF13: =ROUND(IF(CF$2+$B13>100,0,CF12*INDEX(Sterbtab_mix!$G$4:$G$104,CF$2+$B12)),11) -> 0 | CG13: =ROUND(IF(CG$2+$B13>100,0,CG12*INDEX(Sterbtab_mix!$G$4:$G$104,CG$2+$B12)),11) -> 0 | CH13: =ROUND(IF(CH$2+$B13>100,0,CH12*INDEX(Sterbtab_mix!$G$4:$G$104,CH$2+$B12)),11) -> 0 | CI13: =ROUND(IF(CI$2+$B13>100,0,CI12*INDEX(Sterbtab_mix!$G$4:$G$104,CI$2+$B12)),11) -> 0 | CJ13: =ROUND(IF(CJ$2+$B13>100,0,CJ12*INDEX(Sterbtab_mix!$G$4:$G$104,CJ$2+$B12)),11) -> 0
A14: 24 | B14: 9 | C14: =ROUND(IF(C$2+$B14>100,0,C13*INDEX(Sterbtab_mix!$G$4:$G$104,C$2+$B13)),11) -> 0.9961583891 | D14: =ROUND(IF(D$2+$B14>100,0,D13*INDEX(Sterbtab_mix!$G$4:$G$104,D$2+$B13)),11) -> 0.9957827499 | E14: =ROUND(IF(E$2+$B14>100,0,E13*INDEX(Sterbtab_mix!$G$4:$G$104,E$2+$B13)),11) -> 0.9955048407 | F14: =ROUND(IF(F$2+$B14>100,0,F13*INDEX(Sterbtab_mix!$G$4:$G$104,F$2+$B13)),11) -> 0.9953265749 | G14: =ROUND(IF(G$2+$B14>100,0,G13*INDEX(Sterbtab_mix!$G$4:$G$104,G$2+$B13)),11) -> 0.9952449187 | H14: =ROUND(IF(H$2+$B14>100,0,H13*INDEX(Sterbtab_mix!$G$4:$G$104,H$2+$B13)),11) -> 0.9952459145 | I14: =ROUND(IF(I$2+$B14>100,0,I13*INDEX(Sterbtab_mix!$G$4:$G$104,I$2+$B13)),11) -> 0.9953016823 | J14: =ROUND(IF(J$2+$B14>100,0,J13*INDEX(Sterbtab_mix!$G$4:$G$104,J$2+$B13)),11) -> 0.995378369 | K14: =ROUND(IF(K$2+$B14>100,0,K13*INDEX(Sterbtab_mix!$G$4:$G$104,K$2+$B13)),11) -> 0.9954431094 | L14: =ROUND(IF(L$2+$B14>100,0,L13*INDEX(Sterbtab_mix!$G$4:$G$104,L$2+$B13)),11) -> 0.9954709988 | M14: =ROUND(IF(M$2+$B14>100,0,M13*INDEX(Sterbtab_mix!$G$4:$G$104,M$2+$B13)),11) -> 0.9954520738 | N14: =ROUND(IF(N$2+$B14>100,0,N13*INDEX(Sterbtab_mix!$G$4:$G$104,N$2+$B13)),11) -> 0.9953853402 | O14: =ROUND(IF(O$2+$B14>100,0,O13*INDEX(Sterbtab_mix!$G$4:$G$104,O$2+$B13)),11) -> 0.9952678184 | P14: =ROUND(IF(P$2+$B14>100,0,P13*INDEX(Sterbtab_mix!$G$4:$G$104,P$2+$B13)),11) -> 0.9950975329 | Q14: =ROUND(IF(Q$2+$B14>100,0,Q13*INDEX(Sterbtab_mix!$G$4:$G$104,Q$2+$B13)),11) -> 0.994876499 | R14: =ROUND(IF(R$2+$B14>100,0,R13*INDEX(Sterbtab_mix!$G$4:$G$104,R$2+$B13)),11) -> 0.9946037512 | S14: =ROUND(IF(S$2+$B14>100,0,S13*INDEX(Sterbtab_mix!$G$4:$G$104,S$2+$B13)),11) -> 0.9942763416 | T14: =ROUND(IF(T$2+$B14>100,0,T13*INDEX(Sterbtab_mix!$G$4:$G$104,T$2+$B13)),11) -> 0.9938913326 | U14: =ROUND(IF(U$2+$B14>100,0,U13*INDEX(Sterbtab_mix!$G$4:$G$104,U$2+$B13)),11) -> 0.9934428154 | V14: =ROUND(IF(V$2+$B14>100,0,V13*INDEX(Sterbtab_mix!$G$4:$G$104,V$2+$B13)),11) -> 0.9929199293 | W14: =ROUND(IF(W$2+$B14>100,0,W13*INDEX(Sterbtab_mix!$G$4:$G$104,W$2+$B13)),11) -> 0.992310854 | X14: =ROUND(IF(X$2+$B14>100,0,X13*INDEX(Sterbtab_mix!$G$4:$G$104,X$2+$B13)),11) -> 0.9915978564 | Y14: =ROUND(IF(Y$2+$B14>100,0,Y13*INDEX(Sterbtab_mix!$G$4:$G$104,Y$2+$B13)),11) -> 0.9907622835 | Z14: =ROUND(IF(Z$2+$B14>100,0,Z13*INDEX(Sterbtab_mix!$G$4:$G$104,Z$2+$B13)),11) -> 0.9897875551 | AA14: =ROUND(IF(AA$2+$B14>100,0,AA13*INDEX(Sterbtab_mix!$G$4:$G$104,AA$2+$B13)),11) -> 0.988660169 | AB14: =ROUND(IF(AB$2+$B14>100,0,AB13*INDEX(Sterbtab_mix!$G$4:$G$104,AB$2+$B13)),11) -> 0.9873687161 | AC14: =ROUND(IF(AC$2+$B14>100,0,AC13*INDEX(Sterbtab_mix!$G$4:$G$104,AC$2+$B13)),11) -> 0.9859038858 | AD14: =ROUND(IF(AD$2+$B14>100,0,AD13*INDEX(Sterbtab_mix!$G$4:$G$104,AD$2+$B13)),11) -> 0.9842584638 | AE14: =ROUND(IF(AE$2+$B14>100,0,AE13*INDEX(Sterbtab_mix!$G$4:$G$104,AE$2+$B13)),11) -> 0.9824243837 | AF14: =ROUND(IF(AF$2+$B14>100,0,AF13*INDEX(Sterbtab_mix!$G$4:$G$104,AF$2+$B13)),11) -> 0.9803947093 | AG14: =ROUND(IF(AG$2+$B14>100,0,AG13*INDEX(Sterbtab_mix!$G$4:$G$104,AG$2+$B13)),11) -> 0.978159717 | AH14: =ROUND(IF(AH$2+$B14>100,0,AH13*INDEX(Sterbtab_mix!$G$4:$G$104,AH$2+$B13)),11) -> 0.9757069363 | AI14: =ROUND(IF(AI$2+$B14>100,0,AI13*INDEX(Sterbtab_mix!$G$4:$G$104,AI$2+$B13)),11) -> 0.9730202343 | AJ14: =ROUND(IF(AJ$2+$B14>100,0,AJ13*INDEX(Sterbtab_mix!$G$4:$G$104,AJ$2+$B13)),11) -> 0.970075991 | AK14: =ROUND(IF(AK$2+$B14>100,0,AK13*INDEX(Sterbtab_mix!$G$4:$G$104,AK$2+$B13)),11) -> 0.9668461648 | AL14: =ROUND(IF(AL$2+$B14>100,0,AL13*INDEX(Sterbtab_mix!$G$4:$G$104,AL$2+$B13)),11) -> 0.9633071468 | AM14: =ROUND(IF(AM$2+$B14>100,0,AM13*INDEX(Sterbtab_mix!$G$4:$G$104,AM$2+$B13)),11) -> 0.9594359207 | AN14: =ROUND(IF(AN$2+$B14>100,0,AN13*INDEX(Sterbtab_mix!$G$4:$G$104,AN$2+$B13)),11) -> 0.9552149465 | AO14: =ROUND(IF(AO$2+$B14>100,0,AO13*INDEX(Sterbtab_mix!$G$4:$G$104,AO$2+$B13)),11) -> 0.9506378871 | AP14: =ROUND(IF(AP$2+$B14>100,0,AP13*INDEX(Sterbtab_mix!$G$4:$G$104,AP$2+$B13)),11) -> 0.9457122873 | AQ14: =ROUND(IF(AQ$2+$B14>100,0,AQ13*INDEX(Sterbtab_mix!$G$4:$G$104,AQ$2+$B13)),11) -> 0.9404583302 | AR14: =ROUND(IF(AR$2+$B14>100,0,AR13*INDEX(Sterbtab_mix!$G$4:$G$104,AR$2+$B13)),11) -> 0.9349065734 | AS14: =ROUND(IF(AS$2+$B14>100,0,AS13*INDEX(Sterbtab_mix!$G$4:$G$104,AS$2+$B13)),11) -> 0.9290938475 | AT14: =ROUND(IF(AT$2+$B14>100,0,AT13*INDEX(Sterbtab_mix!$G$4:$G$104,AT$2+$B13)),11) -> 0.92304899 | AU14: =ROUND(IF(AU$2+$B14>100,0,AU13*INDEX(Sterbtab_mix!$G$4:$G$104,AU$2+$B13)),11) -> 0.9167864799 | AV14: =ROUND(IF(AV$2+$B14>100,0,AV13*INDEX(Sterbtab_mix!$G$4:$G$104,AV$2+$B13)),11) -> 0.9102985191 | AW14: =ROUND(IF(AW$2+$B14>100,0,AW13*INDEX(Sterbtab_mix!$G$4:$G$104,AW$2+$B13)),11) -> 0.903540154 | AX14: =ROUND(IF(AX$2+$B14>100,0,AX13*INDEX(Sterbtab_mix!$G$4:$G$104,AX$2+$B13)),11) -> 0.8964287746 | AY14: =ROUND(IF(AY$2+$B14>100,0,AY13*INDEX(Sterbtab_mix!$G$4:$G$104,AY$2+$B13)),11) -> 0.8888384528 | AZ14: =ROUND(IF(AZ$2+$B14>100,0,AZ13*INDEX(Sterbtab_mix!$G$4:$G$104,AZ$2+$B13)),11) -> 0.8806272353 | BA14: =ROUND(IF(BA$2+$B14>100,0,BA13*INDEX(Sterbtab_mix!$G$4:$G$104,BA$2+$B13)),11) -> 0.871596857 | BB14: =ROUND(IF(BB$2+$B14>100,0,BB13*INDEX(Sterbtab_mix!$G$4:$G$104,BB$2+$B13)),11) -> 0.8615179488 | BC14: =ROUND(IF(BC$2+$B14>100,0,BC13*INDEX(Sterbtab_mix!$G$4:$G$104,BC$2+$B13)),11) -> 0.8501420209 | BD14: =ROUND(IF(BD$2+$B14>100,0,BD13*INDEX(Sterbtab_mix!$G$4:$G$104,BD$2+$B13)),11) -> 0.8372046062 | BE14: =ROUND(IF(BE$2+$B14>100,0,BE13*INDEX(Sterbtab_mix!$G$4:$G$104,BE$2+$B13)),11) -> 0.8224416784 | BF14: =ROUND(IF(BF$2+$B14>100,0,BF13*INDEX(Sterbtab_mix!$G$4:$G$104,BF$2+$B13)),11) -> 0.8055932941 | BG14: =ROUND(IF(BG$2+$B14>100,0,BG13*INDEX(Sterbtab_mix!$G$4:$G$104,BG$2+$B13)),11) -> 0.7864170556 | BH14: =ROUND(IF(BH$2+$B14>100,0,BH13*INDEX(Sterbtab_mix!$G$4:$G$104,BH$2+$B13)),11) -> 0.7646788089 | BI14: =ROUND(IF(BI$2+$B14>100,0,BI13*INDEX(Sterbtab_mix!$G$4:$G$104,BI$2+$B13)),11) -> 0.7402039758 | BJ14: =ROUND(IF(BJ$2+$B14>100,0,BJ13*INDEX(Sterbtab_mix!$G$4:$G$104,BJ$2+$B13)),11) -> 0.712876066 | BK14: =ROUND(IF(BK$2+$B14>100,0,BK13*INDEX(Sterbtab_mix!$G$4:$G$104,BK$2+$B13)),11) -> 0.6826454574 | BL14: =ROUND(IF(BL$2+$B14>100,0,BL13*INDEX(Sterbtab_mix!$G$4:$G$104,BL$2+$B13)),11) -> 0.649549577 | BM14: =ROUND(IF(BM$2+$B14>100,0,BM13*INDEX(Sterbtab_mix!$G$4:$G$104,BM$2+$B13)),11) -> 0.6137190278 | BN14: =ROUND(IF(BN$2+$B14>100,0,BN13*INDEX(Sterbtab_mix!$G$4:$G$104,BN$2+$B13)),11) -> 0.5753898407 | BO14: =ROUND(IF(BO$2+$B14>100,0,BO13*INDEX(Sterbtab_mix!$G$4:$G$104,BO$2+$B13)),11) -> 0.5349051128 | BP14: =ROUND(IF(BP$2+$B14>100,0,BP13*INDEX(Sterbtab_mix!$G$4:$G$104,BP$2+$B13)),11) -> 0.4927138115 | BQ14: =ROUND(IF(BQ$2+$B14>100,0,BQ13*INDEX(Sterbtab_mix!$G$4:$G$104,BQ$2+$B13)),11) -> 0.4493610553 | BR14: =ROUND(IF(BR$2+$B14>100,0,BR13*INDEX(Sterbtab_mix!$G$4:$G$104,BR$2+$B13)),11) -> 0.4054707606 | BS14: =ROUND(IF(BS$2+$B14>100,0,BS13*INDEX(Sterbtab_mix!$G$4:$G$104,BS$2+$B13)),11) -> 0.3617204422 | BT14: =ROUND(IF(BT$2+$B14>100,0,BT13*INDEX(Sterbtab_mix!$G$4:$G$104,BT$2+$B13)),11) -> 0.318810754 | BU14: =ROUND(IF(BU$2+$B14>100,0,BU13*INDEX(Sterbtab_mix!$G$4:$G$104,BU$2+$B13)),11) -> 0.2774300256 | BV14: =ROUND(IF(BV$2+$B14>100,0,BV13*INDEX(Sterbtab_mix!$G$4:$G$104,BV$2+$B13)),11) -> 0.2382166461 | BW14: =ROUND(IF(BW$2+$B14>100,0,BW13*INDEX(Sterbtab_mix!$G$4:$G$104,BW$2+$B13)),11) -> 0.2017248679 | BX14: =ROUND(IF(BX$2+$B14>100,0,BX13*INDEX(Sterbtab_mix!$G$4:$G$104,BX$2+$B13)),11) -> 0.1683936428 | BY14: =ROUND(IF(BY$2+$B14>100,0,BY13*INDEX(Sterbtab_mix!$G$4:$G$104,BY$2+$B13)),11) -> 0.1385258809 | BZ14: =ROUND(IF(BZ$2+$B14>100,0,BZ13*INDEX(Sterbtab_mix!$G$4:$G$104,BZ$2+$B13)),11) -> 0.1122778813 | CA14: =ROUND(IF(CA$2+$B14>100,0,CA13*INDEX(Sterbtab_mix!$G$4:$G$104,CA$2+$B13)),11) -> 0.08966138572 | CB14: =ROUND(IF(CB$2+$B14>100,0,CB13*INDEX(Sterbtab_mix!$G$4:$G$104,CB$2+$B13)),11) -> 0 | CC14: =ROUND(IF(CC$2+$B14>100,0,CC13*INDEX(Sterbtab_mix!$G$4:$G$104,CC$2+$B13)),11) -> 0 | CD14: =ROUND(IF(CD$2+$B14>100,0,CD13*INDEX(Sterbtab_mix!$G$4:$G$104,CD$2+$B13)),11) -> 0 | CE14: =ROUND(IF(CE$2+$B14>100,0,CE13*INDEX(Sterbtab_mix!$G$4:$G$104,CE$2+$B13)),11) -> 0 | CF14: =ROUND(IF(CF$2+$B14>100,0,CF13*INDEX(Sterbtab_mix!$G$4:$G$104,CF$2+$B13)),11) -> 0 | CG14: =ROUND(IF(CG$2+$B14>100,0,CG13*INDEX(Sterbtab_mix!$G$4:$G$104,CG$2+$B13)),11) -> 0 | CH14: =ROUND(IF(CH$2+$B14>100,0,CH13*INDEX(Sterbtab_mix!$G$4:$G$104,CH$2+$B13)),11) -> 0 | CI14: =ROUND(IF(CI$2+$B14>100,0,CI13*INDEX(Sterbtab_mix!$G$4:$G$104,CI$2+$B13)),11) -> 0 | CJ14: =ROUND(IF(CJ$2+$B14>100,0,CJ13*INDEX(Sterbtab_mix!$G$4:$G$104,CJ$2+$B13)),11) -> 0
A15: 25 | B15: 10 | C15: =ROUND(IF(C$2+$B15>100,0,C14*INDEX(Sterbtab_mix!$G$4:$G$104,C$2+$B14)),11) -> 0.9955507325 | D15: =ROUND(IF(D$2+$B15>100,0,D14*INDEX(Sterbtab_mix!$G$4:$G$104,D$2+$B14)),11) -> 0.9951972297 | E15: =ROUND(IF(E$2+$B15>100,0,E14*INDEX(Sterbtab_mix!$G$4:$G$104,E$2+$B14)),11) -> 0.9949334209 | F15: =ROUND(IF(F$2+$B15>100,0,F14*INDEX(Sterbtab_mix!$G$4:$G$104,F$2+$B14)),11) -> 0.9947652107 | G15: =ROUND(IF(G$2+$B15>100,0,G14*INDEX(Sterbtab_mix!$G$4:$G$104,G$2+$B14)),11) -> 0.9946915626 | H15: =ROUND(IF(H$2+$B15>100,0,H14*INDEX(Sterbtab_mix!$G$4:$G$104,H$2+$B14)),11) -> 0.9946955436 | I15: =ROUND(IF(I$2+$B15>100,0,I14*INDEX(Sterbtab_mix!$G$4:$G$104,I$2+$B14)),11) -> 0.9947482945 | J15: =ROUND(IF(J$2+$B15>100,0,J14*INDEX(Sterbtab_mix!$G$4:$G$104,J$2+$B14)),11) -> 0.9948159802 | K15: =ROUND(IF(K$2+$B15>100,0,K14*INDEX(Sterbtab_mix!$G$4:$G$104,K$2+$B14)),11) -> 0.9948637615 | L15: =ROUND(IF(L$2+$B15>100,0,L14*INDEX(Sterbtab_mix!$G$4:$G$104,L$2+$B14)),11) -> 0.9948667479 | M15: =ROUND(IF(M$2+$B15>100,0,M14*INDEX(Sterbtab_mix!$G$4:$G$104,M$2+$B14)),11) -> 0.994813989 | N15: =ROUND(IF(N$2+$B15>100,0,N14*INDEX(Sterbtab_mix!$G$4:$G$104,N$2+$B14)),11) -> 0.9947064874 | O15: =ROUND(IF(O$2+$B15>100,0,O14*INDEX(Sterbtab_mix!$G$4:$G$104,O$2+$B14)),11) -> 0.9945442587 | P15: =ROUND(IF(P$2+$B15>100,0,P14*INDEX(Sterbtab_mix!$G$4:$G$104,P$2+$B14)),11) -> 0.9943263323 | Q15: =ROUND(IF(Q$2+$B15>100,0,Q14*INDEX(Sterbtab_mix!$G$4:$G$104,Q$2+$B14)),11) -> 0.9940507516 | R15: =ROUND(IF(R$2+$B15>100,0,R14*INDEX(Sterbtab_mix!$G$4:$G$104,R$2+$B14)),11) -> 0.9937145755 | S15: =ROUND(IF(S$2+$B15>100,0,S14*INDEX(Sterbtab_mix!$G$4:$G$104,S$2+$B14)),11) -> 0.9933128878 | T15: =ROUND(IF(T$2+$B15>100,0,T14*INDEX(Sterbtab_mix!$G$4:$G$104,T$2+$B14)),11) -> 0.9928397956 | U15: =ROUND(IF(U$2+$B15>100,0,U14*INDEX(Sterbtab_mix!$G$4:$G$104,U$2+$B14)),11) -> 0.9922834676 | V15: =ROUND(IF(V$2+$B15>100,0,V14*INDEX(Sterbtab_mix!$G$4:$G$104,V$2+$B14)),11) -> 0.991634098 | W15: =ROUND(IF(W$2+$B15>100,0,W14*INDEX(Sterbtab_mix!$G$4:$G$104,W$2+$B14)),11) -> 0.9908769648 | X15: =ROUND(IF(X$2+$B15>100,0,X14*INDEX(Sterbtab_mix!$G$4:$G$104,X$2+$B14)),11) -> 0.9899944427 | Y15: =ROUND(IF(Y$2+$B15>100,0,Y14*INDEX(Sterbtab_mix!$G$4:$G$104,Y$2+$B14)),11) -> 0.9889660314 | Z15: =ROUND(IF(Z$2+$B15>100,0,Z14*INDEX(Sterbtab_mix!$G$4:$G$104,Z$2+$B14)),11) -> 0.9877763068 | AA15: =ROUND(IF(AA$2+$B15>100,0,AA14*INDEX(Sterbtab_mix!$G$4:$G$104,AA$2+$B14)),11) -> 0.9864119558 | AB15: =ROUND(IF(AB$2+$B15>100,0,AB14*INDEX(Sterbtab_mix!$G$4:$G$104,AB$2+$B14)),11) -> 0.9848607995 | AC15: =ROUND(IF(AC$2+$B15>100,0,AC14*INDEX(Sterbtab_mix!$G$4:$G$104,AC$2+$B14)),11) -> 0.9831098342 | AD15: =ROUND(IF(AD$2+$B15>100,0,AD14*INDEX(Sterbtab_mix!$G$4:$G$104,AD$2+$B14)),11) -> 0.9811521441 | AE15: =ROUND(IF(AE$2+$B15>100,0,AE14*INDEX(Sterbtab_mix!$G$4:$G$104,AE$2+$B14)),11) -> 0.978978039 | AF15: =ROUND(IF(AF$2+$B15>100,0,AF14*INDEX(Sterbtab_mix!$G$4:$G$104,AF$2+$B14)),11) -> 0.9765780327 | AG15: =ROUND(IF(AG$2+$B15>100,0,AG14*INDEX(Sterbtab_mix!$G$4:$G$104,AG$2+$B14)),11) -> 0.9739379796 | AH15: =ROUND(IF(AH$2+$B15>100,0,AH14*INDEX(Sterbtab_mix!$G$4:$G$104,AH$2+$B14)),11) -> 0.9710430572 | AI15: =ROUND(IF(AI$2+$B15>100,0,AI14*INDEX(Sterbtab_mix!$G$4:$G$104,AI$2+$B14)),11) -> 0.9678700382 | AJ15: =ROUND(IF(AJ$2+$B15>100,0,AJ14*INDEX(Sterbtab_mix!$G$4:$G$104,AJ$2+$B14)),11) -> 0.9643903756 | AK15: =ROUND(IF(AK$2+$B15>100,0,AK14*INDEX(Sterbtab_mix!$G$4:$G$104,AK$2+$B14)),11) -> 0.9605771343 | AL15: =ROUND(IF(AL$2+$B15>100,0,AL14*INDEX(Sterbtab_mix!$G$4:$G$104,AL$2+$B14)),11) -> 0.956407941 | AM15: =ROUND(IF(AM$2+$B15>100,0,AM14*INDEX(Sterbtab_mix!$G$4:$G$104,AM$2+$B14)),11) -> 0.9518640525 | AN15: =ROUND(IF(AN$2+$B15>100,0,AN14*INDEX(Sterbtab_mix!$G$4:$G$104,AN$2+$B14)),11) -> 0.9469370538 | AO15: =ROUND(IF(AO$2+$B15>100,0,AO14*INDEX(Sterbtab_mix!$G$4:$G$104,AO$2+$B14)),11) -> 0.9416305931 | AP15: =ROUND(IF(AP$2+$B15>100,0,AP14*INDEX(Sterbtab_mix!$G$4:$G$104,AP$2+$B14)),11) -> 0.9359629394 | AQ15: =ROUND(IF(AQ$2+$B15>100,0,AQ14*INDEX(Sterbtab_mix!$G$4:$G$104,AQ$2+$B14)),11) -> 0.9299581129 | AR15: =ROUND(IF(AR$2+$B15>100,0,AR14*INDEX(Sterbtab_mix!$G$4:$G$104,AR$2+$B14)),11) -> 0.9236484284 | AS15: =ROUND(IF(AS$2+$B15>100,0,AS14*INDEX(Sterbtab_mix!$G$4:$G$104,AS$2+$B14)),11) -> 0.9170639404 | AT15: =ROUND(IF(AT$2+$B15>100,0,AT14*INDEX(Sterbtab_mix!$G$4:$G$104,AT$2+$B14)),11) -> 0.9102204551 | AU15: =ROUND(IF(AU$2+$B15>100,0,AU14*INDEX(Sterbtab_mix!$G$4:$G$104,AU$2+$B14)),11) -> 0.9031144431 | AV15: =ROUND(IF(AV$2+$B15>100,0,AV14*INDEX(Sterbtab_mix!$G$4:$G$104,AV$2+$B14)),11) -> 0.895710075 | AW15: =ROUND(IF(AW$2+$B15>100,0,AW14*INDEX(Sterbtab_mix!$G$4:$G$104,AW$2+$B14)),11) -> 0.887935112 | AX15: =ROUND(IF(AX$2+$B15>100,0,AX14*INDEX(Sterbtab_mix!$G$4:$G$104,AX$2+$B14)),11) -> 0.8796754172 | AY15: =ROUND(IF(AY$2+$B15>100,0,AY14*INDEX(Sterbtab_mix!$G$4:$G$104,AY$2+$B14)),11) -> 0.8707950322 | AZ15: =ROUND(IF(AZ$2+$B15>100,0,AZ14*INDEX(Sterbtab_mix!$G$4:$G$104,AZ$2+$B14)),11) -> 0.8611010876 | BA15: =ROUND(IF(BA$2+$B15>100,0,BA14*INDEX(Sterbtab_mix!$G$4:$G$104,BA$2+$B14)),11) -> 0.8503630143 | BB15: =ROUND(IF(BB$2+$B15>100,0,BB14*INDEX(Sterbtab_mix!$G$4:$G$104,BB$2+$B14)),11) -> 0.8383267471 | BC15: =ROUND(IF(BC$2+$B15>100,0,BC14*INDEX(Sterbtab_mix!$G$4:$G$104,BC$2+$B14)),11) -> 0.8247193739 | BD15: =ROUND(IF(BD$2+$B15>100,0,BD14*INDEX(Sterbtab_mix!$G$4:$G$104,BD$2+$B14)),11) -> 0.8092612281 | BE15: =ROUND(IF(BE$2+$B15>100,0,BE14*INDEX(Sterbtab_mix!$G$4:$G$104,BE$2+$B14)),11) -> 0.7916798923 | BF15: =ROUND(IF(BF$2+$B15>100,0,BF14*INDEX(Sterbtab_mix!$G$4:$G$104,BF$2+$B14)),11) -> 0.7717197073 | BG15: =ROUND(IF(BG$2+$B15>100,0,BG14*INDEX(Sterbtab_mix!$G$4:$G$104,BG$2+$B14)),11) -> 0.7491558291 | BH15: =ROUND(IF(BH$2+$B15>100,0,BH14*INDEX(Sterbtab_mix!$G$4:$G$104,BH$2+$B14)),11) -> 0.723791433 | BI15: =ROUND(IF(BI$2+$B15>100,0,BI14*INDEX(Sterbtab_mix!$G$4:$G$104,BI$2+$B14)),11) -> 0.6955089793 | BJ15: =ROUND(IF(BJ$2+$B15>100,0,BJ14*INDEX(Sterbtab_mix!$G$4:$G$104,BJ$2+$B14)),11) -> 0.6642693243 | BK15: =ROUND(IF(BK$2+$B15>100,0,BK14*INDEX(Sterbtab_mix!$G$4:$G$104,BK$2+$B14)),11) -> 0.6301254465 | BL15: =ROUND(IF(BL$2+$B15>100,0,BL14*INDEX(Sterbtab_mix!$G$4:$G$104,BL$2+$B14)),11) -> 0.5932349278 | BM15: =ROUND(IF(BM$2+$B15>100,0,BM14*INDEX(Sterbtab_mix!$G$4:$G$104,BM$2+$B14)),11) -> 0.5538685345 | BN15: =ROUND(IF(BN$2+$B15>100,0,BN14*INDEX(Sterbtab_mix!$G$4:$G$104,BN$2+$B14)),11) -> 0.5124134226 | BO15: =ROUND(IF(BO$2+$B15>100,0,BO14*INDEX(Sterbtab_mix!$G$4:$G$104,BO$2+$B14)),11) -> 0.4693685384 | BP15: =ROUND(IF(BP$2+$B15>100,0,BP14*INDEX(Sterbtab_mix!$G$4:$G$104,BP$2+$B14)),11) -> 0.4253337196 | BQ15: =ROUND(IF(BQ$2+$B15>100,0,BQ14*INDEX(Sterbtab_mix!$G$4:$G$104,BQ$2+$B14)),11) -> 0.3809876252 | BR15: =ROUND(IF(BR$2+$B15>100,0,BR14*INDEX(Sterbtab_mix!$G$4:$G$104,BR$2+$B14)),11) -> 0.3370568956 | BS15: =ROUND(IF(BS$2+$B15>100,0,BS14*INDEX(Sterbtab_mix!$G$4:$G$104,BS$2+$B14)),11) -> 0.2942827299 | BT15: =ROUND(IF(BT$2+$B15>100,0,BT14*INDEX(Sterbtab_mix!$G$4:$G$104,BT$2+$B14)),11) -> 0.2533773973 | BU15: =ROUND(IF(BU$2+$B15>100,0,BU14*INDEX(Sterbtab_mix!$G$4:$G$104,BU$2+$B14)),11) -> 0.2149855206 | BV15: =ROUND(IF(BV$2+$B15>100,0,BV14*INDEX(Sterbtab_mix!$G$4:$G$104,BV$2+$B14)),11) -> 0.1796460811 | BW15: =ROUND(IF(BW$2+$B15>100,0,BW14*INDEX(Sterbtab_mix!$G$4:$G$104,BW$2+$B14)),11) -> 0.1477620537 | BX15: =ROUND(IF(BX$2+$B15>100,0,BX14*INDEX(Sterbtab_mix!$G$4:$G$104,BX$2+$B14)),11) -> 0.1195820511 | BY15: =ROUND(IF(BY$2+$B15>100,0,BY14*INDEX(Sterbtab_mix!$G$4:$G$104,BY$2+$B14)),11) -> 0.0951940157 | BZ15: =ROUND(IF(BZ$2+$B15>100,0,BZ14*INDEX(Sterbtab_mix!$G$4:$G$104,BZ$2+$B14)),11) -> 0.0745330891 | CA15: =ROUND(IF(CA$2+$B15>100,0,CA14*INDEX(Sterbtab_mix!$G$4:$G$104,CA$2+$B14)),11) -> 0 | CB15: =ROUND(IF(CB$2+$B15>100,0,CB14*INDEX(Sterbtab_mix!$G$4:$G$104,CB$2+$B14)),11) -> 0 | CC15: =ROUND(IF(CC$2+$B15>100,0,CC14*INDEX(Sterbtab_mix!$G$4:$G$104,CC$2+$B14)),11) -> 0 | CD15: =ROUND(IF(CD$2+$B15>100,0,CD14*INDEX(Sterbtab_mix!$G$4:$G$104,CD$2+$B14)),11) -> 0 | CE15: =ROUND(IF(CE$2+$B15>100,0,CE14*INDEX(Sterbtab_mix!$G$4:$G$104,CE$2+$B14)),11) -> 0 | CF15: =ROUND(IF(CF$2+$B15>100,0,CF14*INDEX(Sterbtab_mix!$G$4:$G$104,CF$2+$B14)),11) -> 0 | CG15: =ROUND(IF(CG$2+$B15>100,0,CG14*INDEX(Sterbtab_mix!$G$4:$G$104,CG$2+$B14)),11) -> 0 | CH15: =ROUND(IF(CH$2+$B15>100,0,CH14*INDEX(Sterbtab_mix!$G$4:$G$104,CH$2+$B14)),11) -> 0 | CI15: =ROUND(IF(CI$2+$B15>100,0,CI14*INDEX(Sterbtab_mix!$G$4:$G$104,CI$2+$B14)),11) -> 0 | CJ15: =ROUND(IF(CJ$2+$B15>100,0,CJ14*INDEX(Sterbtab_mix!$G$4:$G$104,CJ$2+$B14)),11) -> 0
A16: 26 | B16: 11 | C16: =ROUND(IF(C$2+$B16>100,0,C15*INDEX(Sterbtab_mix!$G$4:$G$104,C$2+$B15)),11) -> 0.9949653487 | D16: =ROUND(IF(D$2+$B16>100,0,D15*INDEX(Sterbtab_mix!$G$4:$G$104,D$2+$B15)),11) -> 0.9946259864 | E16: =ROUND(IF(E$2+$B16>100,0,E15*INDEX(Sterbtab_mix!$G$4:$G$104,E$2+$B15)),11) -> 0.9943722784 | F16: =ROUND(IF(F$2+$B16>100,0,F15*INDEX(Sterbtab_mix!$G$4:$G$104,F$2+$B15)),11) -> 0.9942121212 | G16: =ROUND(IF(G$2+$B16>100,0,G15*INDEX(Sterbtab_mix!$G$4:$G$104,G$2+$B15)),11) -> 0.9941414981 | H16: =ROUND(IF(H$2+$B16>100,0,H15*INDEX(Sterbtab_mix!$G$4:$G$104,H$2+$B15)),11) -> 0.9941424928 | I16: =ROUND(IF(I$2+$B16>100,0,I15*INDEX(Sterbtab_mix!$G$4:$G$104,I$2+$B15)),11) -> 0.9941862617 | J16: =ROUND(IF(J$2+$B16>100,0,J15*INDEX(Sterbtab_mix!$G$4:$G$104,J$2+$B15)),11) -> 0.9942369974 | K16: =ROUND(IF(K$2+$B16>100,0,K15*INDEX(Sterbtab_mix!$G$4:$G$104,K$2+$B15)),11) -> 0.9942598792 | L16: =ROUND(IF(L$2+$B16>100,0,L15*INDEX(Sterbtab_mix!$G$4:$G$104,L$2+$B15)),11) -> 0.9942290383 | M16: =ROUND(IF(M$2+$B16>100,0,M15*INDEX(Sterbtab_mix!$G$4:$G$104,M$2+$B15)),11) -> 0.9941355258 | N16: =ROUND(IF(N$2+$B16>100,0,N15*INDEX(Sterbtab_mix!$G$4:$G$104,N$2+$B15)),11) -> 0.9939833357 | O16: =ROUND(IF(O$2+$B16>100,0,O15*INDEX(Sterbtab_mix!$G$4:$G$104,O$2+$B15)),11) -> 0.9937734869 | P16: =ROUND(IF(P$2+$B16>100,0,P15*INDEX(Sterbtab_mix!$G$4:$G$104,P$2+$B15)),11) -> 0.9935010415 | Q16: =ROUND(IF(Q$2+$B16>100,0,Q15*INDEX(Sterbtab_mix!$G$4:$G$104,Q$2+$B15)),11) -> 0.9931620702 | R16: =ROUND(IF(R$2+$B16>100,0,R15*INDEX(Sterbtab_mix!$G$4:$G$104,R$2+$B15)),11) -> 0.9927516661 | S16: =ROUND(IF(S$2+$B16>100,0,S15*INDEX(Sterbtab_mix!$G$4:$G$104,S$2+$B15)),11) -> 0.9922619628 | T16: =ROUND(IF(T$2+$B16>100,0,T15*INDEX(Sterbtab_mix!$G$4:$G$104,T$2+$B15)),11) -> 0.9916811515 | U16: =ROUND(IF(U$2+$B16>100,0,U15*INDEX(Sterbtab_mix!$G$4:$G$104,U$2+$B15)),11) -> 0.9909984605 | V16: =ROUND(IF(V$2+$B16>100,0,V15*INDEX(Sterbtab_mix!$G$4:$G$104,V$2+$B15)),11) -> 0.9902011867 | W16: =ROUND(IF(W$2+$B16>100,0,W15*INDEX(Sterbtab_mix!$G$4:$G$104,W$2+$B15)),11) -> 0.9892747167 | X16: =ROUND(IF(X$2+$B16>100,0,X15*INDEX(Sterbtab_mix!$G$4:$G$104,X$2+$B15)),11) -> 0.9881995828 | Y16: =ROUND(IF(Y$2+$B16>100,0,Y15*INDEX(Sterbtab_mix!$G$4:$G$104,Y$2+$B15)),11) -> 0.9869564525 | Z16: =ROUND(IF(Z$2+$B16>100,0,Z15*INDEX(Sterbtab_mix!$G$4:$G$104,Z$2+$B15)),11) -> 0.9855301035 | AA16: =ROUND(IF(AA$2+$B16>100,0,AA15*INDEX(Sterbtab_mix!$G$4:$G$104,AA$2+$B15)),11) -> 0.9839064694 | AB16: =ROUND(IF(AB$2+$B16>100,0,AB15*INDEX(Sterbtab_mix!$G$4:$G$104,AB$2+$B15)),11) -> 0.982069704 | AC16: =ROUND(IF(AC$2+$B16>100,0,AC15*INDEX(Sterbtab_mix!$G$4:$G$104,AC$2+$B15)),11) -> 0.9800071396 | AD16: =ROUND(IF(AD$2+$B16>100,0,AD15*INDEX(Sterbtab_mix!$G$4:$G$104,AD$2+$B15)),11) -> 0.9777102624 | AE16: =ROUND(IF(AE$2+$B16>100,0,AE15*INDEX(Sterbtab_mix!$G$4:$G$104,AE$2+$B15)),11) -> 0.9751668775 | AF16: =ROUND(IF(AF$2+$B16>100,0,AF15*INDEX(Sterbtab_mix!$G$4:$G$104,AF$2+$B15)),11) -> 0.9723631219 | AG16: =ROUND(IF(AG$2+$B16>100,0,AG15*INDEX(Sterbtab_mix!$G$4:$G$104,AG$2+$B15)),11) -> 0.9692825561 | AH16: =ROUND(IF(AH$2+$B16>100,0,AH15*INDEX(Sterbtab_mix!$G$4:$G$104,AH$2+$B15)),11) -> 0.9659033262 | AI16: =ROUND(IF(AI$2+$B16>100,0,AI15*INDEX(Sterbtab_mix!$G$4:$G$104,AI$2+$B15)),11) -> 0.9621973519 | AJ16: =ROUND(IF(AJ$2+$B16>100,0,AJ15*INDEX(Sterbtab_mix!$G$4:$G$104,AJ$2+$B15)),11) -> 0.9581372684 | AK16: =ROUND(IF(AK$2+$B16>100,0,AK15*INDEX(Sterbtab_mix!$G$4:$G$104,AK$2+$B15)),11) -> 0.9536974809 | AL16: =ROUND(IF(AL$2+$B16>100,0,AL15*INDEX(Sterbtab_mix!$G$4:$G$104,AL$2+$B15)),11) -> 0.9488599695 | AM16: =ROUND(IF(AM$2+$B16>100,0,AM15*INDEX(Sterbtab_mix!$G$4:$G$104,AM$2+$B15)),11) -> 0.9436151986 | AN16: =ROUND(IF(AN$2+$B16>100,0,AN15*INDEX(Sterbtab_mix!$G$4:$G$104,AN$2+$B15)),11) -> 0.9379648252 | AO16: =ROUND(IF(AO$2+$B16>100,0,AO15*INDEX(Sterbtab_mix!$G$4:$G$104,AO$2+$B15)),11) -> 0.9319233233 | AP16: =ROUND(IF(AP$2+$B16>100,0,AP15*INDEX(Sterbtab_mix!$G$4:$G$104,AP$2+$B15)),11) -> 0.9255129131 | AQ16: =ROUND(IF(AQ$2+$B16>100,0,AQ15*INDEX(Sterbtab_mix!$G$4:$G$104,AQ$2+$B15)),11) -> 0.9187595573 | AR16: =ROUND(IF(AR$2+$B16>100,0,AR15*INDEX(Sterbtab_mix!$G$4:$G$104,AR$2+$B15)),11) -> 0.9116890286 | AS16: =ROUND(IF(AS$2+$B16>100,0,AS15*INDEX(Sterbtab_mix!$G$4:$G$104,AS$2+$B15)),11) -> 0.9043185857 | AT16: =ROUND(IF(AT$2+$B16>100,0,AT15*INDEX(Sterbtab_mix!$G$4:$G$104,AT$2+$B15)),11) -> 0.8966463375 | AU16: =ROUND(IF(AU$2+$B16>100,0,AU15*INDEX(Sterbtab_mix!$G$4:$G$104,AU$2+$B15)),11) -> 0.8886411311 | AV16: =ROUND(IF(AV$2+$B16>100,0,AV15*INDEX(Sterbtab_mix!$G$4:$G$104,AV$2+$B15)),11) -> 0.8802402663 | AW16: =ROUND(IF(AW$2+$B16>100,0,AW15*INDEX(Sterbtab_mix!$G$4:$G$104,AW$2+$B15)),11) -> 0.8713404927 | AX16: =ROUND(IF(AX$2+$B16>100,0,AX15*INDEX(Sterbtab_mix!$G$4:$G$104,AX$2+$B15)),11) -> 0.8618180063 | AY16: =ROUND(IF(AY$2+$B16>100,0,AY15*INDEX(Sterbtab_mix!$G$4:$G$104,AY$2+$B15)),11) -> 0.851486894 | AZ16: =ROUND(IF(AZ$2+$B16>100,0,AZ15*INDEX(Sterbtab_mix!$G$4:$G$104,AZ$2+$B15)),11) -> 0.8401229429 | BA16: =ROUND(IF(BA$2+$B16>100,0,BA15*INDEX(Sterbtab_mix!$G$4:$G$104,BA$2+$B15)),11) -> 0.8274720924 | BB16: =ROUND(IF(BB$2+$B16>100,0,BB15*INDEX(Sterbtab_mix!$G$4:$G$104,BB$2+$B15)),11) -> 0.8132574241 | BC16: =ROUND(IF(BC$2+$B16>100,0,BC15*INDEX(Sterbtab_mix!$G$4:$G$104,BC$2+$B15)),11) -> 0.7971927154 | BD16: =ROUND(IF(BD$2+$B16>100,0,BD15*INDEX(Sterbtab_mix!$G$4:$G$104,BD$2+$B15)),11) -> 0.7789924303 | BE16: =ROUND(IF(BE$2+$B16>100,0,BE15*INDEX(Sterbtab_mix!$G$4:$G$104,BE$2+$B15)),11) -> 0.7583913362 | BF16: =ROUND(IF(BF$2+$B16>100,0,BF15*INDEX(Sterbtab_mix!$G$4:$G$104,BF$2+$B15)),11) -> 0.7351548558 | BG16: =ROUND(IF(BG$2+$B16>100,0,BG15*INDEX(Sterbtab_mix!$G$4:$G$104,BG$2+$B15)),11) -> 0.7090984669 | BH16: =ROUND(IF(BH$2+$B16>100,0,BH15*INDEX(Sterbtab_mix!$G$4:$G$104,BH$2+$B15)),11) -> 0.6800874587 | BI16: =ROUND(IF(BI$2+$B16>100,0,BI15*INDEX(Sterbtab_mix!$G$4:$G$104,BI$2+$B15)),11) -> 0.6480863951 | BJ16: =ROUND(IF(BJ$2+$B16>100,0,BJ15*INDEX(Sterbtab_mix!$G$4:$G$104,BJ$2+$B15)),11) -> 0.6131630996 | BK16: =ROUND(IF(BK$2+$B16>100,0,BK15*INDEX(Sterbtab_mix!$G$4:$G$104,BK$2+$B15)),11) -> 0.5754948305 | BL16: =ROUND(IF(BL$2+$B16>100,0,BL15*INDEX(Sterbtab_mix!$G$4:$G$104,BL$2+$B15)),11) -> 0.5353820644 | BM16: =ROUND(IF(BM$2+$B16>100,0,BM15*INDEX(Sterbtab_mix!$G$4:$G$104,BM$2+$B15)),11) -> 0.4932476234 | BN16: =ROUND(IF(BN$2+$B16>100,0,BN15*INDEX(Sterbtab_mix!$G$4:$G$104,BN$2+$B15)),11) -> 0.4496325301 | BO16: =ROUND(IF(BO$2+$B16>100,0,BO15*INDEX(Sterbtab_mix!$G$4:$G$104,BO$2+$B15)),11) -> 0.4051809827 | BP16: =ROUND(IF(BP$2+$B16>100,0,BP15*INDEX(Sterbtab_mix!$G$4:$G$104,BP$2+$B15)),11) -> 0.3606162169 | BQ16: =ROUND(IF(BQ$2+$B16>100,0,BQ15*INDEX(Sterbtab_mix!$G$4:$G$104,BQ$2+$B15)),11) -> 0.3167047262 | BR16: =ROUND(IF(BR$2+$B16>100,0,BR15*INDEX(Sterbtab_mix!$G$4:$G$104,BR$2+$B15)),11) -> 0.2742173562 | BS16: =ROUND(IF(BS$2+$B16>100,0,BS15*INDEX(Sterbtab_mix!$G$4:$G$104,BS$2+$B15)),11) -> 0.2338835538 | BT16: =ROUND(IF(BT$2+$B16>100,0,BT15*INDEX(Sterbtab_mix!$G$4:$G$104,BT$2+$B15)),11) -> 0.1963467059 | BU16: =ROUND(IF(BU$2+$B16>100,0,BU15*INDEX(Sterbtab_mix!$G$4:$G$104,BU$2+$B15)),11) -> 0.1621268157 | BV16: =ROUND(IF(BV$2+$B16>100,0,BV15*INDEX(Sterbtab_mix!$G$4:$G$104,BV$2+$B15)),11) -> 0.1315894969 | BW16: =ROUND(IF(BW$2+$B16>100,0,BW15*INDEX(Sterbtab_mix!$G$4:$G$104,BW$2+$B15)),11) -> 0.1049308582 | BX16: =ROUND(IF(BX$2+$B16>100,0,BX15*INDEX(Sterbtab_mix!$G$4:$G$104,BX$2+$B15)),11) -> 0.08217594847 | BY16: =ROUND(IF(BY$2+$B16>100,0,BY15*INDEX(Sterbtab_mix!$G$4:$G$104,BY$2+$B15)),11) -> 0.06319235786 | BZ16: =ROUND(IF(BZ$2+$B16>100,0,BZ15*INDEX(Sterbtab_mix!$G$4:$G$104,BZ$2+$B15)),11) -> 0 | CA16: =ROUND(IF(CA$2+$B16>100,0,CA15*INDEX(Sterbtab_mix!$G$4:$G$104,CA$2+$B15)),11) -> 0 | CB16: =ROUND(IF(CB$2+$B16>100,0,CB15*INDEX(Sterbtab_mix!$G$4:$G$104,CB$2+$B15)),11) -> 0 | CC16: =ROUND(IF(CC$2+$B16>100,0,CC15*INDEX(Sterbtab_mix!$G$4:$G$104,CC$2+$B15)),11) -> 0 | CD16: =ROUND(IF(CD$2+$B16>100,0,CD15*INDEX(Sterbtab_mix!$G$4:$G$104,CD$2+$B15)),11) -> 0 | CE16: =ROUND(IF(CE$2+$B16>100,0,CE15*INDEX(Sterbtab_mix!$G$4:$G$104,CE$2+$B15)),11) -> 0 | CF16: =ROUND(IF(CF$2+$B16>100,0,CF15*INDEX(Sterbtab_mix!$G$4:$G$104,CF$2+$B15)),11) -> 0 | CG16: =ROUND(IF(CG$2+$B16>100,0,CG15*INDEX(Sterbtab_mix!$G$4:$G$104,CG$2+$B15)),11) -> 0 | CH16: =ROUND(IF(CH$2+$B16>100,0,CH15*INDEX(Sterbtab_mix!$G$4:$G$104,CH$2+$B15)),11) -> 0 | CI16: =ROUND(IF(CI$2+$B16>100,0,CI15*INDEX(Sterbtab_mix!$G$4:$G$104,CI$2+$B15)),11) -> 0 | CJ16: =ROUND(IF(CJ$2+$B16>100,0,CJ15*INDEX(Sterbtab_mix!$G$4:$G$104,CJ$2+$B15)),11) -> 0
A17: 27 | B17: 12 | C17: =ROUND(IF(C$2+$B17>100,0,C16*INDEX(Sterbtab_mix!$G$4:$G$104,C$2+$B16)),11) -> 0.9943942386 | D17: =ROUND(IF(D$2+$B17>100,0,D16*INDEX(Sterbtab_mix!$G$4:$G$104,D$2+$B16)),11) -> 0.9940650174 | E17: =ROUND(IF(E$2+$B17>100,0,E16*INDEX(Sterbtab_mix!$G$4:$G$104,E$2+$B16)),11) -> 0.9938194074 | F17: =ROUND(IF(F$2+$B17>100,0,F16*INDEX(Sterbtab_mix!$G$4:$G$104,F$2+$B16)),11) -> 0.9936623219 | G17: =ROUND(IF(G$2+$B17>100,0,G16*INDEX(Sterbtab_mix!$G$4:$G$104,G$2+$B16)),11) -> 0.9935887555 | H17: =ROUND(IF(H$2+$B17>100,0,H16*INDEX(Sterbtab_mix!$G$4:$G$104,H$2+$B16)),11) -> 0.9935808023 | I17: =ROUND(IF(I$2+$B17>100,0,I16*INDEX(Sterbtab_mix!$G$4:$G$104,I$2+$B16)),11) -> 0.9936076453 | J17: =ROUND(IF(J$2+$B17>100,0,J16*INDEX(Sterbtab_mix!$G$4:$G$104,J$2+$B16)),11) -> 0.9936334955 | K17: =ROUND(IF(K$2+$B17>100,0,K16*INDEX(Sterbtab_mix!$G$4:$G$104,K$2+$B16)),11) -> 0.9936225587 | L17: =ROUND(IF(L$2+$B17>100,0,L16*INDEX(Sterbtab_mix!$G$4:$G$104,L$2+$B16)),11) -> 0.9935509741 | M17: =ROUND(IF(M$2+$B17>100,0,M16*INDEX(Sterbtab_mix!$G$4:$G$104,M$2+$B16)),11) -> 0.9934127893 | N17: =ROUND(IF(N$2+$B17>100,0,N16*INDEX(Sterbtab_mix!$G$4:$G$104,N$2+$B16)),11) -> 0.9932129987 | O17: =ROUND(IF(O$2+$B17>100,0,O16*INDEX(Sterbtab_mix!$G$4:$G$104,O$2+$B16)),11) -> 0.9929486549 | P17: =ROUND(IF(P$2+$B17>100,0,P16*INDEX(Sterbtab_mix!$G$4:$G$104,P$2+$B16)),11) -> 0.9926128515 | Q17: =ROUND(IF(Q$2+$B17>100,0,Q16*INDEX(Sterbtab_mix!$G$4:$G$104,Q$2+$B16)),11) -> 0.9921996961 | R17: =ROUND(IF(R$2+$B17>100,0,R16*INDEX(Sterbtab_mix!$G$4:$G$104,R$2+$B16)),11) -> 0.9917013348 | S17: =ROUND(IF(S$2+$B17>100,0,S16*INDEX(Sterbtab_mix!$G$4:$G$104,S$2+$B16)),11) -> 0.9911039931 | T17: =ROUND(IF(T$2+$B17>100,0,T16*INDEX(Sterbtab_mix!$G$4:$G$104,T$2+$B16)),11) -> 0.9903969245 | U17: =ROUND(IF(U$2+$B17>100,0,U16*INDEX(Sterbtab_mix!$G$4:$G$104,U$2+$B16)),11) -> 0.9895664677 | V17: =ROUND(IF(V$2+$B17>100,0,V16*INDEX(Sterbtab_mix!$G$4:$G$104,V$2+$B16)),11) -> 0.9886000314 | W17: =ROUND(IF(W$2+$B17>100,0,W16*INDEX(Sterbtab_mix!$G$4:$G$104,W$2+$B16)),11) -> 0.9874811617 | X17: =ROUND(IF(X$2+$B17>100,0,X16*INDEX(Sterbtab_mix!$G$4:$G$104,X$2+$B16)),11) -> 0.9861915612 | Y17: =ROUND(IF(Y$2+$B17>100,0,Y16*INDEX(Sterbtab_mix!$G$4:$G$104,Y$2+$B16)),11) -> 0.9847121135 | Z17: =ROUND(IF(Z$2+$B17>100,0,Z16*INDEX(Sterbtab_mix!$G$4:$G$104,Z$2+$B16)),11) -> 0.983026857 | AA17: =ROUND(IF(AA$2+$B17>100,0,AA16*INDEX(Sterbtab_mix!$G$4:$G$104,AA$2+$B16)),11) -> 0.9811180785 | AB17: =ROUND(IF(AB$2+$B17>100,0,AB16*INDEX(Sterbtab_mix!$G$4:$G$104,AB$2+$B16)),11) -> 0.978970292 | AC17: =ROUND(IF(AC$2+$B17>100,0,AC16*INDEX(Sterbtab_mix!$G$4:$G$104,AC$2+$B16)),11) -> 0.9765692745 | AD17: =ROUND(IF(AD$2+$B17>100,0,AD16*INDEX(Sterbtab_mix!$G$4:$G$104,AD$2+$B16)),11) -> 0.9739040364 | AE17: =ROUND(IF(AE$2+$B17>100,0,AE16*INDEX(Sterbtab_mix!$G$4:$G$104,AE$2+$B16)),11) -> 0.9709580572 | AF17: =ROUND(IF(AF$2+$B17>100,0,AF16*INDEX(Sterbtab_mix!$G$4:$G$104,AF$2+$B16)),11) -> 0.9677152262 | AG17: =ROUND(IF(AG$2+$B17>100,0,AG16*INDEX(Sterbtab_mix!$G$4:$G$104,AG$2+$B16)),11) -> 0.9641521435 | AH17: =ROUND(IF(AH$2+$B17>100,0,AH16*INDEX(Sterbtab_mix!$G$4:$G$104,AH$2+$B16)),11) -> 0.9602421668 | AI17: =ROUND(IF(AI$2+$B17>100,0,AI16*INDEX(Sterbtab_mix!$G$4:$G$104,AI$2+$B16)),11) -> 0.9559584643 | AJ17: =ROUND(IF(AJ$2+$B17>100,0,AJ16*INDEX(Sterbtab_mix!$G$4:$G$104,AJ$2+$B16)),11) -> 0.9512750893 | AK17: =ROUND(IF(AK$2+$B17>100,0,AK16*INDEX(Sterbtab_mix!$G$4:$G$104,AK$2+$B16)),11) -> 0.9461709003 | AL17: =ROUND(IF(AL$2+$B17>100,0,AL16*INDEX(Sterbtab_mix!$G$4:$G$104,AL$2+$B16)),11) -> 0.940637149 | AM17: =ROUND(IF(AM$2+$B17>100,0,AM16*INDEX(Sterbtab_mix!$G$4:$G$104,AM$2+$B16)),11) -> 0.9346744446 | AN17: =ROUND(IF(AN$2+$B17>100,0,AN16*INDEX(Sterbtab_mix!$G$4:$G$104,AN$2+$B16)),11) -> 0.9282953458 | AO17: =ROUND(IF(AO$2+$B17>100,0,AO16*INDEX(Sterbtab_mix!$G$4:$G$104,AO$2+$B16)),11) -> 0.9215183994 | AP17: =ROUND(IF(AP$2+$B17>100,0,AP16*INDEX(Sterbtab_mix!$G$4:$G$104,AP$2+$B16)),11) -> 0.9143678867 | AQ17: =ROUND(IF(AQ$2+$B17>100,0,AQ16*INDEX(Sterbtab_mix!$G$4:$G$104,AQ$2+$B16)),11) -> 0.9068634586 | AR17: =ROUND(IF(AR$2+$B17>100,0,AR16*INDEX(Sterbtab_mix!$G$4:$G$104,AR$2+$B16)),11) -> 0.8990183745 | AS17: =ROUND(IF(AS$2+$B17>100,0,AS16*INDEX(Sterbtab_mix!$G$4:$G$104,AS$2+$B16)),11) -> 0.8908324827 | AT17: =ROUND(IF(AT$2+$B17>100,0,AT16*INDEX(Sterbtab_mix!$G$4:$G$104,AT$2+$B16)),11) -> 0.8822766833 | AU17: =ROUND(IF(AU$2+$B17>100,0,AU16*INDEX(Sterbtab_mix!$G$4:$G$104,AU$2+$B16)),11) -> 0.8732934101 | AV17: =ROUND(IF(AV$2+$B17>100,0,AV16*INDEX(Sterbtab_mix!$G$4:$G$104,AV$2+$B16)),11) -> 0.8637894559 | AW17: =ROUND(IF(AW$2+$B17>100,0,AW16*INDEX(Sterbtab_mix!$G$4:$G$104,AW$2+$B16)),11) -> 0.8536522806 | AX17: =ROUND(IF(AX$2+$B17>100,0,AX16*INDEX(Sterbtab_mix!$G$4:$G$104,AX$2+$B16)),11) -> 0.8427089156 | AY17: =ROUND(IF(AY$2+$B17>100,0,AY16*INDEX(Sterbtab_mix!$G$4:$G$104,AY$2+$B16)),11) -> 0.8307429703 | AZ17: =ROUND(IF(AZ$2+$B17>100,0,AZ16*INDEX(Sterbtab_mix!$G$4:$G$104,AZ$2+$B16)),11) -> 0.8175076734 | BA17: =ROUND(IF(BA$2+$B17>100,0,BA16*INDEX(Sterbtab_mix!$G$4:$G$104,BA$2+$B16)),11) -> 0.8027273669 | BB17: =ROUND(IF(BB$2+$B17>100,0,BB16*INDEX(Sterbtab_mix!$G$4:$G$104,BB$2+$B16)),11) -> 0.786113331 | BC17: =ROUND(IF(BC$2+$B17>100,0,BC16*INDEX(Sterbtab_mix!$G$4:$G$104,BC$2+$B16)),11) -> 0.7673753162 | BD17: =ROUND(IF(BD$2+$B17>100,0,BD16*INDEX(Sterbtab_mix!$G$4:$G$104,BD$2+$B16)),11) -> 0.7462373566 | BE17: =ROUND(IF(BE$2+$B17>100,0,BE16*INDEX(Sterbtab_mix!$G$4:$G$104,BE$2+$B16)),11) -> 0.7224579963 | BF17: =ROUND(IF(BF$2+$B17>100,0,BF16*INDEX(Sterbtab_mix!$G$4:$G$104,BF$2+$B16)),11) -> 0.6958461257 | BG17: =ROUND(IF(BG$2+$B17>100,0,BG16*INDEX(Sterbtab_mix!$G$4:$G$104,BG$2+$B16)),11) -> 0.6662816833 | BH17: =ROUND(IF(BH$2+$B17>100,0,BH16*INDEX(Sterbtab_mix!$G$4:$G$104,BH$2+$B16)),11) -> 0.6337163754 | BI17: =ROUND(IF(BI$2+$B17>100,0,BI16*INDEX(Sterbtab_mix!$G$4:$G$104,BI$2+$B16)),11) -> 0.5982252202 | BJ17: =ROUND(IF(BJ$2+$B17>100,0,BJ16*INDEX(Sterbtab_mix!$G$4:$G$104,BJ$2+$B16)),11) -> 0.5600030852 | BK17: =ROUND(IF(BK$2+$B17>100,0,BK16*INDEX(Sterbtab_mix!$G$4:$G$104,BK$2+$B16)),11) -> 0.5193719992 | BL17: =ROUND(IF(BL$2+$B17>100,0,BL16*INDEX(Sterbtab_mix!$G$4:$G$104,BL$2+$B16)),11) -> 0.4767844975 | BM17: =ROUND(IF(BM$2+$B17>100,0,BM16*INDEX(Sterbtab_mix!$G$4:$G$104,BM$2+$B16)),11) -> 0.4328149246 | BN17: =ROUND(IF(BN$2+$B17>100,0,BN16*INDEX(Sterbtab_mix!$G$4:$G$104,BN$2+$B16)),11) -> 0.3881439327 | BO17: =ROUND(IF(BO$2+$B17>100,0,BO16*INDEX(Sterbtab_mix!$G$4:$G$104,BO$2+$B16)),11) -> 0.3435298599 | BP17: =ROUND(IF(BP$2+$B17>100,0,BP16*INDEX(Sterbtab_mix!$G$4:$G$104,BP$2+$B16)),11) -> 0.2997705244 | BQ17: =ROUND(IF(BQ$2+$B17>100,0,BQ16*INDEX(Sterbtab_mix!$G$4:$G$104,BQ$2+$B16)),11) -> 0.2576595638 | BR17: =ROUND(IF(BR$2+$B17>100,0,BR16*INDEX(Sterbtab_mix!$G$4:$G$104,BR$2+$B16)),11) -> 0.2179364376 | BS17: =ROUND(IF(BS$2+$B17>100,0,BS16*INDEX(Sterbtab_mix!$G$4:$G$104,BS$2+$B16)),11) -> 0.1812405758 | BT17: =ROUND(IF(BT$2+$B17>100,0,BT16*INDEX(Sterbtab_mix!$G$4:$G$104,BT$2+$B16)),11) -> 0.148070745 | BU17: =ROUND(IF(BU$2+$B17>100,0,BU16*INDEX(Sterbtab_mix!$G$4:$G$104,BU$2+$B16)),11) -> 0.1187567576 | BV17: =ROUND(IF(BV$2+$B17>100,0,BV16*INDEX(Sterbtab_mix!$G$4:$G$104,BV$2+$B16)),11) -> 0.0934461758 | BW17: =ROUND(IF(BW$2+$B17>100,0,BW16*INDEX(Sterbtab_mix!$G$4:$G$104,BW$2+$B16)),11) -> 0.07210775127 | BX17: =ROUND(IF(BX$2+$B17>100,0,BX16*INDEX(Sterbtab_mix!$G$4:$G$104,BX$2+$B16)),11) -> 0.05455061334 | BY17: =ROUND(IF(BY$2+$B17>100,0,BY16*INDEX(Sterbtab_mix!$G$4:$G$104,BY$2+$B16)),11) -> 0 | BZ17: =ROUND(IF(BZ$2+$B17>100,0,BZ16*INDEX(Sterbtab_mix!$G$4:$G$104,BZ$2+$B16)),11) -> 0 | CA17: =ROUND(IF(CA$2+$B17>100,0,CA16*INDEX(Sterbtab_mix!$G$4:$G$104,CA$2+$B16)),11) -> 0 | CB17: =ROUND(IF(CB$2+$B17>100,0,CB16*INDEX(Sterbtab_mix!$G$4:$G$104,CB$2+$B16)),11) -> 0 | CC17: =ROUND(IF(CC$2+$B17>100,0,CC16*INDEX(Sterbtab_mix!$G$4:$G$104,CC$2+$B16)),11) -> 0 | CD17: =ROUND(IF(CD$2+$B17>100,0,CD16*INDEX(Sterbtab_mix!$G$4:$G$104,CD$2+$B16)),11) -> 0 | CE17: =ROUND(IF(CE$2+$B17>100,0,CE16*INDEX(Sterbtab_mix!$G$4:$G$104,CE$2+$B16)),11) -> 0 | CF17: =ROUND(IF(CF$2+$B17>100,0,CF16*INDEX(Sterbtab_mix!$G$4:$G$104,CF$2+$B16)),11) -> 0 | CG17: =ROUND(IF(CG$2+$B17>100,0,CG16*INDEX(Sterbtab_mix!$G$4:$G$104,CG$2+$B16)),11) -> 0 | CH17: =ROUND(IF(CH$2+$B17>100,0,CH16*INDEX(Sterbtab_mix!$G$4:$G$104,CH$2+$B16)),11) -> 0 | CI17: =ROUND(IF(CI$2+$B17>100,0,CI16*INDEX(Sterbtab_mix!$G$4:$G$104,CI$2+$B16)),11) -> 0 | CJ17: =ROUND(IF(CJ$2+$B17>100,0,CJ16*INDEX(Sterbtab_mix!$G$4:$G$104,CJ$2+$B16)),11) -> 0
A18: 28 | B18: 13 | C18: =ROUND(IF(C$2+$B18>100,0,C17*INDEX(Sterbtab_mix!$G$4:$G$104,C$2+$B17)),11) -> 0.9938334002 | D18: =ROUND(IF(D$2+$B18>100,0,D17*INDEX(Sterbtab_mix!$G$4:$G$104,D$2+$B17)),11) -> 0.9935123172 | E18: =ROUND(IF(E$2+$B18>100,0,E17*INDEX(Sterbtab_mix!$G$4:$G$104,E$2+$B17)),11) -> 0.9932698253 | F18: =ROUND(IF(F$2+$B18>100,0,F17*INDEX(Sterbtab_mix!$G$4:$G$104,F$2+$B17)),11) -> 0.9931098457 | G18: =ROUND(IF(G$2+$B18>100,0,G17*INDEX(Sterbtab_mix!$G$4:$G$104,G$2+$B17)),11) -> 0.9930273778 | H18: =ROUND(IF(H$2+$B18>100,0,H17*INDEX(Sterbtab_mix!$G$4:$G$104,H$2+$B17)),11) -> 0.9930025383 | I18: =ROUND(IF(I$2+$B18>100,0,I17*INDEX(Sterbtab_mix!$G$4:$G$104,I$2+$B17)),11) -> 0.9930045255 | J18: =ROUND(IF(J$2+$B18>100,0,J17*INDEX(Sterbtab_mix!$G$4:$G$104,J$2+$B17)),11) -> 0.9929965764 | K18: =ROUND(IF(K$2+$B18>100,0,K17*INDEX(Sterbtab_mix!$G$4:$G$104,K$2+$B17)),11) -> 0.9929449081 | L18: =ROUND(IF(L$2+$B18>100,0,L17*INDEX(Sterbtab_mix!$G$4:$G$104,L$2+$B17)),11) -> 0.9928286626 | M18: =ROUND(IF(M$2+$B18>100,0,M17*INDEX(Sterbtab_mix!$G$4:$G$104,M$2+$B17)),11) -> 0.9926428944 | N18: =ROUND(IF(N$2+$B18>100,0,N17*INDEX(Sterbtab_mix!$G$4:$G$104,N$2+$B17)),11) -> 0.9923886319 | O18: =ROUND(IF(O$2+$B18>100,0,O17*INDEX(Sterbtab_mix!$G$4:$G$104,O$2+$B17)),11) -> 0.9920609588 | P18: =ROUND(IF(P$2+$B18>100,0,P17*INDEX(Sterbtab_mix!$G$4:$G$104,P$2+$B17)),11) -> 0.9916510097 | Q18: =ROUND(IF(Q$2+$B18>100,0,Q17*INDEX(Sterbtab_mix!$G$4:$G$104,Q$2+$B17)),11) -> 0.9911499489 | R18: =ROUND(IF(R$2+$B18>100,0,R17*INDEX(Sterbtab_mix!$G$4:$G$104,R$2+$B17)),11) -> 0.9905440194 | S18: =ROUND(IF(S$2+$B18>100,0,S17*INDEX(Sterbtab_mix!$G$4:$G$104,S$2+$B17)),11) -> 0.9898205134 | T18: =ROUND(IF(T$2+$B18>100,0,T17*INDEX(Sterbtab_mix!$G$4:$G$104,T$2+$B17)),11) -> 0.9889658009 | U18: =ROUND(IF(U$2+$B18>100,0,U17*INDEX(Sterbtab_mix!$G$4:$G$104,U$2+$B17)),11) -> 0.9879663387 | V18: =ROUND(IF(V$2+$B18>100,0,V17*INDEX(Sterbtab_mix!$G$4:$G$104,V$2+$B17)),11) -> 0.9868076995 | W18: =ROUND(IF(W$2+$B18>100,0,W17*INDEX(Sterbtab_mix!$G$4:$G$104,W$2+$B17)),11) -> 0.9854746 | X18: =ROUND(IF(X$2+$B18>100,0,X17*INDEX(Sterbtab_mix!$G$4:$G$104,X$2+$B17)),11) -> 0.9839489616 | Y18: =ROUND(IF(Y$2+$B18>100,0,Y17*INDEX(Sterbtab_mix!$G$4:$G$104,Y$2+$B17)),11) -> 0.9822109447 | Z18: =ROUND(IF(Z$2+$B18>100,0,Z17*INDEX(Sterbtab_mix!$G$4:$G$104,Z$2+$B17)),11) -> 0.9802409589 | AA18: =ROUND(IF(AA$2+$B18>100,0,AA17*INDEX(Sterbtab_mix!$G$4:$G$104,AA$2+$B17)),11) -> 0.9780216698 | AB18: =ROUND(IF(AB$2+$B18>100,0,AB17*INDEX(Sterbtab_mix!$G$4:$G$104,AB$2+$B17)),11) -> 0.9755360642 | AC18: =ROUND(IF(AC$2+$B18>100,0,AC17*INDEX(Sterbtab_mix!$G$4:$G$104,AC$2+$B17)),11) -> 0.9727674904 | AD18: =ROUND(IF(AD$2+$B18>100,0,AD17*INDEX(Sterbtab_mix!$G$4:$G$104,AD$2+$B17)),11) -> 0.9697006665 | AE18: =ROUND(IF(AE$2+$B18>100,0,AE17*INDEX(Sterbtab_mix!$G$4:$G$104,AE$2+$B17)),11) -> 0.9663168777 | AF18: =ROUND(IF(AF$2+$B18>100,0,AF17*INDEX(Sterbtab_mix!$G$4:$G$104,AF$2+$B17)),11) -> 0.9625931095 | AG18: =ROUND(IF(AG$2+$B18>100,0,AG17*INDEX(Sterbtab_mix!$G$4:$G$104,AG$2+$B17)),11) -> 0.9585012478 | AH18: =ROUND(IF(AH$2+$B18>100,0,AH17*INDEX(Sterbtab_mix!$G$4:$G$104,AH$2+$B17)),11) -> 0.9540159566 | AI18: =ROUND(IF(AI$2+$B18>100,0,AI17*INDEX(Sterbtab_mix!$G$4:$G$104,AI$2+$B17)),11) -> 0.9491118897 | AJ18: =ROUND(IF(AJ$2+$B18>100,0,AJ17*INDEX(Sterbtab_mix!$G$4:$G$104,AJ$2+$B17)),11) -> 0.9437676263 | AK18: =ROUND(IF(AK$2+$B18>100,0,AK17*INDEX(Sterbtab_mix!$G$4:$G$104,AK$2+$B17)),11) -> 0.9379713833 | AL18: =ROUND(IF(AL$2+$B18>100,0,AL17*INDEX(Sterbtab_mix!$G$4:$G$104,AL$2+$B17)),11) -> 0.931724612 | AM18: =ROUND(IF(AM$2+$B18>100,0,AM17*INDEX(Sterbtab_mix!$G$4:$G$104,AM$2+$B17)),11) -> 0.9250388857 | AN18: =ROUND(IF(AN$2+$B18>100,0,AN17*INDEX(Sterbtab_mix!$G$4:$G$104,AN$2+$B17)),11) -> 0.9179309283 | AO18: =ROUND(IF(AO$2+$B18>100,0,AO17*INDEX(Sterbtab_mix!$G$4:$G$104,AO$2+$B17)),11) -> 0.9104214749 | AP18: =ROUND(IF(AP$2+$B18>100,0,AP17*INDEX(Sterbtab_mix!$G$4:$G$104,AP$2+$B17)),11) -> 0.9025286513 | AQ18: =ROUND(IF(AQ$2+$B18>100,0,AQ17*INDEX(Sterbtab_mix!$G$4:$G$104,AQ$2+$B17)),11) -> 0.8942598702 | AR18: =ROUND(IF(AR$2+$B18>100,0,AR17*INDEX(Sterbtab_mix!$G$4:$G$104,AR$2+$B17)),11) -> 0.8856113134 | AS18: =ROUND(IF(AS$2+$B18>100,0,AS17*INDEX(Sterbtab_mix!$G$4:$G$104,AS$2+$B17)),11) -> 0.8765560013 | AT18: =ROUND(IF(AT$2+$B18>100,0,AT17*INDEX(Sterbtab_mix!$G$4:$G$104,AT$2+$B17)),11) -> 0.8670388827 | AU18: =ROUND(IF(AU$2+$B18>100,0,AU17*INDEX(Sterbtab_mix!$G$4:$G$104,AU$2+$B17)),11) -> 0.8569724296 | AV18: =ROUND(IF(AV$2+$B18>100,0,AV17*INDEX(Sterbtab_mix!$G$4:$G$104,AV$2+$B17)),11) -> 0.84625453 | AW18: =ROUND(IF(AW$2+$B18>100,0,AW17*INDEX(Sterbtab_mix!$G$4:$G$104,AW$2+$B17)),11) -> 0.8347242486 | AX18: =ROUND(IF(AX$2+$B18>100,0,AX17*INDEX(Sterbtab_mix!$G$4:$G$104,AX$2+$B17)),11) -> 0.822178841 | AY18: =ROUND(IF(AY$2+$B18>100,0,AY17*INDEX(Sterbtab_mix!$G$4:$G$104,AY$2+$B17)),11) -> 0.8083802003 | AZ18: =ROUND(IF(AZ$2+$B18>100,0,AZ17*INDEX(Sterbtab_mix!$G$4:$G$104,AZ$2+$B17)),11) -> 0.793060924 | BA18: =ROUND(IF(BA$2+$B18>100,0,BA17*INDEX(Sterbtab_mix!$G$4:$G$104,BA$2+$B17)),11) -> 0.7759347356 | BB18: =ROUND(IF(BB$2+$B18>100,0,BB17*INDEX(Sterbtab_mix!$G$4:$G$104,BB$2+$B17)),11) -> 0.7567103341 | BC18: =ROUND(IF(BC$2+$B18>100,0,BC17*INDEX(Sterbtab_mix!$G$4:$G$104,BC$2+$B17)),11) -> 0.7351087189 | BD18: =ROUND(IF(BD$2+$B18>100,0,BD17*INDEX(Sterbtab_mix!$G$4:$G$104,BD$2+$B17)),11) -> 0.7108798845 | BE18: =ROUND(IF(BE$2+$B18>100,0,BE17*INDEX(Sterbtab_mix!$G$4:$G$104,BE$2+$B17)),11) -> 0.6838281672 | BF18: =ROUND(IF(BF$2+$B18>100,0,BF17*INDEX(Sterbtab_mix!$G$4:$G$104,BF$2+$B17)),11) -> 0.6538295449 | BG18: =ROUND(IF(BG$2+$B18>100,0,BG17*INDEX(Sterbtab_mix!$G$4:$G$104,BG$2+$B17)),11) -> 0.620851933 | BH18: =ROUND(IF(BH$2+$B18>100,0,BH17*INDEX(Sterbtab_mix!$G$4:$G$104,BH$2+$B17)),11) -> 0.5849607724 | BI18: =ROUND(IF(BI$2+$B18>100,0,BI17*INDEX(Sterbtab_mix!$G$4:$G$104,BI$2+$B17)),11) -> 0.54636029 | BJ18: =ROUND(IF(BJ$2+$B18>100,0,BJ17*INDEX(Sterbtab_mix!$G$4:$G$104,BJ$2+$B17)),11) -> 0.5053910243 | BK18: =ROUND(IF(BK$2+$B18>100,0,BK17*INDEX(Sterbtab_mix!$G$4:$G$104,BK$2+$B17)),11) -> 0.4625267338 | BL18: =ROUND(IF(BL$2+$B18>100,0,BL17*INDEX(Sterbtab_mix!$G$4:$G$104,BL$2+$B17)),11) -> 0.4183688608 | BM18: =ROUND(IF(BM$2+$B18>100,0,BM17*INDEX(Sterbtab_mix!$G$4:$G$104,BM$2+$B17)),11) -> 0.3736261852 | BN18: =ROUND(IF(BN$2+$B18>100,0,BN17*INDEX(Sterbtab_mix!$G$4:$G$104,BN$2+$B17)),11) -> 0.3290851163 | BO18: =ROUND(IF(BO$2+$B18>100,0,BO17*INDEX(Sterbtab_mix!$G$4:$G$104,BO$2+$B17)),11) -> 0.2855670972 | BP18: =ROUND(IF(BP$2+$B18>100,0,BP17*INDEX(Sterbtab_mix!$G$4:$G$104,BP$2+$B17)),11) -> 0.2438825069 | BQ18: =ROUND(IF(BQ$2+$B18>100,0,BQ17*INDEX(Sterbtab_mix!$G$4:$G$104,BQ$2+$B17)),11) -> 0.2047769996 | BR18: =ROUND(IF(BR$2+$B18>100,0,BR17*INDEX(Sterbtab_mix!$G$4:$G$104,BR$2+$B17)),11) -> 0.1688828683 | BS18: =ROUND(IF(BS$2+$B18>100,0,BS17*INDEX(Sterbtab_mix!$G$4:$G$104,BS$2+$B17)),11) -> 0.1366787742 | BT18: =ROUND(IF(BT$2+$B18>100,0,BT17*INDEX(Sterbtab_mix!$G$4:$G$104,BT$2+$B17)),11) -> 0.1084607842 | BU18: =ROUND(IF(BU$2+$B18>100,0,BU17*INDEX(Sterbtab_mix!$G$4:$G$104,BU$2+$B17)),11) -> 0.08433321129 | BV18: =ROUND(IF(BV$2+$B18>100,0,BV17*INDEX(Sterbtab_mix!$G$4:$G$104,BV$2+$B17)),11) -> 0.06421555789 | BW18: =ROUND(IF(BW$2+$B18>100,0,BW17*INDEX(Sterbtab_mix!$G$4:$G$104,BW$2+$B17)),11) -> 0.0478670722 | BX18: =ROUND(IF(BX$2+$B18>100,0,BX17*INDEX(Sterbtab_mix!$G$4:$G$104,BX$2+$B17)),11) -> 0 | BY18: =ROUND(IF(BY$2+$B18>100,0,BY17*INDEX(Sterbtab_mix!$G$4:$G$104,BY$2+$B17)),11) -> 0 | BZ18: =ROUND(IF(BZ$2+$B18>100,0,BZ17*INDEX(Sterbtab_mix!$G$4:$G$104,BZ$2+$B17)),11) -> 0 | CA18: =ROUND(IF(CA$2+$B18>100,0,CA17*INDEX(Sterbtab_mix!$G$4:$G$104,CA$2+$B17)),11) -> 0 | CB18: =ROUND(IF(CB$2+$B18>100,0,CB17*INDEX(Sterbtab_mix!$G$4:$G$104,CB$2+$B17)),11) -> 0 | CC18: =ROUND(IF(CC$2+$B18>100,0,CC17*INDEX(Sterbtab_mix!$G$4:$G$104,CC$2+$B17)),11) -> 0 | CD18: =ROUND(IF(CD$2+$B18>100,0,CD17*INDEX(Sterbtab_mix!$G$4:$G$104,CD$2+$B17)),11) -> 0 | CE18: =ROUND(IF(CE$2+$B18>100,0,CE17*INDEX(Sterbtab_mix!$G$4:$G$104,CE$2+$B17)),11) -> 0 | CF18: =ROUND(IF(CF$2+$B18>100,0,CF17*INDEX(Sterbtab_mix!$G$4:$G$104,CF$2+$B17)),11) -> 0 | CG18: =ROUND(IF(CG$2+$B18>100,0,CG17*INDEX(Sterbtab_mix!$G$4:$G$104,CG$2+$B17)),11) -> 0 | CH18: =ROUND(IF(CH$2+$B18>100,0,CH17*INDEX(Sterbtab_mix!$G$4:$G$104,CH$2+$B17)),11) -> 0 | CI18: =ROUND(IF(CI$2+$B18>100,0,CI17*INDEX(Sterbtab_mix!$G$4:$G$104,CI$2+$B17)),11) -> 0 | CJ18: =ROUND(IF(CJ$2+$B18>100,0,CJ17*INDEX(Sterbtab_mix!$G$4:$G$104,CJ$2+$B17)),11) -> 0
A19: 29 | B19: 14 | C19: =ROUND(IF(C$2+$B19>100,0,C18*INDEX(Sterbtab_mix!$G$4:$G$104,C$2+$B18)),11) -> 0.9932808289 | D19: =ROUND(IF(D$2+$B19>100,0,D18*INDEX(Sterbtab_mix!$G$4:$G$104,D$2+$B18)),11) -> 0.9929629049 | E19: =ROUND(IF(E$2+$B19>100,0,E18*INDEX(Sterbtab_mix!$G$4:$G$104,E$2+$B18)),11) -> 0.9927175673 | F19: =ROUND(IF(F$2+$B19>100,0,F18*INDEX(Sterbtab_mix!$G$4:$G$104,F$2+$B18)),11) -> 0.9925487386 | G19: =ROUND(IF(G$2+$B19>100,0,G18*INDEX(Sterbtab_mix!$G$4:$G$104,G$2+$B18)),11) -> 0.9924494359 | H19: =ROUND(IF(H$2+$B19>100,0,H18*INDEX(Sterbtab_mix!$G$4:$G$104,H$2+$B18)),11) -> 0.9923997857 | I19: =ROUND(IF(I$2+$B19>100,0,I18*INDEX(Sterbtab_mix!$G$4:$G$104,I$2+$B18)),11) -> 0.9923680096 | J19: =ROUND(IF(J$2+$B19>100,0,J18*INDEX(Sterbtab_mix!$G$4:$G$104,J$2+$B18)),11) -> 0.9923193528 | K19: =ROUND(IF(K$2+$B19>100,0,K18*INDEX(Sterbtab_mix!$G$4:$G$104,K$2+$B18)),11) -> 0.9922230371 | L19: =ROUND(IF(L$2+$B19>100,0,L18*INDEX(Sterbtab_mix!$G$4:$G$104,L$2+$B18)),11) -> 0.9920592204 | M19: =ROUND(IF(M$2+$B19>100,0,M18*INDEX(Sterbtab_mix!$G$4:$G$104,M$2+$B18)),11) -> 0.9918190008 | N19: =ROUND(IF(N$2+$B19>100,0,N18*INDEX(Sterbtab_mix!$G$4:$G$104,N$2+$B18)),11) -> 0.9915014364 | O19: =ROUND(IF(O$2+$B19>100,0,O18*INDEX(Sterbtab_mix!$G$4:$G$104,O$2+$B18)),11) -> 0.9910996518 | P19: =ROUND(IF(P$2+$B19>100,0,P18*INDEX(Sterbtab_mix!$G$4:$G$104,P$2+$B18)),11) -> 0.9906018429 | Q19: =ROUND(IF(Q$2+$B19>100,0,Q18*INDEX(Sterbtab_mix!$G$4:$G$104,Q$2+$B18)),11) -> 0.9899932769 | R19: =ROUND(IF(R$2+$B19>100,0,R18*INDEX(Sterbtab_mix!$G$4:$G$104,R$2+$B18)),11) -> 0.9892612648 | S19: =ROUND(IF(S$2+$B19>100,0,S18*INDEX(Sterbtab_mix!$G$4:$G$104,S$2+$B18)),11) -> 0.9883902228 | T19: =ROUND(IF(T$2+$B19>100,0,T18*INDEX(Sterbtab_mix!$G$4:$G$104,T$2+$B18)),11) -> 0.9873666432 | U19: =ROUND(IF(U$2+$B19>100,0,U18*INDEX(Sterbtab_mix!$G$4:$G$104,U$2+$B18)),11) -> 0.9861751558 | V19: =ROUND(IF(V$2+$B19>100,0,V18*INDEX(Sterbtab_mix!$G$4:$G$104,V$2+$B18)),11) -> 0.9848025063 | W19: =ROUND(IF(W$2+$B19>100,0,W18*INDEX(Sterbtab_mix!$G$4:$G$104,W$2+$B18)),11) -> 0.9832336307 | X19: =ROUND(IF(X$2+$B19>100,0,X18*INDEX(Sterbtab_mix!$G$4:$G$104,X$2+$B18)),11) -> 0.9814497313 | Y19: =ROUND(IF(Y$2+$B19>100,0,Y18*INDEX(Sterbtab_mix!$G$4:$G$104,Y$2+$B18)),11) -> 0.9794273589 | Z19: =ROUND(IF(Z$2+$B19>100,0,Z18*INDEX(Sterbtab_mix!$G$4:$G$104,Z$2+$B18)),11) -> 0.9771473185 | AA19: =ROUND(IF(AA$2+$B19>100,0,AA18*INDEX(Sterbtab_mix!$G$4:$G$104,AA$2+$B18)),11) -> 0.9745907698 | AB19: =ROUND(IF(AB$2+$B19>100,0,AB18*INDEX(Sterbtab_mix!$G$4:$G$104,AB$2+$B18)),11) -> 0.9717383023 | AC19: =ROUND(IF(AC$2+$B19>100,0,AC18*INDEX(Sterbtab_mix!$G$4:$G$104,AC$2+$B18)),11) -> 0.9685690259 | AD19: =ROUND(IF(AD$2+$B19>100,0,AD18*INDEX(Sterbtab_mix!$G$4:$G$104,AD$2+$B18)),11) -> 0.9650654973 | AE19: =ROUND(IF(AE$2+$B19>100,0,AE18*INDEX(Sterbtab_mix!$G$4:$G$104,AE$2+$B18)),11) -> 0.9612021625 | AF19: =ROUND(IF(AF$2+$B19>100,0,AF18*INDEX(Sterbtab_mix!$G$4:$G$104,AF$2+$B18)),11) -> 0.9569513513 | AG19: =ROUND(IF(AG$2+$B19>100,0,AG18*INDEX(Sterbtab_mix!$G$4:$G$104,AG$2+$B18)),11) -> 0.9522863257 | AH19: =ROUND(IF(AH$2+$B19>100,0,AH18*INDEX(Sterbtab_mix!$G$4:$G$104,AH$2+$B18)),11) -> 0.9471832944 | AI19: =ROUND(IF(AI$2+$B19>100,0,AI18*INDEX(Sterbtab_mix!$G$4:$G$104,AI$2+$B18)),11) -> 0.9416214987 | AJ19: =ROUND(IF(AJ$2+$B19>100,0,AJ18*INDEX(Sterbtab_mix!$G$4:$G$104,AJ$2+$B18)),11) -> 0.935588936 | AK19: =ROUND(IF(AK$2+$B19>100,0,AK18*INDEX(Sterbtab_mix!$G$4:$G$104,AK$2+$B18)),11) -> 0.9290841045 | AL19: =ROUND(IF(AL$2+$B19>100,0,AL18*INDEX(Sterbtab_mix!$G$4:$G$104,AL$2+$B18)),11) -> 0.922119463 | AM19: =ROUND(IF(AM$2+$B19>100,0,AM18*INDEX(Sterbtab_mix!$G$4:$G$104,AM$2+$B18)),11) -> 0.9147108266 | AN19: =ROUND(IF(AN$2+$B19>100,0,AN18*INDEX(Sterbtab_mix!$G$4:$G$104,AN$2+$B18)),11) -> 0.906877204 | AO19: =ROUND(IF(AO$2+$B19>100,0,AO18*INDEX(Sterbtab_mix!$G$4:$G$104,AO$2+$B18)),11) -> 0.8986333376 | AP19: =ROUND(IF(AP$2+$B19>100,0,AP18*INDEX(Sterbtab_mix!$G$4:$G$104,AP$2+$B18)),11) -> 0.889985308 | AQ19: =ROUND(IF(AQ$2+$B19>100,0,AQ18*INDEX(Sterbtab_mix!$G$4:$G$104,AQ$2+$B18)),11) -> 0.8809237728 | AR19: =ROUND(IF(AR$2+$B19>100,0,AR18*INDEX(Sterbtab_mix!$G$4:$G$104,AR$2+$B18)),11) -> 0.8714185065 | AS19: =ROUND(IF(AS$2+$B19>100,0,AS18*INDEX(Sterbtab_mix!$G$4:$G$104,AS$2+$B18)),11) -> 0.8614170026 | AT19: =ROUND(IF(AT$2+$B19>100,0,AT18*INDEX(Sterbtab_mix!$G$4:$G$104,AT$2+$B18)),11) -> 0.850834793 | AU19: =ROUND(IF(AU$2+$B19>100,0,AU18*INDEX(Sterbtab_mix!$G$4:$G$104,AU$2+$B18)),11) -> 0.8395758892 | AV19: =ROUND(IF(AV$2+$B19>100,0,AV18*INDEX(Sterbtab_mix!$G$4:$G$104,AV$2+$B18)),11) -> 0.8274905283 | AW19: =ROUND(IF(AW$2+$B19>100,0,AW18*INDEX(Sterbtab_mix!$G$4:$G$104,AW$2+$B18)),11) -> 0.8143886965 | AX19: =ROUND(IF(AX$2+$B19>100,0,AX18*INDEX(Sterbtab_mix!$G$4:$G$104,AX$2+$B18)),11) -> 0.8000466088 | AY19: =ROUND(IF(AY$2+$B19>100,0,AY18*INDEX(Sterbtab_mix!$G$4:$G$104,AY$2+$B18)),11) -> 0.7842063987 | AZ19: =ROUND(IF(AZ$2+$B19>100,0,AZ18*INDEX(Sterbtab_mix!$G$4:$G$104,AZ$2+$B18)),11) -> 0.7665909295 | BA19: =ROUND(IF(BA$2+$B19>100,0,BA18*INDEX(Sterbtab_mix!$G$4:$G$104,BA$2+$B18)),11) -> 0.7469124487 | BB19: =ROUND(IF(BB$2+$B19>100,0,BB18*INDEX(Sterbtab_mix!$G$4:$G$104,BB$2+$B18)),11) -> 0.724892178 | BC19: =ROUND(IF(BC$2+$B19>100,0,BC18*INDEX(Sterbtab_mix!$G$4:$G$104,BC$2+$B18)),11) -> 0.7002785327 | BD19: =ROUND(IF(BD$2+$B19>100,0,BD18*INDEX(Sterbtab_mix!$G$4:$G$104,BD$2+$B18)),11) -> 0.672869137 | BE19: =ROUND(IF(BE$2+$B19>100,0,BE18*INDEX(Sterbtab_mix!$G$4:$G$104,BE$2+$B18)),11) -> 0.6425372548 | BF19: =ROUND(IF(BF$2+$B19>100,0,BF18*INDEX(Sterbtab_mix!$G$4:$G$104,BF$2+$B18)),11) -> 0.6092488312 | BG19: =ROUND(IF(BG$2+$B19>100,0,BG18*INDEX(Sterbtab_mix!$G$4:$G$104,BG$2+$B18)),11) -> 0.5730860687 | BH19: =ROUND(IF(BH$2+$B19>100,0,BH18*INDEX(Sterbtab_mix!$G$4:$G$104,BH$2+$B18)),11) -> 0.5342458433 | BI19: =ROUND(IF(BI$2+$B19>100,0,BI18*INDEX(Sterbtab_mix!$G$4:$G$104,BI$2+$B18)),11) -> 0.4930786882 | BJ19: =ROUND(IF(BJ$2+$B19>100,0,BJ18*INDEX(Sterbtab_mix!$G$4:$G$104,BJ$2+$B18)),11) -> 0.4500759767 | BK19: =ROUND(IF(BK$2+$B19>100,0,BK18*INDEX(Sterbtab_mix!$G$4:$G$104,BK$2+$B18)),11) -> 0.4058579584 | BL19: =ROUND(IF(BL$2+$B19>100,0,BL18*INDEX(Sterbtab_mix!$G$4:$G$104,BL$2+$B18)),11) -> 0.361155664 | BM19: =ROUND(IF(BM$2+$B19>100,0,BM18*INDEX(Sterbtab_mix!$G$4:$G$104,BM$2+$B18)),11) -> 0.3167763457 | BN19: =ROUND(IF(BN$2+$B19>100,0,BN18*INDEX(Sterbtab_mix!$G$4:$G$104,BN$2+$B18)),11) -> 0.2735595719 | BO19: =ROUND(IF(BO$2+$B19>100,0,BO18*INDEX(Sterbtab_mix!$G$4:$G$104,BO$2+$B18)),11) -> 0.2323271099 | BP19: =ROUND(IF(BP$2+$B19>100,0,BP18*INDEX(Sterbtab_mix!$G$4:$G$104,BP$2+$B18)),11) -> 0.1938275735 | BQ19: =ROUND(IF(BQ$2+$B19>100,0,BQ18*INDEX(Sterbtab_mix!$G$4:$G$104,BQ$2+$B18)),11) -> 0.158685383 | BR19: =ROUND(IF(BR$2+$B19>100,0,BR18*INDEX(Sterbtab_mix!$G$4:$G$104,BR$2+$B18)),11) -> 0.1273594686 | BS19: =ROUND(IF(BS$2+$B19>100,0,BS18*INDEX(Sterbtab_mix!$G$4:$G$104,BS$2+$B18)),11) -> 0.1001162453 | BT19: =ROUND(IF(BT$2+$B19>100,0,BT18*INDEX(Sterbtab_mix!$G$4:$G$104,BT$2+$B18)),11) -> 0.07702169054 | BU19: =ROUND(IF(BU$2+$B19>100,0,BU18*INDEX(Sterbtab_mix!$G$4:$G$104,BU$2+$B18)),11) -> 0.05795319247 | BV19: =ROUND(IF(BV$2+$B19>100,0,BV18*INDEX(Sterbtab_mix!$G$4:$G$104,BV$2+$B18)),11) -> 0.04262802115 | BW19: =ROUND(IF(BW$2+$B19>100,0,BW18*INDEX(Sterbtab_mix!$G$4:$G$104,BW$2+$B18)),11) -> 0 | BX19: =ROUND(IF(BX$2+$B19>100,0,BX18*INDEX(Sterbtab_mix!$G$4:$G$104,BX$2+$B18)),11) -> 0 | BY19: =ROUND(IF(BY$2+$B19>100,0,BY18*INDEX(Sterbtab_mix!$G$4:$G$104,BY$2+$B18)),11) -> 0 | BZ19: =ROUND(IF(BZ$2+$B19>100,0,BZ18*INDEX(Sterbtab_mix!$G$4:$G$104,BZ$2+$B18)),11) -> 0 | CA19: =ROUND(IF(CA$2+$B19>100,0,CA18*INDEX(Sterbtab_mix!$G$4:$G$104,CA$2+$B18)),11) -> 0 | CB19: =ROUND(IF(CB$2+$B19>100,0,CB18*INDEX(Sterbtab_mix!$G$4:$G$104,CB$2+$B18)),11) -> 0 | CC19: =ROUND(IF(CC$2+$B19>100,0,CC18*INDEX(Sterbtab_mix!$G$4:$G$104,CC$2+$B18)),11) -> 0 | CD19: =ROUND(IF(CD$2+$B19>100,0,CD18*INDEX(Sterbtab_mix!$G$4:$G$104,CD$2+$B18)),11) -> 0 | CE19: =ROUND(IF(CE$2+$B19>100,0,CE18*INDEX(Sterbtab_mix!$G$4:$G$104,CE$2+$B18)),11) -> 0 | CF19: =ROUND(IF(CF$2+$B19>100,0,CF18*INDEX(Sterbtab_mix!$G$4:$G$104,CF$2+$B18)),11) -> 0 | CG19: =ROUND(IF(CG$2+$B19>100,0,CG18*INDEX(Sterbtab_mix!$G$4:$G$104,CG$2+$B18)),11) -> 0 | CH19: =ROUND(IF(CH$2+$B19>100,0,CH18*INDEX(Sterbtab_mix!$G$4:$G$104,CH$2+$B18)),11) -> 0 | CI19: =ROUND(IF(CI$2+$B19>100,0,CI18*INDEX(Sterbtab_mix!$G$4:$G$104,CI$2+$B18)),11) -> 0 | CJ19: =ROUND(IF(CJ$2+$B19>100,0,CJ18*INDEX(Sterbtab_mix!$G$4:$G$104,CJ$2+$B18)),11) -> 0
A20: 30 | B20: 15 | C20: =ROUND(IF(C$2+$B20>100,0,C19*INDEX(Sterbtab_mix!$G$4:$G$104,C$2+$B19)),11) -> 0.9927315446 | D20: =ROUND(IF(D$2+$B20>100,0,D19*INDEX(Sterbtab_mix!$G$4:$G$104,D$2+$B19)),11) -> 0.9924108176 | E20: =ROUND(IF(E$2+$B20>100,0,E19*INDEX(Sterbtab_mix!$G$4:$G$104,E$2+$B19)),11) -> 0.9921566819 | F20: =ROUND(IF(F$2+$B20>100,0,F19*INDEX(Sterbtab_mix!$G$4:$G$104,F$2+$B19)),11) -> 0.9919710752 | G20: =ROUND(IF(G$2+$B20>100,0,G19*INDEX(Sterbtab_mix!$G$4:$G$104,G$2+$B19)),11) -> 0.9918470191 | H20: =ROUND(IF(H$2+$B20>100,0,H19*INDEX(Sterbtab_mix!$G$4:$G$104,H$2+$B19)),11) -> 0.9917636575 | I20: =ROUND(IF(I$2+$B20>100,0,I19*INDEX(Sterbtab_mix!$G$4:$G$104,I$2+$B19)),11) -> 0.9916912146 | J20: =ROUND(IF(J$2+$B20>100,0,J19*INDEX(Sterbtab_mix!$G$4:$G$104,J$2+$B19)),11) -> 0.9915979366 | K20: =ROUND(IF(K$2+$B20>100,0,K19*INDEX(Sterbtab_mix!$G$4:$G$104,K$2+$B19)),11) -> 0.9914540643 | L20: =ROUND(IF(L$2+$B20>100,0,L19*INDEX(Sterbtab_mix!$G$4:$G$104,L$2+$B19)),11) -> 0.9912358112 | M20: =ROUND(IF(M$2+$B20>100,0,M19*INDEX(Sterbtab_mix!$G$4:$G$104,M$2+$B19)),11) -> 0.9909323146 | N20: =ROUND(IF(N$2+$B20>100,0,N19*INDEX(Sterbtab_mix!$G$4:$G$104,N$2+$B19)),11) -> 0.9905406715 | O20: =ROUND(IF(O$2+$B20>100,0,O19*INDEX(Sterbtab_mix!$G$4:$G$104,O$2+$B19)),11) -> 0.9900510683 | P20: =ROUND(IF(P$2+$B20>100,0,P19*INDEX(Sterbtab_mix!$G$4:$G$104,P$2+$B19)),11) -> 0.9894458106 | Q20: =ROUND(IF(Q$2+$B20>100,0,Q19*INDEX(Sterbtab_mix!$G$4:$G$104,Q$2+$B19)),11) -> 0.9887112356 | R20: =ROUND(IF(R$2+$B20>100,0,R19*INDEX(Sterbtab_mix!$G$4:$G$104,R$2+$B19)),11) -> 0.9878317823 | S20: =ROUND(IF(S$2+$B20>100,0,S19*INDEX(Sterbtab_mix!$G$4:$G$104,S$2+$B19)),11) -> 0.9867919958 | T20: =ROUND(IF(T$2+$B20>100,0,T19*INDEX(Sterbtab_mix!$G$4:$G$104,T$2+$B19)),11) -> 0.9855765475 | U20: =ROUND(IF(U$2+$B20>100,0,U19*INDEX(Sterbtab_mix!$G$4:$G$104,U$2+$B19)),11) -> 0.9841712479 | V20: =ROUND(IF(V$2+$B20>100,0,V19*INDEX(Sterbtab_mix!$G$4:$G$104,V$2+$B19)),11) -> 0.9825630654 | W20: =ROUND(IF(W$2+$B20>100,0,W19*INDEX(Sterbtab_mix!$G$4:$G$104,W$2+$B19)),11) -> 0.9807362173 | X20: =ROUND(IF(X$2+$B20>100,0,X19*INDEX(Sterbtab_mix!$G$4:$G$104,X$2+$B19)),11) -> 0.9786683027 | Y20: =ROUND(IF(Y$2+$B20>100,0,Y19*INDEX(Sterbtab_mix!$G$4:$G$104,Y$2+$B19)),11) -> 0.9763362862 | Z20: =ROUND(IF(Z$2+$B20>100,0,Z19*INDEX(Sterbtab_mix!$G$4:$G$104,Z$2+$B19)),11) -> 0.9737194857 | AA20: =ROUND(IF(AA$2+$B20>100,0,AA19*INDEX(Sterbtab_mix!$G$4:$G$104,AA$2+$B19)),11) -> 0.9707966879 | AB20: =ROUND(IF(AB$2+$B20>100,0,AB19*INDEX(Sterbtab_mix!$G$4:$G$104,AB$2+$B19)),11) -> 0.9675442798 | AC20: =ROUND(IF(AC$2+$B20>100,0,AC19*INDEX(Sterbtab_mix!$G$4:$G$104,AC$2+$B19)),11) -> 0.9639392659 | AD20: =ROUND(IF(AD$2+$B20>100,0,AD19*INDEX(Sterbtab_mix!$G$4:$G$104,AD$2+$B19)),11) -> 0.9599574057 | AE20: =ROUND(IF(AE$2+$B20>100,0,AE19*INDEX(Sterbtab_mix!$G$4:$G$104,AE$2+$B19)),11) -> 0.9555685566 | AF20: =ROUND(IF(AF$2+$B20>100,0,AF19*INDEX(Sterbtab_mix!$G$4:$G$104,AF$2+$B19)),11) -> 0.9507464787 | AG20: =ROUND(IF(AG$2+$B20>100,0,AG19*INDEX(Sterbtab_mix!$G$4:$G$104,AG$2+$B19)),11) -> 0.9454660511 | AH20: =ROUND(IF(AH$2+$B20>100,0,AH19*INDEX(Sterbtab_mix!$G$4:$G$104,AH$2+$B19)),11) -> 0.9397081238 | AI20: =ROUND(IF(AI$2+$B20>100,0,AI19*INDEX(Sterbtab_mix!$G$4:$G$104,AI$2+$B19)),11) -> 0.9334614068 | AJ20: =ROUND(IF(AJ$2+$B20>100,0,AJ19*INDEX(Sterbtab_mix!$G$4:$G$104,AJ$2+$B19)),11) -> 0.9267242309 | AK20: =ROUND(IF(AK$2+$B20>100,0,AK19*INDEX(Sterbtab_mix!$G$4:$G$104,AK$2+$B19)),11) -> 0.9195061764 | AL20: =ROUND(IF(AL$2+$B20>100,0,AL19*INDEX(Sterbtab_mix!$G$4:$G$104,AL$2+$B19)),11) -> 0.9118239992 | AM20: =ROUND(IF(AM$2+$B20>100,0,AM19*INDEX(Sterbtab_mix!$G$4:$G$104,AM$2+$B19)),11) -> 0.9036958788 | AN20: =ROUND(IF(AN$2+$B20>100,0,AN19*INDEX(Sterbtab_mix!$G$4:$G$104,AN$2+$B19)),11) -> 0.895134958 | AO20: =ROUND(IF(AO$2+$B20>100,0,AO19*INDEX(Sterbtab_mix!$G$4:$G$104,AO$2+$B19)),11) -> 0.8861441315 | AP20: =ROUND(IF(AP$2+$B20>100,0,AP19*INDEX(Sterbtab_mix!$G$4:$G$104,AP$2+$B19)),11) -> 0.8767129571 | AQ20: =ROUND(IF(AQ$2+$B20>100,0,AQ19*INDEX(Sterbtab_mix!$G$4:$G$104,AQ$2+$B19)),11) -> 0.8668060884 | AR20: =ROUND(IF(AR$2+$B20>100,0,AR19*INDEX(Sterbtab_mix!$G$4:$G$104,AR$2+$B19)),11) -> 0.8563682375 | AS20: =ROUND(IF(AS$2+$B20>100,0,AS19*INDEX(Sterbtab_mix!$G$4:$G$104,AS$2+$B19)),11) -> 0.8453179802 | AT20: =ROUND(IF(AT$2+$B20>100,0,AT19*INDEX(Sterbtab_mix!$G$4:$G$104,AT$2+$B19)),11) -> 0.8335628467 | AU20: =ROUND(IF(AU$2+$B20>100,0,AU19*INDEX(Sterbtab_mix!$G$4:$G$104,AU$2+$B19)),11) -> 0.8209599731 | AV20: =ROUND(IF(AV$2+$B20>100,0,AV19*INDEX(Sterbtab_mix!$G$4:$G$104,AV$2+$B19)),11) -> 0.807331204 | AW20: =ROUND(IF(AW$2+$B20>100,0,AW19*INDEX(Sterbtab_mix!$G$4:$G$104,AW$2+$B19)),11) -> 0.7924661672 | AX20: =ROUND(IF(AX$2+$B20>100,0,AX19*INDEX(Sterbtab_mix!$G$4:$G$104,AX$2+$B19)),11) -> 0.776122015 | AY20: =ROUND(IF(AY$2+$B20>100,0,AY19*INDEX(Sterbtab_mix!$G$4:$G$104,AY$2+$B19)),11) -> 0.7580319418 | AZ20: =ROUND(IF(AZ$2+$B20>100,0,AZ19*INDEX(Sterbtab_mix!$G$4:$G$104,AZ$2+$B19)),11) -> 0.737918129 | BA20: =ROUND(IF(BA$2+$B20>100,0,BA19*INDEX(Sterbtab_mix!$G$4:$G$104,BA$2+$B19)),11) -> 0.715506274 | BB20: =ROUND(IF(BB$2+$B20>100,0,BB19*INDEX(Sterbtab_mix!$G$4:$G$104,BB$2+$B19)),11) -> 0.6905460617 | BC20: =ROUND(IF(BC$2+$B20>100,0,BC19*INDEX(Sterbtab_mix!$G$4:$G$104,BC$2+$B19)),11) -> 0.6628346396 | BD20: =ROUND(IF(BD$2+$B20>100,0,BD19*INDEX(Sterbtab_mix!$G$4:$G$104,BD$2+$B19)),11) -> 0.6322399528 | BE20: =ROUND(IF(BE$2+$B20>100,0,BE19*INDEX(Sterbtab_mix!$G$4:$G$104,BE$2+$B19)),11) -> 0.5987264947 | BF20: =ROUND(IF(BF$2+$B20>100,0,BF19*INDEX(Sterbtab_mix!$G$4:$G$104,BF$2+$B19)),11) -> 0.5623756631 | BG20: =ROUND(IF(BG$2+$B20>100,0,BG19*INDEX(Sterbtab_mix!$G$4:$G$104,BG$2+$B19)),11) -> 0.5234006527 | BH20: =ROUND(IF(BH$2+$B20>100,0,BH19*INDEX(Sterbtab_mix!$G$4:$G$104,BH$2+$B19)),11) -> 0.4821456544 | BI20: =ROUND(IF(BI$2+$B20>100,0,BI19*INDEX(Sterbtab_mix!$G$4:$G$104,BI$2+$B19)),11) -> 0.4391112258 | BJ20: =ROUND(IF(BJ$2+$B20>100,0,BJ19*INDEX(Sterbtab_mix!$G$4:$G$104,BJ$2+$B19)),11) -> 0.394932668 | BK20: =ROUND(IF(BK$2+$B20>100,0,BK19*INDEX(Sterbtab_mix!$G$4:$G$104,BK$2+$B19)),11) -> 0.350355665 | BL20: =ROUND(IF(BL$2+$B20>100,0,BL19*INDEX(Sterbtab_mix!$G$4:$G$104,BL$2+$B19)),11) -> 0.3062033016 | BM20: =ROUND(IF(BM$2+$B20>100,0,BM19*INDEX(Sterbtab_mix!$G$4:$G$104,BM$2+$B19)),11) -> 0.2633276232 | BN20: =ROUND(IF(BN$2+$B20>100,0,BN19*INDEX(Sterbtab_mix!$G$4:$G$104,BN$2+$B19)),11) -> 0.2225582196 | BO20: =ROUND(IF(BO$2+$B20>100,0,BO19*INDEX(Sterbtab_mix!$G$4:$G$104,BO$2+$B19)),11) -> 0.1846438292 | BP20: =ROUND(IF(BP$2+$B20>100,0,BP19*INDEX(Sterbtab_mix!$G$4:$G$104,BP$2+$B19)),11) -> 0.1502004756 | BQ20: =ROUND(IF(BQ$2+$B20>100,0,BQ19*INDEX(Sterbtab_mix!$G$4:$G$104,BQ$2+$B19)),11) -> 0.1196692492 | BR20: =ROUND(IF(BR$2+$B20>100,0,BR19*INDEX(Sterbtab_mix!$G$4:$G$104,BR$2+$B19)),11) -> 0.09328991925 | BS20: =ROUND(IF(BS$2+$B20>100,0,BS19*INDEX(Sterbtab_mix!$G$4:$G$104,BS$2+$B19)),11) -> 0.07109594975 | BT20: =ROUND(IF(BT$2+$B20>100,0,BT19*INDEX(Sterbtab_mix!$G$4:$G$104,BT$2+$B19)),11) -> 0.05292876659 | BU20: =ROUND(IF(BU$2+$B20>100,0,BU19*INDEX(Sterbtab_mix!$G$4:$G$104,BU$2+$B19)),11) -> 0.0384708939 | BV20: =ROUND(IF(BV$2+$B20>100,0,BV19*INDEX(Sterbtab_mix!$G$4:$G$104,BV$2+$B19)),11) -> 0 | BW20: =ROUND(IF(BW$2+$B20>100,0,BW19*INDEX(Sterbtab_mix!$G$4:$G$104,BW$2+$B19)),11) -> 0 | BX20: =ROUND(IF(BX$2+$B20>100,0,BX19*INDEX(Sterbtab_mix!$G$4:$G$104,BX$2+$B19)),11) -> 0 | BY20: =ROUND(IF(BY$2+$B20>100,0,BY19*INDEX(Sterbtab_mix!$G$4:$G$104,BY$2+$B19)),11) -> 0 | BZ20: =ROUND(IF(BZ$2+$B20>100,0,BZ19*INDEX(Sterbtab_mix!$G$4:$G$104,BZ$2+$B19)),11) -> 0 | CA20: =ROUND(IF(CA$2+$B20>100,0,CA19*INDEX(Sterbtab_mix!$G$4:$G$104,CA$2+$B19)),11) -> 0 | CB20: =ROUND(IF(CB$2+$B20>100,0,CB19*INDEX(Sterbtab_mix!$G$4:$G$104,CB$2+$B19)),11) -> 0 | CC20: =ROUND(IF(CC$2+$B20>100,0,CC19*INDEX(Sterbtab_mix!$G$4:$G$104,CC$2+$B19)),11) -> 0 | CD20: =ROUND(IF(CD$2+$B20>100,0,CD19*INDEX(Sterbtab_mix!$G$4:$G$104,CD$2+$B19)),11) -> 0 | CE20: =ROUND(IF(CE$2+$B20>100,0,CE19*INDEX(Sterbtab_mix!$G$4:$G$104,CE$2+$B19)),11) -> 0 | CF20: =ROUND(IF(CF$2+$B20>100,0,CF19*INDEX(Sterbtab_mix!$G$4:$G$104,CF$2+$B19)),11) -> 0 | CG20: =ROUND(IF(CG$2+$B20>100,0,CG19*INDEX(Sterbtab_mix!$G$4:$G$104,CG$2+$B19)),11) -> 0 | CH20: =ROUND(IF(CH$2+$B20>100,0,CH19*INDEX(Sterbtab_mix!$G$4:$G$104,CH$2+$B19)),11) -> 0 | CI20: =ROUND(IF(CI$2+$B20>100,0,CI19*INDEX(Sterbtab_mix!$G$4:$G$104,CI$2+$B19)),11) -> 0 | CJ20: =ROUND(IF(CJ$2+$B20>100,0,CJ19*INDEX(Sterbtab_mix!$G$4:$G$104,CJ$2+$B19)),11) -> 0
A21: 31 | B21: 16 | C21: =ROUND(IF(C$2+$B21>100,0,C20*INDEX(Sterbtab_mix!$G$4:$G$104,C$2+$B20)),11) -> 0.9921795858 | D21: =ROUND(IF(D$2+$B21>100,0,D20*INDEX(Sterbtab_mix!$G$4:$G$104,D$2+$B20)),11) -> 0.9918501054 | E21: =ROUND(IF(E$2+$B21>100,0,E20*INDEX(Sterbtab_mix!$G$4:$G$104,E$2+$B20)),11) -> 0.9915792467 | F21: =ROUND(IF(F$2+$B21>100,0,F20*INDEX(Sterbtab_mix!$G$4:$G$104,F$2+$B20)),11) -> 0.9913689488 | G21: =ROUND(IF(G$2+$B21>100,0,G20*INDEX(Sterbtab_mix!$G$4:$G$104,G$2+$B20)),11) -> 0.9912112451 | H21: =ROUND(IF(H$2+$B21>100,0,H20*INDEX(Sterbtab_mix!$G$4:$G$104,H$2+$B20)),11) -> 0.9910872747 | I21: =ROUND(IF(I$2+$B21>100,0,I20*INDEX(Sterbtab_mix!$G$4:$G$104,I$2+$B20)),11) -> 0.9909702551 | J21: =ROUND(IF(J$2+$B21>100,0,J20*INDEX(Sterbtab_mix!$G$4:$G$104,J$2+$B20)),11) -> 0.9908294482 | K21: =ROUND(IF(K$2+$B21>100,0,K20*INDEX(Sterbtab_mix!$G$4:$G$104,K$2+$B20)),11) -> 0.9906311574 | L21: =ROUND(IF(L$2+$B21>100,0,L20*INDEX(Sterbtab_mix!$G$4:$G$104,L$2+$B20)),11) -> 0.9903496464 | M21: =ROUND(IF(M$2+$B21>100,0,M20*INDEX(Sterbtab_mix!$G$4:$G$104,M$2+$B20)),11) -> 0.9899721012 | N21: =ROUND(IF(N$2+$B21>100,0,N20*INDEX(Sterbtab_mix!$G$4:$G$104,N$2+$B20)),11) -> 0.9894926795 | O21: =ROUND(IF(O$2+$B21>100,0,O20*INDEX(Sterbtab_mix!$G$4:$G$104,O$2+$B20)),11) -> 0.9888956787 | P21: =ROUND(IF(P$2+$B21>100,0,P20*INDEX(Sterbtab_mix!$G$4:$G$104,P$2+$B20)),11) -> 0.9881644782 | Q21: =ROUND(IF(Q$2+$B21>100,0,Q20*INDEX(Sterbtab_mix!$G$4:$G$104,Q$2+$B20)),11) -> 0.9872825478 | R21: =ROUND(IF(R$2+$B21>100,0,R20*INDEX(Sterbtab_mix!$G$4:$G$104,R$2+$B20)),11) -> 0.9862344583 | S21: =ROUND(IF(S$2+$B21>100,0,S20*INDEX(Sterbtab_mix!$G$4:$G$104,S$2+$B20)),11) -> 0.9850029419 | T21: =ROUND(IF(T$2+$B21>100,0,T20*INDEX(Sterbtab_mix!$G$4:$G$104,T$2+$B20)),11) -> 0.9835738559 | U21: =ROUND(IF(U$2+$B21>100,0,U20*INDEX(Sterbtab_mix!$G$4:$G$104,U$2+$B20)),11) -> 0.9819332424 | V21: =ROUND(IF(V$2+$B21>100,0,V20*INDEX(Sterbtab_mix!$G$4:$G$104,V$2+$B20)),11) -> 0.9800673552 | W21: =ROUND(IF(W$2+$B21>100,0,W20*INDEX(Sterbtab_mix!$G$4:$G$104,W$2+$B20)),11) -> 0.9779568109 | X21: =ROUND(IF(X$2+$B21>100,0,X20*INDEX(Sterbtab_mix!$G$4:$G$104,X$2+$B20)),11) -> 0.9755796256 | Y21: =ROUND(IF(Y$2+$B21>100,0,Y20*INDEX(Sterbtab_mix!$G$4:$G$104,Y$2+$B20)),11) -> 0.9729112985 | Z21: =ROUND(IF(Z$2+$B21>100,0,Z20*INDEX(Sterbtab_mix!$G$4:$G$104,Z$2+$B20)),11) -> 0.9699287957 | AA21: =ROUND(IF(AA$2+$B21>100,0,AA20*INDEX(Sterbtab_mix!$G$4:$G$104,AA$2+$B20)),11) -> 0.9666067294 | AB21: =ROUND(IF(AB$2+$B21>100,0,AB20*INDEX(Sterbtab_mix!$G$4:$G$104,AB$2+$B20)),11) -> 0.9629194182 | AC21: =ROUND(IF(AC$2+$B21>100,0,AC20*INDEX(Sterbtab_mix!$G$4:$G$104,AC$2+$B20)),11) -> 0.9588371354 | AD21: =ROUND(IF(AD$2+$B21>100,0,AD20*INDEX(Sterbtab_mix!$G$4:$G$104,AD$2+$B20)),11) -> 0.9543310953 | AE21: =ROUND(IF(AE$2+$B21>100,0,AE20*INDEX(Sterbtab_mix!$G$4:$G$104,AE$2+$B20)),11) -> 0.9493726501 | AF21: =ROUND(IF(AF$2+$B21>100,0,AF20*INDEX(Sterbtab_mix!$G$4:$G$104,AF$2+$B20)),11) -> 0.9439372325 | AG21: =ROUND(IF(AG$2+$B21>100,0,AG20*INDEX(Sterbtab_mix!$G$4:$G$104,AG$2+$B20)),11) -> 0.938004433 | AH21: =ROUND(IF(AH$2+$B21>100,0,AH20*INDEX(Sterbtab_mix!$G$4:$G$104,AH$2+$B20)),11) -> 0.9315646132 | AI21: =ROUND(IF(AI$2+$B21>100,0,AI20*INDEX(Sterbtab_mix!$G$4:$G$104,AI$2+$B20)),11) -> 0.92461686 | AJ21: =ROUND(IF(AJ$2+$B21>100,0,AJ20*INDEX(Sterbtab_mix!$G$4:$G$104,AJ$2+$B20)),11) -> 0.9171706308 | AK21: =ROUND(IF(AK$2+$B21>100,0,AK20*INDEX(Sterbtab_mix!$G$4:$G$104,AK$2+$B20)),11) -> 0.90923989 | AL21: =ROUND(IF(AL$2+$B21>100,0,AL20*INDEX(Sterbtab_mix!$G$4:$G$104,AL$2+$B20)),11) -> 0.9008438146 | AM21: =ROUND(IF(AM$2+$B21>100,0,AM20*INDEX(Sterbtab_mix!$G$4:$G$104,AM$2+$B20)),11) -> 0.8919948246 | AN21: =ROUND(IF(AN$2+$B21>100,0,AN20*INDEX(Sterbtab_mix!$G$4:$G$104,AN$2+$B20)),11) -> 0.8826943724 | AO21: =ROUND(IF(AO$2+$B21>100,0,AO20*INDEX(Sterbtab_mix!$G$4:$G$104,AO$2+$B20)),11) -> 0.872929064 | AP21: =ROUND(IF(AP$2+$B21>100,0,AP20*INDEX(Sterbtab_mix!$G$4:$G$104,AP$2+$B20)),11) -> 0.8626627553 | AQ21: =ROUND(IF(AQ$2+$B21>100,0,AQ20*INDEX(Sterbtab_mix!$G$4:$G$104,AQ$2+$B20)),11) -> 0.8518354804 | AR21: =ROUND(IF(AR$2+$B21>100,0,AR20*INDEX(Sterbtab_mix!$G$4:$G$104,AR$2+$B20)),11) -> 0.8403635715 | AS21: =ROUND(IF(AS$2+$B21>100,0,AS20*INDEX(Sterbtab_mix!$G$4:$G$104,AS$2+$B20)),11) -> 0.8281580252 | AT21: =ROUND(IF(AT$2+$B21>100,0,AT20*INDEX(Sterbtab_mix!$G$4:$G$104,AT$2+$B20)),11) -> 0.8150802577 | AU21: =ROUND(IF(AU$2+$B21>100,0,AU20*INDEX(Sterbtab_mix!$G$4:$G$104,AU$2+$B20)),11) -> 0.8009597462 | AV21: =ROUND(IF(AV$2+$B21>100,0,AV20*INDEX(Sterbtab_mix!$G$4:$G$104,AV$2+$B20)),11) -> 0.7855986554 | AW21: =ROUND(IF(AW$2+$B21>100,0,AW20*INDEX(Sterbtab_mix!$G$4:$G$104,AW$2+$B20)),11) -> 0.7687682589 | AX21: =ROUND(IF(AX$2+$B21>100,0,AX20*INDEX(Sterbtab_mix!$G$4:$G$104,AX$2+$B20)),11) -> 0.7502173905 | AY21: =ROUND(IF(AY$2+$B21>100,0,AY20*INDEX(Sterbtab_mix!$G$4:$G$104,AY$2+$B20)),11) -> 0.7296792731 | AZ21: =ROUND(IF(AZ$2+$B21>100,0,AZ20*INDEX(Sterbtab_mix!$G$4:$G$104,AZ$2+$B20)),11) -> 0.7068901475 | BA21: =ROUND(IF(BA$2+$B21>100,0,BA20*INDEX(Sterbtab_mix!$G$4:$G$104,BA$2+$B20)),11) -> 0.6816048713 | BB21: =ROUND(IF(BB$2+$B21>100,0,BB20*INDEX(Sterbtab_mix!$G$4:$G$104,BB$2+$B20)),11) -> 0.6536225638 | BC21: =ROUND(IF(BC$2+$B21>100,0,BC20*INDEX(Sterbtab_mix!$G$4:$G$104,BC$2+$B20)),11) -> 0.6228113584 | BD21: =ROUND(IF(BD$2+$B21>100,0,BD20*INDEX(Sterbtab_mix!$G$4:$G$104,BD$2+$B20)),11) -> 0.5891313039 | BE21: =ROUND(IF(BE$2+$B21>100,0,BE20*INDEX(Sterbtab_mix!$G$4:$G$104,BE$2+$B20)),11) -> 0.5526628731 | BF21: =ROUND(IF(BF$2+$B21>100,0,BF20*INDEX(Sterbtab_mix!$G$4:$G$104,BF$2+$B20)),11) -> 0.5136188179 | BG21: =ROUND(IF(BG$2+$B21>100,0,BG20*INDEX(Sterbtab_mix!$G$4:$G$104,BG$2+$B20)),11) -> 0.4723580976 | BH21: =ROUND(IF(BH$2+$B21>100,0,BH20*INDEX(Sterbtab_mix!$G$4:$G$104,BH$2+$B20)),11) -> 0.4293748126 | BI21: =ROUND(IF(BI$2+$B21>100,0,BI20*INDEX(Sterbtab_mix!$G$4:$G$104,BI$2+$B20)),11) -> 0.3853113184 | BJ21: =ROUND(IF(BJ$2+$B21>100,0,BJ20*INDEX(Sterbtab_mix!$G$4:$G$104,BJ$2+$B20)),11) -> 0.3409244409 | BK21: =ROUND(IF(BK$2+$B21>100,0,BK20*INDEX(Sterbtab_mix!$G$4:$G$104,BK$2+$B20)),11) -> 0.2970465981 | BL21: =ROUND(IF(BL$2+$B21>100,0,BL20*INDEX(Sterbtab_mix!$G$4:$G$104,BL$2+$B20)),11) -> 0.2545385372 | BM21: =ROUND(IF(BM$2+$B21>100,0,BM20*INDEX(Sterbtab_mix!$G$4:$G$104,BM$2+$B20)),11) -> 0.2142338745 | BN21: =ROUND(IF(BN$2+$B21>100,0,BN20*INDEX(Sterbtab_mix!$G$4:$G$104,BN$2+$B20)),11) -> 0.1768799255 | BO21: =ROUND(IF(BO$2+$B21>100,0,BO20*INDEX(Sterbtab_mix!$G$4:$G$104,BO$2+$B20)),11) -> 0.1430838268 | BP21: =ROUND(IF(BP$2+$B21>100,0,BP20*INDEX(Sterbtab_mix!$G$4:$G$104,BP$2+$B20)),11) -> 0.1132705344 | BQ21: =ROUND(IF(BQ$2+$B21>100,0,BQ20*INDEX(Sterbtab_mix!$G$4:$G$104,BQ$2+$B20)),11) -> 0.08765688735 | BR21: =ROUND(IF(BR$2+$B21>100,0,BR20*INDEX(Sterbtab_mix!$G$4:$G$104,BR$2+$B20)),11) -> 0.06624834352 | BS21: =ROUND(IF(BS$2+$B21>100,0,BS20*INDEX(Sterbtab_mix!$G$4:$G$104,BS$2+$B20)),11) -> 0.048856639 | BT21: =ROUND(IF(BT$2+$B21>100,0,BT20*INDEX(Sterbtab_mix!$G$4:$G$104,BT$2+$B20)),11) -> 0.03513554434 | BU21: =ROUND(IF(BU$2+$B21>100,0,BU20*INDEX(Sterbtab_mix!$G$4:$G$104,BU$2+$B20)),11) -> 0 | BV21: =ROUND(IF(BV$2+$B21>100,0,BV20*INDEX(Sterbtab_mix!$G$4:$G$104,BV$2+$B20)),11) -> 0 | BW21: =ROUND(IF(BW$2+$B21>100,0,BW20*INDEX(Sterbtab_mix!$G$4:$G$104,BW$2+$B20)),11) -> 0 | BX21: =ROUND(IF(BX$2+$B21>100,0,BX20*INDEX(Sterbtab_mix!$G$4:$G$104,BX$2+$B20)),11) -> 0 | BY21: =ROUND(IF(BY$2+$B21>100,0,BY20*INDEX(Sterbtab_mix!$G$4:$G$104,BY$2+$B20)),11) -> 0 | BZ21: =ROUND(IF(BZ$2+$B21>100,0,BZ20*INDEX(Sterbtab_mix!$G$4:$G$104,BZ$2+$B20)),11) -> 0 | CA21: =ROUND(IF(CA$2+$B21>100,0,CA20*INDEX(Sterbtab_mix!$G$4:$G$104,CA$2+$B20)),11) -> 0 | CB21: =ROUND(IF(CB$2+$B21>100,0,CB20*INDEX(Sterbtab_mix!$G$4:$G$104,CB$2+$B20)),11) -> 0 | CC21: =ROUND(IF(CC$2+$B21>100,0,CC20*INDEX(Sterbtab_mix!$G$4:$G$104,CC$2+$B20)),11) -> 0 | CD21: =ROUND(IF(CD$2+$B21>100,0,CD20*INDEX(Sterbtab_mix!$G$4:$G$104,CD$2+$B20)),11) -> 0 | CE21: =ROUND(IF(CE$2+$B21>100,0,CE20*INDEX(Sterbtab_mix!$G$4:$G$104,CE$2+$B20)),11) -> 0 | CF21: =ROUND(IF(CF$2+$B21>100,0,CF20*INDEX(Sterbtab_mix!$G$4:$G$104,CF$2+$B20)),11) -> 0 | CG21: =ROUND(IF(CG$2+$B21>100,0,CG20*INDEX(Sterbtab_mix!$G$4:$G$104,CG$2+$B20)),11) -> 0 | CH21: =ROUND(IF(CH$2+$B21>100,0,CH20*INDEX(Sterbtab_mix!$G$4:$G$104,CH$2+$B20)),11) -> 0 | CI21: =ROUND(IF(CI$2+$B21>100,0,CI20*INDEX(Sterbtab_mix!$G$4:$G$104,CI$2+$B20)),11) -> 0 | CJ21: =ROUND(IF(CJ$2+$B21>100,0,CJ20*INDEX(Sterbtab_mix!$G$4:$G$104,CJ$2+$B20)),11) -> 0
A22: 32 | B22: 17 | C22: =ROUND(IF(C$2+$B22>100,0,C21*INDEX(Sterbtab_mix!$G$4:$G$104,C$2+$B21)),11) -> 0.9916190044 | D22: =ROUND(IF(D$2+$B22>100,0,D21*INDEX(Sterbtab_mix!$G$4:$G$104,D$2+$B21)),11) -> 0.9912728487 | E22: =ROUND(IF(E$2+$B22>100,0,E21*INDEX(Sterbtab_mix!$G$4:$G$104,E$2+$B21)),11) -> 0.9909773581 | F22: =ROUND(IF(F$2+$B22>100,0,F21*INDEX(Sterbtab_mix!$G$4:$G$104,F$2+$B21)),11) -> 0.9907334813 | G22: =ROUND(IF(G$2+$B22>100,0,G21*INDEX(Sterbtab_mix!$G$4:$G$104,G$2+$B21)),11) -> 0.990535239 | H22: =ROUND(IF(H$2+$B22>100,0,H21*INDEX(Sterbtab_mix!$G$4:$G$104,H$2+$B21)),11) -> 0.9903667542 | I22: =ROUND(IF(I$2+$B22>100,0,I21*INDEX(Sterbtab_mix!$G$4:$G$104,I$2+$B21)),11) -> 0.9902022532 | J22: =ROUND(IF(J$2+$B22>100,0,J21*INDEX(Sterbtab_mix!$G$4:$G$104,J$2+$B21)),11) -> 0.9900070597 | K22: =ROUND(IF(K$2+$B22>100,0,K21*INDEX(Sterbtab_mix!$G$4:$G$104,K$2+$B21)),11) -> 0.9897455332 | L22: =ROUND(IF(L$2+$B22>100,0,L21*INDEX(Sterbtab_mix!$G$4:$G$104,L$2+$B21)),11) -> 0.9893899976 | M22: =ROUND(IF(M$2+$B22>100,0,M21*INDEX(Sterbtab_mix!$G$4:$G$104,M$2+$B21)),11) -> 0.9889247107 | N22: =ROUND(IF(N$2+$B22>100,0,N21*INDEX(Sterbtab_mix!$G$4:$G$104,N$2+$B21)),11) -> 0.9883379415 | O22: =ROUND(IF(O$2+$B22>100,0,O21*INDEX(Sterbtab_mix!$G$4:$G$104,O$2+$B21)),11) -> 0.9876150588 | P22: =ROUND(IF(P$2+$B22>100,0,P21*INDEX(Sterbtab_mix!$G$4:$G$104,P$2+$B21)),11) -> 0.9867365806 | Q22: =ROUND(IF(Q$2+$B22>100,0,Q21*INDEX(Sterbtab_mix!$G$4:$G$104,Q$2+$B21)),11) -> 0.985686112 | R22: =ROUND(IF(R$2+$B22>100,0,R21*INDEX(Sterbtab_mix!$G$4:$G$104,R$2+$B21)),11) -> 0.9844464152 | S22: =ROUND(IF(S$2+$B22>100,0,S21*INDEX(Sterbtab_mix!$G$4:$G$104,S$2+$B21)),11) -> 0.9830014159 | T22: =ROUND(IF(T$2+$B22>100,0,T21*INDEX(Sterbtab_mix!$G$4:$G$104,T$2+$B21)),11) -> 0.981337209 | U22: =ROUND(IF(U$2+$B22>100,0,U21*INDEX(Sterbtab_mix!$G$4:$G$104,U$2+$B21)),11) -> 0.979439132 | V22: =ROUND(IF(V$2+$B22>100,0,V21*INDEX(Sterbtab_mix!$G$4:$G$104,V$2+$B21)),11) -> 0.9772898443 | W22: =ROUND(IF(W$2+$B22>100,0,W21*INDEX(Sterbtab_mix!$G$4:$G$104,W$2+$B21)),11) -> 0.9748703792 | X22: =ROUND(IF(X$2+$B22>100,0,X21*INDEX(Sterbtab_mix!$G$4:$G$104,X$2+$B21)),11) -> 0.9721572922 | Y22: =ROUND(IF(Y$2+$B22>100,0,Y21*INDEX(Sterbtab_mix!$G$4:$G$104,Y$2+$B21)),11) -> 0.9691237548 | Z22: =ROUND(IF(Z$2+$B22>100,0,Z21*INDEX(Sterbtab_mix!$G$4:$G$104,Z$2+$B21)),11) -> 0.965742583 | AA22: =ROUND(IF(AA$2+$B22>100,0,AA21*INDEX(Sterbtab_mix!$G$4:$G$104,AA$2+$B21)),11) -> 0.9619863492 | AB22: =ROUND(IF(AB$2+$B22>100,0,AB21*INDEX(Sterbtab_mix!$G$4:$G$104,AB$2+$B21)),11) -> 0.9578226857 | AC22: =ROUND(IF(AC$2+$B22>100,0,AC21*INDEX(Sterbtab_mix!$G$4:$G$104,AC$2+$B21)),11) -> 0.953217391 | AD22: =ROUND(IF(AD$2+$B22>100,0,AD21*INDEX(Sterbtab_mix!$G$4:$G$104,AD$2+$B21)),11) -> 0.9481432125 | AE22: =ROUND(IF(AE$2+$B22>100,0,AE21*INDEX(Sterbtab_mix!$G$4:$G$104,AE$2+$B21)),11) -> 0.9425732432 | AF22: =ROUND(IF(AF$2+$B22>100,0,AF21*INDEX(Sterbtab_mix!$G$4:$G$104,AF$2+$B21)),11) -> 0.9364876798 | AG22: =ROUND(IF(AG$2+$B22>100,0,AG21*INDEX(Sterbtab_mix!$G$4:$G$104,AG$2+$B21)),11) -> 0.9298756866 | AH22: =ROUND(IF(AH$2+$B22>100,0,AH21*INDEX(Sterbtab_mix!$G$4:$G$104,AH$2+$B21)),11) -> 0.9227380385 | AI22: =ROUND(IF(AI$2+$B22>100,0,AI21*INDEX(Sterbtab_mix!$G$4:$G$104,AI$2+$B21)),11) -> 0.9150849848 | AJ22: =ROUND(IF(AJ$2+$B22>100,0,AJ21*INDEX(Sterbtab_mix!$G$4:$G$104,AJ$2+$B21)),11) -> 0.9069304207 | AK22: =ROUND(IF(AK$2+$B22>100,0,AK21*INDEX(Sterbtab_mix!$G$4:$G$104,AK$2+$B21)),11) -> 0.8982908232 | AL22: =ROUND(IF(AL$2+$B22>100,0,AL21*INDEX(Sterbtab_mix!$G$4:$G$104,AL$2+$B21)),11) -> 0.8891796889 | AM22: =ROUND(IF(AM$2+$B22>100,0,AM21*INDEX(Sterbtab_mix!$G$4:$G$104,AM$2+$B21)),11) -> 0.8795978805 | AN22: =ROUND(IF(AN$2+$B22>100,0,AN21*INDEX(Sterbtab_mix!$G$4:$G$104,AN$2+$B21)),11) -> 0.8695307512 | AO22: =ROUND(IF(AO$2+$B22>100,0,AO21*INDEX(Sterbtab_mix!$G$4:$G$104,AO$2+$B21)),11) -> 0.8589395028 | AP22: =ROUND(IF(AP$2+$B22>100,0,AP21*INDEX(Sterbtab_mix!$G$4:$G$104,AP$2+$B21)),11) -> 0.8477637069 | AQ22: =ROUND(IF(AQ$2+$B22>100,0,AQ21*INDEX(Sterbtab_mix!$G$4:$G$104,AQ$2+$B21)),11) -> 0.8359155271 | AR22: =ROUND(IF(AR$2+$B22>100,0,AR21*INDEX(Sterbtab_mix!$G$4:$G$104,AR$2+$B21)),11) -> 0.823304191 | AS22: =ROUND(IF(AS$2+$B22>100,0,AS21*INDEX(Sterbtab_mix!$G$4:$G$104,AS$2+$B21)),11) -> 0.8097952773 | AT22: =ROUND(IF(AT$2+$B22>100,0,AT21*INDEX(Sterbtab_mix!$G$4:$G$104,AT$2+$B21)),11) -> 0.7952232725 | AU22: =ROUND(IF(AU$2+$B22>100,0,AU21*INDEX(Sterbtab_mix!$G$4:$G$104,AU$2+$B21)),11) -> 0.7793987108 | AV22: =ROUND(IF(AV$2+$B22>100,0,AV21*INDEX(Sterbtab_mix!$G$4:$G$104,AV$2+$B21)),11) -> 0.7621061132 | AW22: =ROUND(IF(AW$2+$B22>100,0,AW21*INDEX(Sterbtab_mix!$G$4:$G$104,AW$2+$B21)),11) -> 0.7431090807 | AX22: =ROUND(IF(AX$2+$B22>100,0,AX21*INDEX(Sterbtab_mix!$G$4:$G$104,AX$2+$B21)),11) -> 0.7221570095 | AY22: =ROUND(IF(AY$2+$B22>100,0,AY21*INDEX(Sterbtab_mix!$G$4:$G$104,AY$2+$B21)),11) -> 0.698997719 | AZ22: =ROUND(IF(AZ$2+$B22>100,0,AZ21*INDEX(Sterbtab_mix!$G$4:$G$104,AZ$2+$B21)),11) -> 0.6733969854 | BA22: =ROUND(IF(BA$2+$B22>100,0,BA21*INDEX(Sterbtab_mix!$G$4:$G$104,BA$2+$B21)),11) -> 0.6451594588 | BB22: =ROUND(IF(BB$2+$B22>100,0,BB21*INDEX(Sterbtab_mix!$G$4:$G$104,BB$2+$B21)),11) -> 0.6141555261 | BC22: =ROUND(IF(BC$2+$B22>100,0,BC21*INDEX(Sterbtab_mix!$G$4:$G$104,BC$2+$B21)),11) -> 0.5803455887 | BD22: =ROUND(IF(BD$2+$B22>100,0,BD21*INDEX(Sterbtab_mix!$G$4:$G$104,BD$2+$B21)),11) -> 0.5438058979 | BE22: =ROUND(IF(BE$2+$B22>100,0,BE21*INDEX(Sterbtab_mix!$G$4:$G$104,BE$2+$B21)),11) -> 0.5047481073 | BF22: =ROUND(IF(BF$2+$B22>100,0,BF21*INDEX(Sterbtab_mix!$G$4:$G$104,BF$2+$B21)),11) -> 0.4635301972 | BG22: =ROUND(IF(BG$2+$B22>100,0,BG21*INDEX(Sterbtab_mix!$G$4:$G$104,BG$2+$B21)),11) -> 0.4206585039 | BH22: =ROUND(IF(BH$2+$B22>100,0,BH21*INDEX(Sterbtab_mix!$G$4:$G$104,BH$2+$B21)),11) -> 0.3767678105 | BI22: =ROUND(IF(BI$2+$B22>100,0,BI21*INDEX(Sterbtab_mix!$G$4:$G$104,BI$2+$B21)),11) -> 0.3326188397 | BJ22: =ROUND(IF(BJ$2+$B22>100,0,BJ21*INDEX(Sterbtab_mix!$G$4:$G$104,BJ$2+$B21)),11) -> 0.2890504007 | BK22: =ROUND(IF(BK$2+$B22>100,0,BK21*INDEX(Sterbtab_mix!$G$4:$G$104,BK$2+$B21)),11) -> 0.2469268167 | BL22: =ROUND(IF(BL$2+$B22>100,0,BL21*INDEX(Sterbtab_mix!$G$4:$G$104,BL$2+$B21)),11) -> 0.2070833904 | BM22: =ROUND(IF(BM$2+$B22>100,0,BM21*INDEX(Sterbtab_mix!$G$4:$G$104,BM$2+$B21)),11) -> 0.1702640856 | BN22: =ROUND(IF(BN$2+$B22>100,0,BN21*INDEX(Sterbtab_mix!$G$4:$G$104,BN$2+$B21)),11) -> 0.1370674381 | BO22: =ROUND(IF(BO$2+$B22>100,0,BO21*INDEX(Sterbtab_mix!$G$4:$G$104,BO$2+$B21)),11) -> 0.1079036633 | BP22: =ROUND(IF(BP$2+$B22>100,0,BP21*INDEX(Sterbtab_mix!$G$4:$G$104,BP$2+$B21)),11) -> 0.08296987358 | BQ22: =ROUND(IF(BQ$2+$B22>100,0,BQ21*INDEX(Sterbtab_mix!$G$4:$G$104,BQ$2+$B21)),11) -> 0.06224813604 | BR22: =ROUND(IF(BR$2+$B22>100,0,BR21*INDEX(Sterbtab_mix!$G$4:$G$104,BR$2+$B21)),11) -> 0.04552539793 | BS22: =ROUND(IF(BS$2+$B22>100,0,BS21*INDEX(Sterbtab_mix!$G$4:$G$104,BS$2+$B21)),11) -> 0.0324323561 | BT22: =ROUND(IF(BT$2+$B22>100,0,BT21*INDEX(Sterbtab_mix!$G$4:$G$104,BT$2+$B21)),11) -> 0 | BU22: =ROUND(IF(BU$2+$B22>100,0,BU21*INDEX(Sterbtab_mix!$G$4:$G$104,BU$2+$B21)),11) -> 0 | BV22: =ROUND(IF(BV$2+$B22>100,0,BV21*INDEX(Sterbtab_mix!$G$4:$G$104,BV$2+$B21)),11) -> 0 | BW22: =ROUND(IF(BW$2+$B22>100,0,BW21*INDEX(Sterbtab_mix!$G$4:$G$104,BW$2+$B21)),11) -> 0 | BX22: =ROUND(IF(BX$2+$B22>100,0,BX21*INDEX(Sterbtab_mix!$G$4:$G$104,BX$2+$B21)),11) -> 0 | BY22: =ROUND(IF(BY$2+$B22>100,0,BY21*INDEX(Sterbtab_mix!$G$4:$G$104,BY$2+$B21)),11) -> 0 | BZ22: =ROUND(IF(BZ$2+$B22>100,0,BZ21*INDEX(Sterbtab_mix!$G$4:$G$104,BZ$2+$B21)),11) -> 0 | CA22: =ROUND(IF(CA$2+$B22>100,0,CA21*INDEX(Sterbtab_mix!$G$4:$G$104,CA$2+$B21)),11) -> 0 | CB22: =ROUND(IF(CB$2+$B22>100,0,CB21*INDEX(Sterbtab_mix!$G$4:$G$104,CB$2+$B21)),11) -> 0 | CC22: =ROUND(IF(CC$2+$B22>100,0,CC21*INDEX(Sterbtab_mix!$G$4:$G$104,CC$2+$B21)),11) -> 0 | CD22: =ROUND(IF(CD$2+$B22>100,0,CD21*INDEX(Sterbtab_mix!$G$4:$G$104,CD$2+$B21)),11) -> 0 | CE22: =ROUND(IF(CE$2+$B22>100,0,CE21*INDEX(Sterbtab_mix!$G$4:$G$104,CE$2+$B21)),11) -> 0 | CF22: =ROUND(IF(CF$2+$B22>100,0,CF21*INDEX(Sterbtab_mix!$G$4:$G$104,CF$2+$B21)),11) -> 0 | CG22: =ROUND(IF(CG$2+$B22>100,0,CG21*INDEX(Sterbtab_mix!$G$4:$G$104,CG$2+$B21)),11) -> 0 | CH22: =ROUND(IF(CH$2+$B22>100,0,CH21*INDEX(Sterbtab_mix!$G$4:$G$104,CH$2+$B21)),11) -> 0 | CI22: =ROUND(IF(CI$2+$B22>100,0,CI21*INDEX(Sterbtab_mix!$G$4:$G$104,CI$2+$B21)),11) -> 0 | CJ22: =ROUND(IF(CJ$2+$B22>100,0,CJ21*INDEX(Sterbtab_mix!$G$4:$G$104,CJ$2+$B21)),11) -> 0
A23: 33 | B23: 18 | C23: =ROUND(IF(C$2+$B23>100,0,C22*INDEX(Sterbtab_mix!$G$4:$G$104,C$2+$B22)),11) -> 0.9910418821 | D23: =ROUND(IF(D$2+$B23>100,0,D22*INDEX(Sterbtab_mix!$G$4:$G$104,D$2+$B22)),11) -> 0.9906711461 | E23: =ROUND(IF(E$2+$B23>100,0,E22*INDEX(Sterbtab_mix!$G$4:$G$104,E$2+$B22)),11) -> 0.9903421416 | F23: =ROUND(IF(F$2+$B23>100,0,F22*INDEX(Sterbtab_mix!$G$4:$G$104,F$2+$B22)),11) -> 0.9900578011 | G23: =ROUND(IF(G$2+$B23>100,0,G22*INDEX(Sterbtab_mix!$G$4:$G$104,G$2+$B22)),11) -> 0.9898151199 | H23: =ROUND(IF(H$2+$B23>100,0,H22*INDEX(Sterbtab_mix!$G$4:$G$104,H$2+$B22)),11) -> 0.98959922 | I23: =ROUND(IF(I$2+$B23>100,0,I22*INDEX(Sterbtab_mix!$G$4:$G$104,I$2+$B22)),11) -> 0.9893803853 | J23: =ROUND(IF(J$2+$B23>100,0,J22*INDEX(Sterbtab_mix!$G$4:$G$104,J$2+$B22)),11) -> 0.9891219934 | K23: =ROUND(IF(K$2+$B23>100,0,K22*INDEX(Sterbtab_mix!$G$4:$G$104,K$2+$B22)),11) -> 0.9887864697 | L23: =ROUND(IF(L$2+$B23>100,0,L22*INDEX(Sterbtab_mix!$G$4:$G$104,L$2+$B22)),11) -> 0.988343223 | M23: =ROUND(IF(M$2+$B23>100,0,M22*INDEX(Sterbtab_mix!$G$4:$G$104,M$2+$B22)),11) -> 0.9877706356 | N23: =ROUND(IF(N$2+$B23>100,0,N22*INDEX(Sterbtab_mix!$G$4:$G$104,N$2+$B22)),11) -> 0.9870580439 | O23: =ROUND(IF(O$2+$B23>100,0,O22*INDEX(Sterbtab_mix!$G$4:$G$104,O$2+$B22)),11) -> 0.9861879551 | P23: =ROUND(IF(P$2+$B23>100,0,P22*INDEX(Sterbtab_mix!$G$4:$G$104,P$2+$B22)),11) -> 0.9851410275 | Q23: =ROUND(IF(Q$2+$B23>100,0,Q22*INDEX(Sterbtab_mix!$G$4:$G$104,Q$2+$B22)),11) -> 0.983899063 | R23: =ROUND(IF(R$2+$B23>100,0,R22*INDEX(Sterbtab_mix!$G$4:$G$104,R$2+$B22)),11) -> 0.9824460201 | S23: =ROUND(IF(S$2+$B23>100,0,S22*INDEX(Sterbtab_mix!$G$4:$G$104,S$2+$B22)),11) -> 0.9807660707 | T23: =ROUND(IF(T$2+$B23>100,0,T22*INDEX(Sterbtab_mix!$G$4:$G$104,T$2+$B22)),11) -> 0.9788446125 | U23: =ROUND(IF(U$2+$B23>100,0,U22*INDEX(Sterbtab_mix!$G$4:$G$104,U$2+$B22)),11) -> 0.9766634015 | V23: =ROUND(IF(V$2+$B23>100,0,V22*INDEX(Sterbtab_mix!$G$4:$G$104,V$2+$B22)),11) -> 0.9742055175 | W23: =ROUND(IF(W$2+$B23>100,0,W22*INDEX(Sterbtab_mix!$G$4:$G$104,W$2+$B22)),11) -> 0.9714505339 | X23: =ROUND(IF(X$2+$B23>100,0,X22*INDEX(Sterbtab_mix!$G$4:$G$104,X$2+$B22)),11) -> 0.9683726839 | Y23: =ROUND(IF(Y$2+$B23>100,0,Y22*INDEX(Sterbtab_mix!$G$4:$G$104,Y$2+$B22)),11) -> 0.9649410167 | Z23: =ROUND(IF(Z$2+$B23>100,0,Z22*INDEX(Sterbtab_mix!$G$4:$G$104,Z$2+$B22)),11) -> 0.9611263335 | AA23: =ROUND(IF(AA$2+$B23>100,0,AA22*INDEX(Sterbtab_mix!$G$4:$G$104,AA$2+$B22)),11) -> 0.9568945555 | AB23: =ROUND(IF(AB$2+$B23>100,0,AB22*INDEX(Sterbtab_mix!$G$4:$G$104,AB$2+$B22)),11) -> 0.9522088869 | AC23: =ROUND(IF(AC$2+$B23>100,0,AC22*INDEX(Sterbtab_mix!$G$4:$G$104,AC$2+$B22)),11) -> 0.9470367294 | AD23: =ROUND(IF(AD$2+$B23>100,0,AD22*INDEX(Sterbtab_mix!$G$4:$G$104,AD$2+$B22)),11) -> 0.9413526108 | AE23: =ROUND(IF(AE$2+$B23>100,0,AE22*INDEX(Sterbtab_mix!$G$4:$G$104,AE$2+$B22)),11) -> 0.9351344551 | AF23: =ROUND(IF(AF$2+$B23>100,0,AF22*INDEX(Sterbtab_mix!$G$4:$G$104,AF$2+$B22)),11) -> 0.9283720776 | AG23: =ROUND(IF(AG$2+$B23>100,0,AG22*INDEX(Sterbtab_mix!$G$4:$G$104,AG$2+$B22)),11) -> 0.9210651144 | AH23: =ROUND(IF(AH$2+$B23>100,0,AH22*INDEX(Sterbtab_mix!$G$4:$G$104,AH$2+$B22)),11) -> 0.9132255321 | AI23: =ROUND(IF(AI$2+$B23>100,0,AI22*INDEX(Sterbtab_mix!$G$4:$G$104,AI$2+$B22)),11) -> 0.9048680609 | AJ23: =ROUND(IF(AJ$2+$B23>100,0,AJ22*INDEX(Sterbtab_mix!$G$4:$G$104,AJ$2+$B22)),11) -> 0.8960091645 | AK23: =ROUND(IF(AK$2+$B23>100,0,AK22*INDEX(Sterbtab_mix!$G$4:$G$104,AK$2+$B22)),11) -> 0.8866597536 | AL23: =ROUND(IF(AL$2+$B23>100,0,AL22*INDEX(Sterbtab_mix!$G$4:$G$104,AL$2+$B22)),11) -> 0.8768218695 | AM23: =ROUND(IF(AM$2+$B23>100,0,AM22*INDEX(Sterbtab_mix!$G$4:$G$104,AM$2+$B22)),11) -> 0.8664804373 | AN23: =ROUND(IF(AN$2+$B23>100,0,AN22*INDEX(Sterbtab_mix!$G$4:$G$104,AN$2+$B22)),11) -> 0.8555956514 | AO23: =ROUND(IF(AO$2+$B23>100,0,AO22*INDEX(Sterbtab_mix!$G$4:$G$104,AO$2+$B22)),11) -> 0.8441047587 | AP23: =ROUND(IF(AP$2+$B23>100,0,AP22*INDEX(Sterbtab_mix!$G$4:$G$104,AP$2+$B22)),11) -> 0.8319198509 | AQ23: =ROUND(IF(AQ$2+$B23>100,0,AQ22*INDEX(Sterbtab_mix!$G$4:$G$104,AQ$2+$B22)),11) -> 0.8189464419 | AR23: =ROUND(IF(AR$2+$B23>100,0,AR22*INDEX(Sterbtab_mix!$G$4:$G$104,AR$2+$B22)),11) -> 0.8050490672 | AS23: =ROUND(IF(AS$2+$B23>100,0,AS22*INDEX(Sterbtab_mix!$G$4:$G$104,AS$2+$B22)),11) -> 0.7900670448 | AT23: =ROUND(IF(AT$2+$B23>100,0,AT22*INDEX(Sterbtab_mix!$G$4:$G$104,AT$2+$B22)),11) -> 0.7738166572 | AU23: =ROUND(IF(AU$2+$B23>100,0,AU22*INDEX(Sterbtab_mix!$G$4:$G$104,AU$2+$B22)),11) -> 0.7560915717 | AV23: =ROUND(IF(AV$2+$B23>100,0,AV22*INDEX(Sterbtab_mix!$G$4:$G$104,AV$2+$B22)),11) -> 0.7366692974 | AW23: =ROUND(IF(AW$2+$B23>100,0,AW22*INDEX(Sterbtab_mix!$G$4:$G$104,AW$2+$B22)),11) -> 0.7153145718 | AX23: =ROUND(IF(AX$2+$B23>100,0,AX22*INDEX(Sterbtab_mix!$G$4:$G$104,AX$2+$B22)),11) -> 0.6917917515 | AY23: =ROUND(IF(AY$2+$B23>100,0,AY22*INDEX(Sterbtab_mix!$G$4:$G$104,AY$2+$B22)),11) -> 0.6658785081 | AZ23: =ROUND(IF(AZ$2+$B23>100,0,AZ22*INDEX(Sterbtab_mix!$G$4:$G$104,AZ$2+$B22)),11) -> 0.6373904486 | BA23: =ROUND(IF(BA$2+$B23>100,0,BA22*INDEX(Sterbtab_mix!$G$4:$G$104,BA$2+$B22)),11) -> 0.6062034403 | BB23: =ROUND(IF(BB$2+$B23>100,0,BB22*INDEX(Sterbtab_mix!$G$4:$G$104,BB$2+$B22)),11) -> 0.5722799457 | BC23: =ROUND(IF(BC$2+$B23>100,0,BC22*INDEX(Sterbtab_mix!$G$4:$G$104,BC$2+$B22)),11) -> 0.5356961205 | BD23: =ROUND(IF(BD$2+$B23>100,0,BD22*INDEX(Sterbtab_mix!$G$4:$G$104,BD$2+$B22)),11) -> 0.4966590141 | BE23: =ROUND(IF(BE$2+$B23>100,0,BE22*INDEX(Sterbtab_mix!$G$4:$G$104,BE$2+$B22)),11) -> 0.4555245671 | BF23: =ROUND(IF(BF$2+$B23>100,0,BF22*INDEX(Sterbtab_mix!$G$4:$G$104,BF$2+$B22)),11) -> 0.4127968171 | BG23: =ROUND(IF(BG$2+$B23>100,0,BG22*INDEX(Sterbtab_mix!$G$4:$G$104,BG$2+$B22)),11) -> 0.369119424 | BH23: =ROUND(IF(BH$2+$B23>100,0,BH22*INDEX(Sterbtab_mix!$G$4:$G$104,BH$2+$B22)),11) -> 0.3252436821 | BI23: =ROUND(IF(BI$2+$B23>100,0,BI22*INDEX(Sterbtab_mix!$G$4:$G$104,BI$2+$B22)),11) -> 0.2820085549 | BJ23: =ROUND(IF(BJ$2+$B23>100,0,BJ22*INDEX(Sterbtab_mix!$G$4:$G$104,BJ$2+$B22)),11) -> 0.2402797938 | BK23: =ROUND(IF(BK$2+$B23>100,0,BK22*INDEX(Sterbtab_mix!$G$4:$G$104,BK$2+$B22)),11) -> 0.2008907687 | BL23: =ROUND(IF(BL$2+$B23>100,0,BL22*INDEX(Sterbtab_mix!$G$4:$G$104,BL$2+$B22)),11) -> 0.1645811812 | BM23: =ROUND(IF(BM$2+$B23>100,0,BM22*INDEX(Sterbtab_mix!$G$4:$G$104,BM$2+$B22)),11) -> 0.1319407047 | BN23: =ROUND(IF(BN$2+$B23>100,0,BN22*INDEX(Sterbtab_mix!$G$4:$G$104,BN$2+$B22)),11) -> 0.10336653 | BO23: =ROUND(IF(BO$2+$B23>100,0,BO22*INDEX(Sterbtab_mix!$G$4:$G$104,BO$2+$B22)),11) -> 0.079038678 | BP23: =ROUND(IF(BP$2+$B23>100,0,BP22*INDEX(Sterbtab_mix!$G$4:$G$104,BP$2+$B22)),11) -> 0.0589197282 | BQ23: =ROUND(IF(BQ$2+$B23>100,0,BQ22*INDEX(Sterbtab_mix!$G$4:$G$104,BQ$2+$B22)),11) -> 0.04277648335 | BR23: =ROUND(IF(BR$2+$B23>100,0,BR22*INDEX(Sterbtab_mix!$G$4:$G$104,BR$2+$B22)),11) -> 0.03022098833 | BS23: =ROUND(IF(BS$2+$B23>100,0,BS22*INDEX(Sterbtab_mix!$G$4:$G$104,BS$2+$B22)),11) -> 0 | BT23: =ROUND(IF(BT$2+$B23>100,0,BT22*INDEX(Sterbtab_mix!$G$4:$G$104,BT$2+$B22)),11) -> 0 | BU23: =ROUND(IF(BU$2+$B23>100,0,BU22*INDEX(Sterbtab_mix!$G$4:$G$104,BU$2+$B22)),11) -> 0 | BV23: =ROUND(IF(BV$2+$B23>100,0,BV22*INDEX(Sterbtab_mix!$G$4:$G$104,BV$2+$B22)),11) -> 0 | BW23: =ROUND(IF(BW$2+$B23>100,0,BW22*INDEX(Sterbtab_mix!$G$4:$G$104,BW$2+$B22)),11) -> 0 | BX23: =ROUND(IF(BX$2+$B23>100,0,BX22*INDEX(Sterbtab_mix!$G$4:$G$104,BX$2+$B22)),11) -> 0 | BY23: =ROUND(IF(BY$2+$B23>100,0,BY22*INDEX(Sterbtab_mix!$G$4:$G$104,BY$2+$B22)),11) -> 0 | BZ23: =ROUND(IF(BZ$2+$B23>100,0,BZ22*INDEX(Sterbtab_mix!$G$4:$G$104,BZ$2+$B22)),11) -> 0 | CA23: =ROUND(IF(CA$2+$B23>100,0,CA22*INDEX(Sterbtab_mix!$G$4:$G$104,CA$2+$B22)),11) -> 0 | CB23: =ROUND(IF(CB$2+$B23>100,0,CB22*INDEX(Sterbtab_mix!$G$4:$G$104,CB$2+$B22)),11) -> 0 | CC23: =ROUND(IF(CC$2+$B23>100,0,CC22*INDEX(Sterbtab_mix!$G$4:$G$104,CC$2+$B22)),11) -> 0 | CD23: =ROUND(IF(CD$2+$B23>100,0,CD22*INDEX(Sterbtab_mix!$G$4:$G$104,CD$2+$B22)),11) -> 0 | CE23: =ROUND(IF(CE$2+$B23>100,0,CE22*INDEX(Sterbtab_mix!$G$4:$G$104,CE$2+$B22)),11) -> 0 | CF23: =ROUND(IF(CF$2+$B23>100,0,CF22*INDEX(Sterbtab_mix!$G$4:$G$104,CF$2+$B22)),11) -> 0 | CG23: =ROUND(IF(CG$2+$B23>100,0,CG22*INDEX(Sterbtab_mix!$G$4:$G$104,CG$2+$B22)),11) -> 0 | CH23: =ROUND(IF(CH$2+$B23>100,0,CH22*INDEX(Sterbtab_mix!$G$4:$G$104,CH$2+$B22)),11) -> 0 | CI23: =ROUND(IF(CI$2+$B23>100,0,CI22*INDEX(Sterbtab_mix!$G$4:$G$104,CI$2+$B22)),11) -> 0 | CJ23: =ROUND(IF(CJ$2+$B23>100,0,CJ22*INDEX(Sterbtab_mix!$G$4:$G$104,CJ$2+$B22)),11) -> 0
A24: 34 | B24: 19 | C24: =ROUND(IF(C$2+$B24>100,0,C23*INDEX(Sterbtab_mix!$G$4:$G$104,C$2+$B23)),11) -> 0.9904403197 | D24: =ROUND(IF(D$2+$B24>100,0,D23*INDEX(Sterbtab_mix!$G$4:$G$104,D$2+$B23)),11) -> 0.9900361259 | E24: =ROUND(IF(E$2+$B24>100,0,E23*INDEX(Sterbtab_mix!$G$4:$G$104,E$2+$B23)),11) -> 0.9896667282 | F24: =ROUND(IF(F$2+$B24>100,0,F23*INDEX(Sterbtab_mix!$G$4:$G$104,F$2+$B23)),11) -> 0.9893380291 | G24: =ROUND(IF(G$2+$B24>100,0,G23*INDEX(Sterbtab_mix!$G$4:$G$104,G$2+$B23)),11) -> 0.9890480132 | H24: =ROUND(IF(H$2+$B24>100,0,H23*INDEX(Sterbtab_mix!$G$4:$G$104,H$2+$B23)),11) -> 0.9887778526 | I24: =ROUND(IF(I$2+$B24>100,0,I23*INDEX(Sterbtab_mix!$G$4:$G$104,I$2+$B23)),11) -> 0.9884958792 | J24: =ROUND(IF(J$2+$B24>100,0,J23*INDEX(Sterbtab_mix!$G$4:$G$104,J$2+$B23)),11) -> 0.9881635342 | K24: =ROUND(IF(K$2+$B24>100,0,K23*INDEX(Sterbtab_mix!$G$4:$G$104,K$2+$B23)),11) -> 0.9877403337 | L24: =ROUND(IF(L$2+$B24>100,0,L23*INDEX(Sterbtab_mix!$G$4:$G$104,L$2+$B23)),11) -> 0.9871898264 | M24: =ROUND(IF(M$2+$B24>100,0,M23*INDEX(Sterbtab_mix!$G$4:$G$104,M$2+$B23)),11) -> 0.9864914726 | N24: =ROUND(IF(N$2+$B24>100,0,N23*INDEX(Sterbtab_mix!$G$4:$G$104,N$2+$B23)),11) -> 0.985631745 | O24: =ROUND(IF(O$2+$B24>100,0,O23*INDEX(Sterbtab_mix!$G$4:$G$104,O$2+$B23)),11) -> 0.9845932891 | P24: =ROUND(IF(P$2+$B24>100,0,P23*INDEX(Sterbtab_mix!$G$4:$G$104,P$2+$B23)),11) -> 0.9833549669 | Q24: =ROUND(IF(Q$2+$B24>100,0,Q23*INDEX(Sterbtab_mix!$G$4:$G$104,Q$2+$B23)),11) -> 0.9818997801 | R24: =ROUND(IF(R$2+$B24>100,0,R23*INDEX(Sterbtab_mix!$G$4:$G$104,R$2+$B23)),11) -> 0.9802119379 | S24: =ROUND(IF(S$2+$B24>100,0,S23*INDEX(Sterbtab_mix!$G$4:$G$104,S$2+$B23)),11) -> 0.9782749249 | T24: =ROUND(IF(T$2+$B24>100,0,T23*INDEX(Sterbtab_mix!$G$4:$G$104,T$2+$B23)),11) -> 0.9760705668 | U24: =ROUND(IF(U$2+$B24>100,0,U23*INDEX(Sterbtab_mix!$G$4:$G$104,U$2+$B23)),11) -> 0.9735810518 | V24: =ROUND(IF(V$2+$B24>100,0,V23*INDEX(Sterbtab_mix!$G$4:$G$104,V$2+$B23)),11) -> 0.9707880046 | W24: =ROUND(IF(W$2+$B24>100,0,W23*INDEX(Sterbtab_mix!$G$4:$G$104,W$2+$B23)),11) -> 0.9676686769 | X24: =ROUND(IF(X$2+$B24>100,0,X23*INDEX(Sterbtab_mix!$G$4:$G$104,X$2+$B23)),11) -> 0.9641931874 | Y24: =ROUND(IF(Y$2+$B24>100,0,Y23*INDEX(Sterbtab_mix!$G$4:$G$104,Y$2+$B23)),11) -> 0.9603285986 | Z24: =ROUND(IF(Z$2+$B24>100,0,Z23*INDEX(Sterbtab_mix!$G$4:$G$104,Z$2+$B23)),11) -> 0.9560390918 | AA24: =ROUND(IF(AA$2+$B24>100,0,AA23*INDEX(Sterbtab_mix!$G$4:$G$104,AA$2+$B23)),11) -> 0.9512861965 | AB24: =ROUND(IF(AB$2+$B24>100,0,AB23*INDEX(Sterbtab_mix!$G$4:$G$104,AB$2+$B23)),11) -> 0.9460347645 | AC24: =ROUND(IF(AC$2+$B24>100,0,AC23*INDEX(Sterbtab_mix!$G$4:$G$104,AC$2+$B23)),11) -> 0.9402540523 | AD24: =ROUND(IF(AD$2+$B24>100,0,AD23*INDEX(Sterbtab_mix!$G$4:$G$104,AD$2+$B23)),11) -> 0.933923456 | AE24: =ROUND(IF(AE$2+$B24>100,0,AE23*INDEX(Sterbtab_mix!$G$4:$G$104,AE$2+$B23)),11) -> 0.9270305799 | AF24: =ROUND(IF(AF$2+$B24>100,0,AF23*INDEX(Sterbtab_mix!$G$4:$G$104,AF$2+$B23)),11) -> 0.9195757522 | AG24: =ROUND(IF(AG$2+$B24>100,0,AG23*INDEX(Sterbtab_mix!$G$4:$G$104,AG$2+$B23)),11) -> 0.9115698542 | AH24: =ROUND(IF(AH$2+$B24>100,0,AH23*INDEX(Sterbtab_mix!$G$4:$G$104,AH$2+$B23)),11) -> 0.903029369 | AI24: =ROUND(IF(AI$2+$B24>100,0,AI23*INDEX(Sterbtab_mix!$G$4:$G$104,AI$2+$B23)),11) -> 0.8939716397 | AJ24: =ROUND(IF(AJ$2+$B24>100,0,AJ23*INDEX(Sterbtab_mix!$G$4:$G$104,AJ$2+$B23)),11) -> 0.8844076379 | AK24: =ROUND(IF(AK$2+$B24>100,0,AK23*INDEX(Sterbtab_mix!$G$4:$G$104,AK$2+$B23)),11) -> 0.8743369564 | AL24: =ROUND(IF(AL$2+$B24>100,0,AL23*INDEX(Sterbtab_mix!$G$4:$G$104,AL$2+$B23)),11) -> 0.863745825 | AM24: =ROUND(IF(AM$2+$B24>100,0,AM23*INDEX(Sterbtab_mix!$G$4:$G$104,AM$2+$B23)),11) -> 0.8525942218 | AN24: =ROUND(IF(AN$2+$B24>100,0,AN23*INDEX(Sterbtab_mix!$G$4:$G$104,AN$2+$B23)),11) -> 0.8408186589 | AO24: =ROUND(IF(AO$2+$B24>100,0,AO23*INDEX(Sterbtab_mix!$G$4:$G$104,AO$2+$B23)),11) -> 0.8283292849 | AP24: =ROUND(IF(AP$2+$B24>100,0,AP23*INDEX(Sterbtab_mix!$G$4:$G$104,AP$2+$B23)),11) -> 0.815031878 | AQ24: =ROUND(IF(AQ$2+$B24>100,0,AQ23*INDEX(Sterbtab_mix!$G$4:$G$104,AQ$2+$B23)),11) -> 0.8007879425 | AR24: =ROUND(IF(AR$2+$B24>100,0,AR23*INDEX(Sterbtab_mix!$G$4:$G$104,AR$2+$B23)),11) -> 0.7854364618 | AS24: =ROUND(IF(AS$2+$B24>100,0,AS23*INDEX(Sterbtab_mix!$G$4:$G$104,AS$2+$B23)),11) -> 0.76879923 | AT24: =ROUND(IF(AT$2+$B24>100,0,AT23*INDEX(Sterbtab_mix!$G$4:$G$104,AT$2+$B23)),11) -> 0.7506764439 | AU24: =ROUND(IF(AU$2+$B24>100,0,AU23*INDEX(Sterbtab_mix!$G$4:$G$104,AU$2+$B23)),11) -> 0.7308555033 | AV24: =ROUND(IF(AV$2+$B24>100,0,AV23*INDEX(Sterbtab_mix!$G$4:$G$104,AV$2+$B23)),11) -> 0.7091156557 | AW24: =ROUND(IF(AW$2+$B24>100,0,AW23*INDEX(Sterbtab_mix!$G$4:$G$104,AW$2+$B23)),11) -> 0.6852370247 | AX24: =ROUND(IF(AX$2+$B24>100,0,AX23*INDEX(Sterbtab_mix!$G$4:$G$104,AX$2+$B23)),11) -> 0.6590139665 | AY24: =ROUND(IF(AY$2+$B24>100,0,AY23*INDEX(Sterbtab_mix!$G$4:$G$104,AY$2+$B23)),11) -> 0.6302739842 | AZ24: =ROUND(IF(AZ$2+$B24>100,0,AZ23*INDEX(Sterbtab_mix!$G$4:$G$104,AZ$2+$B23)),11) -> 0.5989035385 | BA24: =ROUND(IF(BA$2+$B24>100,0,BA23*INDEX(Sterbtab_mix!$G$4:$G$104,BA$2+$B23)),11) -> 0.564870065 | BB24: =ROUND(IF(BB$2+$B24>100,0,BB23*INDEX(Sterbtab_mix!$G$4:$G$104,BB$2+$B23)),11) -> 0.5282510158 | BC24: =ROUND(IF(BC$2+$B24>100,0,BC23*INDEX(Sterbtab_mix!$G$4:$G$104,BC$2+$B23)),11) -> 0.4892523382 | BD24: =ROUND(IF(BD$2+$B24>100,0,BD23*INDEX(Sterbtab_mix!$G$4:$G$104,BD$2+$B23)),11) -> 0.4482243304 | BE24: =ROUND(IF(BE$2+$B24>100,0,BE23*INDEX(Sterbtab_mix!$G$4:$G$104,BE$2+$B23)),11) -> 0.4056674033 | BF24: =ROUND(IF(BF$2+$B24>100,0,BF23*INDEX(Sterbtab_mix!$G$4:$G$104,BF$2+$B23)),11) -> 0.3622209511 | BG24: =ROUND(IF(BG$2+$B24>100,0,BG23*INDEX(Sterbtab_mix!$G$4:$G$104,BG$2+$B23)),11) -> 0.3186412354 | BH24: =ROUND(IF(BH$2+$B24>100,0,BH23*INDEX(Sterbtab_mix!$G$4:$G$104,BH$2+$B23)),11) -> 0.2757555792 | BI24: =ROUND(IF(BI$2+$B24>100,0,BI23*INDEX(Sterbtab_mix!$G$4:$G$104,BI$2+$B23)),11) -> 0.2344260974 | BJ24: =ROUND(IF(BJ$2+$B24>100,0,BJ23*INDEX(Sterbtab_mix!$G$4:$G$104,BJ$2+$B23)),11) -> 0.1954829901 | BK24: =ROUND(IF(BK$2+$B24>100,0,BK23*INDEX(Sterbtab_mix!$G$4:$G$104,BK$2+$B23)),11) -> 0.1596595456 | BL24: =ROUND(IF(BL$2+$B24>100,0,BL23*INDEX(Sterbtab_mix!$G$4:$G$104,BL$2+$B23)),11) -> 0.1275369198 | BM24: =ROUND(IF(BM$2+$B24>100,0,BM23*INDEX(Sterbtab_mix!$G$4:$G$104,BM$2+$B23)),11) -> 0.09950031169 | BN24: =ROUND(IF(BN$2+$B24>100,0,BN23*INDEX(Sterbtab_mix!$G$4:$G$104,BN$2+$B23)),11) -> 0.07571525967 | BO24: =ROUND(IF(BO$2+$B24>100,0,BO23*INDEX(Sterbtab_mix!$G$4:$G$104,BO$2+$B23)),11) -> 0.05612805256 | BP24: =ROUND(IF(BP$2+$B24>100,0,BP23*INDEX(Sterbtab_mix!$G$4:$G$104,BP$2+$B23)),11) -> 0.04048922478 | BQ24: =ROUND(IF(BQ$2+$B24>100,0,BQ23*INDEX(Sterbtab_mix!$G$4:$G$104,BQ$2+$B23)),11) -> 0.02839618461 | BR24: =ROUND(IF(BR$2+$B24>100,0,BR23*INDEX(Sterbtab_mix!$G$4:$G$104,BR$2+$B23)),11) -> 0 | BS24: =ROUND(IF(BS$2+$B24>100,0,BS23*INDEX(Sterbtab_mix!$G$4:$G$104,BS$2+$B23)),11) -> 0 | BT24: =ROUND(IF(BT$2+$B24>100,0,BT23*INDEX(Sterbtab_mix!$G$4:$G$104,BT$2+$B23)),11) -> 0 | BU24: =ROUND(IF(BU$2+$B24>100,0,BU23*INDEX(Sterbtab_mix!$G$4:$G$104,BU$2+$B23)),11) -> 0 | BV24: =ROUND(IF(BV$2+$B24>100,0,BV23*INDEX(Sterbtab_mix!$G$4:$G$104,BV$2+$B23)),11) -> 0 | BW24: =ROUND(IF(BW$2+$B24>100,0,BW23*INDEX(Sterbtab_mix!$G$4:$G$104,BW$2+$B23)),11) -> 0 | BX24: =ROUND(IF(BX$2+$B24>100,0,BX23*INDEX(Sterbtab_mix!$G$4:$G$104,BX$2+$B23)),11) -> 0 | BY24: =ROUND(IF(BY$2+$B24>100,0,BY23*INDEX(Sterbtab_mix!$G$4:$G$104,BY$2+$B23)),11) -> 0 | BZ24: =ROUND(IF(BZ$2+$B24>100,0,BZ23*INDEX(Sterbtab_mix!$G$4:$G$104,BZ$2+$B23)),11) -> 0 | CA24: =ROUND(IF(CA$2+$B24>100,0,CA23*INDEX(Sterbtab_mix!$G$4:$G$104,CA$2+$B23)),11) -> 0 | CB24: =ROUND(IF(CB$2+$B24>100,0,CB23*INDEX(Sterbtab_mix!$G$4:$G$104,CB$2+$B23)),11) -> 0 | CC24: =ROUND(IF(CC$2+$B24>100,0,CC23*INDEX(Sterbtab_mix!$G$4:$G$104,CC$2+$B23)),11) -> 0 | CD24: =ROUND(IF(CD$2+$B24>100,0,CD23*INDEX(Sterbtab_mix!$G$4:$G$104,CD$2+$B23)),11) -> 0 | CE24: =ROUND(IF(CE$2+$B24>100,0,CE23*INDEX(Sterbtab_mix!$G$4:$G$104,CE$2+$B23)),11) -> 0 | CF24: =ROUND(IF(CF$2+$B24>100,0,CF23*INDEX(Sterbtab_mix!$G$4:$G$104,CF$2+$B23)),11) -> 0 | CG24: =ROUND(IF(CG$2+$B24>100,0,CG23*INDEX(Sterbtab_mix!$G$4:$G$104,CG$2+$B23)),11) -> 0 | CH24: =ROUND(IF(CH$2+$B24>100,0,CH23*INDEX(Sterbtab_mix!$G$4:$G$104,CH$2+$B23)),11) -> 0 | CI24: =ROUND(IF(CI$2+$B24>100,0,CI23*INDEX(Sterbtab_mix!$G$4:$G$104,CI$2+$B23)),11) -> 0 | CJ24: =ROUND(IF(CJ$2+$B24>100,0,CJ23*INDEX(Sterbtab_mix!$G$4:$G$104,CJ$2+$B23)),11) -> 0
A25: 35 | B25: 20 | C25: =ROUND(IF(C$2+$B25>100,0,C24*INDEX(Sterbtab_mix!$G$4:$G$104,C$2+$B24)),11) -> 0.9898054474 | D25: =ROUND(IF(D$2+$B25>100,0,D24*INDEX(Sterbtab_mix!$G$4:$G$104,D$2+$B24)),11) -> 0.9893609212 | E25: =ROUND(IF(E$2+$B25>100,0,E24*INDEX(Sterbtab_mix!$G$4:$G$104,E$2+$B24)),11) -> 0.9889472405 | F25: =ROUND(IF(F$2+$B25>100,0,F24*INDEX(Sterbtab_mix!$G$4:$G$104,F$2+$B24)),11) -> 0.9885712921 | G25: =ROUND(IF(G$2+$B25>100,0,G24*INDEX(Sterbtab_mix!$G$4:$G$104,G$2+$B24)),11) -> 0.9882271034 | H25: =ROUND(IF(H$2+$B25>100,0,H24*INDEX(Sterbtab_mix!$G$4:$G$104,H$2+$B24)),11) -> 0.9878938852 | I25: =ROUND(IF(I$2+$B25>100,0,I24*INDEX(Sterbtab_mix!$G$4:$G$104,I$2+$B24)),11) -> 0.9875380267 | J25: =ROUND(IF(J$2+$B25>100,0,J24*INDEX(Sterbtab_mix!$G$4:$G$104,J$2+$B24)),11) -> 0.9871180572 | K25: =ROUND(IF(K$2+$B25>100,0,K24*INDEX(Sterbtab_mix!$G$4:$G$104,K$2+$B24)),11) -> 0.9865876407 | L25: =ROUND(IF(L$2+$B25>100,0,L24*INDEX(Sterbtab_mix!$G$4:$G$104,L$2+$B24)),11) -> 0.9859114156 | M25: =ROUND(IF(M$2+$B25>100,0,M24*INDEX(Sterbtab_mix!$G$4:$G$104,M$2+$B24)),11) -> 0.9850659924 | N25: =ROUND(IF(N$2+$B25>100,0,N24*INDEX(Sterbtab_mix!$G$4:$G$104,N$2+$B24)),11) -> 0.9840379785 | O25: =ROUND(IF(O$2+$B25>100,0,O24*INDEX(Sterbtab_mix!$G$4:$G$104,O$2+$B24)),11) -> 0.9828082215 | P25: =ROUND(IF(P$2+$B25>100,0,P24*INDEX(Sterbtab_mix!$G$4:$G$104,P$2+$B24)),11) -> 0.9813567896 | Q25: =ROUND(IF(Q$2+$B25>100,0,Q24*INDEX(Sterbtab_mix!$G$4:$G$104,Q$2+$B24)),11) -> 0.97966694 | R25: =ROUND(IF(R$2+$B25>100,0,R24*INDEX(Sterbtab_mix!$G$4:$G$104,R$2+$B24)),11) -> 0.9777221996 | S25: =ROUND(IF(S$2+$B25>100,0,S24*INDEX(Sterbtab_mix!$G$4:$G$104,S$2+$B24)),11) -> 0.9755024937 | T25: =ROUND(IF(T$2+$B25>100,0,T24*INDEX(Sterbtab_mix!$G$4:$G$104,T$2+$B24)),11) -> 0.9729900881 | U25: =ROUND(IF(U$2+$B25>100,0,U24*INDEX(Sterbtab_mix!$G$4:$G$104,U$2+$B24)),11) -> 0.9701657295 | V25: =ROUND(IF(V$2+$B25>100,0,V24*INDEX(Sterbtab_mix!$G$4:$G$104,V$2+$B24)),11) -> 0.9670087269 | W25: =ROUND(IF(W$2+$B25>100,0,W24*INDEX(Sterbtab_mix!$G$4:$G$104,W$2+$B24)),11) -> 0.9634922189 | X25: =ROUND(IF(X$2+$B25>100,0,X24*INDEX(Sterbtab_mix!$G$4:$G$104,X$2+$B24)),11) -> 0.959584344 | Y25: =ROUND(IF(Y$2+$B25>100,0,Y24*INDEX(Sterbtab_mix!$G$4:$G$104,Y$2+$B24)),11) -> 0.9552455793 | Z25: =ROUND(IF(Z$2+$B25>100,0,Z24*INDEX(Sterbtab_mix!$G$4:$G$104,Z$2+$B24)),11) -> 0.9504357467 | AA25: =ROUND(IF(AA$2+$B25>100,0,AA24*INDEX(Sterbtab_mix!$G$4:$G$104,AA$2+$B24)),11) -> 0.9451180568 | AB25: =ROUND(IF(AB$2+$B25>100,0,AB24*INDEX(Sterbtab_mix!$G$4:$G$104,AB$2+$B24)),11) -> 0.9392592635 | AC25: =ROUND(IF(AC$2+$B25>100,0,AC24*INDEX(Sterbtab_mix!$G$4:$G$104,AC$2+$B24)),11) -> 0.9328335674 | AD25: =ROUND(IF(AD$2+$B25>100,0,AD24*INDEX(Sterbtab_mix!$G$4:$G$104,AD$2+$B24)),11) -> 0.9258300753 | AE25: =ROUND(IF(AE$2+$B25>100,0,AE24*INDEX(Sterbtab_mix!$G$4:$G$104,AE$2+$B24)),11) -> 0.9182469652 | AF25: =ROUND(IF(AF$2+$B25>100,0,AF24*INDEX(Sterbtab_mix!$G$4:$G$104,AF$2+$B24)),11) -> 0.9100958457 | AG25: =ROUND(IF(AG$2+$B25>100,0,AG24*INDEX(Sterbtab_mix!$G$4:$G$104,AG$2+$B24)),11) -> 0.9013921768 | AH25: =ROUND(IF(AH$2+$B25>100,0,AH24*INDEX(Sterbtab_mix!$G$4:$G$104,AH$2+$B24)),11) -> 0.8921550893 | AI25: =ROUND(IF(AI$2+$B25>100,0,AI24*INDEX(Sterbtab_mix!$G$4:$G$104,AI$2+$B24)),11) -> 0.8823964949 | AJ25: =ROUND(IF(AJ$2+$B25>100,0,AJ24*INDEX(Sterbtab_mix!$G$4:$G$104,AJ$2+$B24)),11) -> 0.8721161405 | AK25: =ROUND(IF(AK$2+$B25>100,0,AK24*INDEX(Sterbtab_mix!$G$4:$G$104,AK$2+$B24)),11) -> 0.8612979694 | AL25: =ROUND(IF(AL$2+$B25>100,0,AL24*INDEX(Sterbtab_mix!$G$4:$G$104,AL$2+$B24)),11) -> 0.8499034344 | AM25: =ROUND(IF(AM$2+$B25>100,0,AM24*INDEX(Sterbtab_mix!$G$4:$G$104,AM$2+$B24)),11) -> 0.837869067 | AN25: =ROUND(IF(AN$2+$B25>100,0,AN24*INDEX(Sterbtab_mix!$G$4:$G$104,AN$2+$B24)),11) -> 0.8251045989 | AO25: =ROUND(IF(AO$2+$B25>100,0,AO24*INDEX(Sterbtab_mix!$G$4:$G$104,AO$2+$B24)),11) -> 0.8115142004 | AP25: =ROUND(IF(AP$2+$B25>100,0,AP24*INDEX(Sterbtab_mix!$G$4:$G$104,AP$2+$B24)),11) -> 0.7969601761 | AQ25: =ROUND(IF(AQ$2+$B25>100,0,AQ24*INDEX(Sterbtab_mix!$G$4:$G$104,AQ$2+$B24)),11) -> 0.7812791466 | AR25: =ROUND(IF(AR$2+$B25>100,0,AR24*INDEX(Sterbtab_mix!$G$4:$G$104,AR$2+$B24)),11) -> 0.7642932977 | AS25: =ROUND(IF(AS$2+$B25>100,0,AS24*INDEX(Sterbtab_mix!$G$4:$G$104,AS$2+$B24)),11) -> 0.7458090578 | AT25: =ROUND(IF(AT$2+$B25>100,0,AT24*INDEX(Sterbtab_mix!$G$4:$G$104,AT$2+$B24)),11) -> 0.7256211162 | AU25: =ROUND(IF(AU$2+$B25>100,0,AU24*INDEX(Sterbtab_mix!$G$4:$G$104,AU$2+$B24)),11) -> 0.7035193149 | AV25: =ROUND(IF(AV$2+$B25>100,0,AV24*INDEX(Sterbtab_mix!$G$4:$G$104,AV$2+$B24)),11) -> 0.6792987606 | AW25: =ROUND(IF(AW$2+$B25>100,0,AW24*INDEX(Sterbtab_mix!$G$4:$G$104,AW$2+$B24)),11) -> 0.6527698092 | AX25: =ROUND(IF(AX$2+$B25>100,0,AX24*INDEX(Sterbtab_mix!$G$4:$G$104,AX$2+$B24)),11) -> 0.6237764897 | AY25: =ROUND(IF(AY$2+$B25>100,0,AY24*INDEX(Sterbtab_mix!$G$4:$G$104,AY$2+$B24)),11) -> 0.5922167805 | AZ25: =ROUND(IF(AZ$2+$B25>100,0,AZ24*INDEX(Sterbtab_mix!$G$4:$G$104,AZ$2+$B24)),11) -> 0.5580678997 | BA25: =ROUND(IF(BA$2+$B25>100,0,BA24*INDEX(Sterbtab_mix!$G$4:$G$104,BA$2+$B24)),11) -> 0.5214112216 | BB25: =ROUND(IF(BB$2+$B25>100,0,BB24*INDEX(Sterbtab_mix!$G$4:$G$104,BB$2+$B24)),11) -> 0.4824527093 | BC25: =ROUND(IF(BC$2+$B25>100,0,BC24*INDEX(Sterbtab_mix!$G$4:$G$104,BC$2+$B24)),11) -> 0.441539961 | BD25: =ROUND(IF(BD$2+$B25>100,0,BD24*INDEX(Sterbtab_mix!$G$4:$G$104,BD$2+$B24)),11) -> 0.3991661775 | BE25: =ROUND(IF(BE$2+$B25>100,0,BE24*INDEX(Sterbtab_mix!$G$4:$G$104,BE$2+$B24)),11) -> 0.355965033 | BF25: =ROUND(IF(BF$2+$B25>100,0,BF24*INDEX(Sterbtab_mix!$G$4:$G$104,BF$2+$B24)),11) -> 0.3126861493 | BG25: =ROUND(IF(BG$2+$B25>100,0,BG24*INDEX(Sterbtab_mix!$G$4:$G$104,BG$2+$B24)),11) -> 0.2701577409 | BH25: =ROUND(IF(BH$2+$B25>100,0,BH24*INDEX(Sterbtab_mix!$G$4:$G$104,BH$2+$B24)),11) -> 0.2292281676 | BI25: =ROUND(IF(BI$2+$B25>100,0,BI24*INDEX(Sterbtab_mix!$G$4:$G$104,BI$2+$B24)),11) -> 0.1907206335 | BJ25: =ROUND(IF(BJ$2+$B25>100,0,BJ24*INDEX(Sterbtab_mix!$G$4:$G$104,BJ$2+$B24)),11) -> 0.1553616703 | BK25: =ROUND(IF(BK$2+$B25>100,0,BK24*INDEX(Sterbtab_mix!$G$4:$G$104,BK$2+$B24)),11) -> 0.1237230557 | BL25: =ROUND(IF(BL$2+$B25>100,0,BL24*INDEX(Sterbtab_mix!$G$4:$G$104,BL$2+$B24)),11) -> 0.09617928979 | BM25: =ROUND(IF(BM$2+$B25>100,0,BM24*INDEX(Sterbtab_mix!$G$4:$G$104,BM$2+$B24)),11) -> 0.07288328181 | BN25: =ROUND(IF(BN$2+$B25>100,0,BN24*INDEX(Sterbtab_mix!$G$4:$G$104,BN$2+$B24)),11) -> 0.05376798021 | BO25: =ROUND(IF(BO$2+$B25>100,0,BO24*INDEX(Sterbtab_mix!$G$4:$G$104,BO$2+$B24)),11) -> 0.03857080482 | BP25: =ROUND(IF(BP$2+$B25>100,0,BP24*INDEX(Sterbtab_mix!$G$4:$G$104,BP$2+$B24)),11) -> 0.02687784062 | BQ25: =ROUND(IF(BQ$2+$B25>100,0,BQ24*INDEX(Sterbtab_mix!$G$4:$G$104,BQ$2+$B24)),11) -> 0 | BR25: =ROUND(IF(BR$2+$B25>100,0,BR24*INDEX(Sterbtab_mix!$G$4:$G$104,BR$2+$B24)),11) -> 0 | BS25: =ROUND(IF(BS$2+$B25>100,0,BS24*INDEX(Sterbtab_mix!$G$4:$G$104,BS$2+$B24)),11) -> 0 | BT25: =ROUND(IF(BT$2+$B25>100,0,BT24*INDEX(Sterbtab_mix!$G$4:$G$104,BT$2+$B24)),11) -> 0 | BU25: =ROUND(IF(BU$2+$B25>100,0,BU24*INDEX(Sterbtab_mix!$G$4:$G$104,BU$2+$B24)),11) -> 0 | BV25: =ROUND(IF(BV$2+$B25>100,0,BV24*INDEX(Sterbtab_mix!$G$4:$G$104,BV$2+$B24)),11) -> 0 | BW25: =ROUND(IF(BW$2+$B25>100,0,BW24*INDEX(Sterbtab_mix!$G$4:$G$104,BW$2+$B24)),11) -> 0 | BX25: =ROUND(IF(BX$2+$B25>100,0,BX24*INDEX(Sterbtab_mix!$G$4:$G$104,BX$2+$B24)),11) -> 0 | BY25: =ROUND(IF(BY$2+$B25>100,0,BY24*INDEX(Sterbtab_mix!$G$4:$G$104,BY$2+$B24)),11) -> 0 | BZ25: =ROUND(IF(BZ$2+$B25>100,0,BZ24*INDEX(Sterbtab_mix!$G$4:$G$104,BZ$2+$B24)),11) -> 0 | CA25: =ROUND(IF(CA$2+$B25>100,0,CA24*INDEX(Sterbtab_mix!$G$4:$G$104,CA$2+$B24)),11) -> 0 | CB25: =ROUND(IF(CB$2+$B25>100,0,CB24*INDEX(Sterbtab_mix!$G$4:$G$104,CB$2+$B24)),11) -> 0 | CC25: =ROUND(IF(CC$2+$B25>100,0,CC24*INDEX(Sterbtab_mix!$G$4:$G$104,CC$2+$B24)),11) -> 0 | CD25: =ROUND(IF(CD$2+$B25>100,0,CD24*INDEX(Sterbtab_mix!$G$4:$G$104,CD$2+$B24)),11) -> 0 | CE25: =ROUND(IF(CE$2+$B25>100,0,CE24*INDEX(Sterbtab_mix!$G$4:$G$104,CE$2+$B24)),11) -> 0 | CF25: =ROUND(IF(CF$2+$B25>100,0,CF24*INDEX(Sterbtab_mix!$G$4:$G$104,CF$2+$B24)),11) -> 0 | CG25: =ROUND(IF(CG$2+$B25>100,0,CG24*INDEX(Sterbtab_mix!$G$4:$G$104,CG$2+$B24)),11) -> 0 | CH25: =ROUND(IF(CH$2+$B25>100,0,CH24*INDEX(Sterbtab_mix!$G$4:$G$104,CH$2+$B24)),11) -> 0 | CI25: =ROUND(IF(CI$2+$B25>100,0,CI24*INDEX(Sterbtab_mix!$G$4:$G$104,CI$2+$B24)),11) -> 0 | CJ25: =ROUND(IF(CJ$2+$B25>100,0,CJ24*INDEX(Sterbtab_mix!$G$4:$G$104,CJ$2+$B24)),11) -> 0
A26: 36 | B26: 21 | C26: =ROUND(IF(C$2+$B26>100,0,C25*INDEX(Sterbtab_mix!$G$4:$G$104,C$2+$B25)),11) -> 0.9891304001 | D26: =ROUND(IF(D$2+$B26>100,0,D25*INDEX(Sterbtab_mix!$G$4:$G$104,D$2+$B25)),11) -> 0.9886416558 | E26: =ROUND(IF(E$2+$B26>100,0,E25*INDEX(Sterbtab_mix!$G$4:$G$104,E$2+$B25)),11) -> 0.9881808064 | F26: =ROUND(IF(F$2+$B26>100,0,F25*INDEX(Sterbtab_mix!$G$4:$G$104,F$2+$B25)),11) -> 0.9877507779 | G26: =ROUND(IF(G$2+$B26>100,0,G25*INDEX(Sterbtab_mix!$G$4:$G$104,G$2+$B25)),11) -> 0.9873436283 | H26: =ROUND(IF(H$2+$B26>100,0,H25*INDEX(Sterbtab_mix!$G$4:$G$104,H$2+$B25)),11) -> 0.9869366161 | I26: =ROUND(IF(I$2+$B26>100,0,I25*INDEX(Sterbtab_mix!$G$4:$G$104,I$2+$B25)),11) -> 0.9864932115 | J26: =ROUND(IF(J$2+$B26>100,0,J25*INDEX(Sterbtab_mix!$G$4:$G$104,J$2+$B25)),11) -> 0.9859660904 | K26: =ROUND(IF(K$2+$B26>100,0,K25*INDEX(Sterbtab_mix!$G$4:$G$104,K$2+$B25)),11) -> 0.9853100097 | L26: =ROUND(IF(L$2+$B26>100,0,L25*INDEX(Sterbtab_mix!$G$4:$G$104,L$2+$B25)),11) -> 0.9844867736 | M26: =ROUND(IF(M$2+$B26>100,0,M25*INDEX(Sterbtab_mix!$G$4:$G$104,M$2+$B25)),11) -> 0.9834731407 | N26: =ROUND(IF(N$2+$B26>100,0,N25*INDEX(Sterbtab_mix!$G$4:$G$104,N$2+$B25)),11) -> 0.9822539177 | O26: =ROUND(IF(O$2+$B26>100,0,O25*INDEX(Sterbtab_mix!$G$4:$G$104,O$2+$B25)),11) -> 0.9808111552 | P26: =ROUND(IF(P$2+$B26>100,0,P25*INDEX(Sterbtab_mix!$G$4:$G$104,P$2+$B25)),11) -> 0.9791251842 | Q26: =ROUND(IF(Q$2+$B26>100,0,Q25*INDEX(Sterbtab_mix!$G$4:$G$104,Q$2+$B25)),11) -> 0.977178586 | R26: =ROUND(IF(R$2+$B26>100,0,R25*INDEX(Sterbtab_mix!$G$4:$G$104,R$2+$B25)),11) -> 0.9749513348 | S26: =ROUND(IF(S$2+$B26>100,0,S25*INDEX(Sterbtab_mix!$G$4:$G$104,S$2+$B25)),11) -> 0.9724238079 | T26: =ROUND(IF(T$2+$B26>100,0,T25*INDEX(Sterbtab_mix!$G$4:$G$104,T$2+$B25)),11) -> 0.9695768389 | U26: =ROUND(IF(U$2+$B26>100,0,U25*INDEX(Sterbtab_mix!$G$4:$G$104,U$2+$B25)),11) -> 0.9663888743 | V26: =ROUND(IF(V$2+$B26>100,0,V25*INDEX(Sterbtab_mix!$G$4:$G$104,V$2+$B25)),11) -> 0.9628351172 | W26: =ROUND(IF(W$2+$B26>100,0,W25*INDEX(Sterbtab_mix!$G$4:$G$104,W$2+$B25)),11) -> 0.9588867261 | X26: =ROUND(IF(X$2+$B26>100,0,X25*INDEX(Sterbtab_mix!$G$4:$G$104,X$2+$B25)),11) -> 0.954505264 | Y26: =ROUND(IF(Y$2+$B26>100,0,Y25*INDEX(Sterbtab_mix!$G$4:$G$104,Y$2+$B25)),11) -> 0.949646885 | Z26: =ROUND(IF(Z$2+$B26>100,0,Z25*INDEX(Sterbtab_mix!$G$4:$G$104,Z$2+$B25)),11) -> 0.9442731213 | AA26: =ROUND(IF(AA$2+$B26>100,0,AA25*INDEX(Sterbtab_mix!$G$4:$G$104,AA$2+$B25)),11) -> 0.9383491213 | AB26: =ROUND(IF(AB$2+$B26>100,0,AB25*INDEX(Sterbtab_mix!$G$4:$G$104,AB$2+$B25)),11) -> 0.9318466294 | AC26: =ROUND(IF(AC$2+$B26>100,0,AC25*INDEX(Sterbtab_mix!$G$4:$G$104,AC$2+$B25)),11) -> 0.9247496317 | AD26: =ROUND(IF(AD$2+$B26>100,0,AD25*INDEX(Sterbtab_mix!$G$4:$G$104,AD$2+$B25)),11) -> 0.9170578354 | AE26: =ROUND(IF(AE$2+$B26>100,0,AE25*INDEX(Sterbtab_mix!$G$4:$G$104,AE$2+$B25)),11) -> 0.9087807572 | AF26: =ROUND(IF(AF$2+$B26>100,0,AF25*INDEX(Sterbtab_mix!$G$4:$G$104,AF$2+$B25)),11) -> 0.8999346256 | AG26: =ROUND(IF(AG$2+$B26>100,0,AG25*INDEX(Sterbtab_mix!$G$4:$G$104,AG$2+$B25)),11) -> 0.8905376122 | AH26: =ROUND(IF(AH$2+$B26>100,0,AH25*INDEX(Sterbtab_mix!$G$4:$G$104,AH$2+$B25)),11) -> 0.8806034652 | AI26: =ROUND(IF(AI$2+$B26>100,0,AI25*INDEX(Sterbtab_mix!$G$4:$G$104,AI$2+$B25)),11) -> 0.8701329484 | AJ26: =ROUND(IF(AJ$2+$B26>100,0,AJ25*INDEX(Sterbtab_mix!$G$4:$G$104,AJ$2+$B25)),11) -> 0.8591102725 | AK26: =ROUND(IF(AK$2+$B26>100,0,AK25*INDEX(Sterbtab_mix!$G$4:$G$104,AK$2+$B25)),11) -> 0.8474948081 | AL26: =ROUND(IF(AL$2+$B26>100,0,AL25*INDEX(Sterbtab_mix!$G$4:$G$104,AL$2+$B25)),11) -> 0.8352247522 | AM26: =ROUND(IF(AM$2+$B26>100,0,AM25*INDEX(Sterbtab_mix!$G$4:$G$104,AM$2+$B25)),11) -> 0.822210132 | AN26: =ROUND(IF(AN$2+$B26>100,0,AN25*INDEX(Sterbtab_mix!$G$4:$G$104,AN$2+$B25)),11) -> 0.8083549756 | AO26: =ROUND(IF(AO$2+$B26>100,0,AO25*INDEX(Sterbtab_mix!$G$4:$G$104,AO$2+$B25)),11) -> 0.793520496 | AP26: =ROUND(IF(AP$2+$B26>100,0,AP25*INDEX(Sterbtab_mix!$G$4:$G$104,AP$2+$B25)),11) -> 0.7775446323 | AQ26: =ROUND(IF(AQ$2+$B26>100,0,AQ25*INDEX(Sterbtab_mix!$G$4:$G$104,AQ$2+$B25)),11) -> 0.7602478933 | AR26: =ROUND(IF(AR$2+$B26>100,0,AR25*INDEX(Sterbtab_mix!$G$4:$G$104,AR$2+$B25)),11) -> 0.7414378709 | AS26: =ROUND(IF(AS$2+$B26>100,0,AS25*INDEX(Sterbtab_mix!$G$4:$G$104,AS$2+$B25)),11) -> 0.7209161889 | AT26: =ROUND(IF(AT$2+$B26>100,0,AT25*INDEX(Sterbtab_mix!$G$4:$G$104,AT$2+$B25)),11) -> 0.6984807096 | AU26: =ROUND(IF(AU$2+$B26>100,0,AU25*INDEX(Sterbtab_mix!$G$4:$G$104,AU$2+$B25)),11) -> 0.6739377348 | AV26: =ROUND(IF(AV$2+$B26>100,0,AV25*INDEX(Sterbtab_mix!$G$4:$G$104,AV$2+$B25)),11) -> 0.647112906 | AW26: =ROUND(IF(AW$2+$B26>100,0,AW25*INDEX(Sterbtab_mix!$G$4:$G$104,AW$2+$B25)),11) -> 0.6178662075 | AX26: =ROUND(IF(AX$2+$B26>100,0,AX25*INDEX(Sterbtab_mix!$G$4:$G$104,AX$2+$B25)),11) -> 0.5861116177 | AY26: =ROUND(IF(AY$2+$B26>100,0,AY25*INDEX(Sterbtab_mix!$G$4:$G$104,AY$2+$B25)),11) -> 0.5518370716 | AZ26: =ROUND(IF(AZ$2+$B26>100,0,AZ25*INDEX(Sterbtab_mix!$G$4:$G$104,AZ$2+$B25)),11) -> 0.5151323877 | BA26: =ROUND(IF(BA$2+$B26>100,0,BA25*INDEX(Sterbtab_mix!$G$4:$G$104,BA$2+$B25)),11) -> 0.4762059116 | BB26: =ROUND(IF(BB$2+$B26>100,0,BB25*INDEX(Sterbtab_mix!$G$4:$G$104,BB$2+$B25)),11) -> 0.4354034386 | BC26: =ROUND(IF(BC$2+$B26>100,0,BC25*INDEX(Sterbtab_mix!$G$4:$G$104,BC$2+$B25)),11) -> 0.3932134122 | BD26: =ROUND(IF(BD$2+$B26>100,0,BD25*INDEX(Sterbtab_mix!$G$4:$G$104,BD$2+$B25)),11) -> 0.3502603374 | BE26: =ROUND(IF(BE$2+$B26>100,0,BE25*INDEX(Sterbtab_mix!$G$4:$G$104,BE$2+$B25)),11) -> 0.3072857468 | BF26: =ROUND(IF(BF$2+$B26>100,0,BF25*INDEX(Sterbtab_mix!$G$4:$G$104,BF$2+$B25)),11) -> 0.2651087629 | BG26: =ROUND(IF(BG$2+$B26>100,0,BG25*INDEX(Sterbtab_mix!$G$4:$G$104,BG$2+$B25)),11) -> 0.2245748358 | BH26: =ROUND(IF(BH$2+$B26>100,0,BH25*INDEX(Sterbtab_mix!$G$4:$G$104,BH$2+$B25)),11) -> 0.1864917849 | BI26: =ROUND(IF(BI$2+$B26>100,0,BI25*INDEX(Sterbtab_mix!$G$4:$G$104,BI$2+$B25)),11) -> 0.1515767493 | BJ26: =ROUND(IF(BJ$2+$B26>100,0,BJ25*INDEX(Sterbtab_mix!$G$4:$G$104,BJ$2+$B25)),11) -> 0.1203925548 | BK26: =ROUND(IF(BK$2+$B26>100,0,BK25*INDEX(Sterbtab_mix!$G$4:$G$104,BK$2+$B25)),11) -> 0.0933031443 | BL26: =ROUND(IF(BL$2+$B26>100,0,BL25*INDEX(Sterbtab_mix!$G$4:$G$104,BL$2+$B25)),11) -> 0.07045065652 | BM26: =ROUND(IF(BM$2+$B26>100,0,BM25*INDEX(Sterbtab_mix!$G$4:$G$104,BM$2+$B25)),11) -> 0.05175689644 | BN26: =ROUND(IF(BN$2+$B26>100,0,BN25*INDEX(Sterbtab_mix!$G$4:$G$104,BN$2+$B25)),11) -> 0.03694897962 | BO26: =ROUND(IF(BO$2+$B26>100,0,BO25*INDEX(Sterbtab_mix!$G$4:$G$104,BO$2+$B25)),11) -> 0.02560434165 | BP26: =ROUND(IF(BP$2+$B26>100,0,BP25*INDEX(Sterbtab_mix!$G$4:$G$104,BP$2+$B25)),11) -> 0 | BQ26: =ROUND(IF(BQ$2+$B26>100,0,BQ25*INDEX(Sterbtab_mix!$G$4:$G$104,BQ$2+$B25)),11) -> 0 | BR26: =ROUND(IF(BR$2+$B26>100,0,BR25*INDEX(Sterbtab_mix!$G$4:$G$104,BR$2+$B25)),11) -> 0 | BS26: =ROUND(IF(BS$2+$B26>100,0,BS25*INDEX(Sterbtab_mix!$G$4:$G$104,BS$2+$B25)),11) -> 0 | BT26: =ROUND(IF(BT$2+$B26>100,0,BT25*INDEX(Sterbtab_mix!$G$4:$G$104,BT$2+$B25)),11) -> 0 | BU26: =ROUND(IF(BU$2+$B26>100,0,BU25*INDEX(Sterbtab_mix!$G$4:$G$104,BU$2+$B25)),11) -> 0 | BV26: =ROUND(IF(BV$2+$B26>100,0,BV25*INDEX(Sterbtab_mix!$G$4:$G$104,BV$2+$B25)),11) -> 0 | BW26: =ROUND(IF(BW$2+$B26>100,0,BW25*INDEX(Sterbtab_mix!$G$4:$G$104,BW$2+$B25)),11) -> 0 | BX26: =ROUND(IF(BX$2+$B26>100,0,BX25*INDEX(Sterbtab_mix!$G$4:$G$104,BX$2+$B25)),11) -> 0 | BY26: =ROUND(IF(BY$2+$B26>100,0,BY25*INDEX(Sterbtab_mix!$G$4:$G$104,BY$2+$B25)),11) -> 0 | BZ26: =ROUND(IF(BZ$2+$B26>100,0,BZ25*INDEX(Sterbtab_mix!$G$4:$G$104,BZ$2+$B25)),11) -> 0 | CA26: =ROUND(IF(CA$2+$B26>100,0,CA25*INDEX(Sterbtab_mix!$G$4:$G$104,CA$2+$B25)),11) -> 0 | CB26: =ROUND(IF(CB$2+$B26>100,0,CB25*INDEX(Sterbtab_mix!$G$4:$G$104,CB$2+$B25)),11) -> 0 | CC26: =ROUND(IF(CC$2+$B26>100,0,CC25*INDEX(Sterbtab_mix!$G$4:$G$104,CC$2+$B25)),11) -> 0 | CD26: =ROUND(IF(CD$2+$B26>100,0,CD25*INDEX(Sterbtab_mix!$G$4:$G$104,CD$2+$B25)),11) -> 0 | CE26: =ROUND(IF(CE$2+$B26>100,0,CE25*INDEX(Sterbtab_mix!$G$4:$G$104,CE$2+$B25)),11) -> 0 | CF26: =ROUND(IF(CF$2+$B26>100,0,CF25*INDEX(Sterbtab_mix!$G$4:$G$104,CF$2+$B25)),11) -> 0 | CG26: =ROUND(IF(CG$2+$B26>100,0,CG25*INDEX(Sterbtab_mix!$G$4:$G$104,CG$2+$B25)),11) -> 0 | CH26: =ROUND(IF(CH$2+$B26>100,0,CH25*INDEX(Sterbtab_mix!$G$4:$G$104,CH$2+$B25)),11) -> 0 | CI26: =ROUND(IF(CI$2+$B26>100,0,CI25*INDEX(Sterbtab_mix!$G$4:$G$104,CI$2+$B25)),11) -> 0 | CJ26: =ROUND(IF(CJ$2+$B26>100,0,CJ25*INDEX(Sterbtab_mix!$G$4:$G$104,CJ$2+$B25)),11) -> 0
A27: 37 | B27: 22 | C27: =ROUND(IF(C$2+$B27>100,0,C26*INDEX(Sterbtab_mix!$G$4:$G$104,C$2+$B26)),11) -> 0.9884113023 | D27: =ROUND(IF(D$2+$B27>100,0,D26*INDEX(Sterbtab_mix!$G$4:$G$104,D$2+$B26)),11) -> 0.9878754586 | E27: =ROUND(IF(E$2+$B27>100,0,E26*INDEX(Sterbtab_mix!$G$4:$G$104,E$2+$B26)),11) -> 0.9873606163 | F27: =ROUND(IF(F$2+$B27>100,0,F26*INDEX(Sterbtab_mix!$G$4:$G$104,F$2+$B26)),11) -> 0.9868677287 | G27: =ROUND(IF(G$2+$B27>100,0,G26*INDEX(Sterbtab_mix!$G$4:$G$104,G$2+$B26)),11) -> 0.9863868923 | H27: =ROUND(IF(H$2+$B27>100,0,H26*INDEX(Sterbtab_mix!$G$4:$G$104,H$2+$B26)),11) -> 0.9858924371 | I27: =ROUND(IF(I$2+$B27>100,0,I26*INDEX(Sterbtab_mix!$G$4:$G$104,I$2+$B26)),11) -> 0.9853419739 | J27: =ROUND(IF(J$2+$B27>100,0,J26*INDEX(Sterbtab_mix!$G$4:$G$104,J$2+$B26)),11) -> 0.9846892643 | K27: =ROUND(IF(K$2+$B27>100,0,K26*INDEX(Sterbtab_mix!$G$4:$G$104,K$2+$B26)),11) -> 0.9838862367 | L27: =ROUND(IF(L$2+$B27>100,0,L26*INDEX(Sterbtab_mix!$G$4:$G$104,L$2+$B26)),11) -> 0.9828948585 | M27: =ROUND(IF(M$2+$B27>100,0,M26*INDEX(Sterbtab_mix!$G$4:$G$104,M$2+$B26)),11) -> 0.9816901039 | N27: =ROUND(IF(N$2+$B27>100,0,N26*INDEX(Sterbtab_mix!$G$4:$G$104,N$2+$B26)),11) -> 0.9802579777 | O27: =ROUND(IF(O$2+$B27>100,0,O26*INDEX(Sterbtab_mix!$G$4:$G$104,O$2+$B26)),11) -> 0.9785807906 | P27: =ROUND(IF(P$2+$B27>100,0,P26*INDEX(Sterbtab_mix!$G$4:$G$104,P$2+$B26)),11) -> 0.9766382062 | Q27: =ROUND(IF(Q$2+$B27>100,0,Q26*INDEX(Sterbtab_mix!$G$4:$G$104,Q$2+$B26)),11) -> 0.9744092619 | R27: =ROUND(IF(R$2+$B27>100,0,R26*INDEX(Sterbtab_mix!$G$4:$G$104,R$2+$B26)),11) -> 0.9718743884 | S27: =ROUND(IF(S$2+$B27>100,0,S26*INDEX(Sterbtab_mix!$G$4:$G$104,S$2+$B26)),11) -> 0.9690125452 | T27: =ROUND(IF(T$2+$B27>100,0,T26*INDEX(Sterbtab_mix!$G$4:$G$104,T$2+$B26)),11) -> 0.9658022763 | U27: =ROUND(IF(U$2+$B27>100,0,U26*INDEX(Sterbtab_mix!$G$4:$G$104,U$2+$B26)),11) -> 0.9622179399 | V27: =ROUND(IF(V$2+$B27>100,0,V26*INDEX(Sterbtab_mix!$G$4:$G$104,V$2+$B26)),11) -> 0.9582327654 | W27: =ROUND(IF(W$2+$B27>100,0,W26*INDEX(Sterbtab_mix!$G$4:$G$104,W$2+$B26)),11) -> 0.9538113387 | X27: =ROUND(IF(X$2+$B27>100,0,X26*INDEX(Sterbtab_mix!$G$4:$G$104,X$2+$B26)),11) -> 0.9489109087 | Y27: =ROUND(IF(Y$2+$B27>100,0,Y26*INDEX(Sterbtab_mix!$G$4:$G$104,Y$2+$B26)),11) -> 0.9434893746 | Z27: =ROUND(IF(Z$2+$B27>100,0,Z26*INDEX(Sterbtab_mix!$G$4:$G$104,Z$2+$B26)),11) -> 0.9375102372 | AA27: =ROUND(IF(AA$2+$B27>100,0,AA26*INDEX(Sterbtab_mix!$G$4:$G$104,AA$2+$B26)),11) -> 0.93094367 | AB27: =ROUND(IF(AB$2+$B27>100,0,AB26*INDEX(Sterbtab_mix!$G$4:$G$104,AB$2+$B26)),11) -> 0.9237712465 | AC27: =ROUND(IF(AC$2+$B27>100,0,AC26*INDEX(Sterbtab_mix!$G$4:$G$104,AC$2+$B26)),11) -> 0.9159876289 | AD27: =ROUND(IF(AD$2+$B27>100,0,AD26*INDEX(Sterbtab_mix!$G$4:$G$104,AD$2+$B26)),11) -> 0.9076038861 | AE27: =ROUND(IF(AE$2+$B27>100,0,AE26*INDEX(Sterbtab_mix!$G$4:$G$104,AE$2+$B26)),11) -> 0.8986342201 | AF27: =ROUND(IF(AF$2+$B27>100,0,AF26*INDEX(Sterbtab_mix!$G$4:$G$104,AF$2+$B26)),11) -> 0.8890976128 | AG27: =ROUND(IF(AG$2+$B27>100,0,AG26*INDEX(Sterbtab_mix!$G$4:$G$104,AG$2+$B26)),11) -> 0.8790069312 | AH27: =ROUND(IF(AH$2+$B27>100,0,AH26*INDEX(Sterbtab_mix!$G$4:$G$104,AH$2+$B26)),11) -> 0.8683648383 | AI27: =ROUND(IF(AI$2+$B27>100,0,AI26*INDEX(Sterbtab_mix!$G$4:$G$104,AI$2+$B26)),11) -> 0.8571566558 | AJ27: =ROUND(IF(AJ$2+$B27>100,0,AJ26*INDEX(Sterbtab_mix!$G$4:$G$104,AJ$2+$B26)),11) -> 0.8453421713 | AK27: =ROUND(IF(AK$2+$B27>100,0,AK26*INDEX(Sterbtab_mix!$G$4:$G$104,AK$2+$B26)),11) -> 0.8328577253 | AL27: =ROUND(IF(AL$2+$B27>100,0,AL26*INDEX(Sterbtab_mix!$G$4:$G$104,AL$2+$B26)),11) -> 0.8196152368 | AM27: =ROUND(IF(AM$2+$B27>100,0,AM26*INDEX(Sterbtab_mix!$G$4:$G$104,AM$2+$B26)),11) -> 0.8055192663 | AN27: =ROUND(IF(AN$2+$B27>100,0,AN26*INDEX(Sterbtab_mix!$G$4:$G$104,AN$2+$B26)),11) -> 0.7904313207 | AO27: =ROUND(IF(AO$2+$B27>100,0,AO26*INDEX(Sterbtab_mix!$G$4:$G$104,AO$2+$B26)),11) -> 0.7741887497 | AP27: =ROUND(IF(AP$2+$B27>100,0,AP26*INDEX(Sterbtab_mix!$G$4:$G$104,AP$2+$B26)),11) -> 0.7566139084 | AQ27: =ROUND(IF(AQ$2+$B27>100,0,AQ26*INDEX(Sterbtab_mix!$G$4:$G$104,AQ$2+$B26)),11) -> 0.7375134403 | AR27: =ROUND(IF(AR$2+$B27>100,0,AR26*INDEX(Sterbtab_mix!$G$4:$G$104,AR$2+$B26)),11) -> 0.7166908991 | AS27: =ROUND(IF(AS$2+$B27>100,0,AS26*INDEX(Sterbtab_mix!$G$4:$G$104,AS$2+$B26)),11) -> 0.6939517607 | AT27: =ROUND(IF(AT$2+$B27>100,0,AT26*INDEX(Sterbtab_mix!$G$4:$G$104,AT$2+$B26)),11) -> 0.6691109927 | AU27: =ROUND(IF(AU$2+$B27>100,0,AU26*INDEX(Sterbtab_mix!$G$4:$G$104,AU$2+$B26)),11) -> 0.642005891 | AV27: =ROUND(IF(AV$2+$B27>100,0,AV26*INDEX(Sterbtab_mix!$G$4:$G$104,AV$2+$B26)),11) -> 0.6125117789 | AW27: =ROUND(IF(AW$2+$B27>100,0,AW26*INDEX(Sterbtab_mix!$G$4:$G$104,AW$2+$B26)),11) -> 0.5805582101 | AX27: =ROUND(IF(AX$2+$B27>100,0,AX26*INDEX(Sterbtab_mix!$G$4:$G$104,AX$2+$B26)),11) -> 0.5461481832 | AY27: =ROUND(IF(AY$2+$B27>100,0,AY26*INDEX(Sterbtab_mix!$G$4:$G$104,AY$2+$B26)),11) -> 0.5093809346 | AZ27: =ROUND(IF(AZ$2+$B27>100,0,AZ26*INDEX(Sterbtab_mix!$G$4:$G$104,AZ$2+$B26)),11) -> 0.47047144 | BA27: =ROUND(IF(BA$2+$B27>100,0,BA26*INDEX(Sterbtab_mix!$G$4:$G$104,BA$2+$B26)),11) -> 0.4297658349 | BB27: =ROUND(IF(BB$2+$B27>100,0,BB26*INDEX(Sterbtab_mix!$G$4:$G$104,BB$2+$B26)),11) -> 0.3877485322 | BC27: =ROUND(IF(BC$2+$B27>100,0,BC26*INDEX(Sterbtab_mix!$G$4:$G$104,BC$2+$B26)),11) -> 0.345036905 | BD27: =ROUND(IF(BD$2+$B27>100,0,BD26*INDEX(Sterbtab_mix!$G$4:$G$104,BD$2+$B26)),11) -> 0.3023611855 | BE27: =ROUND(IF(BE$2+$B27>100,0,BE26*INDEX(Sterbtab_mix!$G$4:$G$104,BE$2+$B26)),11) -> 0.2605300695 | BF27: =ROUND(IF(BF$2+$B27>100,0,BF26*INDEX(Sterbtab_mix!$G$4:$G$104,BF$2+$B26)),11) -> 0.2203777567 | BG27: =ROUND(IF(BG$2+$B27>100,0,BG26*INDEX(Sterbtab_mix!$G$4:$G$104,BG$2+$B26)),11) -> 0.1827060017 | BH27: =ROUND(IF(BH$2+$B27>100,0,BH26*INDEX(Sterbtab_mix!$G$4:$G$104,BH$2+$B26)),11) -> 0.148215838 | BI27: =ROUND(IF(BI$2+$B27>100,0,BI26*INDEX(Sterbtab_mix!$G$4:$G$104,BI$2+$B26)),11) -> 0.1174595514 | BJ27: =ROUND(IF(BJ$2+$B27>100,0,BJ26*INDEX(Sterbtab_mix!$G$4:$G$104,BJ$2+$B26)),11) -> 0.09079151697 | BK27: =ROUND(IF(BK$2+$B27>100,0,BK26*INDEX(Sterbtab_mix!$G$4:$G$104,BK$2+$B26)),11) -> 0.06834390008 | BL27: =ROUND(IF(BL$2+$B27>100,0,BL26*INDEX(Sterbtab_mix!$G$4:$G$104,BL$2+$B26)),11) -> 0.05002940652 | BM27: =ROUND(IF(BM$2+$B27>100,0,BM26*INDEX(Sterbtab_mix!$G$4:$G$104,BM$2+$B26)),11) -> 0.03556697694 | BN27: =ROUND(IF(BN$2+$B27>100,0,BN26*INDEX(Sterbtab_mix!$G$4:$G$104,BN$2+$B26)),11) -> 0.02452773029 | BO27: =ROUND(IF(BO$2+$B27>100,0,BO26*INDEX(Sterbtab_mix!$G$4:$G$104,BO$2+$B26)),11) -> 0 | BP27: =ROUND(IF(BP$2+$B27>100,0,BP26*INDEX(Sterbtab_mix!$G$4:$G$104,BP$2+$B26)),11) -> 0 | BQ27: =ROUND(IF(BQ$2+$B27>100,0,BQ26*INDEX(Sterbtab_mix!$G$4:$G$104,BQ$2+$B26)),11) -> 0 | BR27: =ROUND(IF(BR$2+$B27>100,0,BR26*INDEX(Sterbtab_mix!$G$4:$G$104,BR$2+$B26)),11) -> 0 | BS27: =ROUND(IF(BS$2+$B27>100,0,BS26*INDEX(Sterbtab_mix!$G$4:$G$104,BS$2+$B26)),11) -> 0 | BT27: =ROUND(IF(BT$2+$B27>100,0,BT26*INDEX(Sterbtab_mix!$G$4:$G$104,BT$2+$B26)),11) -> 0 | BU27: =ROUND(IF(BU$2+$B27>100,0,BU26*INDEX(Sterbtab_mix!$G$4:$G$104,BU$2+$B26)),11) -> 0 | BV27: =ROUND(IF(BV$2+$B27>100,0,BV26*INDEX(Sterbtab_mix!$G$4:$G$104,BV$2+$B26)),11) -> 0 | BW27: =ROUND(IF(BW$2+$B27>100,0,BW26*INDEX(Sterbtab_mix!$G$4:$G$104,BW$2+$B26)),11) -> 0 | BX27: =ROUND(IF(BX$2+$B27>100,0,BX26*INDEX(Sterbtab_mix!$G$4:$G$104,BX$2+$B26)),11) -> 0 | BY27: =ROUND(IF(BY$2+$B27>100,0,BY26*INDEX(Sterbtab_mix!$G$4:$G$104,BY$2+$B26)),11) -> 0 | BZ27: =ROUND(IF(BZ$2+$B27>100,0,BZ26*INDEX(Sterbtab_mix!$G$4:$G$104,BZ$2+$B26)),11) -> 0 | CA27: =ROUND(IF(CA$2+$B27>100,0,CA26*INDEX(Sterbtab_mix!$G$4:$G$104,CA$2+$B26)),11) -> 0 | CB27: =ROUND(IF(CB$2+$B27>100,0,CB26*INDEX(Sterbtab_mix!$G$4:$G$104,CB$2+$B26)),11) -> 0 | CC27: =ROUND(IF(CC$2+$B27>100,0,CC26*INDEX(Sterbtab_mix!$G$4:$G$104,CC$2+$B26)),11) -> 0 | CD27: =ROUND(IF(CD$2+$B27>100,0,CD26*INDEX(Sterbtab_mix!$G$4:$G$104,CD$2+$B26)),11) -> 0 | CE27: =ROUND(IF(CE$2+$B27>100,0,CE26*INDEX(Sterbtab_mix!$G$4:$G$104,CE$2+$B26)),11) -> 0 | CF27: =ROUND(IF(CF$2+$B27>100,0,CF26*INDEX(Sterbtab_mix!$G$4:$G$104,CF$2+$B26)),11) -> 0 | CG27: =ROUND(IF(CG$2+$B27>100,0,CG26*INDEX(Sterbtab_mix!$G$4:$G$104,CG$2+$B26)),11) -> 0 | CH27: =ROUND(IF(CH$2+$B27>100,0,CH26*INDEX(Sterbtab_mix!$G$4:$G$104,CH$2+$B26)),11) -> 0 | CI27: =ROUND(IF(CI$2+$B27>100,0,CI26*INDEX(Sterbtab_mix!$G$4:$G$104,CI$2+$B26)),11) -> 0 | CJ27: =ROUND(IF(CJ$2+$B27>100,0,CJ26*INDEX(Sterbtab_mix!$G$4:$G$104,CJ$2+$B26)),11) -> 0
A28: 38 | B28: 23 | C28: =ROUND(IF(C$2+$B28>100,0,C27*INDEX(Sterbtab_mix!$G$4:$G$104,C$2+$B27)),11) -> 0.9876452836 | D28: =ROUND(IF(D$2+$B28>100,0,D27*INDEX(Sterbtab_mix!$G$4:$G$104,D$2+$B27)),11) -> 0.9870555219 | E28: =ROUND(IF(E$2+$B28>100,0,E27*INDEX(Sterbtab_mix!$G$4:$G$104,E$2+$B27)),11) -> 0.986477916 | F28: =ROUND(IF(F$2+$B28>100,0,F27*INDEX(Sterbtab_mix!$G$4:$G$104,F$2+$B27)),11) -> 0.9859114539 | G28: =ROUND(IF(G$2+$B28>100,0,G27*INDEX(Sterbtab_mix!$G$4:$G$104,G$2+$B27)),11) -> 0.985343295 | H28: =ROUND(IF(H$2+$B28>100,0,H27*INDEX(Sterbtab_mix!$G$4:$G$104,H$2+$B27)),11) -> 0.9847419007 | I28: =ROUND(IF(I$2+$B28>100,0,I27*INDEX(Sterbtab_mix!$G$4:$G$104,I$2+$B27)),11) -> 0.9840659561 | J28: =ROUND(IF(J$2+$B28>100,0,J27*INDEX(Sterbtab_mix!$G$4:$G$104,J$2+$B27)),11) -> 0.9832663884 | K28: =ROUND(IF(K$2+$B28>100,0,K27*INDEX(Sterbtab_mix!$G$4:$G$104,K$2+$B27)),11) -> 0.9822952927 | L28: =ROUND(IF(L$2+$B28>100,0,L27*INDEX(Sterbtab_mix!$G$4:$G$104,L$2+$B27)),11) -> 0.9811128701 | M28: =ROUND(IF(M$2+$B28>100,0,M27*INDEX(Sterbtab_mix!$G$4:$G$104,M$2+$B27)),11) -> 0.9796953096 | N28: =ROUND(IF(N$2+$B28>100,0,N27*INDEX(Sterbtab_mix!$G$4:$G$104,N$2+$B27)),11) -> 0.9780288711 | O28: =ROUND(IF(O$2+$B28>100,0,O27*INDEX(Sterbtab_mix!$G$4:$G$104,O$2+$B27)),11) -> 0.9760951954 | P28: =ROUND(IF(P$2+$B28>100,0,P27*INDEX(Sterbtab_mix!$G$4:$G$104,P$2+$B27)),11) -> 0.9738704136 | Q28: =ROUND(IF(Q$2+$B28>100,0,Q27*INDEX(Sterbtab_mix!$G$4:$G$104,Q$2+$B27)),11) -> 0.9713340263 | R28: =ROUND(IF(R$2+$B28>100,0,R27*INDEX(Sterbtab_mix!$G$4:$G$104,R$2+$B27)),11) -> 0.9684650531 | S28: =ROUND(IF(S$2+$B28>100,0,S27*INDEX(Sterbtab_mix!$G$4:$G$104,S$2+$B27)),11) -> 0.9652401793 | T28: =ROUND(IF(T$2+$B28>100,0,T27*INDEX(Sterbtab_mix!$G$4:$G$104,T$2+$B27)),11) -> 0.9616338736 | U28: =ROUND(IF(U$2+$B28>100,0,U27*INDEX(Sterbtab_mix!$G$4:$G$104,U$2+$B27)),11) -> 0.9576185382 | V28: =ROUND(IF(V$2+$B28>100,0,V27*INDEX(Sterbtab_mix!$G$4:$G$104,V$2+$B27)),11) -> 0.9531608393 | W28: =ROUND(IF(W$2+$B28>100,0,W27*INDEX(Sterbtab_mix!$G$4:$G$104,W$2+$B27)),11) -> 0.9482210504 | X28: =ROUND(IF(X$2+$B28>100,0,X27*INDEX(Sterbtab_mix!$G$4:$G$104,X$2+$B27)),11) -> 0.9427581703 | Y28: =ROUND(IF(Y$2+$B28>100,0,Y27*INDEX(Sterbtab_mix!$G$4:$G$104,Y$2+$B27)),11) -> 0.9367321037 | Z28: =ROUND(IF(Z$2+$B28>100,0,Z27*INDEX(Sterbtab_mix!$G$4:$G$104,Z$2+$B27)),11) -> 0.9301114064 | AA28: =ROUND(IF(AA$2+$B28>100,0,AA27*INDEX(Sterbtab_mix!$G$4:$G$104,AA$2+$B27)),11) -> 0.9228761122 | AB28: =ROUND(IF(AB$2+$B28>100,0,AB27*INDEX(Sterbtab_mix!$G$4:$G$104,AB$2+$B27)),11) -> 0.915018514 | AC28: =ROUND(IF(AC$2+$B28>100,0,AC27*INDEX(Sterbtab_mix!$G$4:$G$104,AC$2+$B27)),11) -> 0.9065447124 | AD28: =ROUND(IF(AD$2+$B28>100,0,AD27*INDEX(Sterbtab_mix!$G$4:$G$104,AD$2+$B27)),11) -> 0.8974704888 | AE28: =ROUND(IF(AE$2+$B28>100,0,AE27*INDEX(Sterbtab_mix!$G$4:$G$104,AE$2+$B27)),11) -> 0.8878128668 | AF28: =ROUND(IF(AF$2+$B28>100,0,AF27*INDEX(Sterbtab_mix!$G$4:$G$104,AF$2+$B27)),11) -> 0.877585577 | AG28: =ROUND(IF(AG$2+$B28>100,0,AG27*INDEX(Sterbtab_mix!$G$4:$G$104,AG$2+$B27)),11) -> 0.8667904928 | AH28: =ROUND(IF(AH$2+$B28>100,0,AH27*INDEX(Sterbtab_mix!$G$4:$G$104,AH$2+$B27)),11) -> 0.8554149134 | AI28: =ROUND(IF(AI$2+$B28>100,0,AI27*INDEX(Sterbtab_mix!$G$4:$G$104,AI$2+$B27)),11) -> 0.8434198632 | AJ28: =ROUND(IF(AJ$2+$B28>100,0,AJ27*INDEX(Sterbtab_mix!$G$4:$G$104,AJ$2+$B27)),11) -> 0.8307422667 | AK28: =ROUND(IF(AK$2+$B28>100,0,AK27*INDEX(Sterbtab_mix!$G$4:$G$104,AK$2+$B27)),11) -> 0.8172924472 | AL28: =ROUND(IF(AL$2+$B28>100,0,AL27*INDEX(Sterbtab_mix!$G$4:$G$104,AL$2+$B27)),11) -> 0.8029770475 | AM28: =ROUND(IF(AM$2+$B28>100,0,AM27*INDEX(Sterbtab_mix!$G$4:$G$104,AM$2+$B27)),11) -> 0.7876584876 | AN28: =ROUND(IF(AN$2+$B28>100,0,AN27*INDEX(Sterbtab_mix!$G$4:$G$104,AN$2+$B27)),11) -> 0.7711748329 | AO28: =ROUND(IF(AO$2+$B28>100,0,AO27*INDEX(Sterbtab_mix!$G$4:$G$104,AO$2+$B27)),11) -> 0.7533483627 | AP28: =ROUND(IF(AP$2+$B28>100,0,AP27*INDEX(Sterbtab_mix!$G$4:$G$104,AP$2+$B27)),11) -> 0.733988126 | AQ28: =ROUND(IF(AQ$2+$B28>100,0,AQ27*INDEX(Sterbtab_mix!$G$4:$G$104,AQ$2+$B27)),11) -> 0.7128974542 | AR28: =ROUND(IF(AR$2+$B28>100,0,AR27*INDEX(Sterbtab_mix!$G$4:$G$104,AR$2+$B27)),11) -> 0.6898845094 | AS28: =ROUND(IF(AS$2+$B28>100,0,AS27*INDEX(Sterbtab_mix!$G$4:$G$104,AS$2+$B27)),11) -> 0.6647724771 | AT28: =ROUND(IF(AT$2+$B28>100,0,AT27*INDEX(Sterbtab_mix!$G$4:$G$104,AT$2+$B27)),11) -> 0.6374078448 | AU28: =ROUND(IF(AU$2+$B28>100,0,AU27*INDEX(Sterbtab_mix!$G$4:$G$104,AU$2+$B27)),11) -> 0.607677836 | AV28: =ROUND(IF(AV$2+$B28>100,0,AV27*INDEX(Sterbtab_mix!$G$4:$G$104,AV$2+$B27)),11) -> 0.5755270927 | AW28: =ROUND(IF(AW$2+$B28>100,0,AW27*INDEX(Sterbtab_mix!$G$4:$G$104,AW$2+$B27)),11) -> 0.5409734292 | AX28: =ROUND(IF(AX$2+$B28>100,0,AX27*INDEX(Sterbtab_mix!$G$4:$G$104,AX$2+$B27)),11) -> 0.5041297266 | AY28: =ROUND(IF(AY$2+$B28>100,0,AY27*INDEX(Sterbtab_mix!$G$4:$G$104,AY$2+$B27)),11) -> 0.4652186263 | AZ28: =ROUND(IF(AZ$2+$B28>100,0,AZ27*INDEX(Sterbtab_mix!$G$4:$G$104,AZ$2+$B27)),11) -> 0.4245905947 | BA28: =ROUND(IF(BA$2+$B28>100,0,BA27*INDEX(Sterbtab_mix!$G$4:$G$104,BA$2+$B27)),11) -> 0.3827279642 | BB28: =ROUND(IF(BB$2+$B28>100,0,BB27*INDEX(Sterbtab_mix!$G$4:$G$104,BB$2+$B27)),11) -> 0.3402415821 | BC28: =ROUND(IF(BC$2+$B28>100,0,BC27*INDEX(Sterbtab_mix!$G$4:$G$104,BC$2+$B27)),11) -> 0.2978520731 | BD28: =ROUND(IF(BD$2+$B28>100,0,BD27*INDEX(Sterbtab_mix!$G$4:$G$104,BD$2+$B27)),11) -> 0.2563548146 | BE28: =ROUND(IF(BE$2+$B28>100,0,BE27*INDEX(Sterbtab_mix!$G$4:$G$104,BE$2+$B27)),11) -> 0.2165716124 | BF28: =ROUND(IF(BF$2+$B28>100,0,BF27*INDEX(Sterbtab_mix!$G$4:$G$104,BF$2+$B27)),11) -> 0.1792914092 | BG28: =ROUND(IF(BG$2+$B28>100,0,BG27*INDEX(Sterbtab_mix!$G$4:$G$104,BG$2+$B27)),11) -> 0.1452070565 | BH28: =ROUND(IF(BH$2+$B28>100,0,BH27*INDEX(Sterbtab_mix!$G$4:$G$104,BH$2+$B27)),11) -> 0.1148551208 | BI28: =ROUND(IF(BI$2+$B28>100,0,BI27*INDEX(Sterbtab_mix!$G$4:$G$104,BI$2+$B27)),11) -> 0.08857965403 | BJ28: =ROUND(IF(BJ$2+$B28>100,0,BJ27*INDEX(Sterbtab_mix!$G$4:$G$104,BJ$2+$B27)),11) -> 0.06650415064 | BK28: =ROUND(IF(BK$2+$B28>100,0,BK27*INDEX(Sterbtab_mix!$G$4:$G$104,BK$2+$B27)),11) -> 0.04853332714 | BL28: =ROUND(IF(BL$2+$B28>100,0,BL27*INDEX(Sterbtab_mix!$G$4:$G$104,BL$2+$B27)),11) -> 0.03437985795 | BM28: =ROUND(IF(BM$2+$B28>100,0,BM27*INDEX(Sterbtab_mix!$G$4:$G$104,BM$2+$B27)),11) -> 0.0236103196 | BN28: =ROUND(IF(BN$2+$B28>100,0,BN27*INDEX(Sterbtab_mix!$G$4:$G$104,BN$2+$B27)),11) -> 0 | BO28: =ROUND(IF(BO$2+$B28>100,0,BO27*INDEX(Sterbtab_mix!$G$4:$G$104,BO$2+$B27)),11) -> 0 | BP28: =ROUND(IF(BP$2+$B28>100,0,BP27*INDEX(Sterbtab_mix!$G$4:$G$104,BP$2+$B27)),11) -> 0 | BQ28: =ROUND(IF(BQ$2+$B28>100,0,BQ27*INDEX(Sterbtab_mix!$G$4:$G$104,BQ$2+$B27)),11) -> 0 | BR28: =ROUND(IF(BR$2+$B28>100,0,BR27*INDEX(Sterbtab_mix!$G$4:$G$104,BR$2+$B27)),11) -> 0 | BS28: =ROUND(IF(BS$2+$B28>100,0,BS27*INDEX(Sterbtab_mix!$G$4:$G$104,BS$2+$B27)),11) -> 0 | BT28: =ROUND(IF(BT$2+$B28>100,0,BT27*INDEX(Sterbtab_mix!$G$4:$G$104,BT$2+$B27)),11) -> 0 | BU28: =ROUND(IF(BU$2+$B28>100,0,BU27*INDEX(Sterbtab_mix!$G$4:$G$104,BU$2+$B27)),11) -> 0 | BV28: =ROUND(IF(BV$2+$B28>100,0,BV27*INDEX(Sterbtab_mix!$G$4:$G$104,BV$2+$B27)),11) -> 0 | BW28: =ROUND(IF(BW$2+$B28>100,0,BW27*INDEX(Sterbtab_mix!$G$4:$G$104,BW$2+$B27)),11) -> 0 | BX28: =ROUND(IF(BX$2+$B28>100,0,BX27*INDEX(Sterbtab_mix!$G$4:$G$104,BX$2+$B27)),11) -> 0 | BY28: =ROUND(IF(BY$2+$B28>100,0,BY27*INDEX(Sterbtab_mix!$G$4:$G$104,BY$2+$B27)),11) -> 0 | BZ28: =ROUND(IF(BZ$2+$B28>100,0,BZ27*INDEX(Sterbtab_mix!$G$4:$G$104,BZ$2+$B27)),11) -> 0 | CA28: =ROUND(IF(CA$2+$B28>100,0,CA27*INDEX(Sterbtab_mix!$G$4:$G$104,CA$2+$B27)),11) -> 0 | CB28: =ROUND(IF(CB$2+$B28>100,0,CB27*INDEX(Sterbtab_mix!$G$4:$G$104,CB$2+$B27)),11) -> 0 | CC28: =ROUND(IF(CC$2+$B28>100,0,CC27*INDEX(Sterbtab_mix!$G$4:$G$104,CC$2+$B27)),11) -> 0 | CD28: =ROUND(IF(CD$2+$B28>100,0,CD27*INDEX(Sterbtab_mix!$G$4:$G$104,CD$2+$B27)),11) -> 0 | CE28: =ROUND(IF(CE$2+$B28>100,0,CE27*INDEX(Sterbtab_mix!$G$4:$G$104,CE$2+$B27)),11) -> 0 | CF28: =ROUND(IF(CF$2+$B28>100,0,CF27*INDEX(Sterbtab_mix!$G$4:$G$104,CF$2+$B27)),11) -> 0 | CG28: =ROUND(IF(CG$2+$B28>100,0,CG27*INDEX(Sterbtab_mix!$G$4:$G$104,CG$2+$B27)),11) -> 0 | CH28: =ROUND(IF(CH$2+$B28>100,0,CH27*INDEX(Sterbtab_mix!$G$4:$G$104,CH$2+$B27)),11) -> 0 | CI28: =ROUND(IF(CI$2+$B28>100,0,CI27*INDEX(Sterbtab_mix!$G$4:$G$104,CI$2+$B27)),11) -> 0 | CJ28: =ROUND(IF(CJ$2+$B28>100,0,CJ27*INDEX(Sterbtab_mix!$G$4:$G$104,CJ$2+$B27)),11) -> 0
A29: 39 | B29: 24 | C29: =ROUND(IF(C$2+$B29>100,0,C28*INDEX(Sterbtab_mix!$G$4:$G$104,C$2+$B28)),11) -> 0.986825538 | D29: =ROUND(IF(D$2+$B29>100,0,D28*INDEX(Sterbtab_mix!$G$4:$G$104,D$2+$B28)),11) -> 0.9861730943 | E29: =ROUND(IF(E$2+$B29>100,0,E28*INDEX(Sterbtab_mix!$G$4:$G$104,E$2+$B28)),11) -> 0.9855220189 | F29: =ROUND(IF(F$2+$B29>100,0,F28*INDEX(Sterbtab_mix!$G$4:$G$104,F$2+$B28)),11) -> 0.9848683596 | G29: =ROUND(IF(G$2+$B29>100,0,G28*INDEX(Sterbtab_mix!$G$4:$G$104,G$2+$B28)),11) -> 0.9841933994 | H29: =ROUND(IF(H$2+$B29>100,0,H28*INDEX(Sterbtab_mix!$G$4:$G$104,H$2+$B28)),11) -> 0.9834666599 | I29: =ROUND(IF(I$2+$B29>100,0,I28*INDEX(Sterbtab_mix!$G$4:$G$104,I$2+$B28)),11) -> 0.9826439807 | J29: =ROUND(IF(J$2+$B29>100,0,J28*INDEX(Sterbtab_mix!$G$4:$G$104,J$2+$B28)),11) -> 0.9816764466 | K29: =ROUND(IF(K$2+$B29>100,0,K28*INDEX(Sterbtab_mix!$G$4:$G$104,K$2+$B28)),11) -> 0.9805143913 | L29: =ROUND(IF(L$2+$B29>100,0,L28*INDEX(Sterbtab_mix!$G$4:$G$104,L$2+$B28)),11) -> 0.9791192488 | M29: =ROUND(IF(M$2+$B29>100,0,M28*INDEX(Sterbtab_mix!$G$4:$G$104,M$2+$B28)),11) -> 0.9774674825 | N29: =ROUND(IF(N$2+$B29>100,0,N28*INDEX(Sterbtab_mix!$G$4:$G$104,N$2+$B28)),11) -> 0.9755446777 | O29: =ROUND(IF(O$2+$B29>100,0,O28*INDEX(Sterbtab_mix!$G$4:$G$104,O$2+$B28)),11) -> 0.9733289416 | P29: =ROUND(IF(P$2+$B29>100,0,P28*INDEX(Sterbtab_mix!$G$4:$G$104,P$2+$B28)),11) -> 0.9707968785 | Q29: =ROUND(IF(Q$2+$B29>100,0,Q28*INDEX(Sterbtab_mix!$G$4:$G$104,Q$2+$B28)),11) -> 0.9679265865 | R29: =ROUND(IF(R$2+$B29>100,0,R28*INDEX(Sterbtab_mix!$G$4:$G$104,R$2+$B28)),11) -> 0.9646948186 | S29: =ROUND(IF(S$2+$B29>100,0,S28*INDEX(Sterbtab_mix!$G$4:$G$104,S$2+$B28)),11) -> 0.9610742027 | T29: =ROUND(IF(T$2+$B29>100,0,T28*INDEX(Sterbtab_mix!$G$4:$G$104,T$2+$B28)),11) -> 0.9570372637 | U29: =ROUND(IF(U$2+$B29>100,0,U28*INDEX(Sterbtab_mix!$G$4:$G$104,U$2+$B28)),11) -> 0.9525498632 | V29: =ROUND(IF(V$2+$B29>100,0,V28*INDEX(Sterbtab_mix!$G$4:$G$104,V$2+$B28)),11) -> 0.9475743636 | W29: =ROUND(IF(W$2+$B29>100,0,W28*INDEX(Sterbtab_mix!$G$4:$G$104,W$2+$B28)),11) -> 0.9420727851 | X29: =ROUND(IF(X$2+$B29>100,0,X28*INDEX(Sterbtab_mix!$G$4:$G$104,X$2+$B28)),11) -> 0.9360061363 | Y29: =ROUND(IF(Y$2+$B29>100,0,Y28*INDEX(Sterbtab_mix!$G$4:$G$104,Y$2+$B28)),11) -> 0.9293394139 | Z29: =ROUND(IF(Z$2+$B29>100,0,Z28*INDEX(Sterbtab_mix!$G$4:$G$104,Z$2+$B28)),11) -> 0.922051061 | AA29: =ROUND(IF(AA$2+$B29>100,0,AA28*INDEX(Sterbtab_mix!$G$4:$G$104,AA$2+$B28)),11) -> 0.914131861 | AB29: =ROUND(IF(AB$2+$B29>100,0,AB28*INDEX(Sterbtab_mix!$G$4:$G$104,AB$2+$B28)),11) -> 0.9055855881 | AC29: =ROUND(IF(AC$2+$B29>100,0,AC28*INDEX(Sterbtab_mix!$G$4:$G$104,AC$2+$B28)),11) -> 0.8964231407 | AD29: =ROUND(IF(AD$2+$B29>100,0,AD28*INDEX(Sterbtab_mix!$G$4:$G$104,AD$2+$B28)),11) -> 0.8866631491 | AE29: =ROUND(IF(AE$2+$B29>100,0,AE28*INDEX(Sterbtab_mix!$G$4:$G$104,AE$2+$B28)),11) -> 0.8763174658 | AF29: =ROUND(IF(AF$2+$B29>100,0,AF28*INDEX(Sterbtab_mix!$G$4:$G$104,AF$2+$B28)),11) -> 0.8653888926 | AG29: =ROUND(IF(AG$2+$B29>100,0,AG28*INDEX(Sterbtab_mix!$G$4:$G$104,AG$2+$B28)),11) -> 0.8538640462 | AH29: =ROUND(IF(AH$2+$B29>100,0,AH28*INDEX(Sterbtab_mix!$G$4:$G$104,AH$2+$B28)),11) -> 0.841706034 | AI29: =ROUND(IF(AI$2+$B29>100,0,AI28*INDEX(Sterbtab_mix!$G$4:$G$104,AI$2+$B28)),11) -> 0.8288531587 | AJ29: =ROUND(IF(AJ$2+$B29>100,0,AJ28*INDEX(Sterbtab_mix!$G$4:$G$104,AJ$2+$B28)),11) -> 0.8152165244 | AK29: =ROUND(IF(AK$2+$B29>100,0,AK28*INDEX(Sterbtab_mix!$G$4:$G$104,AK$2+$B28)),11) -> 0.8007014105 | AL29: =ROUND(IF(AL$2+$B29>100,0,AL28*INDEX(Sterbtab_mix!$G$4:$G$104,AL$2+$B28)),11) -> 0.7851726374 | AM29: =ROUND(IF(AM$2+$B29>100,0,AM28*INDEX(Sterbtab_mix!$G$4:$G$104,AM$2+$B28)),11) -> 0.7684695516 | AN29: =ROUND(IF(AN$2+$B29>100,0,AN28*INDEX(Sterbtab_mix!$G$4:$G$104,AN$2+$B28)),11) -> 0.7504155775 | AO29: =ROUND(IF(AO$2+$B29>100,0,AO28*INDEX(Sterbtab_mix!$G$4:$G$104,AO$2+$B28)),11) -> 0.7308202333 | AP29: =ROUND(IF(AP$2+$B29>100,0,AP28*INDEX(Sterbtab_mix!$G$4:$G$104,AP$2+$B28)),11) -> 0.7094898044 | AQ29: =ROUND(IF(AQ$2+$B29>100,0,AQ28*INDEX(Sterbtab_mix!$G$4:$G$104,AQ$2+$B28)),11) -> 0.6862329507 | AR29: =ROUND(IF(AR$2+$B29>100,0,AR28*INDEX(Sterbtab_mix!$G$4:$G$104,AR$2+$B28)),11) -> 0.6608762456 | AS29: =ROUND(IF(AS$2+$B29>100,0,AS28*INDEX(Sterbtab_mix!$G$4:$G$104,AS$2+$B28)),11) -> 0.6332748923 | AT29: =ROUND(IF(AT$2+$B29>100,0,AT28*INDEX(Sterbtab_mix!$G$4:$G$104,AT$2+$B28)),11) -> 0.6033256473 | AU29: =ROUND(IF(AU$2+$B29>100,0,AU28*INDEX(Sterbtab_mix!$G$4:$G$104,AU$2+$B28)),11) -> 0.5709850329 | AV29: =ROUND(IF(AV$2+$B29>100,0,AV28*INDEX(Sterbtab_mix!$G$4:$G$104,AV$2+$B28)),11) -> 0.5362853534 | AW29: =ROUND(IF(AW$2+$B29>100,0,AW28*INDEX(Sterbtab_mix!$G$4:$G$104,AW$2+$B28)),11) -> 0.4993530974 | AX29: =ROUND(IF(AX$2+$B29>100,0,AX28*INDEX(Sterbtab_mix!$G$4:$G$104,AX$2+$B28)),11) -> 0.4604226875 | AY29: =ROUND(IF(AY$2+$B29>100,0,AY28*INDEX(Sterbtab_mix!$G$4:$G$104,AY$2+$B28)),11) -> 0.4198500407 | AZ29: =ROUND(IF(AZ$2+$B29>100,0,AZ28*INDEX(Sterbtab_mix!$G$4:$G$104,AZ$2+$B28)),11) -> 0.3781191541 | BA29: =ROUND(IF(BA$2+$B29>100,0,BA28*INDEX(Sterbtab_mix!$G$4:$G$104,BA$2+$B28)),11) -> 0.3358361341 | BB29: =ROUND(IF(BB$2+$B29>100,0,BB28*INDEX(Sterbtab_mix!$G$4:$G$104,BB$2+$B28)),11) -> 0.293712525 | BC29: =ROUND(IF(BC$2+$B29>100,0,BC28*INDEX(Sterbtab_mix!$G$4:$G$104,BC$2+$B28)),11) -> 0.2525317952 | BD29: =ROUND(IF(BD$2+$B29>100,0,BD28*INDEX(Sterbtab_mix!$G$4:$G$104,BD$2+$B28)),11) -> 0.2131008358 | BE29: =ROUND(IF(BE$2+$B29>100,0,BE28*INDEX(Sterbtab_mix!$G$4:$G$104,BE$2+$B28)),11) -> 0.1761948673 | BF29: =ROUND(IF(BF$2+$B29>100,0,BF28*INDEX(Sterbtab_mix!$G$4:$G$104,BF$2+$B28)),11) -> 0.1424932818 | BG29: =ROUND(IF(BG$2+$B29>100,0,BG28*INDEX(Sterbtab_mix!$G$4:$G$104,BG$2+$B28)),11) -> 0.1125235618 | BH29: =ROUND(IF(BH$2+$B29>100,0,BH28*INDEX(Sterbtab_mix!$G$4:$G$104,BH$2+$B28)),11) -> 0.08661557737 | BI29: =ROUND(IF(BI$2+$B29>100,0,BI28*INDEX(Sterbtab_mix!$G$4:$G$104,BI$2+$B28)),11) -> 0.06488397652 | BJ29: =ROUND(IF(BJ$2+$B29>100,0,BJ28*INDEX(Sterbtab_mix!$G$4:$G$104,BJ$2+$B28)),11) -> 0.04722685851 | BK29: =ROUND(IF(BK$2+$B29>100,0,BK28*INDEX(Sterbtab_mix!$G$4:$G$104,BK$2+$B28)),11) -> 0.03335176268 | BL29: =ROUND(IF(BL$2+$B29>100,0,BL28*INDEX(Sterbtab_mix!$G$4:$G$104,BL$2+$B28)),11) -> 0.02282227796 | BM29: =ROUND(IF(BM$2+$B29>100,0,BM28*INDEX(Sterbtab_mix!$G$4:$G$104,BM$2+$B28)),11) -> 0 | BN29: =ROUND(IF(BN$2+$B29>100,0,BN28*INDEX(Sterbtab_mix!$G$4:$G$104,BN$2+$B28)),11) -> 0 | BO29: =ROUND(IF(BO$2+$B29>100,0,BO28*INDEX(Sterbtab_mix!$G$4:$G$104,BO$2+$B28)),11) -> 0 | BP29: =ROUND(IF(BP$2+$B29>100,0,BP28*INDEX(Sterbtab_mix!$G$4:$G$104,BP$2+$B28)),11) -> 0 | BQ29: =ROUND(IF(BQ$2+$B29>100,0,BQ28*INDEX(Sterbtab_mix!$G$4:$G$104,BQ$2+$B28)),11) -> 0 | BR29: =ROUND(IF(BR$2+$B29>100,0,BR28*INDEX(Sterbtab_mix!$G$4:$G$104,BR$2+$B28)),11) -> 0 | BS29: =ROUND(IF(BS$2+$B29>100,0,BS28*INDEX(Sterbtab_mix!$G$4:$G$104,BS$2+$B28)),11) -> 0 | BT29: =ROUND(IF(BT$2+$B29>100,0,BT28*INDEX(Sterbtab_mix!$G$4:$G$104,BT$2+$B28)),11) -> 0 | BU29: =ROUND(IF(BU$2+$B29>100,0,BU28*INDEX(Sterbtab_mix!$G$4:$G$104,BU$2+$B28)),11) -> 0 | BV29: =ROUND(IF(BV$2+$B29>100,0,BV28*INDEX(Sterbtab_mix!$G$4:$G$104,BV$2+$B28)),11) -> 0 | BW29: =ROUND(IF(BW$2+$B29>100,0,BW28*INDEX(Sterbtab_mix!$G$4:$G$104,BW$2+$B28)),11) -> 0 | BX29: =ROUND(IF(BX$2+$B29>100,0,BX28*INDEX(Sterbtab_mix!$G$4:$G$104,BX$2+$B28)),11) -> 0 | BY29: =ROUND(IF(BY$2+$B29>100,0,BY28*INDEX(Sterbtab_mix!$G$4:$G$104,BY$2+$B28)),11) -> 0 | BZ29: =ROUND(IF(BZ$2+$B29>100,0,BZ28*INDEX(Sterbtab_mix!$G$4:$G$104,BZ$2+$B28)),11) -> 0 | CA29: =ROUND(IF(CA$2+$B29>100,0,CA28*INDEX(Sterbtab_mix!$G$4:$G$104,CA$2+$B28)),11) -> 0 | CB29: =ROUND(IF(CB$2+$B29>100,0,CB28*INDEX(Sterbtab_mix!$G$4:$G$104,CB$2+$B28)),11) -> 0 | CC29: =ROUND(IF(CC$2+$B29>100,0,CC28*INDEX(Sterbtab_mix!$G$4:$G$104,CC$2+$B28)),11) -> 0 | CD29: =ROUND(IF(CD$2+$B29>100,0,CD28*INDEX(Sterbtab_mix!$G$4:$G$104,CD$2+$B28)),11) -> 0 | CE29: =ROUND(IF(CE$2+$B29>100,0,CE28*INDEX(Sterbtab_mix!$G$4:$G$104,CE$2+$B28)),11) -> 0 | CF29: =ROUND(IF(CF$2+$B29>100,0,CF28*INDEX(Sterbtab_mix!$G$4:$G$104,CF$2+$B28)),11) -> 0 | CG29: =ROUND(IF(CG$2+$B29>100,0,CG28*INDEX(Sterbtab_mix!$G$4:$G$104,CG$2+$B28)),11) -> 0 | CH29: =ROUND(IF(CH$2+$B29>100,0,CH28*INDEX(Sterbtab_mix!$G$4:$G$104,CH$2+$B28)),11) -> 0 | CI29: =ROUND(IF(CI$2+$B29>100,0,CI28*INDEX(Sterbtab_mix!$G$4:$G$104,CI$2+$B28)),11) -> 0 | CJ29: =ROUND(IF(CJ$2+$B29>100,0,CJ28*INDEX(Sterbtab_mix!$G$4:$G$104,CJ$2+$B28)),11) -> 0
A30: 40 | B30: 25 | C30: =ROUND(IF(C$2+$B30>100,0,C29*INDEX(Sterbtab_mix!$G$4:$G$104,C$2+$B29)),11) -> 0.9859433159 | D30: =ROUND(IF(D$2+$B30>100,0,D29*INDEX(Sterbtab_mix!$G$4:$G$104,D$2+$B29)),11) -> 0.9852174926 | E30: =ROUND(IF(E$2+$B30>100,0,E29*INDEX(Sterbtab_mix!$G$4:$G$104,E$2+$B29)),11) -> 0.9844793365 | F30: =ROUND(IF(F$2+$B30>100,0,F29*INDEX(Sterbtab_mix!$G$4:$G$104,F$2+$B29)),11) -> 0.9837190182 | G30: =ROUND(IF(G$2+$B30>100,0,G29*INDEX(Sterbtab_mix!$G$4:$G$104,G$2+$B29)),11) -> 0.9829188689 | H30: =ROUND(IF(H$2+$B30>100,0,H29*INDEX(Sterbtab_mix!$G$4:$G$104,H$2+$B29)),11) -> 0.9820455506 | I30: =ROUND(IF(I$2+$B30>100,0,I29*INDEX(Sterbtab_mix!$G$4:$G$104,I$2+$B29)),11) -> 0.9810550454 | J30: =ROUND(IF(J$2+$B30>100,0,J29*INDEX(Sterbtab_mix!$G$4:$G$104,J$2+$B29)),11) -> 0.9798966672 | K30: =ROUND(IF(K$2+$B30>100,0,K29*INDEX(Sterbtab_mix!$G$4:$G$104,K$2+$B29)),11) -> 0.9785219861 | L30: =ROUND(IF(L$2+$B30>100,0,L29*INDEX(Sterbtab_mix!$G$4:$G$104,L$2+$B29)),11) -> 0.9768927316 | M30: =ROUND(IF(M$2+$B30>100,0,M29*INDEX(Sterbtab_mix!$G$4:$G$104,M$2+$B29)),11) -> 0.9749847151 | N30: =ROUND(IF(N$2+$B30>100,0,N29*INDEX(Sterbtab_mix!$G$4:$G$104,N$2+$B29)),11) -> 0.9727799841 | O30: =ROUND(IF(O$2+$B30>100,0,O29*INDEX(Sterbtab_mix!$G$4:$G$104,O$2+$B29)),11) -> 0.9702571155 | P30: =ROUND(IF(P$2+$B30>100,0,P29*INDEX(Sterbtab_mix!$G$4:$G$104,P$2+$B29)),11) -> 0.9673913231 | Q30: =ROUND(IF(Q$2+$B30>100,0,Q29*INDEX(Sterbtab_mix!$G$4:$G$104,Q$2+$B29)),11) -> 0.9641584483 | R30: =ROUND(IF(R$2+$B30>100,0,R29*INDEX(Sterbtab_mix!$G$4:$G$104,R$2+$B29)),11) -> 0.9605311958 | S30: =ROUND(IF(S$2+$B30>100,0,S29*INDEX(Sterbtab_mix!$G$4:$G$104,S$2+$B29)),11) -> 0.956480268 | T30: =ROUND(IF(T$2+$B30>100,0,T29*INDEX(Sterbtab_mix!$G$4:$G$104,T$2+$B29)),11) -> 0.9519716655 | U30: =ROUND(IF(U$2+$B30>100,0,U29*INDEX(Sterbtab_mix!$G$4:$G$104,U$2+$B29)),11) -> 0.9469669685 | V30: =ROUND(IF(V$2+$B30>100,0,V29*INDEX(Sterbtab_mix!$G$4:$G$104,V$2+$B29)),11) -> 0.9414302915 | W30: =ROUND(IF(W$2+$B30>100,0,W29*INDEX(Sterbtab_mix!$G$4:$G$104,W$2+$B29)),11) -> 0.9353256598 | X30: =ROUND(IF(X$2+$B30>100,0,X29*INDEX(Sterbtab_mix!$G$4:$G$104,X$2+$B29)),11) -> 0.9286191759 | Y30: =ROUND(IF(Y$2+$B30>100,0,Y29*INDEX(Sterbtab_mix!$G$4:$G$104,Y$2+$B29)),11) -> 0.9212857586 | Z30: =ROUND(IF(Z$2+$B30>100,0,Z29*INDEX(Sterbtab_mix!$G$4:$G$104,Z$2+$B29)),11) -> 0.9133146272 | AA30: =ROUND(IF(AA$2+$B30>100,0,AA29*INDEX(Sterbtab_mix!$G$4:$G$104,AA$2+$B29)),11) -> 0.9047080756 | AB30: =ROUND(IF(AB$2+$B30>100,0,AB29*INDEX(Sterbtab_mix!$G$4:$G$104,AB$2+$B29)),11) -> 0.895474725 | AC30: =ROUND(IF(AC$2+$B30>100,0,AC29*INDEX(Sterbtab_mix!$G$4:$G$104,AC$2+$B29)),11) -> 0.8856284133 | AD30: =ROUND(IF(AD$2+$B30>100,0,AD29*INDEX(Sterbtab_mix!$G$4:$G$104,AD$2+$B29)),11) -> 0.8751826347 | AE30: =ROUND(IF(AE$2+$B30>100,0,AE29*INDEX(Sterbtab_mix!$G$4:$G$104,AE$2+$B29)),11) -> 0.8641384057 | AF30: =ROUND(IF(AF$2+$B30>100,0,AF29*INDEX(Sterbtab_mix!$G$4:$G$104,AF$2+$B29)),11) -> 0.8524833481 | AG30: =ROUND(IF(AG$2+$B30>100,0,AG29*INDEX(Sterbtab_mix!$G$4:$G$104,AG$2+$B29)),11) -> 0.840180021 | AH30: =ROUND(IF(AH$2+$B30>100,0,AH29*INDEX(Sterbtab_mix!$G$4:$G$104,AH$2+$B29)),11) -> 0.8271689291 | AI30: =ROUND(IF(AI$2+$B30>100,0,AI29*INDEX(Sterbtab_mix!$G$4:$G$104,AI$2+$B29)),11) -> 0.8133627221 | AJ30: =ROUND(IF(AJ$2+$B30>100,0,AJ29*INDEX(Sterbtab_mix!$G$4:$G$104,AJ$2+$B29)),11) -> 0.798667629 | AK30: =ROUND(IF(AK$2+$B30>100,0,AK29*INDEX(Sterbtab_mix!$G$4:$G$104,AK$2+$B29)),11) -> 0.7829474582 | AL30: =ROUND(IF(AL$2+$B30>100,0,AL29*INDEX(Sterbtab_mix!$G$4:$G$104,AL$2+$B29)),11) -> 0.7660442616 | AM30: =ROUND(IF(AM$2+$B30>100,0,AM29*INDEX(Sterbtab_mix!$G$4:$G$104,AM$2+$B29)),11) -> 0.7477831197 | AN30: =ROUND(IF(AN$2+$B30>100,0,AN29*INDEX(Sterbtab_mix!$G$4:$G$104,AN$2+$B29)),11) -> 0.7279751501 | AO30: =ROUND(IF(AO$2+$B30>100,0,AO29*INDEX(Sterbtab_mix!$G$4:$G$104,AO$2+$B29)),11) -> 0.7064276464 | AP30: =ROUND(IF(AP$2+$B30>100,0,AP29*INDEX(Sterbtab_mix!$G$4:$G$104,AP$2+$B29)),11) -> 0.6829527572 | AQ30: =ROUND(IF(AQ$2+$B30>100,0,AQ29*INDEX(Sterbtab_mix!$G$4:$G$104,AQ$2+$B29)),11) -> 0.6573782276 | AR30: =ROUND(IF(AR$2+$B30>100,0,AR29*INDEX(Sterbtab_mix!$G$4:$G$104,AR$2+$B29)),11) -> 0.6295632682 | AS30: =ROUND(IF(AS$2+$B30>100,0,AS29*INDEX(Sterbtab_mix!$G$4:$G$104,AS$2+$B29)),11) -> 0.5994136838 | AT30: =ROUND(IF(AT$2+$B30>100,0,AT29*INDEX(Sterbtab_mix!$G$4:$G$104,AT$2+$B29)),11) -> 0.5668956381 | AU30: =ROUND(IF(AU$2+$B30>100,0,AU29*INDEX(Sterbtab_mix!$G$4:$G$104,AU$2+$B29)),11) -> 0.5320529894 | AV30: =ROUND(IF(AV$2+$B30>100,0,AV29*INDEX(Sterbtab_mix!$G$4:$G$104,AV$2+$B29)),11) -> 0.4950257035 | AW30: =ROUND(IF(AW$2+$B30>100,0,AW29*INDEX(Sterbtab_mix!$G$4:$G$104,AW$2+$B29)),11) -> 0.4560601826 | AX30: =ROUND(IF(AX$2+$B30>100,0,AX29*INDEX(Sterbtab_mix!$G$4:$G$104,AX$2+$B29)),11) -> 0.4155218066 | AY30: =ROUND(IF(AY$2+$B30>100,0,AY29*INDEX(Sterbtab_mix!$G$4:$G$104,AY$2+$B29)),11) -> 0.3738974537 | AZ30: =ROUND(IF(AZ$2+$B30>100,0,AZ29*INDEX(Sterbtab_mix!$G$4:$G$104,AZ$2+$B29)),11) -> 0.3317919953 | BA30: =ROUND(IF(BA$2+$B30>100,0,BA29*INDEX(Sterbtab_mix!$G$4:$G$104,BA$2+$B29)),11) -> 0.2899095352 | BB30: =ROUND(IF(BB$2+$B30>100,0,BB29*INDEX(Sterbtab_mix!$G$4:$G$104,BB$2+$B29)),11) -> 0.2490221083 | BC30: =ROUND(IF(BC$2+$B30>100,0,BC29*INDEX(Sterbtab_mix!$G$4:$G$104,BC$2+$B29)),11) -> 0.209922863 | BD30: =ROUND(IF(BD$2+$B30>100,0,BD29*INDEX(Sterbtab_mix!$G$4:$G$104,BD$2+$B29)),11) -> 0.1733711684 | BE30: =ROUND(IF(BE$2+$B30>100,0,BE29*INDEX(Sterbtab_mix!$G$4:$G$104,BE$2+$B29)),11) -> 0.1400322804 | BF30: =ROUND(IF(BF$2+$B30>100,0,BF29*INDEX(Sterbtab_mix!$G$4:$G$104,BF$2+$B29)),11) -> 0.110420609 | BG30: =ROUND(IF(BG$2+$B30>100,0,BG29*INDEX(Sterbtab_mix!$G$4:$G$104,BG$2+$B29)),11) -> 0.08485728114 | BH30: =ROUND(IF(BH$2+$B30>100,0,BH29*INDEX(Sterbtab_mix!$G$4:$G$104,BH$2+$B29)),11) -> 0.06344530411 | BI30: =ROUND(IF(BI$2+$B30>100,0,BI29*INDEX(Sterbtab_mix!$G$4:$G$104,BI$2+$B29)),11) -> 0.04607631778 | BJ30: =ROUND(IF(BJ$2+$B30>100,0,BJ29*INDEX(Sterbtab_mix!$G$4:$G$104,BJ$2+$B29)),11) -> 0.03245396658 | BK30: =ROUND(IF(BK$2+$B30>100,0,BK29*INDEX(Sterbtab_mix!$G$4:$G$104,BK$2+$B29)),11) -> 0.02213980056 | BL30: =ROUND(IF(BL$2+$B30>100,0,BL29*INDEX(Sterbtab_mix!$G$4:$G$104,BL$2+$B29)),11) -> 0 | BM30: =ROUND(IF(BM$2+$B30>100,0,BM29*INDEX(Sterbtab_mix!$G$4:$G$104,BM$2+$B29)),11) -> 0 | BN30: =ROUND(IF(BN$2+$B30>100,0,BN29*INDEX(Sterbtab_mix!$G$4:$G$104,BN$2+$B29)),11) -> 0 | BO30: =ROUND(IF(BO$2+$B30>100,0,BO29*INDEX(Sterbtab_mix!$G$4:$G$104,BO$2+$B29)),11) -> 0 | BP30: =ROUND(IF(BP$2+$B30>100,0,BP29*INDEX(Sterbtab_mix!$G$4:$G$104,BP$2+$B29)),11) -> 0 | BQ30: =ROUND(IF(BQ$2+$B30>100,0,BQ29*INDEX(Sterbtab_mix!$G$4:$G$104,BQ$2+$B29)),11) -> 0 | BR30: =ROUND(IF(BR$2+$B30>100,0,BR29*INDEX(Sterbtab_mix!$G$4:$G$104,BR$2+$B29)),11) -> 0 | BS30: =ROUND(IF(BS$2+$B30>100,0,BS29*INDEX(Sterbtab_mix!$G$4:$G$104,BS$2+$B29)),11) -> 0 | BT30: =ROUND(IF(BT$2+$B30>100,0,BT29*INDEX(Sterbtab_mix!$G$4:$G$104,BT$2+$B29)),11) -> 0 | BU30: =ROUND(IF(BU$2+$B30>100,0,BU29*INDEX(Sterbtab_mix!$G$4:$G$104,BU$2+$B29)),11) -> 0 | BV30: =ROUND(IF(BV$2+$B30>100,0,BV29*INDEX(Sterbtab_mix!$G$4:$G$104,BV$2+$B29)),11) -> 0 | BW30: =ROUND(IF(BW$2+$B30>100,0,BW29*INDEX(Sterbtab_mix!$G$4:$G$104,BW$2+$B29)),11) -> 0 | BX30: =ROUND(IF(BX$2+$B30>100,0,BX29*INDEX(Sterbtab_mix!$G$4:$G$104,BX$2+$B29)),11) -> 0 | BY30: =ROUND(IF(BY$2+$B30>100,0,BY29*INDEX(Sterbtab_mix!$G$4:$G$104,BY$2+$B29)),11) -> 0 | BZ30: =ROUND(IF(BZ$2+$B30>100,0,BZ29*INDEX(Sterbtab_mix!$G$4:$G$104,BZ$2+$B29)),11) -> 0 | CA30: =ROUND(IF(CA$2+$B30>100,0,CA29*INDEX(Sterbtab_mix!$G$4:$G$104,CA$2+$B29)),11) -> 0 | CB30: =ROUND(IF(CB$2+$B30>100,0,CB29*INDEX(Sterbtab_mix!$G$4:$G$104,CB$2+$B29)),11) -> 0 | CC30: =ROUND(IF(CC$2+$B30>100,0,CC29*INDEX(Sterbtab_mix!$G$4:$G$104,CC$2+$B29)),11) -> 0 | CD30: =ROUND(IF(CD$2+$B30>100,0,CD29*INDEX(Sterbtab_mix!$G$4:$G$104,CD$2+$B29)),11) -> 0 | CE30: =ROUND(IF(CE$2+$B30>100,0,CE29*INDEX(Sterbtab_mix!$G$4:$G$104,CE$2+$B29)),11) -> 0 | CF30: =ROUND(IF(CF$2+$B30>100,0,CF29*INDEX(Sterbtab_mix!$G$4:$G$104,CF$2+$B29)),11) -> 0 | CG30: =ROUND(IF(CG$2+$B30>100,0,CG29*INDEX(Sterbtab_mix!$G$4:$G$104,CG$2+$B29)),11) -> 0 | CH30: =ROUND(IF(CH$2+$B30>100,0,CH29*INDEX(Sterbtab_mix!$G$4:$G$104,CH$2+$B29)),11) -> 0 | CI30: =ROUND(IF(CI$2+$B30>100,0,CI29*INDEX(Sterbtab_mix!$G$4:$G$104,CI$2+$B29)),11) -> 0 | CJ30: =ROUND(IF(CJ$2+$B30>100,0,CJ29*INDEX(Sterbtab_mix!$G$4:$G$104,CJ$2+$B29)),11) -> 0
A31: 41 | B31: 26 | C31: =ROUND(IF(C$2+$B31>100,0,C30*INDEX(Sterbtab_mix!$G$4:$G$104,C$2+$B30)),11) -> 0.9849879369 | D31: =ROUND(IF(D$2+$B31>100,0,D30*INDEX(Sterbtab_mix!$G$4:$G$104,D$2+$B30)),11) -> 0.9841751324 | E31: =ROUND(IF(E$2+$B31>100,0,E30*INDEX(Sterbtab_mix!$G$4:$G$104,E$2+$B30)),11) -> 0.9833304492 | F31: =ROUND(IF(F$2+$B31>100,0,F30*INDEX(Sterbtab_mix!$G$4:$G$104,F$2+$B30)),11) -> 0.9824451021 | G31: =ROUND(IF(G$2+$B31>100,0,G30*INDEX(Sterbtab_mix!$G$4:$G$104,G$2+$B30)),11) -> 0.9814985512 | H31: =ROUND(IF(H$2+$B31>100,0,H30*INDEX(Sterbtab_mix!$G$4:$G$104,H$2+$B30)),11) -> 0.9804575829 | I31: =ROUND(IF(I$2+$B31>100,0,I30*INDEX(Sterbtab_mix!$G$4:$G$104,I$2+$B30)),11) -> 0.9792763926 | J31: =ROUND(IF(J$2+$B31>100,0,J30*INDEX(Sterbtab_mix!$G$4:$G$104,J$2+$B30)),11) -> 0.9779055172 | K31: =ROUND(IF(K$2+$B31>100,0,K30*INDEX(Sterbtab_mix!$G$4:$G$104,K$2+$B30)),11) -> 0.9762968271 | L31: =ROUND(IF(L$2+$B31>100,0,L30*INDEX(Sterbtab_mix!$G$4:$G$104,L$2+$B30)),11) -> 0.9744114241 | M31: =ROUND(IF(M$2+$B31>100,0,M30*INDEX(Sterbtab_mix!$G$4:$G$104,M$2+$B30)),11) -> 0.9722216084 | N31: =ROUND(IF(N$2+$B31>100,0,N30*INDEX(Sterbtab_mix!$G$4:$G$104,N$2+$B30)),11) -> 0.9697098905 | O31: =ROUND(IF(O$2+$B31>100,0,O30*INDEX(Sterbtab_mix!$G$4:$G$104,O$2+$B30)),11) -> 0.9668534535 | P31: =ROUND(IF(P$2+$B31>100,0,P30*INDEX(Sterbtab_mix!$G$4:$G$104,P$2+$B30)),11) -> 0.9636252687 | Q31: =ROUND(IF(Q$2+$B31>100,0,Q30*INDEX(Sterbtab_mix!$G$4:$G$104,Q$2+$B30)),11) -> 0.9599971404 | R31: =ROUND(IF(R$2+$B31>100,0,R30*INDEX(Sterbtab_mix!$G$4:$G$104,R$2+$B30)),11) -> 0.9559398567 | S31: =ROUND(IF(S$2+$B31>100,0,S30*INDEX(Sterbtab_mix!$G$4:$G$104,S$2+$B30)),11) -> 0.951417618 | T31: =ROUND(IF(T$2+$B31>100,0,T30*INDEX(Sterbtab_mix!$G$4:$G$104,T$2+$B30)),11) -> 0.9463921596 | U31: =ROUND(IF(U$2+$B31>100,0,U30*INDEX(Sterbtab_mix!$G$4:$G$104,U$2+$B30)),11) -> 0.9408268347 | V31: =ROUND(IF(V$2+$B31>100,0,V30*INDEX(Sterbtab_mix!$G$4:$G$104,V$2+$B30)),11) -> 0.9346877677 | W31: =ROUND(IF(W$2+$B31>100,0,W30*INDEX(Sterbtab_mix!$G$4:$G$104,W$2+$B30)),11) -> 0.9279440697 | X31: =ROUND(IF(X$2+$B31>100,0,X30*INDEX(Sterbtab_mix!$G$4:$G$104,X$2+$B30)),11) -> 0.9205717621 | Y31: =ROUND(IF(Y$2+$B31>100,0,Y30*INDEX(Sterbtab_mix!$G$4:$G$104,Y$2+$B30)),11) -> 0.912556576 | Z31: =ROUND(IF(Z$2+$B31>100,0,Z30*INDEX(Sterbtab_mix!$G$4:$G$104,Z$2+$B30)),11) -> 0.9038992667 | AA31: =ROUND(IF(AA$2+$B31>100,0,AA30*INDEX(Sterbtab_mix!$G$4:$G$104,AA$2+$B30)),11) -> 0.89460701 | AB31: =ROUND(IF(AB$2+$B31>100,0,AB30*INDEX(Sterbtab_mix!$G$4:$G$104,AB$2+$B30)),11) -> 0.8846914184 | AC31: =ROUND(IF(AC$2+$B31>100,0,AC30*INDEX(Sterbtab_mix!$G$4:$G$104,AC$2+$B30)),11) -> 0.8741612966 | AD31: =ROUND(IF(AD$2+$B31>100,0,AD30*INDEX(Sterbtab_mix!$G$4:$G$104,AD$2+$B30)),11) -> 0.8630193464 | AE31: =ROUND(IF(AE$2+$B31>100,0,AE30*INDEX(Sterbtab_mix!$G$4:$G$104,AE$2+$B30)),11) -> 0.8512515096 | AF31: =ROUND(IF(AF$2+$B31>100,0,AF30*INDEX(Sterbtab_mix!$G$4:$G$104,AF$2+$B30)),11) -> 0.8388214499 | AG31: =ROUND(IF(AG$2+$B31>100,0,AG30*INDEX(Sterbtab_mix!$G$4:$G$104,AG$2+$B30)),11) -> 0.8256692719 | AH31: =ROUND(IF(AH$2+$B31>100,0,AH30*INDEX(Sterbtab_mix!$G$4:$G$104,AH$2+$B30)),11) -> 0.811709969 | AI31: =ROUND(IF(AI$2+$B31>100,0,AI30*INDEX(Sterbtab_mix!$G$4:$G$104,AI$2+$B30)),11) -> 0.7968514588 | AJ31: =ROUND(IF(AJ$2+$B31>100,0,AJ30*INDEX(Sterbtab_mix!$G$4:$G$104,AJ$2+$B30)),11) -> 0.7809587717 | AK31: =ROUND(IF(AK$2+$B31>100,0,AK30*INDEX(Sterbtab_mix!$G$4:$G$104,AK$2+$B30)),11) -> 0.7638732922 | AL31: =ROUND(IF(AL$2+$B31>100,0,AL30*INDEX(Sterbtab_mix!$G$4:$G$104,AL$2+$B30)),11) -> 0.7454231162 | AM31: =ROUND(IF(AM$2+$B31>100,0,AM30*INDEX(Sterbtab_mix!$G$4:$G$104,AM$2+$B30)),11) -> 0.7254214133 | AN31: =ROUND(IF(AN$2+$B31>100,0,AN30*INDEX(Sterbtab_mix!$G$4:$G$104,AN$2+$B30)),11) -> 0.7036775235 | AO31: =ROUND(IF(AO$2+$B31>100,0,AO30*INDEX(Sterbtab_mix!$G$4:$G$104,AO$2+$B30)),11) -> 0.6800051331 | AP31: =ROUND(IF(AP$2+$B31>100,0,AP30*INDEX(Sterbtab_mix!$G$4:$G$104,AP$2+$B30)),11) -> 0.6542359597 | AQ31: =ROUND(IF(AQ$2+$B31>100,0,AQ30*INDEX(Sterbtab_mix!$G$4:$G$104,AQ$2+$B30)),11) -> 0.6262309898 | AR31: =ROUND(IF(AR$2+$B31>100,0,AR30*INDEX(Sterbtab_mix!$G$4:$G$104,AR$2+$B30)),11) -> 0.5959005202 | AS31: =ROUND(IF(AS$2+$B31>100,0,AS30*INDEX(Sterbtab_mix!$G$4:$G$104,AS$2+$B30)),11) -> 0.5632198868 | AT31: =ROUND(IF(AT$2+$B31>100,0,AT30*INDEX(Sterbtab_mix!$G$4:$G$104,AT$2+$B30)),11) -> 0.5282424259 | AU31: =ROUND(IF(AU$2+$B31>100,0,AU30*INDEX(Sterbtab_mix!$G$4:$G$104,AU$2+$B30)),11) -> 0.4911189606 | AV31: =ROUND(IF(AV$2+$B31>100,0,AV30*INDEX(Sterbtab_mix!$G$4:$G$104,AV$2+$B30)),11) -> 0.452107965 | AW31: =ROUND(IF(AW$2+$B31>100,0,AW30*INDEX(Sterbtab_mix!$G$4:$G$104,AW$2+$B30)),11) -> 0.4115847375 | AX31: =ROUND(IF(AX$2+$B31>100,0,AX30*INDEX(Sterbtab_mix!$G$4:$G$104,AX$2+$B30)),11) -> 0.3700429449 | AY31: =ROUND(IF(AY$2+$B31>100,0,AY30*INDEX(Sterbtab_mix!$G$4:$G$104,AY$2+$B30)),11) -> 0.3280875377 | AZ31: =ROUND(IF(AZ$2+$B31>100,0,AZ30*INDEX(Sterbtab_mix!$G$4:$G$104,AZ$2+$B30)),11) -> 0.2864184446 | BA31: =ROUND(IF(BA$2+$B31>100,0,BA30*INDEX(Sterbtab_mix!$G$4:$G$104,BA$2+$B30)),11) -> 0.2457977701 | BB31: =ROUND(IF(BB$2+$B31>100,0,BB30*INDEX(Sterbtab_mix!$G$4:$G$104,BB$2+$B30)),11) -> 0.2070053551 | BC31: =ROUND(IF(BC$2+$B31>100,0,BC30*INDEX(Sterbtab_mix!$G$4:$G$104,BC$2+$B30)),11) -> 0.1707856841 | BD31: =ROUND(IF(BD$2+$B31>100,0,BD30*INDEX(Sterbtab_mix!$G$4:$G$104,BD$2+$B30)),11) -> 0.137788123 | BE31: =ROUND(IF(BE$2+$B31>100,0,BE30*INDEX(Sterbtab_mix!$G$4:$G$104,BE$2+$B30)),11) -> 0.1085135346 | BF31: =ROUND(IF(BF$2+$B31>100,0,BF30*INDEX(Sterbtab_mix!$G$4:$G$104,BF$2+$B30)),11) -> 0.08327138341 | BG31: =ROUND(IF(BG$2+$B31>100,0,BG30*INDEX(Sterbtab_mix!$G$4:$G$104,BG$2+$B30)),11) -> 0.06215736443 | BH31: =ROUND(IF(BH$2+$B31>100,0,BH30*INDEX(Sterbtab_mix!$G$4:$G$104,BH$2+$B30)),11) -> 0.04505466759 | BI31: =ROUND(IF(BI$2+$B31>100,0,BI30*INDEX(Sterbtab_mix!$G$4:$G$104,BI$2+$B30)),11) -> 0.03166332304 | BJ31: =ROUND(IF(BJ$2+$B31>100,0,BJ30*INDEX(Sterbtab_mix!$G$4:$G$104,BJ$2+$B30)),11) -> 0.02154381927 | BK31: =ROUND(IF(BK$2+$B31>100,0,BK30*INDEX(Sterbtab_mix!$G$4:$G$104,BK$2+$B30)),11) -> 0 | BL31: =ROUND(IF(BL$2+$B31>100,0,BL30*INDEX(Sterbtab_mix!$G$4:$G$104,BL$2+$B30)),11) -> 0 | BM31: =ROUND(IF(BM$2+$B31>100,0,BM30*INDEX(Sterbtab_mix!$G$4:$G$104,BM$2+$B30)),11) -> 0 | BN31: =ROUND(IF(BN$2+$B31>100,0,BN30*INDEX(Sterbtab_mix!$G$4:$G$104,BN$2+$B30)),11) -> 0 | BO31: =ROUND(IF(BO$2+$B31>100,0,BO30*INDEX(Sterbtab_mix!$G$4:$G$104,BO$2+$B30)),11) -> 0 | BP31: =ROUND(IF(BP$2+$B31>100,0,BP30*INDEX(Sterbtab_mix!$G$4:$G$104,BP$2+$B30)),11) -> 0 | BQ31: =ROUND(IF(BQ$2+$B31>100,0,BQ30*INDEX(Sterbtab_mix!$G$4:$G$104,BQ$2+$B30)),11) -> 0 | BR31: =ROUND(IF(BR$2+$B31>100,0,BR30*INDEX(Sterbtab_mix!$G$4:$G$104,BR$2+$B30)),11) -> 0 | BS31: =ROUND(IF(BS$2+$B31>100,0,BS30*INDEX(Sterbtab_mix!$G$4:$G$104,BS$2+$B30)),11) -> 0 | BT31: =ROUND(IF(BT$2+$B31>100,0,BT30*INDEX(Sterbtab_mix!$G$4:$G$104,BT$2+$B30)),11) -> 0 | BU31: =ROUND(IF(BU$2+$B31>100,0,BU30*INDEX(Sterbtab_mix!$G$4:$G$104,BU$2+$B30)),11) -> 0 | BV31: =ROUND(IF(BV$2+$B31>100,0,BV30*INDEX(Sterbtab_mix!$G$4:$G$104,BV$2+$B30)),11) -> 0 | BW31: =ROUND(IF(BW$2+$B31>100,0,BW30*INDEX(Sterbtab_mix!$G$4:$G$104,BW$2+$B30)),11) -> 0 | BX31: =ROUND(IF(BX$2+$B31>100,0,BX30*INDEX(Sterbtab_mix!$G$4:$G$104,BX$2+$B30)),11) -> 0 | BY31: =ROUND(IF(BY$2+$B31>100,0,BY30*INDEX(Sterbtab_mix!$G$4:$G$104,BY$2+$B30)),11) -> 0 | BZ31: =ROUND(IF(BZ$2+$B31>100,0,BZ30*INDEX(Sterbtab_mix!$G$4:$G$104,BZ$2+$B30)),11) -> 0 | CA31: =ROUND(IF(CA$2+$B31>100,0,CA30*INDEX(Sterbtab_mix!$G$4:$G$104,CA$2+$B30)),11) -> 0 | CB31: =ROUND(IF(CB$2+$B31>100,0,CB30*INDEX(Sterbtab_mix!$G$4:$G$104,CB$2+$B30)),11) -> 0 | CC31: =ROUND(IF(CC$2+$B31>100,0,CC30*INDEX(Sterbtab_mix!$G$4:$G$104,CC$2+$B30)),11) -> 0 | CD31: =ROUND(IF(CD$2+$B31>100,0,CD30*INDEX(Sterbtab_mix!$G$4:$G$104,CD$2+$B30)),11) -> 0 | CE31: =ROUND(IF(CE$2+$B31>100,0,CE30*INDEX(Sterbtab_mix!$G$4:$G$104,CE$2+$B30)),11) -> 0 | CF31: =ROUND(IF(CF$2+$B31>100,0,CF30*INDEX(Sterbtab_mix!$G$4:$G$104,CF$2+$B30)),11) -> 0 | CG31: =ROUND(IF(CG$2+$B31>100,0,CG30*INDEX(Sterbtab_mix!$G$4:$G$104,CG$2+$B30)),11) -> 0 | CH31: =ROUND(IF(CH$2+$B31>100,0,CH30*INDEX(Sterbtab_mix!$G$4:$G$104,CH$2+$B30)),11) -> 0 | CI31: =ROUND(IF(CI$2+$B31>100,0,CI30*INDEX(Sterbtab_mix!$G$4:$G$104,CI$2+$B30)),11) -> 0 | CJ31: =ROUND(IF(CJ$2+$B31>100,0,CJ30*INDEX(Sterbtab_mix!$G$4:$G$104,CJ$2+$B30)),11) -> 0
A32: 42 | B32: 27 | C32: =ROUND(IF(C$2+$B32>100,0,C31*INDEX(Sterbtab_mix!$G$4:$G$104,C$2+$B31)),11) -> 0.9839458196 | D32: =ROUND(IF(D$2+$B32>100,0,D31*INDEX(Sterbtab_mix!$G$4:$G$104,D$2+$B31)),11) -> 0.9830266001 | E32: =ROUND(IF(E$2+$B32>100,0,E31*INDEX(Sterbtab_mix!$G$4:$G$104,E$2+$B31)),11) -> 0.9820570362 | F32: =ROUND(IF(F$2+$B32>100,0,F31*INDEX(Sterbtab_mix!$G$4:$G$104,F$2+$B31)),11) -> 0.9810254689 | G32: =ROUND(IF(G$2+$B32>100,0,G31*INDEX(Sterbtab_mix!$G$4:$G$104,G$2+$B31)),11) -> 0.979911468 | H32: =ROUND(IF(H$2+$B32>100,0,H31*INDEX(Sterbtab_mix!$G$4:$G$104,H$2+$B31)),11) -> 0.9786800133 | I32: =ROUND(IF(I$2+$B32>100,0,I31*INDEX(Sterbtab_mix!$G$4:$G$104,I$2+$B31)),11) -> 0.977286503 | J32: =ROUND(IF(J$2+$B32>100,0,J31*INDEX(Sterbtab_mix!$G$4:$G$104,J$2+$B31)),11) -> 0.97568176 | K32: =ROUND(IF(K$2+$B32>100,0,K31*INDEX(Sterbtab_mix!$G$4:$G$104,K$2+$B31)),11) -> 0.9738170331 | L32: =ROUND(IF(L$2+$B32>100,0,L31*INDEX(Sterbtab_mix!$G$4:$G$104,L$2+$B31)),11) -> 0.9716499421 | M32: =ROUND(IF(M$2+$B32>100,0,M31*INDEX(Sterbtab_mix!$G$4:$G$104,M$2+$B31)),11) -> 0.969153277 | N32: =ROUND(IF(N$2+$B32>100,0,N31*INDEX(Sterbtab_mix!$G$4:$G$104,N$2+$B31)),11) -> 0.9663081482 | O32: =ROUND(IF(O$2+$B32>100,0,O31*INDEX(Sterbtab_mix!$G$4:$G$104,O$2+$B31)),11) -> 0.9630894931 | P32: =ROUND(IF(P$2+$B32>100,0,P31*INDEX(Sterbtab_mix!$G$4:$G$104,P$2+$B31)),11) -> 0.959466262 | Q32: =ROUND(IF(Q$2+$B32>100,0,Q31*INDEX(Sterbtab_mix!$G$4:$G$104,Q$2+$B31)),11) -> 0.9554083541 | R32: =ROUND(IF(R$2+$B32>100,0,R31*INDEX(Sterbtab_mix!$G$4:$G$104,R$2+$B31)),11) -> 0.950880067 | S32: =ROUND(IF(S$2+$B32>100,0,S31*INDEX(Sterbtab_mix!$G$4:$G$104,S$2+$B31)),11) -> 0.9458413593 | T32: =ROUND(IF(T$2+$B32>100,0,T31*INDEX(Sterbtab_mix!$G$4:$G$104,T$2+$B31)),11) -> 0.9402557528 | U32: =ROUND(IF(U$2+$B32>100,0,U31*INDEX(Sterbtab_mix!$G$4:$G$104,U$2+$B31)),11) -> 0.9340886329 | V32: =ROUND(IF(V$2+$B32>100,0,V31*INDEX(Sterbtab_mix!$G$4:$G$104,V$2+$B31)),11) -> 0.9273112119 | W32: =ROUND(IF(W$2+$B32>100,0,W31*INDEX(Sterbtab_mix!$G$4:$G$104,W$2+$B31)),11) -> 0.9199025064 | X32: =ROUND(IF(X$2+$B32>100,0,X31*INDEX(Sterbtab_mix!$G$4:$G$104,X$2+$B31)),11) -> 0.9118493447 | Y32: =ROUND(IF(Y$2+$B32>100,0,Y31*INDEX(Sterbtab_mix!$G$4:$G$104,Y$2+$B31)),11) -> 0.9031490303 | Z32: =ROUND(IF(Z$2+$B32>100,0,Z31*INDEX(Sterbtab_mix!$G$4:$G$104,Z$2+$B31)),11) -> 0.8938072314 | AA32: =ROUND(IF(AA$2+$B32>100,0,AA31*INDEX(Sterbtab_mix!$G$4:$G$104,AA$2+$B31)),11) -> 0.8838341524 | AB32: =ROUND(IF(AB$2+$B32>100,0,AB31*INDEX(Sterbtab_mix!$G$4:$G$104,AB$2+$B31)),11) -> 0.8732364339 | AC32: =ROUND(IF(AC$2+$B32>100,0,AC31*INDEX(Sterbtab_mix!$G$4:$G$104,AC$2+$B31)),11) -> 0.8620122029 | AD32: =ROUND(IF(AD$2+$B32>100,0,AD31*INDEX(Sterbtab_mix!$G$4:$G$104,AD$2+$B31)),11) -> 0.8501491389 | AE32: =ROUND(IF(AE$2+$B32>100,0,AE31*INDEX(Sterbtab_mix!$G$4:$G$104,AE$2+$B31)),11) -> 0.8376093529 | AF32: =ROUND(IF(AF$2+$B32>100,0,AF31*INDEX(Sterbtab_mix!$G$4:$G$104,AF$2+$B31)),11) -> 0.8243341646 | AG32: =ROUND(IF(AG$2+$B32>100,0,AG31*INDEX(Sterbtab_mix!$G$4:$G$104,AG$2+$B31)),11) -> 0.8102383389 | AH32: =ROUND(IF(AH$2+$B32>100,0,AH31*INDEX(Sterbtab_mix!$G$4:$G$104,AH$2+$B31)),11) -> 0.7952322566 | AI32: =ROUND(IF(AI$2+$B32>100,0,AI31*INDEX(Sterbtab_mix!$G$4:$G$104,AI$2+$B31)),11) -> 0.7791828714 | AJ32: =ROUND(IF(AJ$2+$B32>100,0,AJ31*INDEX(Sterbtab_mix!$G$4:$G$104,AJ$2+$B31)),11) -> 0.7619330541 | AK32: =ROUND(IF(AK$2+$B32>100,0,AK31*INDEX(Sterbtab_mix!$G$4:$G$104,AK$2+$B31)),11) -> 0.743310587 | AL32: =ROUND(IF(AL$2+$B32>100,0,AL31*INDEX(Sterbtab_mix!$G$4:$G$104,AL$2+$B31)),11) -> 0.7231319833 | AM32: =ROUND(IF(AM$2+$B32>100,0,AM31*INDEX(Sterbtab_mix!$G$4:$G$104,AM$2+$B31)),11) -> 0.7012090228 | AN32: =ROUND(IF(AN$2+$B32>100,0,AN31*INDEX(Sterbtab_mix!$G$4:$G$104,AN$2+$B31)),11) -> 0.6773578731 | AO32: =ROUND(IF(AO$2+$B32>100,0,AO31*INDEX(Sterbtab_mix!$G$4:$G$104,AO$2+$B31)),11) -> 0.6514122773 | AP32: =ROUND(IF(AP$2+$B32>100,0,AP31*INDEX(Sterbtab_mix!$G$4:$G$104,AP$2+$B31)),11) -> 0.6232376057 | AQ32: =ROUND(IF(AQ$2+$B32>100,0,AQ31*INDEX(Sterbtab_mix!$G$4:$G$104,AQ$2+$B31)),11) -> 0.5927464188 | AR32: =ROUND(IF(AR$2+$B32>100,0,AR31*INDEX(Sterbtab_mix!$G$4:$G$104,AR$2+$B31)),11) -> 0.559918855 | AS32: =ROUND(IF(AS$2+$B32>100,0,AS31*INDEX(Sterbtab_mix!$G$4:$G$104,AS$2+$B31)),11) -> 0.524817302 | AT32: =ROUND(IF(AT$2+$B32>100,0,AT31*INDEX(Sterbtab_mix!$G$4:$G$104,AT$2+$B31)),11) -> 0.4876015666 | AU32: =ROUND(IF(AU$2+$B32>100,0,AU31*INDEX(Sterbtab_mix!$G$4:$G$104,AU$2+$B31)),11) -> 0.448539929 | AV32: =ROUND(IF(AV$2+$B32>100,0,AV31*INDEX(Sterbtab_mix!$G$4:$G$104,AV$2+$B31)),11) -> 0.4080179442 | AW32: =ROUND(IF(AW$2+$B32>100,0,AW31*INDEX(Sterbtab_mix!$G$4:$G$104,AW$2+$B31)),11) -> 0.366536788 | AX32: =ROUND(IF(AX$2+$B32>100,0,AX31*INDEX(Sterbtab_mix!$G$4:$G$104,AX$2+$B31)),11) -> 0.3247052833 | AY32: =ROUND(IF(AY$2+$B32>100,0,AY31*INDEX(Sterbtab_mix!$G$4:$G$104,AY$2+$B31)),11) -> 0.2832205827 | AZ32: =ROUND(IF(AZ$2+$B32>100,0,AZ31*INDEX(Sterbtab_mix!$G$4:$G$104,AZ$2+$B31)),11) -> 0.2428378733 | BA32: =ROUND(IF(BA$2+$B32>100,0,BA31*INDEX(Sterbtab_mix!$G$4:$G$104,BA$2+$B31)),11) -> 0.2043250497 | BB32: =ROUND(IF(BB$2+$B32>100,0,BB31*INDEX(Sterbtab_mix!$G$4:$G$104,BB$2+$B31)),11) -> 0.1684121047 | BC32: =ROUND(IF(BC$2+$B32>100,0,BC31*INDEX(Sterbtab_mix!$G$4:$G$104,BC$2+$B31)),11) -> 0.1357332887 | BD32: =ROUND(IF(BD$2+$B32>100,0,BD31*INDEX(Sterbtab_mix!$G$4:$G$104,BD$2+$B31)),11) -> 0.1067744967 | BE32: =ROUND(IF(BE$2+$B32>100,0,BE31*INDEX(Sterbtab_mix!$G$4:$G$104,BE$2+$B31)),11) -> 0.08183320335 | BF32: =ROUND(IF(BF$2+$B32>100,0,BF31*INDEX(Sterbtab_mix!$G$4:$G$104,BF$2+$B31)),11) -> 0.06099570545 | BG32: =ROUND(IF(BG$2+$B32>100,0,BG31*INDEX(Sterbtab_mix!$G$4:$G$104,BG$2+$B31)),11) -> 0.04414005783 | BH32: =ROUND(IF(BH$2+$B32>100,0,BH31*INDEX(Sterbtab_mix!$G$4:$G$104,BH$2+$B31)),11) -> 0.03096125219 | BI32: =ROUND(IF(BI$2+$B32>100,0,BI31*INDEX(Sterbtab_mix!$G$4:$G$104,BI$2+$B31)),11) -> 0.02101896874 | BJ32: =ROUND(IF(BJ$2+$B32>100,0,BJ31*INDEX(Sterbtab_mix!$G$4:$G$104,BJ$2+$B31)),11) -> 0 | BK32: =ROUND(IF(BK$2+$B32>100,0,BK31*INDEX(Sterbtab_mix!$G$4:$G$104,BK$2+$B31)),11) -> 0 | BL32: =ROUND(IF(BL$2+$B32>100,0,BL31*INDEX(Sterbtab_mix!$G$4:$G$104,BL$2+$B31)),11) -> 0 | BM32: =ROUND(IF(BM$2+$B32>100,0,BM31*INDEX(Sterbtab_mix!$G$4:$G$104,BM$2+$B31)),11) -> 0 | BN32: =ROUND(IF(BN$2+$B32>100,0,BN31*INDEX(Sterbtab_mix!$G$4:$G$104,BN$2+$B31)),11) -> 0 | BO32: =ROUND(IF(BO$2+$B32>100,0,BO31*INDEX(Sterbtab_mix!$G$4:$G$104,BO$2+$B31)),11) -> 0 | BP32: =ROUND(IF(BP$2+$B32>100,0,BP31*INDEX(Sterbtab_mix!$G$4:$G$104,BP$2+$B31)),11) -> 0 | BQ32: =ROUND(IF(BQ$2+$B32>100,0,BQ31*INDEX(Sterbtab_mix!$G$4:$G$104,BQ$2+$B31)),11) -> 0 | BR32: =ROUND(IF(BR$2+$B32>100,0,BR31*INDEX(Sterbtab_mix!$G$4:$G$104,BR$2+$B31)),11) -> 0 | BS32: =ROUND(IF(BS$2+$B32>100,0,BS31*INDEX(Sterbtab_mix!$G$4:$G$104,BS$2+$B31)),11) -> 0 | BT32: =ROUND(IF(BT$2+$B32>100,0,BT31*INDEX(Sterbtab_mix!$G$4:$G$104,BT$2+$B31)),11) -> 0 | BU32: =ROUND(IF(BU$2+$B32>100,0,BU31*INDEX(Sterbtab_mix!$G$4:$G$104,BU$2+$B31)),11) -> 0 | BV32: =ROUND(IF(BV$2+$B32>100,0,BV31*INDEX(Sterbtab_mix!$G$4:$G$104,BV$2+$B31)),11) -> 0 | BW32: =ROUND(IF(BW$2+$B32>100,0,BW31*INDEX(Sterbtab_mix!$G$4:$G$104,BW$2+$B31)),11) -> 0 | BX32: =ROUND(IF(BX$2+$B32>100,0,BX31*INDEX(Sterbtab_mix!$G$4:$G$104,BX$2+$B31)),11) -> 0 | BY32: =ROUND(IF(BY$2+$B32>100,0,BY31*INDEX(Sterbtab_mix!$G$4:$G$104,BY$2+$B31)),11) -> 0 | BZ32: =ROUND(IF(BZ$2+$B32>100,0,BZ31*INDEX(Sterbtab_mix!$G$4:$G$104,BZ$2+$B31)),11) -> 0 | CA32: =ROUND(IF(CA$2+$B32>100,0,CA31*INDEX(Sterbtab_mix!$G$4:$G$104,CA$2+$B31)),11) -> 0 | CB32: =ROUND(IF(CB$2+$B32>100,0,CB31*INDEX(Sterbtab_mix!$G$4:$G$104,CB$2+$B31)),11) -> 0 | CC32: =ROUND(IF(CC$2+$B32>100,0,CC31*INDEX(Sterbtab_mix!$G$4:$G$104,CC$2+$B31)),11) -> 0 | CD32: =ROUND(IF(CD$2+$B32>100,0,CD31*INDEX(Sterbtab_mix!$G$4:$G$104,CD$2+$B31)),11) -> 0 | CE32: =ROUND(IF(CE$2+$B32>100,0,CE31*INDEX(Sterbtab_mix!$G$4:$G$104,CE$2+$B31)),11) -> 0 | CF32: =ROUND(IF(CF$2+$B32>100,0,CF31*INDEX(Sterbtab_mix!$G$4:$G$104,CF$2+$B31)),11) -> 0 | CG32: =ROUND(IF(CG$2+$B32>100,0,CG31*INDEX(Sterbtab_mix!$G$4:$G$104,CG$2+$B31)),11) -> 0 | CH32: =ROUND(IF(CH$2+$B32>100,0,CH31*INDEX(Sterbtab_mix!$G$4:$G$104,CH$2+$B31)),11) -> 0 | CI32: =ROUND(IF(CI$2+$B32>100,0,CI31*INDEX(Sterbtab_mix!$G$4:$G$104,CI$2+$B31)),11) -> 0 | CJ32: =ROUND(IF(CJ$2+$B32>100,0,CJ31*INDEX(Sterbtab_mix!$G$4:$G$104,CJ$2+$B31)),11) -> 0
A33: 43 | B33: 28 | C33: =ROUND(IF(C$2+$B33>100,0,C32*INDEX(Sterbtab_mix!$G$4:$G$104,C$2+$B32)),11) -> 0.9827975549 | D33: =ROUND(IF(D$2+$B33>100,0,D32*INDEX(Sterbtab_mix!$G$4:$G$104,D$2+$B32)),11) -> 0.9817535806 | E33: =ROUND(IF(E$2+$B33>100,0,E32*INDEX(Sterbtab_mix!$G$4:$G$104,E$2+$B32)),11) -> 0.9806379638 | F33: =ROUND(IF(F$2+$B33>100,0,F32*INDEX(Sterbtab_mix!$G$4:$G$104,F$2+$B32)),11) -> 0.9794391507 | G33: =ROUND(IF(G$2+$B33>100,0,G32*INDEX(Sterbtab_mix!$G$4:$G$104,G$2+$B32)),11) -> 0.9781348885 | H33: =ROUND(IF(H$2+$B33>100,0,H32*INDEX(Sterbtab_mix!$G$4:$G$104,H$2+$B32)),11) -> 0.9766913355 | I33: =ROUND(IF(I$2+$B33>100,0,I32*INDEX(Sterbtab_mix!$G$4:$G$104,I$2+$B32)),11) -> 0.9750641535 | J33: =ROUND(IF(J$2+$B33>100,0,J32*INDEX(Sterbtab_mix!$G$4:$G$104,J$2+$B32)),11) -> 0.9732035284 | K33: =ROUND(IF(K$2+$B33>100,0,K32*INDEX(Sterbtab_mix!$G$4:$G$104,K$2+$B32)),11) -> 0.9710572357 | L33: =ROUND(IF(L$2+$B33>100,0,L32*INDEX(Sterbtab_mix!$G$4:$G$104,L$2+$B32)),11) -> 0.9685834148 | M33: =ROUND(IF(M$2+$B33>100,0,M32*INDEX(Sterbtab_mix!$G$4:$G$104,M$2+$B32)),11) -> 0.9657534873 | N33: =ROUND(IF(N$2+$B33>100,0,N32*INDEX(Sterbtab_mix!$G$4:$G$104,N$2+$B32)),11) -> 0.9625463105 | O33: =ROUND(IF(O$2+$B33>100,0,O32*INDEX(Sterbtab_mix!$G$4:$G$104,O$2+$B32)),11) -> 0.9589327988 | P33: =ROUND(IF(P$2+$B33>100,0,P32*INDEX(Sterbtab_mix!$G$4:$G$104,P$2+$B32)),11) -> 0.9548800133 | Q33: =ROUND(IF(Q$2+$B33>100,0,Q32*INDEX(Sterbtab_mix!$G$4:$G$104,Q$2+$B32)),11) -> 0.9503513777 | R33: =ROUND(IF(R$2+$B33>100,0,R32*INDEX(Sterbtab_mix!$G$4:$G$104,R$2+$B32)),11) -> 0.945306959 | S33: =ROUND(IF(S$2+$B33>100,0,S32*INDEX(Sterbtab_mix!$G$4:$G$104,S$2+$B32)),11) -> 0.9397085239 | T33: =ROUND(IF(T$2+$B33>100,0,T32*INDEX(Sterbtab_mix!$G$4:$G$104,T$2+$B32)),11) -> 0.9335216411 | U33: =ROUND(IF(U$2+$B33>100,0,U32*INDEX(Sterbtab_mix!$G$4:$G$104,U$2+$B32)),11) -> 0.9267168054 | V33: =ROUND(IF(V$2+$B33>100,0,V32*INDEX(Sterbtab_mix!$G$4:$G$104,V$2+$B32)),11) -> 0.9192751329 | W33: =ROUND(IF(W$2+$B33>100,0,W32*INDEX(Sterbtab_mix!$G$4:$G$104,W$2+$B32)),11) -> 0.9111864302 | X33: =ROUND(IF(X$2+$B33>100,0,X32*INDEX(Sterbtab_mix!$G$4:$G$104,X$2+$B32)),11) -> 0.9024490898 | Y33: =ROUND(IF(Y$2+$B33>100,0,Y32*INDEX(Sterbtab_mix!$G$4:$G$104,Y$2+$B32)),11) -> 0.8930653714 | Z33: =ROUND(IF(Z$2+$B33>100,0,Z32*INDEX(Sterbtab_mix!$G$4:$G$104,Z$2+$B32)),11) -> 0.8830440047 | AA33: =ROUND(IF(AA$2+$B33>100,0,AA32*INDEX(Sterbtab_mix!$G$4:$G$104,AA$2+$B32)),11) -> 0.8723902678 | AB33: =ROUND(IF(AB$2+$B33>100,0,AB32*INDEX(Sterbtab_mix!$G$4:$G$104,AB$2+$B32)),11) -> 0.8611001939 | AC33: =ROUND(IF(AC$2+$B33>100,0,AC32*INDEX(Sterbtab_mix!$G$4:$G$104,AC$2+$B32)),11) -> 0.8491570149 | AD33: =ROUND(IF(AD$2+$B33>100,0,AD32*INDEX(Sterbtab_mix!$G$4:$G$104,AD$2+$B32)),11) -> 0.8365246488 | AE33: =ROUND(IF(AE$2+$B33>100,0,AE32*INDEX(Sterbtab_mix!$G$4:$G$104,AE$2+$B32)),11) -> 0.8231430018 | AF33: =ROUND(IF(AF$2+$B33>100,0,AF32*INDEX(Sterbtab_mix!$G$4:$G$104,AF$2+$B32)),11) -> 0.8089281834 | AG33: =ROUND(IF(AG$2+$B33>100,0,AG32*INDEX(Sterbtab_mix!$G$4:$G$104,AG$2+$B32)),11) -> 0.7937905006 | AH33: =ROUND(IF(AH$2+$B33>100,0,AH32*INDEX(Sterbtab_mix!$G$4:$G$104,AH$2+$B32)),11) -> 0.7775995718 | AI33: =ROUND(IF(AI$2+$B33>100,0,AI32*INDEX(Sterbtab_mix!$G$4:$G$104,AI$2+$B32)),11) -> 0.7602004183 | AJ33: =ROUND(IF(AJ$2+$B33>100,0,AJ32*INDEX(Sterbtab_mix!$G$4:$G$104,AJ$2+$B32)),11) -> 0.7414225782 | AK33: =ROUND(IF(AK$2+$B33>100,0,AK32*INDEX(Sterbtab_mix!$G$4:$G$104,AK$2+$B32)),11) -> 0.7210826273 | AL33: =ROUND(IF(AL$2+$B33>100,0,AL32*INDEX(Sterbtab_mix!$G$4:$G$104,AL$2+$B32)),11) -> 0.6989960071 | AM33: =ROUND(IF(AM$2+$B33>100,0,AM32*INDEX(Sterbtab_mix!$G$4:$G$104,AM$2+$B32)),11) -> 0.6749817017 | AN33: =ROUND(IF(AN$2+$B33>100,0,AN32*INDEX(Sterbtab_mix!$G$4:$G$104,AN$2+$B32)),11) -> 0.6488763293 | AO33: =ROUND(IF(AO$2+$B33>100,0,AO32*INDEX(Sterbtab_mix!$G$4:$G$104,AO$2+$B32)),11) -> 0.6205477122 | AP33: =ROUND(IF(AP$2+$B33>100,0,AP32*INDEX(Sterbtab_mix!$G$4:$G$104,AP$2+$B32)),11) -> 0.5899130909 | AQ33: =ROUND(IF(AQ$2+$B33>100,0,AQ32*INDEX(Sterbtab_mix!$G$4:$G$104,AQ$2+$B32)),11) -> 0.5569552045 | AR33: =ROUND(IF(AR$2+$B33>100,0,AR32*INDEX(Sterbtab_mix!$G$4:$G$104,AR$2+$B32)),11) -> 0.5217413478 | AS33: =ROUND(IF(AS$2+$B33>100,0,AS32*INDEX(Sterbtab_mix!$G$4:$G$104,AS$2+$B32)),11) -> 0.4844399581 | AT33: =ROUND(IF(AT$2+$B33>100,0,AT32*INDEX(Sterbtab_mix!$G$4:$G$104,AT$2+$B32)),11) -> 0.445327486 | AU33: =ROUND(IF(AU$2+$B33>100,0,AU32*INDEX(Sterbtab_mix!$G$4:$G$104,AU$2+$B32)),11) -> 0.4047978666 | AV33: =ROUND(IF(AV$2+$B33>100,0,AV32*INDEX(Sterbtab_mix!$G$4:$G$104,AV$2+$B32)),11) -> 0.3633603802 | AW33: =ROUND(IF(AW$2+$B33>100,0,AW32*INDEX(Sterbtab_mix!$G$4:$G$104,AW$2+$B32)),11) -> 0.3216287007 | AX33: =ROUND(IF(AX$2+$B33>100,0,AX32*INDEX(Sterbtab_mix!$G$4:$G$104,AX$2+$B32)),11) -> 0.2803008617 | AY33: =ROUND(IF(AY$2+$B33>100,0,AY32*INDEX(Sterbtab_mix!$G$4:$G$104,AY$2+$B32)),11) -> 0.2401265885 | AZ33: =ROUND(IF(AZ$2+$B33>100,0,AZ32*INDEX(Sterbtab_mix!$G$4:$G$104,AZ$2+$B32)),11) -> 0.2018645675 | BA33: =ROUND(IF(BA$2+$B33>100,0,BA32*INDEX(Sterbtab_mix!$G$4:$G$104,BA$2+$B32)),11) -> 0.1662315047 | BB33: =ROUND(IF(BB$2+$B33>100,0,BB32*INDEX(Sterbtab_mix!$G$4:$G$104,BB$2+$B32)),11) -> 0.1338468675 | BC33: =ROUND(IF(BC$2+$B33>100,0,BC32*INDEX(Sterbtab_mix!$G$4:$G$104,BC$2+$B32)),11) -> 0.1051821686 | BD33: =ROUND(IF(BD$2+$B33>100,0,BD32*INDEX(Sterbtab_mix!$G$4:$G$104,BD$2+$B32)),11) -> 0.08052174443 | BE33: =ROUND(IF(BE$2+$B33>100,0,BE32*INDEX(Sterbtab_mix!$G$4:$G$104,BE$2+$B32)),11) -> 0.05994224862 | BF33: =ROUND(IF(BF$2+$B33>100,0,BF32*INDEX(Sterbtab_mix!$G$4:$G$104,BF$2+$B32)),11) -> 0.04331512429 | BG33: =ROUND(IF(BG$2+$B33>100,0,BG32*INDEX(Sterbtab_mix!$G$4:$G$104,BG$2+$B32)),11) -> 0.03033273876 | BH33: =ROUND(IF(BH$2+$B33>100,0,BH32*INDEX(Sterbtab_mix!$G$4:$G$104,BH$2+$B32)),11) -> 0.02055291516 | BI33: =ROUND(IF(BI$2+$B33>100,0,BI32*INDEX(Sterbtab_mix!$G$4:$G$104,BI$2+$B32)),11) -> 0 | BJ33: =ROUND(IF(BJ$2+$B33>100,0,BJ32*INDEX(Sterbtab_mix!$G$4:$G$104,BJ$2+$B32)),11) -> 0 | BK33: =ROUND(IF(BK$2+$B33>100,0,BK32*INDEX(Sterbtab_mix!$G$4:$G$104,BK$2+$B32)),11) -> 0 | BL33: =ROUND(IF(BL$2+$B33>100,0,BL32*INDEX(Sterbtab_mix!$G$4:$G$104,BL$2+$B32)),11) -> 0 | BM33: =ROUND(IF(BM$2+$B33>100,0,BM32*INDEX(Sterbtab_mix!$G$4:$G$104,BM$2+$B32)),11) -> 0 | BN33: =ROUND(IF(BN$2+$B33>100,0,BN32*INDEX(Sterbtab_mix!$G$4:$G$104,BN$2+$B32)),11) -> 0 | BO33: =ROUND(IF(BO$2+$B33>100,0,BO32*INDEX(Sterbtab_mix!$G$4:$G$104,BO$2+$B32)),11) -> 0 | BP33: =ROUND(IF(BP$2+$B33>100,0,BP32*INDEX(Sterbtab_mix!$G$4:$G$104,BP$2+$B32)),11) -> 0 | BQ33: =ROUND(IF(BQ$2+$B33>100,0,BQ32*INDEX(Sterbtab_mix!$G$4:$G$104,BQ$2+$B32)),11) -> 0 | BR33: =ROUND(IF(BR$2+$B33>100,0,BR32*INDEX(Sterbtab_mix!$G$4:$G$104,BR$2+$B32)),11) -> 0 | BS33: =ROUND(IF(BS$2+$B33>100,0,BS32*INDEX(Sterbtab_mix!$G$4:$G$104,BS$2+$B32)),11) -> 0 | BT33: =ROUND(IF(BT$2+$B33>100,0,BT32*INDEX(Sterbtab_mix!$G$4:$G$104,BT$2+$B32)),11) -> 0 | BU33: =ROUND(IF(BU$2+$B33>100,0,BU32*INDEX(Sterbtab_mix!$G$4:$G$104,BU$2+$B32)),11) -> 0 | BV33: =ROUND(IF(BV$2+$B33>100,0,BV32*INDEX(Sterbtab_mix!$G$4:$G$104,BV$2+$B32)),11) -> 0 | BW33: =ROUND(IF(BW$2+$B33>100,0,BW32*INDEX(Sterbtab_mix!$G$4:$G$104,BW$2+$B32)),11) -> 0 | BX33: =ROUND(IF(BX$2+$B33>100,0,BX32*INDEX(Sterbtab_mix!$G$4:$G$104,BX$2+$B32)),11) -> 0 | BY33: =ROUND(IF(BY$2+$B33>100,0,BY32*INDEX(Sterbtab_mix!$G$4:$G$104,BY$2+$B32)),11) -> 0 | BZ33: =ROUND(IF(BZ$2+$B33>100,0,BZ32*INDEX(Sterbtab_mix!$G$4:$G$104,BZ$2+$B32)),11) -> 0 | CA33: =ROUND(IF(CA$2+$B33>100,0,CA32*INDEX(Sterbtab_mix!$G$4:$G$104,CA$2+$B32)),11) -> 0 | CB33: =ROUND(IF(CB$2+$B33>100,0,CB32*INDEX(Sterbtab_mix!$G$4:$G$104,CB$2+$B32)),11) -> 0 | CC33: =ROUND(IF(CC$2+$B33>100,0,CC32*INDEX(Sterbtab_mix!$G$4:$G$104,CC$2+$B32)),11) -> 0 | CD33: =ROUND(IF(CD$2+$B33>100,0,CD32*INDEX(Sterbtab_mix!$G$4:$G$104,CD$2+$B32)),11) -> 0 | CE33: =ROUND(IF(CE$2+$B33>100,0,CE32*INDEX(Sterbtab_mix!$G$4:$G$104,CE$2+$B32)),11) -> 0 | CF33: =ROUND(IF(CF$2+$B33>100,0,CF32*INDEX(Sterbtab_mix!$G$4:$G$104,CF$2+$B32)),11) -> 0 | CG33: =ROUND(IF(CG$2+$B33>100,0,CG32*INDEX(Sterbtab_mix!$G$4:$G$104,CG$2+$B32)),11) -> 0 | CH33: =ROUND(IF(CH$2+$B33>100,0,CH32*INDEX(Sterbtab_mix!$G$4:$G$104,CH$2+$B32)),11) -> 0 | CI33: =ROUND(IF(CI$2+$B33>100,0,CI32*INDEX(Sterbtab_mix!$G$4:$G$104,CI$2+$B32)),11) -> 0 | CJ33: =ROUND(IF(CJ$2+$B33>100,0,CJ32*INDEX(Sterbtab_mix!$G$4:$G$104,CJ$2+$B32)),11) -> 0
A34: 44 | B34: 29 | C34: =ROUND(IF(C$2+$B34>100,0,C33*INDEX(Sterbtab_mix!$G$4:$G$104,C$2+$B33)),11) -> 0.981524832 | D34: =ROUND(IF(D$2+$B34>100,0,D33*INDEX(Sterbtab_mix!$G$4:$G$104,D$2+$B33)),11) -> 0.9803349467 | E34: =ROUND(IF(E$2+$B34>100,0,E33*INDEX(Sterbtab_mix!$G$4:$G$104,E$2+$B33)),11) -> 0.9790522722 | F34: =ROUND(IF(F$2+$B34>100,0,F33*INDEX(Sterbtab_mix!$G$4:$G$104,F$2+$B33)),11) -> 0.9776634275 | G34: =ROUND(IF(G$2+$B34>100,0,G33*INDEX(Sterbtab_mix!$G$4:$G$104,G$2+$B33)),11) -> 0.9761473184 | H34: =ROUND(IF(H$2+$B34>100,0,H33*INDEX(Sterbtab_mix!$G$4:$G$104,H$2+$B33)),11) -> 0.9744703394 | I34: =ROUND(IF(I$2+$B34>100,0,I33*INDEX(Sterbtab_mix!$G$4:$G$104,I$2+$B33)),11) -> 0.9725874905 | J34: =ROUND(IF(J$2+$B34>100,0,J33*INDEX(Sterbtab_mix!$G$4:$G$104,J$2+$B33)),11) -> 0.9704454695 | K34: =ROUND(IF(K$2+$B34>100,0,K33*INDEX(Sterbtab_mix!$G$4:$G$104,K$2+$B33)),11) -> 0.967992579 | L34: =ROUND(IF(L$2+$B34>100,0,L33*INDEX(Sterbtab_mix!$G$4:$G$104,L$2+$B33)),11) -> 0.9651856242 | M34: =ROUND(IF(M$2+$B34>100,0,M33*INDEX(Sterbtab_mix!$G$4:$G$104,M$2+$B33)),11) -> 0.961993809 | N34: =ROUND(IF(N$2+$B34>100,0,N33*INDEX(Sterbtab_mix!$G$4:$G$104,N$2+$B33)),11) -> 0.9583919607 | O34: =ROUND(IF(O$2+$B34>100,0,O33*INDEX(Sterbtab_mix!$G$4:$G$104,O$2+$B33)),11) -> 0.9543491 | P34: =ROUND(IF(P$2+$B34>100,0,P33*INDEX(Sterbtab_mix!$G$4:$G$104,P$2+$B33)),11) -> 0.9498258334 | Q34: =ROUND(IF(Q$2+$B34>100,0,Q33*INDEX(Sterbtab_mix!$G$4:$G$104,Q$2+$B33)),11) -> 0.9447813683 | R34: =ROUND(IF(R$2+$B34>100,0,R33*INDEX(Sterbtab_mix!$G$4:$G$104,R$2+$B33)),11) -> 0.9391775886 | S34: =ROUND(IF(S$2+$B34>100,0,S33*INDEX(Sterbtab_mix!$G$4:$G$104,S$2+$B33)),11) -> 0.9329783315 | T34: =ROUND(IF(T$2+$B34>100,0,T33*INDEX(Sterbtab_mix!$G$4:$G$104,T$2+$B33)),11) -> 0.9261542883 | U34: =ROUND(IF(U$2+$B34>100,0,U33*INDEX(Sterbtab_mix!$G$4:$G$104,U$2+$B33)),11) -> 0.9186858775 | V34: =ROUND(IF(V$2+$B34>100,0,V33*INDEX(Sterbtab_mix!$G$4:$G$104,V$2+$B33)),11) -> 0.910565001 | W34: =ROUND(IF(W$2+$B34>100,0,W33*INDEX(Sterbtab_mix!$G$4:$G$104,W$2+$B33)),11) -> 0.9017930093 | X34: =ROUND(IF(X$2+$B34>100,0,X33*INDEX(Sterbtab_mix!$G$4:$G$104,X$2+$B33)),11) -> 0.8923732457 | Y34: =ROUND(IF(Y$2+$B34>100,0,Y33*INDEX(Sterbtab_mix!$G$4:$G$104,Y$2+$B33)),11) -> 0.8823110782 | Z34: =ROUND(IF(Z$2+$B34>100,0,Z33*INDEX(Sterbtab_mix!$G$4:$G$104,Z$2+$B33)),11) -> 0.8716103509 | AA34: =ROUND(IF(AA$2+$B34>100,0,AA33*INDEX(Sterbtab_mix!$G$4:$G$104,AA$2+$B33)),11) -> 0.8602657878 | AB34: =ROUND(IF(AB$2+$B34>100,0,AB33*INDEX(Sterbtab_mix!$G$4:$G$104,AB$2+$B33)),11) -> 0.8482586067 | AC34: =ROUND(IF(AC$2+$B34>100,0,AC33*INDEX(Sterbtab_mix!$G$4:$G$104,AC$2+$B33)),11) -> 0.8355484246 | AD34: =ROUND(IF(AD$2+$B34>100,0,AD33*INDEX(Sterbtab_mix!$G$4:$G$104,AD$2+$B33)),11) -> 0.8220770316 | AE34: =ROUND(IF(AE$2+$B34>100,0,AE33*INDEX(Sterbtab_mix!$G$4:$G$104,AE$2+$B33)),11) -> 0.8077592823 | AF34: =ROUND(IF(AF$2+$B34>100,0,AF33*INDEX(Sterbtab_mix!$G$4:$G$104,AF$2+$B33)),11) -> 0.7925069413 | AG34: =ROUND(IF(AG$2+$B34>100,0,AG33*INDEX(Sterbtab_mix!$G$4:$G$104,AG$2+$B33)),11) -> 0.7761897838 | AH34: =ROUND(IF(AH$2+$B34>100,0,AH33*INDEX(Sterbtab_mix!$G$4:$G$104,AH$2+$B33)),11) -> 0.758655691 | AI34: =ROUND(IF(AI$2+$B34>100,0,AI33*INDEX(Sterbtab_mix!$G$4:$G$104,AI$2+$B33)),11) -> 0.7397365832 | AJ34: =ROUND(IF(AJ$2+$B34>100,0,AJ33*INDEX(Sterbtab_mix!$G$4:$G$104,AJ$2+$B33)),11) -> 0.7192510774 | AK34: =ROUND(IF(AK$2+$B34>100,0,AK33*INDEX(Sterbtab_mix!$G$4:$G$104,AK$2+$B33)),11) -> 0.6970150524 | AL34: =ROUND(IF(AL$2+$B34>100,0,AL33*INDEX(Sterbtab_mix!$G$4:$G$104,AL$2+$B33)),11) -> 0.6728514594 | AM34: =ROUND(IF(AM$2+$B34>100,0,AM33*INDEX(Sterbtab_mix!$G$4:$G$104,AM$2+$B33)),11) -> 0.6466000711 | AN34: =ROUND(IF(AN$2+$B34>100,0,AN33*INDEX(Sterbtab_mix!$G$4:$G$104,AN$2+$B33)),11) -> 0.6181319199 | AO34: =ROUND(IF(AO$2+$B34>100,0,AO33*INDEX(Sterbtab_mix!$G$4:$G$104,AO$2+$B33)),11) -> 0.587367026 | AP34: =ROUND(IF(AP$2+$B34>100,0,AP33*INDEX(Sterbtab_mix!$G$4:$G$104,AP$2+$B33)),11) -> 0.5542929586 | AQ34: =ROUND(IF(AQ$2+$B34>100,0,AQ33*INDEX(Sterbtab_mix!$G$4:$G$104,AQ$2+$B33)),11) -> 0.5189797709 | AR34: =ROUND(IF(AR$2+$B34>100,0,AR33*INDEX(Sterbtab_mix!$G$4:$G$104,AR$2+$B33)),11) -> 0.4816006555 | AS34: =ROUND(IF(AS$2+$B34>100,0,AS33*INDEX(Sterbtab_mix!$G$4:$G$104,AS$2+$B33)),11) -> 0.4424399826 | AT34: =ROUND(IF(AT$2+$B34>100,0,AT33*INDEX(Sterbtab_mix!$G$4:$G$104,AT$2+$B33)),11) -> 0.4018987042 | AU34: =ROUND(IF(AU$2+$B34>100,0,AU33*INDEX(Sterbtab_mix!$G$4:$G$104,AU$2+$B33)),11) -> 0.3604927401 | AV34: =ROUND(IF(AV$2+$B34>100,0,AV33*INDEX(Sterbtab_mix!$G$4:$G$104,AV$2+$B33)),11) -> 0.3188414664 | AW34: =ROUND(IF(AW$2+$B34>100,0,AW33*INDEX(Sterbtab_mix!$G$4:$G$104,AW$2+$B33)),11) -> 0.277645011 | AX34: =ROUND(IF(AX$2+$B34>100,0,AX33*INDEX(Sterbtab_mix!$G$4:$G$104,AX$2+$B33)),11) -> 0.2376511235 | AY34: =ROUND(IF(AY$2+$B34>100,0,AY33*INDEX(Sterbtab_mix!$G$4:$G$104,AY$2+$B33)),11) -> 0.1996107496 | AZ34: =ROUND(IF(AZ$2+$B34>100,0,AZ33*INDEX(Sterbtab_mix!$G$4:$G$104,AZ$2+$B33)),11) -> 0.164229745 | BA34: =ROUND(IF(BA$2+$B34>100,0,BA33*INDEX(Sterbtab_mix!$G$4:$G$104,BA$2+$B33)),11) -> 0.1321138182 | BB34: =ROUND(IF(BB$2+$B34>100,0,BB33*INDEX(Sterbtab_mix!$G$4:$G$104,BB$2+$B33)),11) -> 0.1037203469 | BC34: =ROUND(IF(BC$2+$B34>100,0,BC33*INDEX(Sterbtab_mix!$G$4:$G$104,BC$2+$B33)),11) -> 0.07932092365 | BD34: =ROUND(IF(BD$2+$B34>100,0,BD33*INDEX(Sterbtab_mix!$G$4:$G$104,BD$2+$B33)),11) -> 0.05898161414 | BE34: =ROUND(IF(BE$2+$B34>100,0,BE33*INDEX(Sterbtab_mix!$G$4:$G$104,BE$2+$B33)),11) -> 0.04256702878 | BF34: =ROUND(IF(BF$2+$B34>100,0,BF33*INDEX(Sterbtab_mix!$G$4:$G$104,BF$2+$B33)),11) -> 0.02976585021 | BG34: =ROUND(IF(BG$2+$B34>100,0,BG33*INDEX(Sterbtab_mix!$G$4:$G$104,BG$2+$B33)),11) -> 0.02013569097 | BH34: =ROUND(IF(BH$2+$B34>100,0,BH33*INDEX(Sterbtab_mix!$G$4:$G$104,BH$2+$B33)),11) -> 0 | BI34: =ROUND(IF(BI$2+$B34>100,0,BI33*INDEX(Sterbtab_mix!$G$4:$G$104,BI$2+$B33)),11) -> 0 | BJ34: =ROUND(IF(BJ$2+$B34>100,0,BJ33*INDEX(Sterbtab_mix!$G$4:$G$104,BJ$2+$B33)),11) -> 0 | BK34: =ROUND(IF(BK$2+$B34>100,0,BK33*INDEX(Sterbtab_mix!$G$4:$G$104,BK$2+$B33)),11) -> 0 | BL34: =ROUND(IF(BL$2+$B34>100,0,BL33*INDEX(Sterbtab_mix!$G$4:$G$104,BL$2+$B33)),11) -> 0 | BM34: =ROUND(IF(BM$2+$B34>100,0,BM33*INDEX(Sterbtab_mix!$G$4:$G$104,BM$2+$B33)),11) -> 0 | BN34: =ROUND(IF(BN$2+$B34>100,0,BN33*INDEX(Sterbtab_mix!$G$4:$G$104,BN$2+$B33)),11) -> 0 | BO34: =ROUND(IF(BO$2+$B34>100,0,BO33*INDEX(Sterbtab_mix!$G$4:$G$104,BO$2+$B33)),11) -> 0 | BP34: =ROUND(IF(BP$2+$B34>100,0,BP33*INDEX(Sterbtab_mix!$G$4:$G$104,BP$2+$B33)),11) -> 0 | BQ34: =ROUND(IF(BQ$2+$B34>100,0,BQ33*INDEX(Sterbtab_mix!$G$4:$G$104,BQ$2+$B33)),11) -> 0 | BR34: =ROUND(IF(BR$2+$B34>100,0,BR33*INDEX(Sterbtab_mix!$G$4:$G$104,BR$2+$B33)),11) -> 0 | BS34: =ROUND(IF(BS$2+$B34>100,0,BS33*INDEX(Sterbtab_mix!$G$4:$G$104,BS$2+$B33)),11) -> 0 | BT34: =ROUND(IF(BT$2+$B34>100,0,BT33*INDEX(Sterbtab_mix!$G$4:$G$104,BT$2+$B33)),11) -> 0 | BU34: =ROUND(IF(BU$2+$B34>100,0,BU33*INDEX(Sterbtab_mix!$G$4:$G$104,BU$2+$B33)),11) -> 0 | BV34: =ROUND(IF(BV$2+$B34>100,0,BV33*INDEX(Sterbtab_mix!$G$4:$G$104,BV$2+$B33)),11) -> 0 | BW34: =ROUND(IF(BW$2+$B34>100,0,BW33*INDEX(Sterbtab_mix!$G$4:$G$104,BW$2+$B33)),11) -> 0 | BX34: =ROUND(IF(BX$2+$B34>100,0,BX33*INDEX(Sterbtab_mix!$G$4:$G$104,BX$2+$B33)),11) -> 0 | BY34: =ROUND(IF(BY$2+$B34>100,0,BY33*INDEX(Sterbtab_mix!$G$4:$G$104,BY$2+$B33)),11) -> 0 | BZ34: =ROUND(IF(BZ$2+$B34>100,0,BZ33*INDEX(Sterbtab_mix!$G$4:$G$104,BZ$2+$B33)),11) -> 0 | CA34: =ROUND(IF(CA$2+$B34>100,0,CA33*INDEX(Sterbtab_mix!$G$4:$G$104,CA$2+$B33)),11) -> 0 | CB34: =ROUND(IF(CB$2+$B34>100,0,CB33*INDEX(Sterbtab_mix!$G$4:$G$104,CB$2+$B33)),11) -> 0 | CC34: =ROUND(IF(CC$2+$B34>100,0,CC33*INDEX(Sterbtab_mix!$G$4:$G$104,CC$2+$B33)),11) -> 0 | CD34: =ROUND(IF(CD$2+$B34>100,0,CD33*INDEX(Sterbtab_mix!$G$4:$G$104,CD$2+$B33)),11) -> 0 | CE34: =ROUND(IF(CE$2+$B34>100,0,CE33*INDEX(Sterbtab_mix!$G$4:$G$104,CE$2+$B33)),11) -> 0 | CF34: =ROUND(IF(CF$2+$B34>100,0,CF33*INDEX(Sterbtab_mix!$G$4:$G$104,CF$2+$B33)),11) -> 0 | CG34: =ROUND(IF(CG$2+$B34>100,0,CG33*INDEX(Sterbtab_mix!$G$4:$G$104,CG$2+$B33)),11) -> 0 | CH34: =ROUND(IF(CH$2+$B34>100,0,CH33*INDEX(Sterbtab_mix!$G$4:$G$104,CH$2+$B33)),11) -> 0 | CI34: =ROUND(IF(CI$2+$B34>100,0,CI33*INDEX(Sterbtab_mix!$G$4:$G$104,CI$2+$B33)),11) -> 0 | CJ34: =ROUND(IF(CJ$2+$B34>100,0,CJ33*INDEX(Sterbtab_mix!$G$4:$G$104,CJ$2+$B33)),11) -> 0
A35: 45 | B35: 30 | C35: =ROUND(IF(C$2+$B35>100,0,C34*INDEX(Sterbtab_mix!$G$4:$G$104,C$2+$B34)),11) -> 0.9801065287 | D35: =ROUND(IF(D$2+$B35>100,0,D34*INDEX(Sterbtab_mix!$G$4:$G$104,D$2+$B34)),11) -> 0.9787497451 | E35: =ROUND(IF(E$2+$B35>100,0,E34*INDEX(Sterbtab_mix!$G$4:$G$104,E$2+$B34)),11) -> 0.9772772505 | F35: =ROUND(IF(F$2+$B35>100,0,F34*INDEX(Sterbtab_mix!$G$4:$G$104,F$2+$B34)),11) -> 0.9756768154 | G35: =ROUND(IF(G$2+$B35>100,0,G34*INDEX(Sterbtab_mix!$G$4:$G$104,G$2+$B34)),11) -> 0.9739275594 | H35: =ROUND(IF(H$2+$B35>100,0,H34*INDEX(Sterbtab_mix!$G$4:$G$104,H$2+$B34)),11) -> 0.9719951848 | I35: =ROUND(IF(I$2+$B35>100,0,I34*INDEX(Sterbtab_mix!$G$4:$G$104,I$2+$B34)),11) -> 0.9698311776 | J35: =ROUND(IF(J$2+$B35>100,0,J34*INDEX(Sterbtab_mix!$G$4:$G$104,J$2+$B34)),11) -> 0.9673827436 | K35: =ROUND(IF(K$2+$B35>100,0,K34*INDEX(Sterbtab_mix!$G$4:$G$104,K$2+$B34)),11) -> 0.9645968611 | L35: =ROUND(IF(L$2+$B35>100,0,L34*INDEX(Sterbtab_mix!$G$4:$G$104,L$2+$B34)),11) -> 0.9614281566 | M35: =ROUND(IF(M$2+$B35>100,0,M34*INDEX(Sterbtab_mix!$G$4:$G$104,M$2+$B34)),11) -> 0.9578418437 | N35: =ROUND(IF(N$2+$B35>100,0,N34*INDEX(Sterbtab_mix!$G$4:$G$104,N$2+$B34)),11) -> 0.9538108471 | O35: =ROUND(IF(O$2+$B35>100,0,O34*INDEX(Sterbtab_mix!$G$4:$G$104,O$2+$B34)),11) -> 0.9492977302 | P35: =ROUND(IF(P$2+$B35>100,0,P34*INDEX(Sterbtab_mix!$G$4:$G$104,P$2+$B34)),11) -> 0.9442589042 | Q35: =ROUND(IF(Q$2+$B35>100,0,Q34*INDEX(Sterbtab_mix!$G$4:$G$104,Q$2+$B34)),11) -> 0.9386554059 | R35: =ROUND(IF(R$2+$B35>100,0,R34*INDEX(Sterbtab_mix!$G$4:$G$104,R$2+$B34)),11) -> 0.9324511987 | S35: =ROUND(IF(S$2+$B35>100,0,S34*INDEX(Sterbtab_mix!$G$4:$G$104,S$2+$B34)),11) -> 0.9256152665 | T35: =ROUND(IF(T$2+$B35>100,0,T34*INDEX(Sterbtab_mix!$G$4:$G$104,T$2+$B34)),11) -> 0.9181282352 | U35: =ROUND(IF(U$2+$B35>100,0,U34*INDEX(Sterbtab_mix!$G$4:$G$104,U$2+$B34)),11) -> 0.9099813289 | V35: =ROUND(IF(V$2+$B35>100,0,V34*INDEX(Sterbtab_mix!$G$4:$G$104,V$2+$B34)),11) -> 0.9011779864 | W35: =ROUND(IF(W$2+$B35>100,0,W34*INDEX(Sterbtab_mix!$G$4:$G$104,W$2+$B34)),11) -> 0.8917244903 | X35: =ROUND(IF(X$2+$B35>100,0,X34*INDEX(Sterbtab_mix!$G$4:$G$104,X$2+$B34)),11) -> 0.8816272871 | Y35: =ROUND(IF(Y$2+$B35>100,0,Y34*INDEX(Sterbtab_mix!$G$4:$G$104,Y$2+$B34)),11) -> 0.8708869143 | Z35: =ROUND(IF(Z$2+$B35>100,0,Z34*INDEX(Sterbtab_mix!$G$4:$G$104,Z$2+$B34)),11) -> 0.8594967102 | AA35: =ROUND(IF(AA$2+$B35>100,0,AA34*INDEX(Sterbtab_mix!$G$4:$G$104,AA$2+$B34)),11) -> 0.8474366441 | AB35: =ROUND(IF(AB$2+$B35>100,0,AB34*INDEX(Sterbtab_mix!$G$4:$G$104,AB$2+$B34)),11) -> 0.8346644143 | AC35: =ROUND(IF(AC$2+$B35>100,0,AC34*INDEX(Sterbtab_mix!$G$4:$G$104,AC$2+$B34)),11) -> 0.8211176677 | AD35: =ROUND(IF(AD$2+$B35>100,0,AD34*INDEX(Sterbtab_mix!$G$4:$G$104,AD$2+$B34)),11) -> 0.806713234 | AE35: =ROUND(IF(AE$2+$B35>100,0,AE34*INDEX(Sterbtab_mix!$G$4:$G$104,AE$2+$B34)),11) -> 0.7913617688 | AF35: =ROUND(IF(AF$2+$B35>100,0,AF34*INDEX(Sterbtab_mix!$G$4:$G$104,AF$2+$B34)),11) -> 0.7749346849 | AG35: =ROUND(IF(AG$2+$B35>100,0,AG34*INDEX(Sterbtab_mix!$G$4:$G$104,AG$2+$B34)),11) -> 0.7572802483 | AH35: =ROUND(IF(AH$2+$B35>100,0,AH34*INDEX(Sterbtab_mix!$G$4:$G$104,AH$2+$B34)),11) -> 0.7382334385 | AI35: =ROUND(IF(AI$2+$B35>100,0,AI34*INDEX(Sterbtab_mix!$G$4:$G$104,AI$2+$B34)),11) -> 0.7176155004 | AJ35: =ROUND(IF(AJ$2+$B35>100,0,AJ34*INDEX(Sterbtab_mix!$G$4:$G$104,AJ$2+$B34)),11) -> 0.6952446342 | AK35: =ROUND(IF(AK$2+$B35>100,0,AK34*INDEX(Sterbtab_mix!$G$4:$G$104,AK$2+$B34)),11) -> 0.6709445984 | AL35: =ROUND(IF(AL$2+$B35>100,0,AL34*INDEX(Sterbtab_mix!$G$4:$G$104,AL$2+$B34)),11) -> 0.6445594013 | AM35: =ROUND(IF(AM$2+$B35>100,0,AM34*INDEX(Sterbtab_mix!$G$4:$G$104,AM$2+$B34)),11) -> 0.6159635131 | AN35: =ROUND(IF(AN$2+$B35>100,0,AN34*INDEX(Sterbtab_mix!$G$4:$G$104,AN$2+$B34)),11) -> 0.5850804062 | AO35: =ROUND(IF(AO$2+$B35>100,0,AO34*INDEX(Sterbtab_mix!$G$4:$G$104,AO$2+$B34)),11) -> 0.5519006302 | AP35: =ROUND(IF(AP$2+$B35>100,0,AP34*INDEX(Sterbtab_mix!$G$4:$G$104,AP$2+$B34)),11) -> 0.5164990475 | AQ35: =ROUND(IF(AQ$2+$B35>100,0,AQ34*INDEX(Sterbtab_mix!$G$4:$G$104,AQ$2+$B34)),11) -> 0.4790515432 | AR35: =ROUND(IF(AR$2+$B35>100,0,AR34*INDEX(Sterbtab_mix!$G$4:$G$104,AR$2+$B34)),11) -> 0.4398468418 | AS35: =ROUND(IF(AS$2+$B35>100,0,AS34*INDEX(Sterbtab_mix!$G$4:$G$104,AS$2+$B34)),11) -> 0.399292793 | AT35: =ROUND(IF(AT$2+$B35>100,0,AT34*INDEX(Sterbtab_mix!$G$4:$G$104,AT$2+$B34)),11) -> 0.357910891 | AU35: =ROUND(IF(AU$2+$B35>100,0,AU34*INDEX(Sterbtab_mix!$G$4:$G$104,AU$2+$B34)),11) -> 0.3163251696 | AV35: =ROUND(IF(AV$2+$B35>100,0,AV34*INDEX(Sterbtab_mix!$G$4:$G$104,AV$2+$B34)),11) -> 0.2752389393 | AW35: =ROUND(IF(AW$2+$B35>100,0,AW34*INDEX(Sterbtab_mix!$G$4:$G$104,AW$2+$B34)),11) -> 0.2353993791 | AX35: =ROUND(IF(AX$2+$B35>100,0,AX34*INDEX(Sterbtab_mix!$G$4:$G$104,AX$2+$B34)),11) -> 0.1975529624 | AY35: =ROUND(IF(AY$2+$B35>100,0,AY34*INDEX(Sterbtab_mix!$G$4:$G$104,AY$2+$B34)),11) -> 0.1623961199 | AZ35: =ROUND(IF(AZ$2+$B35>100,0,AZ34*INDEX(Sterbtab_mix!$G$4:$G$104,AZ$2+$B34)),11) -> 0.1305229036 | BA35: =ROUND(IF(BA$2+$B35>100,0,BA34*INDEX(Sterbtab_mix!$G$4:$G$104,BA$2+$B34)),11) -> 0.1023773758 | BB35: =ROUND(IF(BB$2+$B35>100,0,BB34*INDEX(Sterbtab_mix!$G$4:$G$104,BB$2+$B34)),11) -> 0.07821852146 | BC35: =ROUND(IF(BC$2+$B35>100,0,BC34*INDEX(Sterbtab_mix!$G$4:$G$104,BC$2+$B34)),11) -> 0.05810202133 | BD35: =ROUND(IF(BD$2+$B35>100,0,BD34*INDEX(Sterbtab_mix!$G$4:$G$104,BD$2+$B34)),11) -> 0.04188484958 | BE35: =ROUND(IF(BE$2+$B35>100,0,BE34*INDEX(Sterbtab_mix!$G$4:$G$104,BE$2+$B34)),11) -> 0.02925176421 | BF35: =ROUND(IF(BF$2+$B35>100,0,BF34*INDEX(Sterbtab_mix!$G$4:$G$104,BF$2+$B34)),11) -> 0.01975937505 | BG35: =ROUND(IF(BG$2+$B35>100,0,BG34*INDEX(Sterbtab_mix!$G$4:$G$104,BG$2+$B34)),11) -> 0 | BH35: =ROUND(IF(BH$2+$B35>100,0,BH34*INDEX(Sterbtab_mix!$G$4:$G$104,BH$2+$B34)),11) -> 0 | BI35: =ROUND(IF(BI$2+$B35>100,0,BI34*INDEX(Sterbtab_mix!$G$4:$G$104,BI$2+$B34)),11) -> 0 | BJ35: =ROUND(IF(BJ$2+$B35>100,0,BJ34*INDEX(Sterbtab_mix!$G$4:$G$104,BJ$2+$B34)),11) -> 0 | BK35: =ROUND(IF(BK$2+$B35>100,0,BK34*INDEX(Sterbtab_mix!$G$4:$G$104,BK$2+$B34)),11) -> 0 | BL35: =ROUND(IF(BL$2+$B35>100,0,BL34*INDEX(Sterbtab_mix!$G$4:$G$104,BL$2+$B34)),11) -> 0 | BM35: =ROUND(IF(BM$2+$B35>100,0,BM34*INDEX(Sterbtab_mix!$G$4:$G$104,BM$2+$B34)),11) -> 0 | BN35: =ROUND(IF(BN$2+$B35>100,0,BN34*INDEX(Sterbtab_mix!$G$4:$G$104,BN$2+$B34)),11) -> 0 | BO35: =ROUND(IF(BO$2+$B35>100,0,BO34*INDEX(Sterbtab_mix!$G$4:$G$104,BO$2+$B34)),11) -> 0 | BP35: =ROUND(IF(BP$2+$B35>100,0,BP34*INDEX(Sterbtab_mix!$G$4:$G$104,BP$2+$B34)),11) -> 0 | BQ35: =ROUND(IF(BQ$2+$B35>100,0,BQ34*INDEX(Sterbtab_mix!$G$4:$G$104,BQ$2+$B34)),11) -> 0 | BR35: =ROUND(IF(BR$2+$B35>100,0,BR34*INDEX(Sterbtab_mix!$G$4:$G$104,BR$2+$B34)),11) -> 0 | BS35: =ROUND(IF(BS$2+$B35>100,0,BS34*INDEX(Sterbtab_mix!$G$4:$G$104,BS$2+$B34)),11) -> 0 | BT35: =ROUND(IF(BT$2+$B35>100,0,BT34*INDEX(Sterbtab_mix!$G$4:$G$104,BT$2+$B34)),11) -> 0 | BU35: =ROUND(IF(BU$2+$B35>100,0,BU34*INDEX(Sterbtab_mix!$G$4:$G$104,BU$2+$B34)),11) -> 0 | BV35: =ROUND(IF(BV$2+$B35>100,0,BV34*INDEX(Sterbtab_mix!$G$4:$G$104,BV$2+$B34)),11) -> 0 | BW35: =ROUND(IF(BW$2+$B35>100,0,BW34*INDEX(Sterbtab_mix!$G$4:$G$104,BW$2+$B34)),11) -> 0 | BX35: =ROUND(IF(BX$2+$B35>100,0,BX34*INDEX(Sterbtab_mix!$G$4:$G$104,BX$2+$B34)),11) -> 0 | BY35: =ROUND(IF(BY$2+$B35>100,0,BY34*INDEX(Sterbtab_mix!$G$4:$G$104,BY$2+$B34)),11) -> 0 | BZ35: =ROUND(IF(BZ$2+$B35>100,0,BZ34*INDEX(Sterbtab_mix!$G$4:$G$104,BZ$2+$B34)),11) -> 0 | CA35: =ROUND(IF(CA$2+$B35>100,0,CA34*INDEX(Sterbtab_mix!$G$4:$G$104,CA$2+$B34)),11) -> 0 | CB35: =ROUND(IF(CB$2+$B35>100,0,CB34*INDEX(Sterbtab_mix!$G$4:$G$104,CB$2+$B34)),11) -> 0 | CC35: =ROUND(IF(CC$2+$B35>100,0,CC34*INDEX(Sterbtab_mix!$G$4:$G$104,CC$2+$B34)),11) -> 0 | CD35: =ROUND(IF(CD$2+$B35>100,0,CD34*INDEX(Sterbtab_mix!$G$4:$G$104,CD$2+$B34)),11) -> 0 | CE35: =ROUND(IF(CE$2+$B35>100,0,CE34*INDEX(Sterbtab_mix!$G$4:$G$104,CE$2+$B34)),11) -> 0 | CF35: =ROUND(IF(CF$2+$B35>100,0,CF34*INDEX(Sterbtab_mix!$G$4:$G$104,CF$2+$B34)),11) -> 0 | CG35: =ROUND(IF(CG$2+$B35>100,0,CG34*INDEX(Sterbtab_mix!$G$4:$G$104,CG$2+$B34)),11) -> 0 | CH35: =ROUND(IF(CH$2+$B35>100,0,CH34*INDEX(Sterbtab_mix!$G$4:$G$104,CH$2+$B34)),11) -> 0 | CI35: =ROUND(IF(CI$2+$B35>100,0,CI34*INDEX(Sterbtab_mix!$G$4:$G$104,CI$2+$B34)),11) -> 0 | CJ35: =ROUND(IF(CJ$2+$B35>100,0,CJ34*INDEX(Sterbtab_mix!$G$4:$G$104,CJ$2+$B34)),11) -> 0
A36: 46 | B36: 31 | C36: =ROUND(IF(C$2+$B36>100,0,C35*INDEX(Sterbtab_mix!$G$4:$G$104,C$2+$B35)),11) -> 0.9785216964 | D36: =ROUND(IF(D$2+$B36>100,0,D35*INDEX(Sterbtab_mix!$G$4:$G$104,D$2+$B35)),11) -> 0.9769752718 | E36: =ROUND(IF(E$2+$B36>100,0,E35*INDEX(Sterbtab_mix!$G$4:$G$104,E$2+$B35)),11) -> 0.9752914231 | F36: =ROUND(IF(F$2+$B36>100,0,F35*INDEX(Sterbtab_mix!$G$4:$G$104,F$2+$B35)),11) -> 0.9734581264 | G36: =ROUND(IF(G$2+$B36>100,0,G35*INDEX(Sterbtab_mix!$G$4:$G$104,G$2+$B35)),11) -> 0.9714537834 | H36: =ROUND(IF(H$2+$B36>100,0,H35*INDEX(Sterbtab_mix!$G$4:$G$104,H$2+$B35)),11) -> 0.9692405504 | I36: =ROUND(IF(I$2+$B36>100,0,I35*INDEX(Sterbtab_mix!$G$4:$G$104,I$2+$B35)),11) -> 0.9667703904 | J36: =ROUND(IF(J$2+$B36>100,0,J35*INDEX(Sterbtab_mix!$G$4:$G$104,J$2+$B35)),11) -> 0.963989165 | K36: =ROUND(IF(K$2+$B36>100,0,K35*INDEX(Sterbtab_mix!$G$4:$G$104,K$2+$B35)),11) -> 0.9608416855 | L36: =ROUND(IF(L$2+$B36>100,0,L35*INDEX(Sterbtab_mix!$G$4:$G$104,L$2+$B35)),11) -> 0.9572786327 | M36: =ROUND(IF(M$2+$B36>100,0,M35*INDEX(Sterbtab_mix!$G$4:$G$104,M$2+$B35)),11) -> 0.9532633597 | N36: =ROUND(IF(N$2+$B36>100,0,N35*INDEX(Sterbtab_mix!$G$4:$G$104,N$2+$B35)),11) -> 0.9487623263 | O36: =ROUND(IF(O$2+$B36>100,0,O35*INDEX(Sterbtab_mix!$G$4:$G$104,O$2+$B35)),11) -> 0.9437338962 | P36: =ROUND(IF(P$2+$B36>100,0,P35*INDEX(Sterbtab_mix!$G$4:$G$104,P$2+$B35)),11) -> 0.9381363294 | Q36: =ROUND(IF(Q$2+$B36>100,0,Q35*INDEX(Sterbtab_mix!$G$4:$G$104,Q$2+$B35)),11) -> 0.9319327559 | R36: =ROUND(IF(R$2+$B36>100,0,R35*INDEX(Sterbtab_mix!$G$4:$G$104,R$2+$B35)),11) -> 0.9250922939 | S36: =ROUND(IF(S$2+$B36>100,0,S35*INDEX(Sterbtab_mix!$G$4:$G$104,S$2+$B35)),11) -> 0.9175938846 | T36: =ROUND(IF(T$2+$B36>100,0,T35*INDEX(Sterbtab_mix!$G$4:$G$104,T$2+$B35)),11) -> 0.9094289702 | U36: =ROUND(IF(U$2+$B36>100,0,U35*INDEX(Sterbtab_mix!$G$4:$G$104,U$2+$B35)),11) -> 0.9006003313 | V36: =ROUND(IF(V$2+$B36>100,0,V35*INDEX(Sterbtab_mix!$G$4:$G$104,V$2+$B35)),11) -> 0.8911163342 | W36: =ROUND(IF(W$2+$B36>100,0,W35*INDEX(Sterbtab_mix!$G$4:$G$104,W$2+$B35)),11) -> 0.880986344 | X36: =ROUND(IF(X$2+$B36>100,0,X35*INDEX(Sterbtab_mix!$G$4:$G$104,X$2+$B35)),11) -> 0.8702119769 | Y36: =ROUND(IF(Y$2+$B36>100,0,Y35*INDEX(Sterbtab_mix!$G$4:$G$104,Y$2+$B35)),11) -> 0.858783328 | Z36: =ROUND(IF(Z$2+$B36>100,0,Z35*INDEX(Sterbtab_mix!$G$4:$G$104,Z$2+$B35)),11) -> 0.8466790358 | AA36: =ROUND(IF(AA$2+$B36>100,0,AA35*INDEX(Sterbtab_mix!$G$4:$G$104,AA$2+$B35)),11) -> 0.8338556245 | AB36: =ROUND(IF(AB$2+$B36>100,0,AB35*INDEX(Sterbtab_mix!$G$4:$G$104,AB$2+$B35)),11) -> 0.8202489252 | AC36: =ROUND(IF(AC$2+$B36>100,0,AC35*INDEX(Sterbtab_mix!$G$4:$G$104,AC$2+$B35)),11) -> 0.8057717996 | AD36: =ROUND(IF(AD$2+$B36>100,0,AD35*INDEX(Sterbtab_mix!$G$4:$G$104,AD$2+$B35)),11) -> 0.7903369553 | AE36: =ROUND(IF(AE$2+$B36>100,0,AE35*INDEX(Sterbtab_mix!$G$4:$G$104,AE$2+$B35)),11) -> 0.7738149043 | AF36: =ROUND(IF(AF$2+$B36>100,0,AF35*INDEX(Sterbtab_mix!$G$4:$G$104,AF$2+$B35)),11) -> 0.7560557261 | AG36: =ROUND(IF(AG$2+$B36>100,0,AG35*INDEX(Sterbtab_mix!$G$4:$G$104,AG$2+$B35)),11) -> 0.7368950213 | AH36: =ROUND(IF(AH$2+$B36>100,0,AH35*INDEX(Sterbtab_mix!$G$4:$G$104,AH$2+$B35)),11) -> 0.7161573057 | AI36: =ROUND(IF(AI$2+$B36>100,0,AI35*INDEX(Sterbtab_mix!$G$4:$G$104,AI$2+$B35)),11) -> 0.6936636479 | AJ36: =ROUND(IF(AJ$2+$B36>100,0,AJ35*INDEX(Sterbtab_mix!$G$4:$G$104,AJ$2+$B35)),11) -> 0.6692403991 | AK36: =ROUND(IF(AK$2+$B36>100,0,AK35*INDEX(Sterbtab_mix!$G$4:$G$104,AK$2+$B35)),11) -> 0.6427327199 | AL36: =ROUND(IF(AL$2+$B36>100,0,AL35*INDEX(Sterbtab_mix!$G$4:$G$104,AL$2+$B35)),11) -> 0.6140195323 | AM36: =ROUND(IF(AM$2+$B36>100,0,AM35*INDEX(Sterbtab_mix!$G$4:$G$104,AM$2+$B35)),11) -> 0.5830279441 | AN36: =ROUND(IF(AN$2+$B36>100,0,AN35*INDEX(Sterbtab_mix!$G$4:$G$104,AN$2+$B35)),11) -> 0.5497520811 | AO36: =ROUND(IF(AO$2+$B36>100,0,AO35*INDEX(Sterbtab_mix!$G$4:$G$104,AO$2+$B35)),11) -> 0.5142698377 | AP36: =ROUND(IF(AP$2+$B36>100,0,AP35*INDEX(Sterbtab_mix!$G$4:$G$104,AP$2+$B35)),11) -> 0.4767616768 | AQ36: =ROUND(IF(AQ$2+$B36>100,0,AQ35*INDEX(Sterbtab_mix!$G$4:$G$104,AQ$2+$B35)),11) -> 0.4375187325 | AR36: =ROUND(IF(AR$2+$B36>100,0,AR35*INDEX(Sterbtab_mix!$G$4:$G$104,AR$2+$B35)),11) -> 0.396952538 | AS36: =ROUND(IF(AS$2+$B36>100,0,AS35*INDEX(Sterbtab_mix!$G$4:$G$104,AS$2+$B35)),11) -> 0.3555901968 | AT36: =ROUND(IF(AT$2+$B36>100,0,AT35*INDEX(Sterbtab_mix!$G$4:$G$104,AT$2+$B35)),11) -> 0.3140596487 | AU36: =ROUND(IF(AU$2+$B36>100,0,AU35*INDEX(Sterbtab_mix!$G$4:$G$104,AU$2+$B35)),11) -> 0.2730667536 | AV36: =ROUND(IF(AV$2+$B36>100,0,AV35*INDEX(Sterbtab_mix!$G$4:$G$104,AV$2+$B35)),11) -> 0.233359408 | AW36: =ROUND(IF(AW$2+$B36>100,0,AW35*INDEX(Sterbtab_mix!$G$4:$G$104,AW$2+$B35)),11) -> 0.195681148 | AX36: =ROUND(IF(AX$2+$B36>100,0,AX35*INDEX(Sterbtab_mix!$G$4:$G$104,AX$2+$B35)),11) -> 0.1607219783 | AY36: =ROUND(IF(AY$2+$B36>100,0,AY35*INDEX(Sterbtab_mix!$G$4:$G$104,AY$2+$B35)),11) -> 0.1290656154 | AZ36: =ROUND(IF(AZ$2+$B36>100,0,AZ35*INDEX(Sterbtab_mix!$G$4:$G$104,AZ$2+$B35)),11) -> 0.1011445474 | BA36: =ROUND(IF(BA$2+$B36>100,0,BA35*INDEX(Sterbtab_mix!$G$4:$G$104,BA$2+$B35)),11) -> 0.07720574803 | BB36: =ROUND(IF(BB$2+$B36>100,0,BB35*INDEX(Sterbtab_mix!$G$4:$G$104,BB$2+$B35)),11) -> 0.05729451944 | BC36: =ROUND(IF(BC$2+$B36>100,0,BC35*INDEX(Sterbtab_mix!$G$4:$G$104,BC$2+$B35)),11) -> 0.04126022082 | BD36: =ROUND(IF(BD$2+$B36>100,0,BD35*INDEX(Sterbtab_mix!$G$4:$G$104,BD$2+$B35)),11) -> 0.02878297544 | BE36: =ROUND(IF(BE$2+$B36>100,0,BE35*INDEX(Sterbtab_mix!$G$4:$G$104,BE$2+$B35)),11) -> 0.01941811088 | BF36: =ROUND(IF(BF$2+$B36>100,0,BF35*INDEX(Sterbtab_mix!$G$4:$G$104,BF$2+$B35)),11) -> 0 | BG36: =ROUND(IF(BG$2+$B36>100,0,BG35*INDEX(Sterbtab_mix!$G$4:$G$104,BG$2+$B35)),11) -> 0 | BH36: =ROUND(IF(BH$2+$B36>100,0,BH35*INDEX(Sterbtab_mix!$G$4:$G$104,BH$2+$B35)),11) -> 0 | BI36: =ROUND(IF(BI$2+$B36>100,0,BI35*INDEX(Sterbtab_mix!$G$4:$G$104,BI$2+$B35)),11) -> 0 | BJ36: =ROUND(IF(BJ$2+$B36>100,0,BJ35*INDEX(Sterbtab_mix!$G$4:$G$104,BJ$2+$B35)),11) -> 0 | BK36: =ROUND(IF(BK$2+$B36>100,0,BK35*INDEX(Sterbtab_mix!$G$4:$G$104,BK$2+$B35)),11) -> 0 | BL36: =ROUND(IF(BL$2+$B36>100,0,BL35*INDEX(Sterbtab_mix!$G$4:$G$104,BL$2+$B35)),11) -> 0 | BM36: =ROUND(IF(BM$2+$B36>100,0,BM35*INDEX(Sterbtab_mix!$G$4:$G$104,BM$2+$B35)),11) -> 0 | BN36: =ROUND(IF(BN$2+$B36>100,0,BN35*INDEX(Sterbtab_mix!$G$4:$G$104,BN$2+$B35)),11) -> 0 | BO36: =ROUND(IF(BO$2+$B36>100,0,BO35*INDEX(Sterbtab_mix!$G$4:$G$104,BO$2+$B35)),11) -> 0 | BP36: =ROUND(IF(BP$2+$B36>100,0,BP35*INDEX(Sterbtab_mix!$G$4:$G$104,BP$2+$B35)),11) -> 0 | BQ36: =ROUND(IF(BQ$2+$B36>100,0,BQ35*INDEX(Sterbtab_mix!$G$4:$G$104,BQ$2+$B35)),11) -> 0 | BR36: =ROUND(IF(BR$2+$B36>100,0,BR35*INDEX(Sterbtab_mix!$G$4:$G$104,BR$2+$B35)),11) -> 0 | BS36: =ROUND(IF(BS$2+$B36>100,0,BS35*INDEX(Sterbtab_mix!$G$4:$G$104,BS$2+$B35)),11) -> 0 | BT36: =ROUND(IF(BT$2+$B36>100,0,BT35*INDEX(Sterbtab_mix!$G$4:$G$104,BT$2+$B35)),11) -> 0 | BU36: =ROUND(IF(BU$2+$B36>100,0,BU35*INDEX(Sterbtab_mix!$G$4:$G$104,BU$2+$B35)),11) -> 0 | BV36: =ROUND(IF(BV$2+$B36>100,0,BV35*INDEX(Sterbtab_mix!$G$4:$G$104,BV$2+$B35)),11) -> 0 | BW36: =ROUND(IF(BW$2+$B36>100,0,BW35*INDEX(Sterbtab_mix!$G$4:$G$104,BW$2+$B35)),11) -> 0 | BX36: =ROUND(IF(BX$2+$B36>100,0,BX35*INDEX(Sterbtab_mix!$G$4:$G$104,BX$2+$B35)),11) -> 0 | BY36: =ROUND(IF(BY$2+$B36>100,0,BY35*INDEX(Sterbtab_mix!$G$4:$G$104,BY$2+$B35)),11) -> 0 | BZ36: =ROUND(IF(BZ$2+$B36>100,0,BZ35*INDEX(Sterbtab_mix!$G$4:$G$104,BZ$2+$B35)),11) -> 0 | CA36: =ROUND(IF(CA$2+$B36>100,0,CA35*INDEX(Sterbtab_mix!$G$4:$G$104,CA$2+$B35)),11) -> 0 | CB36: =ROUND(IF(CB$2+$B36>100,0,CB35*INDEX(Sterbtab_mix!$G$4:$G$104,CB$2+$B35)),11) -> 0 | CC36: =ROUND(IF(CC$2+$B36>100,0,CC35*INDEX(Sterbtab_mix!$G$4:$G$104,CC$2+$B35)),11) -> 0 | CD36: =ROUND(IF(CD$2+$B36>100,0,CD35*INDEX(Sterbtab_mix!$G$4:$G$104,CD$2+$B35)),11) -> 0 | CE36: =ROUND(IF(CE$2+$B36>100,0,CE35*INDEX(Sterbtab_mix!$G$4:$G$104,CE$2+$B35)),11) -> 0 | CF36: =ROUND(IF(CF$2+$B36>100,0,CF35*INDEX(Sterbtab_mix!$G$4:$G$104,CF$2+$B35)),11) -> 0 | CG36: =ROUND(IF(CG$2+$B36>100,0,CG35*INDEX(Sterbtab_mix!$G$4:$G$104,CG$2+$B35)),11) -> 0 | CH36: =ROUND(IF(CH$2+$B36>100,0,CH35*INDEX(Sterbtab_mix!$G$4:$G$104,CH$2+$B35)),11) -> 0 | CI36: =ROUND(IF(CI$2+$B36>100,0,CI35*INDEX(Sterbtab_mix!$G$4:$G$104,CI$2+$B35)),11) -> 0 | CJ36: =ROUND(IF(CJ$2+$B36>100,0,CJ35*INDEX(Sterbtab_mix!$G$4:$G$104,CJ$2+$B35)),11) -> 0
A37: 47 | B37: 32 | C37: =ROUND(IF(C$2+$B37>100,0,C36*INDEX(Sterbtab_mix!$G$4:$G$104,C$2+$B36)),11) -> 0.9767476365 | D37: =ROUND(IF(D$2+$B37>100,0,D36*INDEX(Sterbtab_mix!$G$4:$G$104,D$2+$B36)),11) -> 0.974990058 | E37: =ROUND(IF(E$2+$B37>100,0,E36*INDEX(Sterbtab_mix!$G$4:$G$104,E$2+$B36)),11) -> 0.9730736104 | F37: =ROUND(IF(F$2+$B37>100,0,F36*INDEX(Sterbtab_mix!$G$4:$G$104,F$2+$B36)),11) -> 0.9709855427 | G37: =ROUND(IF(G$2+$B37>100,0,G36*INDEX(Sterbtab_mix!$G$4:$G$104,G$2+$B36)),11) -> 0.9687006834 | H37: =ROUND(IF(H$2+$B37>100,0,H36*INDEX(Sterbtab_mix!$G$4:$G$104,H$2+$B36)),11) -> 0.9661816273 | I37: =ROUND(IF(I$2+$B37>100,0,I36*INDEX(Sterbtab_mix!$G$4:$G$104,I$2+$B36)),11) -> 0.9633789598 | J37: =ROUND(IF(J$2+$B37>100,0,J36*INDEX(Sterbtab_mix!$G$4:$G$104,J$2+$B36)),11) -> 0.9602363552 | K37: =ROUND(IF(K$2+$B37>100,0,K36*INDEX(Sterbtab_mix!$G$4:$G$104,K$2+$B36)),11) -> 0.9566946928 | L37: =ROUND(IF(L$2+$B37>100,0,L36*INDEX(Sterbtab_mix!$G$4:$G$104,L$2+$B36)),11) -> 0.9527028408 | M37: =ROUND(IF(M$2+$B37>100,0,M36*INDEX(Sterbtab_mix!$G$4:$G$104,M$2+$B36)),11) -> 0.9482177367 | N37: =ROUND(IF(N$2+$B37>100,0,N36*INDEX(Sterbtab_mix!$G$4:$G$104,N$2+$B36)),11) -> 0.9432016303 | O37: =ROUND(IF(O$2+$B37>100,0,O36*INDEX(Sterbtab_mix!$G$4:$G$104,O$2+$B36)),11) -> 0.9376147257 | P37: =ROUND(IF(P$2+$B37>100,0,P36*INDEX(Sterbtab_mix!$G$4:$G$104,P$2+$B36)),11) -> 0.931417397 | Q37: =ROUND(IF(Q$2+$B37>100,0,Q36*INDEX(Sterbtab_mix!$G$4:$G$104,Q$2+$B36)),11) -> 0.9245779426 | R37: =ROUND(IF(R$2+$B37>100,0,R36*INDEX(Sterbtab_mix!$G$4:$G$104,R$2+$B36)),11) -> 0.9170754441 | S37: =ROUND(IF(S$2+$B37>100,0,S36*INDEX(Sterbtab_mix!$G$4:$G$104,S$2+$B36)),11) -> 0.9088996825 | T37: =ROUND(IF(T$2+$B37>100,0,T36*INDEX(Sterbtab_mix!$G$4:$G$104,T$2+$B36)),11) -> 0.900053667 | U37: =ROUND(IF(U$2+$B37>100,0,U36*INDEX(Sterbtab_mix!$G$4:$G$104,U$2+$B36)),11) -> 0.8905451286 | V37: =ROUND(IF(V$2+$B37>100,0,V36*INDEX(Sterbtab_mix!$G$4:$G$104,V$2+$B36)),11) -> 0.8803855113 | W37: =ROUND(IF(W$2+$B37>100,0,W36*INDEX(Sterbtab_mix!$G$4:$G$104,W$2+$B36)),11) -> 0.8695793328 | X37: =ROUND(IF(X$2+$B37>100,0,X36*INDEX(Sterbtab_mix!$G$4:$G$104,X$2+$B36)),11) -> 0.8581177709 | Y37: =ROUND(IF(Y$2+$B37>100,0,Y36*INDEX(Sterbtab_mix!$G$4:$G$104,Y$2+$B36)),11) -> 0.8459762922 | Z37: =ROUND(IF(Z$2+$B37>100,0,Z36*INDEX(Sterbtab_mix!$G$4:$G$104,Z$2+$B36)),11) -> 0.8331101576 | AA37: =ROUND(IF(AA$2+$B37>100,0,AA36*INDEX(Sterbtab_mix!$G$4:$G$104,AA$2+$B36)),11) -> 0.819454104 | AB37: =ROUND(IF(AB$2+$B37>100,0,AB36*INDEX(Sterbtab_mix!$G$4:$G$104,AB$2+$B36)),11) -> 0.804919293 | AC37: =ROUND(IF(AC$2+$B37>100,0,AC36*INDEX(Sterbtab_mix!$G$4:$G$104,AC$2+$B36)),11) -> 0.7894146321 | AD37: =ROUND(IF(AD$2+$B37>100,0,AD36*INDEX(Sterbtab_mix!$G$4:$G$104,AD$2+$B36)),11) -> 0.772812814 | AE37: =ROUND(IF(AE$2+$B37>100,0,AE36*INDEX(Sterbtab_mix!$G$4:$G$104,AE$2+$B36)),11) -> 0.7549632256 | AF37: =ROUND(IF(AF$2+$B37>100,0,AF36*INDEX(Sterbtab_mix!$G$4:$G$104,AF$2+$B36)),11) -> 0.735703462 | AG37: =ROUND(IF(AG$2+$B37>100,0,AG36*INDEX(Sterbtab_mix!$G$4:$G$104,AG$2+$B36)),11) -> 0.7148589126 | AH37: =ROUND(IF(AH$2+$B37>100,0,AH36*INDEX(Sterbtab_mix!$G$4:$G$104,AH$2+$B36)),11) -> 0.6922541234 | AI37: =ROUND(IF(AI$2+$B37>100,0,AI36*INDEX(Sterbtab_mix!$G$4:$G$104,AI$2+$B36)),11) -> 0.6677185465 | AJ37: =ROUND(IF(AJ$2+$B37>100,0,AJ36*INDEX(Sterbtab_mix!$G$4:$G$104,AJ$2+$B36)),11) -> 0.6411001788 | AK37: =ROUND(IF(AK$2+$B37>100,0,AK36*INDEX(Sterbtab_mix!$G$4:$G$104,AK$2+$B36)),11) -> 0.6122794009 | AL37: =ROUND(IF(AL$2+$B37>100,0,AL36*INDEX(Sterbtab_mix!$G$4:$G$104,AL$2+$B36)),11) -> 0.5811879079 | AM37: =ROUND(IF(AM$2+$B37>100,0,AM36*INDEX(Sterbtab_mix!$G$4:$G$104,AM$2+$B36)),11) -> 0.5478235508 | AN37: =ROUND(IF(AN$2+$B37>100,0,AN36*INDEX(Sterbtab_mix!$G$4:$G$104,AN$2+$B36)),11) -> 0.5122677852 | AO37: =ROUND(IF(AO$2+$B37>100,0,AO36*INDEX(Sterbtab_mix!$G$4:$G$104,AO$2+$B36)),11) -> 0.4747039734 | AP37: =ROUND(IF(AP$2+$B37>100,0,AP36*INDEX(Sterbtab_mix!$G$4:$G$104,AP$2+$B36)),11) -> 0.435427393 | AQ37: =ROUND(IF(AQ$2+$B37>100,0,AQ36*INDEX(Sterbtab_mix!$G$4:$G$104,AQ$2+$B36)),11) -> 0.3948514682 | AR37: =ROUND(IF(AR$2+$B37>100,0,AR36*INDEX(Sterbtab_mix!$G$4:$G$104,AR$2+$B36)),11) -> 0.3535060827 | AS37: =ROUND(IF(AS$2+$B37>100,0,AS36*INDEX(Sterbtab_mix!$G$4:$G$104,AS$2+$B36)),11) -> 0.3120232859 | AT37: =ROUND(IF(AT$2+$B37>100,0,AT36*INDEX(Sterbtab_mix!$G$4:$G$104,AT$2+$B36)),11) -> 0.2711110495 | AU37: =ROUND(IF(AU$2+$B37>100,0,AU36*INDEX(Sterbtab_mix!$G$4:$G$104,AU$2+$B36)),11) -> 0.2315177356 | AV37: =ROUND(IF(AV$2+$B37>100,0,AV36*INDEX(Sterbtab_mix!$G$4:$G$104,AV$2+$B36)),11) -> 0.1939853752 | AW37: =ROUND(IF(AW$2+$B37>100,0,AW36*INDEX(Sterbtab_mix!$G$4:$G$104,AW$2+$B36)),11) -> 0.1591991375 | AX37: =ROUND(IF(AX$2+$B37>100,0,AX36*INDEX(Sterbtab_mix!$G$4:$G$104,AX$2+$B36)),11) -> 0.127735078 | AY37: =ROUND(IF(AY$2+$B37>100,0,AY36*INDEX(Sterbtab_mix!$G$4:$G$104,AY$2+$B36)),11) -> 0.1000152686 | AZ37: =ROUND(IF(AZ$2+$B37>100,0,AZ36*INDEX(Sterbtab_mix!$G$4:$G$104,AZ$2+$B36)),11) -> 0.07627603642 | BA37: =ROUND(IF(BA$2+$B37>100,0,BA36*INDEX(Sterbtab_mix!$G$4:$G$104,BA$2+$B36)),11) -> 0.05655266999 | BB37: =ROUND(IF(BB$2+$B37>100,0,BB36*INDEX(Sterbtab_mix!$G$4:$G$104,BB$2+$B36)),11) -> 0.04068678627 | BC37: =ROUND(IF(BC$2+$B37>100,0,BC36*INDEX(Sterbtab_mix!$G$4:$G$104,BC$2+$B36)),11) -> 0.02835373493 | BD37: =ROUND(IF(BD$2+$B37>100,0,BD36*INDEX(Sterbtab_mix!$G$4:$G$104,BD$2+$B36)),11) -> 0.01910691624 | BE37: =ROUND(IF(BE$2+$B37>100,0,BE36*INDEX(Sterbtab_mix!$G$4:$G$104,BE$2+$B36)),11) -> 0 | BF37: =ROUND(IF(BF$2+$B37>100,0,BF36*INDEX(Sterbtab_mix!$G$4:$G$104,BF$2+$B36)),11) -> 0 | BG37: =ROUND(IF(BG$2+$B37>100,0,BG36*INDEX(Sterbtab_mix!$G$4:$G$104,BG$2+$B36)),11) -> 0 | BH37: =ROUND(IF(BH$2+$B37>100,0,BH36*INDEX(Sterbtab_mix!$G$4:$G$104,BH$2+$B36)),11) -> 0 | BI37: =ROUND(IF(BI$2+$B37>100,0,BI36*INDEX(Sterbtab_mix!$G$4:$G$104,BI$2+$B36)),11) -> 0 | BJ37: =ROUND(IF(BJ$2+$B37>100,0,BJ36*INDEX(Sterbtab_mix!$G$4:$G$104,BJ$2+$B36)),11) -> 0 | BK37: =ROUND(IF(BK$2+$B37>100,0,BK36*INDEX(Sterbtab_mix!$G$4:$G$104,BK$2+$B36)),11) -> 0 | BL37: =ROUND(IF(BL$2+$B37>100,0,BL36*INDEX(Sterbtab_mix!$G$4:$G$104,BL$2+$B36)),11) -> 0 | BM37: =ROUND(IF(BM$2+$B37>100,0,BM36*INDEX(Sterbtab_mix!$G$4:$G$104,BM$2+$B36)),11) -> 0 | BN37: =ROUND(IF(BN$2+$B37>100,0,BN36*INDEX(Sterbtab_mix!$G$4:$G$104,BN$2+$B36)),11) -> 0 | BO37: =ROUND(IF(BO$2+$B37>100,0,BO36*INDEX(Sterbtab_mix!$G$4:$G$104,BO$2+$B36)),11) -> 0 | BP37: =ROUND(IF(BP$2+$B37>100,0,BP36*INDEX(Sterbtab_mix!$G$4:$G$104,BP$2+$B36)),11) -> 0 | BQ37: =ROUND(IF(BQ$2+$B37>100,0,BQ36*INDEX(Sterbtab_mix!$G$4:$G$104,BQ$2+$B36)),11) -> 0 | BR37: =ROUND(IF(BR$2+$B37>100,0,BR36*INDEX(Sterbtab_mix!$G$4:$G$104,BR$2+$B36)),11) -> 0 | BS37: =ROUND(IF(BS$2+$B37>100,0,BS36*INDEX(Sterbtab_mix!$G$4:$G$104,BS$2+$B36)),11) -> 0 | BT37: =ROUND(IF(BT$2+$B37>100,0,BT36*INDEX(Sterbtab_mix!$G$4:$G$104,BT$2+$B36)),11) -> 0 | BU37: =ROUND(IF(BU$2+$B37>100,0,BU36*INDEX(Sterbtab_mix!$G$4:$G$104,BU$2+$B36)),11) -> 0 | BV37: =ROUND(IF(BV$2+$B37>100,0,BV36*INDEX(Sterbtab_mix!$G$4:$G$104,BV$2+$B36)),11) -> 0 | BW37: =ROUND(IF(BW$2+$B37>100,0,BW36*INDEX(Sterbtab_mix!$G$4:$G$104,BW$2+$B36)),11) -> 0 | BX37: =ROUND(IF(BX$2+$B37>100,0,BX36*INDEX(Sterbtab_mix!$G$4:$G$104,BX$2+$B36)),11) -> 0 | BY37: =ROUND(IF(BY$2+$B37>100,0,BY36*INDEX(Sterbtab_mix!$G$4:$G$104,BY$2+$B36)),11) -> 0 | BZ37: =ROUND(IF(BZ$2+$B37>100,0,BZ36*INDEX(Sterbtab_mix!$G$4:$G$104,BZ$2+$B36)),11) -> 0 | CA37: =ROUND(IF(CA$2+$B37>100,0,CA36*INDEX(Sterbtab_mix!$G$4:$G$104,CA$2+$B36)),11) -> 0 | CB37: =ROUND(IF(CB$2+$B37>100,0,CB36*INDEX(Sterbtab_mix!$G$4:$G$104,CB$2+$B36)),11) -> 0 | CC37: =ROUND(IF(CC$2+$B37>100,0,CC36*INDEX(Sterbtab_mix!$G$4:$G$104,CC$2+$B36)),11) -> 0 | CD37: =ROUND(IF(CD$2+$B37>100,0,CD36*INDEX(Sterbtab_mix!$G$4:$G$104,CD$2+$B36)),11) -> 0 | CE37: =ROUND(IF(CE$2+$B37>100,0,CE36*INDEX(Sterbtab_mix!$G$4:$G$104,CE$2+$B36)),11) -> 0 | CF37: =ROUND(IF(CF$2+$B37>100,0,CF36*INDEX(Sterbtab_mix!$G$4:$G$104,CF$2+$B36)),11) -> 0 | CG37: =ROUND(IF(CG$2+$B37>100,0,CG36*INDEX(Sterbtab_mix!$G$4:$G$104,CG$2+$B36)),11) -> 0 | CH37: =ROUND(IF(CH$2+$B37>100,0,CH36*INDEX(Sterbtab_mix!$G$4:$G$104,CH$2+$B36)),11) -> 0 | CI37: =ROUND(IF(CI$2+$B37>100,0,CI36*INDEX(Sterbtab_mix!$G$4:$G$104,CI$2+$B36)),11) -> 0 | CJ37: =ROUND(IF(CJ$2+$B37>100,0,CJ36*INDEX(Sterbtab_mix!$G$4:$G$104,CJ$2+$B36)),11) -> 0
A38: 48 | B38: 33 | C38: =ROUND(IF(C$2+$B38>100,0,C37*INDEX(Sterbtab_mix!$G$4:$G$104,C$2+$B37)),11) -> 0.9747628853 | D38: =ROUND(IF(D$2+$B38>100,0,D37*INDEX(Sterbtab_mix!$G$4:$G$104,D$2+$B37)),11) -> 0.9727729307 | E38: =ROUND(IF(E$2+$B38>100,0,E37*INDEX(Sterbtab_mix!$G$4:$G$104,E$2+$B37)),11) -> 0.9706020034 | F38: =ROUND(IF(F$2+$B38>100,0,F37*INDEX(Sterbtab_mix!$G$4:$G$104,F$2+$B37)),11) -> 0.9682337697 | G38: =ROUND(IF(G$2+$B38>100,0,G37*INDEX(Sterbtab_mix!$G$4:$G$104,G$2+$B37)),11) -> 0.9656434641 | H38: =ROUND(IF(H$2+$B38>100,0,H37*INDEX(Sterbtab_mix!$G$4:$G$104,H$2+$B37)),11) -> 0.9627922621 | I38: =ROUND(IF(I$2+$B38>100,0,I37*INDEX(Sterbtab_mix!$G$4:$G$104,I$2+$B37)),11) -> 0.9596285256 | J38: =ROUND(IF(J$2+$B38>100,0,J37*INDEX(Sterbtab_mix!$G$4:$G$104,J$2+$B37)),11) -> 0.9560919751 | K38: =ROUND(IF(K$2+$B38>100,0,K37*INDEX(Sterbtab_mix!$G$4:$G$104,K$2+$B37)),11) -> 0.9521216921 | L38: =ROUND(IF(L$2+$B38>100,0,L37*INDEX(Sterbtab_mix!$G$4:$G$104,L$2+$B37)),11) -> 0.9476601847 | M38: =ROUND(IF(M$2+$B38>100,0,M37*INDEX(Sterbtab_mix!$G$4:$G$104,M$2+$B37)),11) -> 0.9426602326 | N38: =ROUND(IF(N$2+$B38>100,0,N37*INDEX(Sterbtab_mix!$G$4:$G$104,N$2+$B37)),11) -> 0.9370859109 | O38: =ROUND(IF(O$2+$B38>100,0,O37*INDEX(Sterbtab_mix!$G$4:$G$104,O$2+$B37)),11) -> 0.930899529 | P38: =ROUND(IF(P$2+$B38>100,0,P37*INDEX(Sterbtab_mix!$G$4:$G$104,P$2+$B37)),11) -> 0.9240666509 | Q38: =ROUND(IF(Q$2+$B38>100,0,Q37*INDEX(Sterbtab_mix!$G$4:$G$104,Q$2+$B37)),11) -> 0.9165655501 | R38: =ROUND(IF(R$2+$B38>100,0,R37*INDEX(Sterbtab_mix!$G$4:$G$104,R$2+$B37)),11) -> 0.9083861542 | S38: =ROUND(IF(S$2+$B38>100,0,S37*INDEX(Sterbtab_mix!$G$4:$G$104,S$2+$B37)),11) -> 0.8995298357 | T38: =ROUND(IF(T$2+$B38>100,0,T37*INDEX(Sterbtab_mix!$G$4:$G$104,T$2+$B37)),11) -> 0.8900045678 | U38: =ROUND(IF(U$2+$B38>100,0,U37*INDEX(Sterbtab_mix!$G$4:$G$104,U$2+$B37)),11) -> 0.8798211842 | V38: =ROUND(IF(V$2+$B38>100,0,V37*INDEX(Sterbtab_mix!$G$4:$G$104,V$2+$B37)),11) -> 0.8689862797 | W38: =ROUND(IF(W$2+$B38>100,0,W37*INDEX(Sterbtab_mix!$G$4:$G$104,W$2+$B37)),11) -> 0.8574939192 | X38: =ROUND(IF(X$2+$B38>100,0,X37*INDEX(Sterbtab_mix!$G$4:$G$104,X$2+$B37)),11) -> 0.8453206606 | Y38: =ROUND(IF(Y$2+$B38>100,0,Y37*INDEX(Sterbtab_mix!$G$4:$G$104,Y$2+$B37)),11) -> 0.8324186761 | Z38: =ROUND(IF(Z$2+$B38>100,0,Z37*INDEX(Sterbtab_mix!$G$4:$G$104,Z$2+$B37)),11) -> 0.818721512 | AA38: =ROUND(IF(AA$2+$B38>100,0,AA37*INDEX(Sterbtab_mix!$G$4:$G$104,AA$2+$B37)),11) -> 0.8041393262 | AB38: =ROUND(IF(AB$2+$B38>100,0,AB37*INDEX(Sterbtab_mix!$G$4:$G$104,AB$2+$B37)),11) -> 0.7885794314 | AC38: =ROUND(IF(AC$2+$B38>100,0,AC37*INDEX(Sterbtab_mix!$G$4:$G$104,AC$2+$B37)),11) -> 0.7719109415 | AD38: =ROUND(IF(AD$2+$B38>100,0,AD37*INDEX(Sterbtab_mix!$G$4:$G$104,AD$2+$B37)),11) -> 0.7539855482 | AE38: =ROUND(IF(AE$2+$B38>100,0,AE37*INDEX(Sterbtab_mix!$G$4:$G$104,AE$2+$B37)),11) -> 0.7346403705 | AF38: =ROUND(IF(AF$2+$B38>100,0,AF37*INDEX(Sterbtab_mix!$G$4:$G$104,AF$2+$B37)),11) -> 0.7137029857 | AG38: =ROUND(IF(AG$2+$B38>100,0,AG37*INDEX(Sterbtab_mix!$G$4:$G$104,AG$2+$B37)),11) -> 0.6909990666 | AH38: =ROUND(IF(AH$2+$B38>100,0,AH37*INDEX(Sterbtab_mix!$G$4:$G$104,AH$2+$B37)),11) -> 0.6663617424 | AI38: =ROUND(IF(AI$2+$B38>100,0,AI37*INDEX(Sterbtab_mix!$G$4:$G$104,AI$2+$B37)),11) -> 0.639642317 | AJ38: =ROUND(IF(AJ$2+$B38>100,0,AJ37*INDEX(Sterbtab_mix!$G$4:$G$104,AJ$2+$B37)),11) -> 0.6107242113 | AK38: =ROUND(IF(AK$2+$B38>100,0,AK37*INDEX(Sterbtab_mix!$G$4:$G$104,AK$2+$B37)),11) -> 0.5795408214 | AL38: =ROUND(IF(AL$2+$B38>100,0,AL37*INDEX(Sterbtab_mix!$G$4:$G$104,AL$2+$B37)),11) -> 0.5460946196 | AM38: =ROUND(IF(AM$2+$B38>100,0,AM37*INDEX(Sterbtab_mix!$G$4:$G$104,AM$2+$B37)),11) -> 0.5104707498 | AN38: =ROUND(IF(AN$2+$B38>100,0,AN37*INDEX(Sterbtab_mix!$G$4:$G$104,AN$2+$B37)),11) -> 0.4728559508 | AO38: =ROUND(IF(AO$2+$B38>100,0,AO37*INDEX(Sterbtab_mix!$G$4:$G$104,AO$2+$B37)),11) -> 0.4335480883 | AP38: =ROUND(IF(AP$2+$B38>100,0,AP37*INDEX(Sterbtab_mix!$G$4:$G$104,AP$2+$B37)),11) -> 0.3929640782 | AQ38: =ROUND(IF(AQ$2+$B38>100,0,AQ37*INDEX(Sterbtab_mix!$G$4:$G$104,AQ$2+$B37)),11) -> 0.351634975 | AR38: =ROUND(IF(AR$2+$B38>100,0,AR37*INDEX(Sterbtab_mix!$G$4:$G$104,AR$2+$B37)),11) -> 0.3101945174 | AS38: =ROUND(IF(AS$2+$B38>100,0,AS37*INDEX(Sterbtab_mix!$G$4:$G$104,AS$2+$B37)),11) -> 0.2693531655 | AT38: =ROUND(IF(AT$2+$B38>100,0,AT37*INDEX(Sterbtab_mix!$G$4:$G$104,AT$2+$B37)),11) -> 0.2298596056 | AU38: =ROUND(IF(AU$2+$B38>100,0,AU37*INDEX(Sterbtab_mix!$G$4:$G$104,AU$2+$B37)),11) -> 0.1924544426 | AV38: =ROUND(IF(AV$2+$B38>100,0,AV37*INDEX(Sterbtab_mix!$G$4:$G$104,AV$2+$B37)),11) -> 0.1578195178 | AW38: =ROUND(IF(AW$2+$B38>100,0,AW37*INDEX(Sterbtab_mix!$G$4:$G$104,AW$2+$B37)),11) -> 0.1265247881 | AX38: =ROUND(IF(AX$2+$B38>100,0,AX37*INDEX(Sterbtab_mix!$G$4:$G$104,AX$2+$B37)),11) -> 0.09898421118 | AY38: =ROUND(IF(AY$2+$B38>100,0,AY37*INDEX(Sterbtab_mix!$G$4:$G$104,AY$2+$B37)),11) -> 0.07542441449 | AZ38: =ROUND(IF(AZ$2+$B38>100,0,AZ37*INDEX(Sterbtab_mix!$G$4:$G$104,AZ$2+$B37)),11) -> 0.05587166275 | BA38: =ROUND(IF(BA$2+$B38>100,0,BA37*INDEX(Sterbtab_mix!$G$4:$G$104,BA$2+$B37)),11) -> 0.04015997375 | BB38: =ROUND(IF(BB$2+$B38>100,0,BB37*INDEX(Sterbtab_mix!$G$4:$G$104,BB$2+$B37)),11) -> 0.02795967472 | BC38: =ROUND(IF(BC$2+$B38>100,0,BC37*INDEX(Sterbtab_mix!$G$4:$G$104,BC$2+$B37)),11) -> 0.0188219748 | BD38: =ROUND(IF(BD$2+$B38>100,0,BD37*INDEX(Sterbtab_mix!$G$4:$G$104,BD$2+$B37)),11) -> 0 | BE38: =ROUND(IF(BE$2+$B38>100,0,BE37*INDEX(Sterbtab_mix!$G$4:$G$104,BE$2+$B37)),11) -> 0 | BF38: =ROUND(IF(BF$2+$B38>100,0,BF37*INDEX(Sterbtab_mix!$G$4:$G$104,BF$2+$B37)),11) -> 0 | BG38: =ROUND(IF(BG$2+$B38>100,0,BG37*INDEX(Sterbtab_mix!$G$4:$G$104,BG$2+$B37)),11) -> 0 | BH38: =ROUND(IF(BH$2+$B38>100,0,BH37*INDEX(Sterbtab_mix!$G$4:$G$104,BH$2+$B37)),11) -> 0 | BI38: =ROUND(IF(BI$2+$B38>100,0,BI37*INDEX(Sterbtab_mix!$G$4:$G$104,BI$2+$B37)),11) -> 0 | BJ38: =ROUND(IF(BJ$2+$B38>100,0,BJ37*INDEX(Sterbtab_mix!$G$4:$G$104,BJ$2+$B37)),11) -> 0 | BK38: =ROUND(IF(BK$2+$B38>100,0,BK37*INDEX(Sterbtab_mix!$G$4:$G$104,BK$2+$B37)),11) -> 0 | BL38: =ROUND(IF(BL$2+$B38>100,0,BL37*INDEX(Sterbtab_mix!$G$4:$G$104,BL$2+$B37)),11) -> 0 | BM38: =ROUND(IF(BM$2+$B38>100,0,BM37*INDEX(Sterbtab_mix!$G$4:$G$104,BM$2+$B37)),11) -> 0 | BN38: =ROUND(IF(BN$2+$B38>100,0,BN37*INDEX(Sterbtab_mix!$G$4:$G$104,BN$2+$B37)),11) -> 0 | BO38: =ROUND(IF(BO$2+$B38>100,0,BO37*INDEX(Sterbtab_mix!$G$4:$G$104,BO$2+$B37)),11) -> 0 | BP38: =ROUND(IF(BP$2+$B38>100,0,BP37*INDEX(Sterbtab_mix!$G$4:$G$104,BP$2+$B37)),11) -> 0 | BQ38: =ROUND(IF(BQ$2+$B38>100,0,BQ37*INDEX(Sterbtab_mix!$G$4:$G$104,BQ$2+$B37)),11) -> 0 | BR38: =ROUND(IF(BR$2+$B38>100,0,BR37*INDEX(Sterbtab_mix!$G$4:$G$104,BR$2+$B37)),11) -> 0 | BS38: =ROUND(IF(BS$2+$B38>100,0,BS37*INDEX(Sterbtab_mix!$G$4:$G$104,BS$2+$B37)),11) -> 0 | BT38: =ROUND(IF(BT$2+$B38>100,0,BT37*INDEX(Sterbtab_mix!$G$4:$G$104,BT$2+$B37)),11) -> 0 | BU38: =ROUND(IF(BU$2+$B38>100,0,BU37*INDEX(Sterbtab_mix!$G$4:$G$104,BU$2+$B37)),11) -> 0 | BV38: =ROUND(IF(BV$2+$B38>100,0,BV37*INDEX(Sterbtab_mix!$G$4:$G$104,BV$2+$B37)),11) -> 0 | BW38: =ROUND(IF(BW$2+$B38>100,0,BW37*INDEX(Sterbtab_mix!$G$4:$G$104,BW$2+$B37)),11) -> 0 | BX38: =ROUND(IF(BX$2+$B38>100,0,BX37*INDEX(Sterbtab_mix!$G$4:$G$104,BX$2+$B37)),11) -> 0 | BY38: =ROUND(IF(BY$2+$B38>100,0,BY37*INDEX(Sterbtab_mix!$G$4:$G$104,BY$2+$B37)),11) -> 0 | BZ38: =ROUND(IF(BZ$2+$B38>100,0,BZ37*INDEX(Sterbtab_mix!$G$4:$G$104,BZ$2+$B37)),11) -> 0 | CA38: =ROUND(IF(CA$2+$B38>100,0,CA37*INDEX(Sterbtab_mix!$G$4:$G$104,CA$2+$B37)),11) -> 0 | CB38: =ROUND(IF(CB$2+$B38>100,0,CB37*INDEX(Sterbtab_mix!$G$4:$G$104,CB$2+$B37)),11) -> 0 | CC38: =ROUND(IF(CC$2+$B38>100,0,CC37*INDEX(Sterbtab_mix!$G$4:$G$104,CC$2+$B37)),11) -> 0 | CD38: =ROUND(IF(CD$2+$B38>100,0,CD37*INDEX(Sterbtab_mix!$G$4:$G$104,CD$2+$B37)),11) -> 0 | CE38: =ROUND(IF(CE$2+$B38>100,0,CE37*INDEX(Sterbtab_mix!$G$4:$G$104,CE$2+$B37)),11) -> 0 | CF38: =ROUND(IF(CF$2+$B38>100,0,CF37*INDEX(Sterbtab_mix!$G$4:$G$104,CF$2+$B37)),11) -> 0 | CG38: =ROUND(IF(CG$2+$B38>100,0,CG37*INDEX(Sterbtab_mix!$G$4:$G$104,CG$2+$B37)),11) -> 0 | CH38: =ROUND(IF(CH$2+$B38>100,0,CH37*INDEX(Sterbtab_mix!$G$4:$G$104,CH$2+$B37)),11) -> 0 | CI38: =ROUND(IF(CI$2+$B38>100,0,CI37*INDEX(Sterbtab_mix!$G$4:$G$104,CI$2+$B37)),11) -> 0 | CJ38: =ROUND(IF(CJ$2+$B38>100,0,CJ37*INDEX(Sterbtab_mix!$G$4:$G$104,CJ$2+$B37)),11) -> 0
A39: 49 | B39: 34 | C39: =ROUND(IF(C$2+$B39>100,0,C38*INDEX(Sterbtab_mix!$G$4:$G$104,C$2+$B38)),11) -> 0.9725462745 | D39: =ROUND(IF(D$2+$B39>100,0,D38*INDEX(Sterbtab_mix!$G$4:$G$104,D$2+$B38)),11) -> 0.9703020874 | E39: =ROUND(IF(E$2+$B39>100,0,E38*INDEX(Sterbtab_mix!$G$4:$G$104,E$2+$B38)),11) -> 0.9678513173 | F39: =ROUND(IF(F$2+$B39>100,0,F38*INDEX(Sterbtab_mix!$G$4:$G$104,F$2+$B38)),11) -> 0.9651780239 | G39: =ROUND(IF(G$2+$B39>100,0,G38*INDEX(Sterbtab_mix!$G$4:$G$104,G$2+$B38)),11) -> 0.9622559868 | H39: =ROUND(IF(H$2+$B39>100,0,H38*INDEX(Sterbtab_mix!$G$4:$G$104,H$2+$B38)),11) -> 0.9590441118 | I39: =ROUND(IF(I$2+$B39>100,0,I38*INDEX(Sterbtab_mix!$G$4:$G$104,I$2+$B38)),11) -> 0.9554867688 | J39: =ROUND(IF(J$2+$B39>100,0,J38*INDEX(Sterbtab_mix!$G$4:$G$104,J$2+$B38)),11) -> 0.9515218554 | K39: =ROUND(IF(K$2+$B39>100,0,K38*INDEX(Sterbtab_mix!$G$4:$G$104,K$2+$B38)),11) -> 0.947082112 | L39: =ROUND(IF(L$2+$B39>100,0,L38*INDEX(Sterbtab_mix!$G$4:$G$104,L$2+$B38)),11) -> 0.9421059483 | M39: =ROUND(IF(M$2+$B39>100,0,M38*INDEX(Sterbtab_mix!$G$4:$G$104,M$2+$B38)),11) -> 0.9365480236 | N39: =ROUND(IF(N$2+$B39>100,0,N38*INDEX(Sterbtab_mix!$G$4:$G$104,N$2+$B38)),11) -> 0.9303745016 | O39: =ROUND(IF(O$2+$B39>100,0,O38*INDEX(Sterbtab_mix!$G$4:$G$104,O$2+$B38)),11) -> 0.9235528699 | P39: =ROUND(IF(P$2+$B39>100,0,P38*INDEX(Sterbtab_mix!$G$4:$G$104,P$2+$B38)),11) -> 0.9160586893 | Q39: =ROUND(IF(Q$2+$B39>100,0,Q38*INDEX(Sterbtab_mix!$G$4:$G$104,Q$2+$B38)),11) -> 0.9078810915 | R39: =ROUND(IF(R$2+$B39>100,0,R38*INDEX(Sterbtab_mix!$G$4:$G$104,R$2+$B38)),11) -> 0.8990216014 | S39: =ROUND(IF(S$2+$B39>100,0,S38*INDEX(Sterbtab_mix!$G$4:$G$104,S$2+$B38)),11) -> 0.8894865851 | T39: =ROUND(IF(T$2+$B39>100,0,T38*INDEX(Sterbtab_mix!$G$4:$G$104,T$2+$B38)),11) -> 0.8792871328 | U39: =ROUND(IF(U$2+$B39>100,0,U38*INDEX(Sterbtab_mix!$G$4:$G$104,U$2+$B38)),11) -> 0.8684292595 | V39: =ROUND(IF(V$2+$B39>100,0,V38*INDEX(Sterbtab_mix!$G$4:$G$104,V$2+$B38)),11) -> 0.8569091084 | W39: =ROUND(IF(W$2+$B39>100,0,W38*INDEX(Sterbtab_mix!$G$4:$G$104,W$2+$B38)),11) -> 0.8447061124 | X39: =ROUND(IF(X$2+$B39>100,0,X38*INDEX(Sterbtab_mix!$G$4:$G$104,X$2+$B38)),11) -> 0.8317735517 | Y39: =ROUND(IF(Y$2+$B39>100,0,Y38*INDEX(Sterbtab_mix!$G$4:$G$104,Y$2+$B38)),11) -> 0.8180419732 | Z39: =ROUND(IF(Z$2+$B39>100,0,Z38*INDEX(Sterbtab_mix!$G$4:$G$104,Z$2+$B38)),11) -> 0.8034204257 | AA39: =ROUND(IF(AA$2+$B39>100,0,AA38*INDEX(Sterbtab_mix!$G$4:$G$104,AA$2+$B38)),11) -> 0.7878152979 | AB39: =ROUND(IF(AB$2+$B39>100,0,AB38*INDEX(Sterbtab_mix!$G$4:$G$104,AB$2+$B38)),11) -> 0.7710942597 | AC39: =ROUND(IF(AC$2+$B39>100,0,AC38*INDEX(Sterbtab_mix!$G$4:$G$104,AC$2+$B38)),11) -> 0.7531056471 | AD39: =ROUND(IF(AD$2+$B39>100,0,AD38*INDEX(Sterbtab_mix!$G$4:$G$104,AD$2+$B38)),11) -> 0.7336890113 | AE39: =ROUND(IF(AE$2+$B39>100,0,AE38*INDEX(Sterbtab_mix!$G$4:$G$104,AE$2+$B38)),11) -> 0.7126716849 | AF39: =ROUND(IF(AF$2+$B39>100,0,AF38*INDEX(Sterbtab_mix!$G$4:$G$104,AF$2+$B38)),11) -> 0.6898817212 | AG39: =ROUND(IF(AG$2+$B39>100,0,AG38*INDEX(Sterbtab_mix!$G$4:$G$104,AG$2+$B38)),11) -> 0.6651536286 | AH39: =ROUND(IF(AH$2+$B39>100,0,AH38*INDEX(Sterbtab_mix!$G$4:$G$104,AH$2+$B38)),11) -> 0.6383425638 | AI39: =ROUND(IF(AI$2+$B39>100,0,AI38*INDEX(Sterbtab_mix!$G$4:$G$104,AI$2+$B38)),11) -> 0.6093354244 | AJ39: =ROUND(IF(AJ$2+$B39>100,0,AJ38*INDEX(Sterbtab_mix!$G$4:$G$104,AJ$2+$B38)),11) -> 0.5780687877 | AK39: =ROUND(IF(AK$2+$B39>100,0,AK38*INDEX(Sterbtab_mix!$G$4:$G$104,AK$2+$B38)),11) -> 0.5445469875 | AL39: =ROUND(IF(AL$2+$B39>100,0,AL38*INDEX(Sterbtab_mix!$G$4:$G$104,AL$2+$B38)),11) -> 0.5088597041 | AM39: =ROUND(IF(AM$2+$B39>100,0,AM38*INDEX(Sterbtab_mix!$G$4:$G$104,AM$2+$B38)),11) -> 0.4711971722 | AN39: =ROUND(IF(AN$2+$B39>100,0,AN38*INDEX(Sterbtab_mix!$G$4:$G$104,AN$2+$B38)),11) -> 0.4318602856 | AO39: =ROUND(IF(AO$2+$B39>100,0,AO38*INDEX(Sterbtab_mix!$G$4:$G$104,AO$2+$B38)),11) -> 0.3912680452 | AP39: =ROUND(IF(AP$2+$B39>100,0,AP38*INDEX(Sterbtab_mix!$G$4:$G$104,AP$2+$B38)),11) -> 0.3499541598 | AQ39: =ROUND(IF(AQ$2+$B39>100,0,AQ38*INDEX(Sterbtab_mix!$G$4:$G$104,AQ$2+$B38)),11) -> 0.3085526579 | AR39: =ROUND(IF(AR$2+$B39>100,0,AR38*INDEX(Sterbtab_mix!$G$4:$G$104,AR$2+$B38)),11) -> 0.2677744866 | AS39: =ROUND(IF(AS$2+$B39>100,0,AS38*INDEX(Sterbtab_mix!$G$4:$G$104,AS$2+$B38)),11) -> 0.2283691959 | AT39: =ROUND(IF(AT$2+$B39>100,0,AT38*INDEX(Sterbtab_mix!$G$4:$G$104,AT$2+$B38)),11) -> 0.1910760839 | AU39: =ROUND(IF(AU$2+$B39>100,0,AU38*INDEX(Sterbtab_mix!$G$4:$G$104,AU$2+$B38)),11) -> 0.1565740062 | AV39: =ROUND(IF(AV$2+$B39>100,0,AV38*INDEX(Sterbtab_mix!$G$4:$G$104,AV$2+$B38)),11) -> 0.1254283243 | AW39: =ROUND(IF(AW$2+$B39>100,0,AW38*INDEX(Sterbtab_mix!$G$4:$G$104,AW$2+$B38)),11) -> 0.09804633578 | AX39: =ROUND(IF(AX$2+$B39>100,0,AX38*INDEX(Sterbtab_mix!$G$4:$G$104,AX$2+$B38)),11) -> 0.07464686419 | AY39: =ROUND(IF(AY$2+$B39>100,0,AY38*INDEX(Sterbtab_mix!$G$4:$G$104,AY$2+$B38)),11) -> 0.05524785564 | AZ39: =ROUND(IF(AZ$2+$B39>100,0,AZ38*INDEX(Sterbtab_mix!$G$4:$G$104,AZ$2+$B38)),11) -> 0.03967636736 | BA39: =ROUND(IF(BA$2+$B39>100,0,BA38*INDEX(Sterbtab_mix!$G$4:$G$104,BA$2+$B38)),11) -> 0.02759765284 | BB39: =ROUND(IF(BB$2+$B39>100,0,BB38*INDEX(Sterbtab_mix!$G$4:$G$104,BB$2+$B38)),11) -> 0.01856038699 | BC39: =ROUND(IF(BC$2+$B39>100,0,BC38*INDEX(Sterbtab_mix!$G$4:$G$104,BC$2+$B38)),11) -> 0 | BD39: =ROUND(IF(BD$2+$B39>100,0,BD38*INDEX(Sterbtab_mix!$G$4:$G$104,BD$2+$B38)),11) -> 0 | BE39: =ROUND(IF(BE$2+$B39>100,0,BE38*INDEX(Sterbtab_mix!$G$4:$G$104,BE$2+$B38)),11) -> 0 | BF39: =ROUND(IF(BF$2+$B39>100,0,BF38*INDEX(Sterbtab_mix!$G$4:$G$104,BF$2+$B38)),11) -> 0 | BG39: =ROUND(IF(BG$2+$B39>100,0,BG38*INDEX(Sterbtab_mix!$G$4:$G$104,BG$2+$B38)),11) -> 0 | BH39: =ROUND(IF(BH$2+$B39>100,0,BH38*INDEX(Sterbtab_mix!$G$4:$G$104,BH$2+$B38)),11) -> 0 | BI39: =ROUND(IF(BI$2+$B39>100,0,BI38*INDEX(Sterbtab_mix!$G$4:$G$104,BI$2+$B38)),11) -> 0 | BJ39: =ROUND(IF(BJ$2+$B39>100,0,BJ38*INDEX(Sterbtab_mix!$G$4:$G$104,BJ$2+$B38)),11) -> 0 | BK39: =ROUND(IF(BK$2+$B39>100,0,BK38*INDEX(Sterbtab_mix!$G$4:$G$104,BK$2+$B38)),11) -> 0 | BL39: =ROUND(IF(BL$2+$B39>100,0,BL38*INDEX(Sterbtab_mix!$G$4:$G$104,BL$2+$B38)),11) -> 0 | BM39: =ROUND(IF(BM$2+$B39>100,0,BM38*INDEX(Sterbtab_mix!$G$4:$G$104,BM$2+$B38)),11) -> 0 | BN39: =ROUND(IF(BN$2+$B39>100,0,BN38*INDEX(Sterbtab_mix!$G$4:$G$104,BN$2+$B38)),11) -> 0 | BO39: =ROUND(IF(BO$2+$B39>100,0,BO38*INDEX(Sterbtab_mix!$G$4:$G$104,BO$2+$B38)),11) -> 0 | BP39: =ROUND(IF(BP$2+$B39>100,0,BP38*INDEX(Sterbtab_mix!$G$4:$G$104,BP$2+$B38)),11) -> 0 | BQ39: =ROUND(IF(BQ$2+$B39>100,0,BQ38*INDEX(Sterbtab_mix!$G$4:$G$104,BQ$2+$B38)),11) -> 0 | BR39: =ROUND(IF(BR$2+$B39>100,0,BR38*INDEX(Sterbtab_mix!$G$4:$G$104,BR$2+$B38)),11) -> 0 | BS39: =ROUND(IF(BS$2+$B39>100,0,BS38*INDEX(Sterbtab_mix!$G$4:$G$104,BS$2+$B38)),11) -> 0 | BT39: =ROUND(IF(BT$2+$B39>100,0,BT38*INDEX(Sterbtab_mix!$G$4:$G$104,BT$2+$B38)),11) -> 0 | BU39: =ROUND(IF(BU$2+$B39>100,0,BU38*INDEX(Sterbtab_mix!$G$4:$G$104,BU$2+$B38)),11) -> 0 | BV39: =ROUND(IF(BV$2+$B39>100,0,BV38*INDEX(Sterbtab_mix!$G$4:$G$104,BV$2+$B38)),11) -> 0 | BW39: =ROUND(IF(BW$2+$B39>100,0,BW38*INDEX(Sterbtab_mix!$G$4:$G$104,BW$2+$B38)),11) -> 0 | BX39: =ROUND(IF(BX$2+$B39>100,0,BX38*INDEX(Sterbtab_mix!$G$4:$G$104,BX$2+$B38)),11) -> 0 | BY39: =ROUND(IF(BY$2+$B39>100,0,BY38*INDEX(Sterbtab_mix!$G$4:$G$104,BY$2+$B38)),11) -> 0 | BZ39: =ROUND(IF(BZ$2+$B39>100,0,BZ38*INDEX(Sterbtab_mix!$G$4:$G$104,BZ$2+$B38)),11) -> 0 | CA39: =ROUND(IF(CA$2+$B39>100,0,CA38*INDEX(Sterbtab_mix!$G$4:$G$104,CA$2+$B38)),11) -> 0 | CB39: =ROUND(IF(CB$2+$B39>100,0,CB38*INDEX(Sterbtab_mix!$G$4:$G$104,CB$2+$B38)),11) -> 0 | CC39: =ROUND(IF(CC$2+$B39>100,0,CC38*INDEX(Sterbtab_mix!$G$4:$G$104,CC$2+$B38)),11) -> 0 | CD39: =ROUND(IF(CD$2+$B39>100,0,CD38*INDEX(Sterbtab_mix!$G$4:$G$104,CD$2+$B38)),11) -> 0 | CE39: =ROUND(IF(CE$2+$B39>100,0,CE38*INDEX(Sterbtab_mix!$G$4:$G$104,CE$2+$B38)),11) -> 0 | CF39: =ROUND(IF(CF$2+$B39>100,0,CF38*INDEX(Sterbtab_mix!$G$4:$G$104,CF$2+$B38)),11) -> 0 | CG39: =ROUND(IF(CG$2+$B39>100,0,CG38*INDEX(Sterbtab_mix!$G$4:$G$104,CG$2+$B38)),11) -> 0 | CH39: =ROUND(IF(CH$2+$B39>100,0,CH38*INDEX(Sterbtab_mix!$G$4:$G$104,CH$2+$B38)),11) -> 0 | CI39: =ROUND(IF(CI$2+$B39>100,0,CI38*INDEX(Sterbtab_mix!$G$4:$G$104,CI$2+$B38)),11) -> 0 | CJ39: =ROUND(IF(CJ$2+$B39>100,0,CJ38*INDEX(Sterbtab_mix!$G$4:$G$104,CJ$2+$B38)),11) -> 0
A40: 50 | B40: 35 | C40: =ROUND(IF(C$2+$B40>100,0,C39*INDEX(Sterbtab_mix!$G$4:$G$104,C$2+$B39)),11) -> 0.970076007 | D40: =ROUND(IF(D$2+$B40>100,0,D39*INDEX(Sterbtab_mix!$G$4:$G$104,D$2+$B39)),11) -> 0.9675522513 | E40: =ROUND(IF(E$2+$B40>100,0,E39*INDEX(Sterbtab_mix!$G$4:$G$104,E$2+$B39)),11) -> 0.9647967786 | F40: =ROUND(IF(F$2+$B40>100,0,F39*INDEX(Sterbtab_mix!$G$4:$G$104,F$2+$B39)),11) -> 0.9617921794 | G40: =ROUND(IF(G$2+$B40>100,0,G39*INDEX(Sterbtab_mix!$G$4:$G$104,G$2+$B39)),11) -> 0.9585099242 | H40: =ROUND(IF(H$2+$B40>100,0,H39*INDEX(Sterbtab_mix!$G$4:$G$104,H$2+$B39)),11) -> 0.9549048774 | I40: =ROUND(IF(I$2+$B40>100,0,I39*INDEX(Sterbtab_mix!$G$4:$G$104,I$2+$B39)),11) -> 0.9509195421 | J40: =ROUND(IF(J$2+$B40>100,0,J39*INDEX(Sterbtab_mix!$G$4:$G$104,J$2+$B39)),11) -> 0.9464854502 | K40: =ROUND(IF(K$2+$B40>100,0,K39*INDEX(Sterbtab_mix!$G$4:$G$104,K$2+$B39)),11) -> 0.9415312638 | L40: =ROUND(IF(L$2+$B40>100,0,L39*INDEX(Sterbtab_mix!$G$4:$G$104,L$2+$B39)),11) -> 0.9359973334 | M40: =ROUND(IF(M$2+$B40>100,0,M39*INDEX(Sterbtab_mix!$G$4:$G$104,M$2+$B39)),11) -> 0.9298404667 | N40: =ROUND(IF(N$2+$B40>100,0,N39*INDEX(Sterbtab_mix!$G$4:$G$104,N$2+$B39)),11) -> 0.9230319861 | O40: =ROUND(IF(O$2+$B40>100,0,O39*INDEX(Sterbtab_mix!$G$4:$G$104,O$2+$B39)),11) -> 0.9155493607 | P40: =ROUND(IF(P$2+$B40>100,0,P39*INDEX(Sterbtab_mix!$G$4:$G$104,P$2+$B39)),11) -> 0.9073790333 | Q40: =ROUND(IF(Q$2+$B40>100,0,Q39*INDEX(Sterbtab_mix!$G$4:$G$104,Q$2+$B39)),11) -> 0.8985217453 | R40: =ROUND(IF(R$2+$B40>100,0,R39*INDEX(Sterbtab_mix!$G$4:$G$104,R$2+$B39)),11) -> 0.8889840252 | S40: =ROUND(IF(S$2+$B40>100,0,S39*INDEX(Sterbtab_mix!$G$4:$G$104,S$2+$B39)),11) -> 0.8787753876 | T40: =ROUND(IF(T$2+$B40>100,0,T39*INDEX(Sterbtab_mix!$G$4:$G$104,T$2+$B39)),11) -> 0.867902123 | U40: =ROUND(IF(U$2+$B40>100,0,U39*INDEX(Sterbtab_mix!$G$4:$G$104,U$2+$B39)),11) -> 0.8563598297 | V40: =ROUND(IF(V$2+$B40>100,0,V39*INDEX(Sterbtab_mix!$G$4:$G$104,V$2+$B39)),11) -> 0.8441300229 | W40: =ROUND(IF(W$2+$B40>100,0,W39*INDEX(Sterbtab_mix!$G$4:$G$104,W$2+$B39)),11) -> 0.8311688523 | X40: =ROUND(IF(X$2+$B40>100,0,X39*INDEX(Sterbtab_mix!$G$4:$G$104,X$2+$B39)),11) -> 0.8174079907 | Y40: =ROUND(IF(Y$2+$B40>100,0,Y39*INDEX(Sterbtab_mix!$G$4:$G$104,Y$2+$B39)),11) -> 0.8027535867 | Z40: =ROUND(IF(Z$2+$B40>100,0,Z39*INDEX(Sterbtab_mix!$G$4:$G$104,Z$2+$B39)),11) -> 0.7871109911 | AA40: =ROUND(IF(AA$2+$B40>100,0,AA39*INDEX(Sterbtab_mix!$G$4:$G$104,AA$2+$B39)),11) -> 0.7703470693 | AB40: =ROUND(IF(AB$2+$B40>100,0,AB39*INDEX(Sterbtab_mix!$G$4:$G$104,AB$2+$B39)),11) -> 0.7523088613 | AC40: =ROUND(IF(AC$2+$B40>100,0,AC39*INDEX(Sterbtab_mix!$G$4:$G$104,AC$2+$B39)),11) -> 0.7328327962 | AD40: =ROUND(IF(AD$2+$B40>100,0,AD39*INDEX(Sterbtab_mix!$G$4:$G$104,AD$2+$B39)),11) -> 0.7117487751 | AE40: =ROUND(IF(AE$2+$B40>100,0,AE39*INDEX(Sterbtab_mix!$G$4:$G$104,AE$2+$B39)),11) -> 0.6888848421 | AF40: =ROUND(IF(AF$2+$B40>100,0,AF39*INDEX(Sterbtab_mix!$G$4:$G$104,AF$2+$B39)),11) -> 0.6640780751 | AG40: =ROUND(IF(AG$2+$B40>100,0,AG39*INDEX(Sterbtab_mix!$G$4:$G$104,AG$2+$B39)),11) -> 0.6371852488 | AH40: =ROUND(IF(AH$2+$B40>100,0,AH39*INDEX(Sterbtab_mix!$G$4:$G$104,AH$2+$B39)),11) -> 0.6080972548 | AI40: =ROUND(IF(AI$2+$B40>100,0,AI39*INDEX(Sterbtab_mix!$G$4:$G$104,AI$2+$B39)),11) -> 0.5767542593 | AJ40: =ROUND(IF(AJ$2+$B40>100,0,AJ39*INDEX(Sterbtab_mix!$G$4:$G$104,AJ$2+$B39)),11) -> 0.5431638382 | AK40: =ROUND(IF(AK$2+$B40>100,0,AK39*INDEX(Sterbtab_mix!$G$4:$G$104,AK$2+$B39)),11) -> 0.5074175957 | AL40: =ROUND(IF(AL$2+$B40>100,0,AL39*INDEX(Sterbtab_mix!$G$4:$G$104,AL$2+$B39)),11) -> 0.4697100739 | AM40: =ROUND(IF(AM$2+$B40>100,0,AM39*INDEX(Sterbtab_mix!$G$4:$G$104,AM$2+$B39)),11) -> 0.4303453197 | AN40: =ROUND(IF(AN$2+$B40>100,0,AN39*INDEX(Sterbtab_mix!$G$4:$G$104,AN$2+$B39)),11) -> 0.3897448387 | AO40: =ROUND(IF(AO$2+$B40>100,0,AO39*INDEX(Sterbtab_mix!$G$4:$G$104,AO$2+$B39)),11) -> 0.3484437577 | AP40: =ROUND(IF(AP$2+$B40>100,0,AP39*INDEX(Sterbtab_mix!$G$4:$G$104,AP$2+$B39)),11) -> 0.3070777762 | AQ40: =ROUND(IF(AQ$2+$B40>100,0,AQ39*INDEX(Sterbtab_mix!$G$4:$G$104,AQ$2+$B39)),11) -> 0.2663571563 | AR40: =ROUND(IF(AR$2+$B40>100,0,AR39*INDEX(Sterbtab_mix!$G$4:$G$104,AR$2+$B39)),11) -> 0.227030724 | AS40: =ROUND(IF(AS$2+$B40>100,0,AS39*INDEX(Sterbtab_mix!$G$4:$G$104,AS$2+$B39)),11) -> 0.1898371466 | AT40: =ROUND(IF(AT$2+$B40>100,0,AT39*INDEX(Sterbtab_mix!$G$4:$G$104,AT$2+$B39)),11) -> 0.1554526231 | AU40: =ROUND(IF(AU$2+$B40>100,0,AU39*INDEX(Sterbtab_mix!$G$4:$G$104,AU$2+$B39)),11) -> 0.124438444 | AV40: =ROUND(IF(AV$2+$B40>100,0,AV39*INDEX(Sterbtab_mix!$G$4:$G$104,AV$2+$B39)),11) -> 0.09719666623 | AW40: =ROUND(IF(AW$2+$B40>100,0,AW39*INDEX(Sterbtab_mix!$G$4:$G$104,AW$2+$B39)),11) -> 0.07393958516 | AX40: =ROUND(IF(AX$2+$B40>100,0,AX39*INDEX(Sterbtab_mix!$G$4:$G$104,AX$2+$B39)),11) -> 0.05467830549 | AY40: =ROUND(IF(AY$2+$B40>100,0,AY39*INDEX(Sterbtab_mix!$G$4:$G$104,AY$2+$B39)),11) -> 0.03923338072 | AZ40: =ROUND(IF(AZ$2+$B40>100,0,AZ39*INDEX(Sterbtab_mix!$G$4:$G$104,AZ$2+$B39)),11) -> 0.02726532192 | BA40: =ROUND(IF(BA$2+$B40>100,0,BA39*INDEX(Sterbtab_mix!$G$4:$G$104,BA$2+$B39)),11) -> 0.01832006709 | BB40: =ROUND(IF(BB$2+$B40>100,0,BB39*INDEX(Sterbtab_mix!$G$4:$G$104,BB$2+$B39)),11) -> 0 | BC40: =ROUND(IF(BC$2+$B40>100,0,BC39*INDEX(Sterbtab_mix!$G$4:$G$104,BC$2+$B39)),11) -> 0 | BD40: =ROUND(IF(BD$2+$B40>100,0,BD39*INDEX(Sterbtab_mix!$G$4:$G$104,BD$2+$B39)),11) -> 0 | BE40: =ROUND(IF(BE$2+$B40>100,0,BE39*INDEX(Sterbtab_mix!$G$4:$G$104,BE$2+$B39)),11) -> 0 | BF40: =ROUND(IF(BF$2+$B40>100,0,BF39*INDEX(Sterbtab_mix!$G$4:$G$104,BF$2+$B39)),11) -> 0 | BG40: =ROUND(IF(BG$2+$B40>100,0,BG39*INDEX(Sterbtab_mix!$G$4:$G$104,BG$2+$B39)),11) -> 0 | BH40: =ROUND(IF(BH$2+$B40>100,0,BH39*INDEX(Sterbtab_mix!$G$4:$G$104,BH$2+$B39)),11) -> 0 | BI40: =ROUND(IF(BI$2+$B40>100,0,BI39*INDEX(Sterbtab_mix!$G$4:$G$104,BI$2+$B39)),11) -> 0 | BJ40: =ROUND(IF(BJ$2+$B40>100,0,BJ39*INDEX(Sterbtab_mix!$G$4:$G$104,BJ$2+$B39)),11) -> 0 | BK40: =ROUND(IF(BK$2+$B40>100,0,BK39*INDEX(Sterbtab_mix!$G$4:$G$104,BK$2+$B39)),11) -> 0 | BL40: =ROUND(IF(BL$2+$B40>100,0,BL39*INDEX(Sterbtab_mix!$G$4:$G$104,BL$2+$B39)),11) -> 0 | BM40: =ROUND(IF(BM$2+$B40>100,0,BM39*INDEX(Sterbtab_mix!$G$4:$G$104,BM$2+$B39)),11) -> 0 | BN40: =ROUND(IF(BN$2+$B40>100,0,BN39*INDEX(Sterbtab_mix!$G$4:$G$104,BN$2+$B39)),11) -> 0 | BO40: =ROUND(IF(BO$2+$B40>100,0,BO39*INDEX(Sterbtab_mix!$G$4:$G$104,BO$2+$B39)),11) -> 0 | BP40: =ROUND(IF(BP$2+$B40>100,0,BP39*INDEX(Sterbtab_mix!$G$4:$G$104,BP$2+$B39)),11) -> 0 | BQ40: =ROUND(IF(BQ$2+$B40>100,0,BQ39*INDEX(Sterbtab_mix!$G$4:$G$104,BQ$2+$B39)),11) -> 0 | BR40: =ROUND(IF(BR$2+$B40>100,0,BR39*INDEX(Sterbtab_mix!$G$4:$G$104,BR$2+$B39)),11) -> 0 | BS40: =ROUND(IF(BS$2+$B40>100,0,BS39*INDEX(Sterbtab_mix!$G$4:$G$104,BS$2+$B39)),11) -> 0 | BT40: =ROUND(IF(BT$2+$B40>100,0,BT39*INDEX(Sterbtab_mix!$G$4:$G$104,BT$2+$B39)),11) -> 0 | BU40: =ROUND(IF(BU$2+$B40>100,0,BU39*INDEX(Sterbtab_mix!$G$4:$G$104,BU$2+$B39)),11) -> 0 | BV40: =ROUND(IF(BV$2+$B40>100,0,BV39*INDEX(Sterbtab_mix!$G$4:$G$104,BV$2+$B39)),11) -> 0 | BW40: =ROUND(IF(BW$2+$B40>100,0,BW39*INDEX(Sterbtab_mix!$G$4:$G$104,BW$2+$B39)),11) -> 0 | BX40: =ROUND(IF(BX$2+$B40>100,0,BX39*INDEX(Sterbtab_mix!$G$4:$G$104,BX$2+$B39)),11) -> 0 | BY40: =ROUND(IF(BY$2+$B40>100,0,BY39*INDEX(Sterbtab_mix!$G$4:$G$104,BY$2+$B39)),11) -> 0 | BZ40: =ROUND(IF(BZ$2+$B40>100,0,BZ39*INDEX(Sterbtab_mix!$G$4:$G$104,BZ$2+$B39)),11) -> 0 | CA40: =ROUND(IF(CA$2+$B40>100,0,CA39*INDEX(Sterbtab_mix!$G$4:$G$104,CA$2+$B39)),11) -> 0 | CB40: =ROUND(IF(CB$2+$B40>100,0,CB39*INDEX(Sterbtab_mix!$G$4:$G$104,CB$2+$B39)),11) -> 0 | CC40: =ROUND(IF(CC$2+$B40>100,0,CC39*INDEX(Sterbtab_mix!$G$4:$G$104,CC$2+$B39)),11) -> 0 | CD40: =ROUND(IF(CD$2+$B40>100,0,CD39*INDEX(Sterbtab_mix!$G$4:$G$104,CD$2+$B39)),11) -> 0 | CE40: =ROUND(IF(CE$2+$B40>100,0,CE39*INDEX(Sterbtab_mix!$G$4:$G$104,CE$2+$B39)),11) -> 0 | CF40: =ROUND(IF(CF$2+$B40>100,0,CF39*INDEX(Sterbtab_mix!$G$4:$G$104,CF$2+$B39)),11) -> 0 | CG40: =ROUND(IF(CG$2+$B40>100,0,CG39*INDEX(Sterbtab_mix!$G$4:$G$104,CG$2+$B39)),11) -> 0 | CH40: =ROUND(IF(CH$2+$B40>100,0,CH39*INDEX(Sterbtab_mix!$G$4:$G$104,CH$2+$B39)),11) -> 0 | CI40: =ROUND(IF(CI$2+$B40>100,0,CI39*INDEX(Sterbtab_mix!$G$4:$G$104,CI$2+$B39)),11) -> 0 | CJ40: =ROUND(IF(CJ$2+$B40>100,0,CJ39*INDEX(Sterbtab_mix!$G$4:$G$104,CJ$2+$B39)),11) -> 0
A41: 51 | B41: 36 | C41: =ROUND(IF(C$2+$B41>100,0,C40*INDEX(Sterbtab_mix!$G$4:$G$104,C$2+$B40)),11) -> 0.9673268116 | D41: =ROUND(IF(D$2+$B41>100,0,D40*INDEX(Sterbtab_mix!$G$4:$G$104,D$2+$B40)),11) -> 0.9644986564 | E41: =ROUND(IF(E$2+$B41>100,0,E40*INDEX(Sterbtab_mix!$G$4:$G$104,E$2+$B40)),11) -> 0.9614122715 | F41: =ROUND(IF(F$2+$B41>100,0,F40*INDEX(Sterbtab_mix!$G$4:$G$104,F$2+$B40)),11) -> 0.9580479225 | G41: =ROUND(IF(G$2+$B41>100,0,G40*INDEX(Sterbtab_mix!$G$4:$G$104,G$2+$B40)),11) -> 0.9543729954 | H41: =ROUND(IF(H$2+$B41>100,0,H40*INDEX(Sterbtab_mix!$G$4:$G$104,H$2+$B40)),11) -> 0.9503404321 | I41: =ROUND(IF(I$2+$B41>100,0,I40*INDEX(Sterbtab_mix!$G$4:$G$104,I$2+$B40)),11) -> 0.9458863249 | J41: =ROUND(IF(J$2+$B41>100,0,J40*INDEX(Sterbtab_mix!$G$4:$G$104,J$2+$B40)),11) -> 0.940938099 | K41: =ROUND(IF(K$2+$B41>100,0,K40*INDEX(Sterbtab_mix!$G$4:$G$104,K$2+$B40)),11) -> 0.9354263751 | L41: =ROUND(IF(L$2+$B41>100,0,L40*INDEX(Sterbtab_mix!$G$4:$G$104,L$2+$B40)),11) -> 0.9292937205 | M41: =ROUND(IF(M$2+$B41>100,0,M40*INDEX(Sterbtab_mix!$G$4:$G$104,M$2+$B40)),11) -> 0.9225021657 | N41: =ROUND(IF(N$2+$B41>100,0,N40*INDEX(Sterbtab_mix!$G$4:$G$104,N$2+$B40)),11) -> 0.9150329909 | O41: =ROUND(IF(O$2+$B41>100,0,O40*INDEX(Sterbtab_mix!$G$4:$G$104,O$2+$B40)),11) -> 0.9068745306 | P41: =ROUND(IF(P$2+$B41>100,0,P40*INDEX(Sterbtab_mix!$G$4:$G$104,P$2+$B40)),11) -> 0.8980248628 | Q41: =ROUND(IF(Q$2+$B41>100,0,Q40*INDEX(Sterbtab_mix!$G$4:$G$104,Q$2+$B40)),11) -> 0.8884897501 | R41: =ROUND(IF(R$2+$B41>100,0,R40*INDEX(Sterbtab_mix!$G$4:$G$104,R$2+$B40)),11) -> 0.8782788796 | S41: =ROUND(IF(S$2+$B41>100,0,S40*INDEX(Sterbtab_mix!$G$4:$G$104,S$2+$B40)),11) -> 0.8673970039 | T41: =ROUND(IF(T$2+$B41>100,0,T40*INDEX(Sterbtab_mix!$G$4:$G$104,T$2+$B40)),11) -> 0.8558400193 | U41: =ROUND(IF(U$2+$B41>100,0,U40*INDEX(Sterbtab_mix!$G$4:$G$104,U$2+$B40)),11) -> 0.8435889355 | V41: =ROUND(IF(V$2+$B41>100,0,V40*INDEX(Sterbtab_mix!$G$4:$G$104,V$2+$B40)),11) -> 0.8306019951 | W41: =ROUND(IF(W$2+$B41>100,0,W40*INDEX(Sterbtab_mix!$G$4:$G$104,W$2+$B40)),11) -> 0.816813735 | X41: =ROUND(IF(X$2+$B41>100,0,X40*INDEX(Sterbtab_mix!$G$4:$G$104,X$2+$B40)),11) -> 0.8021314527 | Y41: =ROUND(IF(Y$2+$B41>100,0,Y40*INDEX(Sterbtab_mix!$G$4:$G$104,Y$2+$B40)),11) -> 0.7864576889 | Z41: =ROUND(IF(Z$2+$B41>100,0,Z40*INDEX(Sterbtab_mix!$G$4:$G$104,Z$2+$B40)),11) -> 0.7696583791 | AA41: =ROUND(IF(AA$2+$B41>100,0,AA40*INDEX(Sterbtab_mix!$G$4:$G$104,AA$2+$B40)),11) -> 0.751579874 | AB41: =ROUND(IF(AB$2+$B41>100,0,AB40*INDEX(Sterbtab_mix!$G$4:$G$104,AB$2+$B40)),11) -> 0.7320574591 | AC41: =ROUND(IF(AC$2+$B41>100,0,AC40*INDEX(Sterbtab_mix!$G$4:$G$104,AC$2+$B40)),11) -> 0.7109181643 | AD41: =ROUND(IF(AD$2+$B41>100,0,AD40*INDEX(Sterbtab_mix!$G$4:$G$104,AD$2+$B40)),11) -> 0.6879927362 | AE41: =ROUND(IF(AE$2+$B41>100,0,AE40*INDEX(Sterbtab_mix!$G$4:$G$104,AE$2+$B40)),11) -> 0.6631184823 | AF41: =ROUND(IF(AF$2+$B41>100,0,AF40*INDEX(Sterbtab_mix!$G$4:$G$104,AF$2+$B40)),11) -> 0.6361549202 | AG41: =ROUND(IF(AG$2+$B41>100,0,AG40*INDEX(Sterbtab_mix!$G$4:$G$104,AG$2+$B40)),11) -> 0.6069947745 | AH41: =ROUND(IF(AH$2+$B41>100,0,AH40*INDEX(Sterbtab_mix!$G$4:$G$104,AH$2+$B40)),11) -> 0.5755822946 | AI41: =ROUND(IF(AI$2+$B41>100,0,AI40*INDEX(Sterbtab_mix!$G$4:$G$104,AI$2+$B40)),11) -> 0.5419286836 | AJ41: =ROUND(IF(AJ$2+$B41>100,0,AJ40*INDEX(Sterbtab_mix!$G$4:$G$104,AJ$2+$B40)),11) -> 0.506128755 | AK41: =ROUND(IF(AK$2+$B41>100,0,AK40*INDEX(Sterbtab_mix!$G$4:$G$104,AK$2+$B40)),11) -> 0.4683789155 | AL41: =ROUND(IF(AL$2+$B41>100,0,AL40*INDEX(Sterbtab_mix!$G$4:$G$104,AL$2+$B40)),11) -> 0.4289871499 | AM41: =ROUND(IF(AM$2+$B41>100,0,AM40*INDEX(Sterbtab_mix!$G$4:$G$104,AM$2+$B40)),11) -> 0.3883776138 | AN41: =ROUND(IF(AN$2+$B41>100,0,AN40*INDEX(Sterbtab_mix!$G$4:$G$104,AN$2+$B40)),11) -> 0.3470872661 | AO41: =ROUND(IF(AO$2+$B41>100,0,AO40*INDEX(Sterbtab_mix!$G$4:$G$104,AO$2+$B40)),11) -> 0.3057524285 | AP41: =ROUND(IF(AP$2+$B41>100,0,AP40*INDEX(Sterbtab_mix!$G$4:$G$104,AP$2+$B40)),11) -> 0.265083969 | AQ41: =ROUND(IF(AQ$2+$B41>100,0,AQ40*INDEX(Sterbtab_mix!$G$4:$G$104,AQ$2+$B40)),11) -> 0.2258290504 | AR41: =ROUND(IF(AR$2+$B41>100,0,AR40*INDEX(Sterbtab_mix!$G$4:$G$104,AR$2+$B40)),11) -> 0.1887245111 | AS41: =ROUND(IF(AS$2+$B41>100,0,AS40*INDEX(Sterbtab_mix!$G$4:$G$104,AS$2+$B40)),11) -> 0.1544446683 | AT41: =ROUND(IF(AT$2+$B41>100,0,AT40*INDEX(Sterbtab_mix!$G$4:$G$104,AT$2+$B40)),11) -> 0.1235472159 | AU41: =ROUND(IF(AU$2+$B41>100,0,AU40*INDEX(Sterbtab_mix!$G$4:$G$104,AU$2+$B40)),11) -> 0.09642959014 | AV41: =ROUND(IF(AV$2+$B41>100,0,AV40*INDEX(Sterbtab_mix!$G$4:$G$104,AV$2+$B40)),11) -> 0.07329882471 | AW41: =ROUND(IF(AW$2+$B41>100,0,AW40*INDEX(Sterbtab_mix!$G$4:$G$104,AW$2+$B40)),11) -> 0.05416022855 | AX41: =ROUND(IF(AX$2+$B41>100,0,AX40*INDEX(Sterbtab_mix!$G$4:$G$104,AX$2+$B40)),11) -> 0.03882892379 | AY41: =ROUND(IF(AY$2+$B41>100,0,AY40*INDEX(Sterbtab_mix!$G$4:$G$104,AY$2+$B40)),11) -> 0.0269609046 | AZ41: =ROUND(IF(AZ$2+$B41>100,0,AZ40*INDEX(Sterbtab_mix!$G$4:$G$104,AZ$2+$B40)),11) -> 0.01809945685 | BA41: =ROUND(IF(BA$2+$B41>100,0,BA40*INDEX(Sterbtab_mix!$G$4:$G$104,BA$2+$B40)),11) -> 0 | BB41: =ROUND(IF(BB$2+$B41>100,0,BB40*INDEX(Sterbtab_mix!$G$4:$G$104,BB$2+$B40)),11) -> 0 | BC41: =ROUND(IF(BC$2+$B41>100,0,BC40*INDEX(Sterbtab_mix!$G$4:$G$104,BC$2+$B40)),11) -> 0 | BD41: =ROUND(IF(BD$2+$B41>100,0,BD40*INDEX(Sterbtab_mix!$G$4:$G$104,BD$2+$B40)),11) -> 0 | BE41: =ROUND(IF(BE$2+$B41>100,0,BE40*INDEX(Sterbtab_mix!$G$4:$G$104,BE$2+$B40)),11) -> 0 | BF41: =ROUND(IF(BF$2+$B41>100,0,BF40*INDEX(Sterbtab_mix!$G$4:$G$104,BF$2+$B40)),11) -> 0 | BG41: =ROUND(IF(BG$2+$B41>100,0,BG40*INDEX(Sterbtab_mix!$G$4:$G$104,BG$2+$B40)),11) -> 0 | BH41: =ROUND(IF(BH$2+$B41>100,0,BH40*INDEX(Sterbtab_mix!$G$4:$G$104,BH$2+$B40)),11) -> 0 | BI41: =ROUND(IF(BI$2+$B41>100,0,BI40*INDEX(Sterbtab_mix!$G$4:$G$104,BI$2+$B40)),11) -> 0 | BJ41: =ROUND(IF(BJ$2+$B41>100,0,BJ40*INDEX(Sterbtab_mix!$G$4:$G$104,BJ$2+$B40)),11) -> 0 | BK41: =ROUND(IF(BK$2+$B41>100,0,BK40*INDEX(Sterbtab_mix!$G$4:$G$104,BK$2+$B40)),11) -> 0 | BL41: =ROUND(IF(BL$2+$B41>100,0,BL40*INDEX(Sterbtab_mix!$G$4:$G$104,BL$2+$B40)),11) -> 0 | BM41: =ROUND(IF(BM$2+$B41>100,0,BM40*INDEX(Sterbtab_mix!$G$4:$G$104,BM$2+$B40)),11) -> 0 | BN41: =ROUND(IF(BN$2+$B41>100,0,BN40*INDEX(Sterbtab_mix!$G$4:$G$104,BN$2+$B40)),11) -> 0 | BO41: =ROUND(IF(BO$2+$B41>100,0,BO40*INDEX(Sterbtab_mix!$G$4:$G$104,BO$2+$B40)),11) -> 0 | BP41: =ROUND(IF(BP$2+$B41>100,0,BP40*INDEX(Sterbtab_mix!$G$4:$G$104,BP$2+$B40)),11) -> 0 | BQ41: =ROUND(IF(BQ$2+$B41>100,0,BQ40*INDEX(Sterbtab_mix!$G$4:$G$104,BQ$2+$B40)),11) -> 0 | BR41: =ROUND(IF(BR$2+$B41>100,0,BR40*INDEX(Sterbtab_mix!$G$4:$G$104,BR$2+$B40)),11) -> 0 | BS41: =ROUND(IF(BS$2+$B41>100,0,BS40*INDEX(Sterbtab_mix!$G$4:$G$104,BS$2+$B40)),11) -> 0 | BT41: =ROUND(IF(BT$2+$B41>100,0,BT40*INDEX(Sterbtab_mix!$G$4:$G$104,BT$2+$B40)),11) -> 0 | BU41: =ROUND(IF(BU$2+$B41>100,0,BU40*INDEX(Sterbtab_mix!$G$4:$G$104,BU$2+$B40)),11) -> 0 | BV41: =ROUND(IF(BV$2+$B41>100,0,BV40*INDEX(Sterbtab_mix!$G$4:$G$104,BV$2+$B40)),11) -> 0 | BW41: =ROUND(IF(BW$2+$B41>100,0,BW40*INDEX(Sterbtab_mix!$G$4:$G$104,BW$2+$B40)),11) -> 0 | BX41: =ROUND(IF(BX$2+$B41>100,0,BX40*INDEX(Sterbtab_mix!$G$4:$G$104,BX$2+$B40)),11) -> 0 | BY41: =ROUND(IF(BY$2+$B41>100,0,BY40*INDEX(Sterbtab_mix!$G$4:$G$104,BY$2+$B40)),11) -> 0 | BZ41: =ROUND(IF(BZ$2+$B41>100,0,BZ40*INDEX(Sterbtab_mix!$G$4:$G$104,BZ$2+$B40)),11) -> 0 | CA41: =ROUND(IF(CA$2+$B41>100,0,CA40*INDEX(Sterbtab_mix!$G$4:$G$104,CA$2+$B40)),11) -> 0 | CB41: =ROUND(IF(CB$2+$B41>100,0,CB40*INDEX(Sterbtab_mix!$G$4:$G$104,CB$2+$B40)),11) -> 0 | CC41: =ROUND(IF(CC$2+$B41>100,0,CC40*INDEX(Sterbtab_mix!$G$4:$G$104,CC$2+$B40)),11) -> 0 | CD41: =ROUND(IF(CD$2+$B41>100,0,CD40*INDEX(Sterbtab_mix!$G$4:$G$104,CD$2+$B40)),11) -> 0 | CE41: =ROUND(IF(CE$2+$B41>100,0,CE40*INDEX(Sterbtab_mix!$G$4:$G$104,CE$2+$B40)),11) -> 0 | CF41: =ROUND(IF(CF$2+$B41>100,0,CF40*INDEX(Sterbtab_mix!$G$4:$G$104,CF$2+$B40)),11) -> 0 | CG41: =ROUND(IF(CG$2+$B41>100,0,CG40*INDEX(Sterbtab_mix!$G$4:$G$104,CG$2+$B40)),11) -> 0 | CH41: =ROUND(IF(CH$2+$B41>100,0,CH40*INDEX(Sterbtab_mix!$G$4:$G$104,CH$2+$B40)),11) -> 0 | CI41: =ROUND(IF(CI$2+$B41>100,0,CI40*INDEX(Sterbtab_mix!$G$4:$G$104,CI$2+$B40)),11) -> 0 | CJ41: =ROUND(IF(CJ$2+$B41>100,0,CJ40*INDEX(Sterbtab_mix!$G$4:$G$104,CJ$2+$B40)),11) -> 0
